Workbook

Sheet lodtrækning
G1: G | H1: H | M1: x | W1: 1e-05
C2: Licensnr. | D2: Navn | E2: Snit | I2: Arrangør : | J2: ABK 31 | L2: Tilmelding | O2: Lodtrækning
I3: Turnering : | J3: DDBU 3-Bande Tour 4. afd. | L3: Først tilmeldte Elite og M rk først | M3: x | O3: Elektronisk | Q3: x
J4: Skriv i I42 - I73 | L4: Efter snit | M4: =IF(M$3>0,"",$M1) ->  | O4: Manuelt | Q4: =IF(Q$3>0,"",$M1) -> 
C7: Pulje 1 | I7: 1) Kolonnen G kan bruges til at lave lodtrækning, marker alle kolonnerne fra H22 til G37og tryk derefter på Data og sorter. Ark må ikke være låst, efter sortering lås skema.
A8: =G14 -> 1 | C8: =IF(S14<1,"",IF($H$74<A8,"",VLOOKUP(A8+100,spiller,2,FALSE))) -> 116686 | D8: =IF(S14<1,"",IF($H$74<A8,"",VLOOKUP(C8,licens,2,FALSE))) -> Allan Schrøder | E8: =IF(S14<1,"",IF($H$74<A8,"",VLOOKUP(C8,licens,6,FALSE))) -> 1.193
A9: =G22 -> 16 | C9: =IF(S22<1,"",IF($H$74<A9,"",VLOOKUP(A9+100,spiller,2,FALSE))) -> 115918 | D9: =IF(S22<1,"",IF($H$74<A9,"",VLOOKUP(C9,licens,2,FALSE))) -> Dan Jensen | E9: =IF(S22<1,"",IF($H$74<A9,"",VLOOKUP(C9,licens,6,FALSE))) -> 0.712
A10: =G30 -> 23 | C10: =IF(S30<1,"",IF($H$74<A10,"",VLOOKUP(A10+100,spiller,2,FALSE))) ->  | D10: =IF(S30<1,"",IF($H$74<A10,"",VLOOKUP(C10,licens,2,FALSE))) ->  | E10: =IF(S30<1,"",IF($H$74<A10,"",VLOOKUP(C10,licens,6,FALSE))) -> 
C11: Pulje 2 | J11: sorteret efter snit
A12: =G15 -> 2 | C12: =IF(S15<1,"",IF($H$74<A12,"",VLOOKUP(A12+100,spiller,2,FALSE))) -> 116295 | D12: =IF(S15<1,"",IF($H$74<A12,"",VLOOKUP(C12,licens,2,FALSE))) -> Claus Petersen | E12: =IF(S15<1,"",IF($H$74<A12,"",VLOOKUP(C12,licens,6,FALSE))) -> 0.912
A13: =G23 -> 15 | C13: =IF(S23<1,"",IF($H$74<A13,"",VLOOKUP(A13+100,spiller,2,FALSE))) -> 119231 | D13: =IF(S23<1,"",IF($H$74<A13,"",VLOOKUP(C13,licens,2,FALSE))) -> Claus Mosskov | E13: =IF(S23<1,"",IF($H$74<A13,"",VLOOKUP(C13,licens,6,FALSE))) -> 0.826 | G13: lodtrækning | I13: Licensnr. | J13: Klubnr. | K13: Navn | L13: Klub | M13: Snit | N13: Afbud
A14: =G31 -> 22 | C14: =IF(S31<1,"",IF($H$74<A14,"",VLOOKUP(A14+100,spiller,2,FALSE))) ->  | D14: =IF(S31<1,"",IF($H$74<A14,"",VLOOKUP(C14,licens,2,FALSE))) ->  | E14: =IF(S31<1,"",IF($H$74<A14,"",VLOOKUP(C14,licens,6,FALSE))) ->  | F14: =IF(N14>0,$M$1,1) -> 1 | G14: 1 | I14: =IF(H$74<1,"",VLOOKUP(1,spiller,2,FALSE)) -> 116686 | J14: =IF(H$74<1,"",VLOOKUP(I14,licens,3,FALSE)) -> 923 | K14: =IF(H$74<1,"",VLOOKUP(I14,licens,2,FALSE)) -> Allan Schrøder | L14: =IF(H$74<1,"",VLOOKUP(I14,licens,4,FALSE)) -> Varde BK | M14: =IF(H$74<1,"",VLOOKUP(I14,licens,6,FALSE)) -> 1.193 | P14: =G14+100 -> 101 | S14: =IF(G14=F14,I14,0) -> 116686
C15: Pulje 3 | F15: =IF(N15>0,$M$1,2) -> 2 | G15: 2 | I15: =IF(H$74<2,"",VLOOKUP(2,spiller,2,FALSE)) -> 116295 | J15: =IF(H$74<2,"",VLOOKUP(I15,licens,3,FALSE)) -> 603 | K15: =IF(H$74<2,"",VLOOKUP(I15,licens,2,FALSE)) -> Claus Petersen | L15: =IF(H$74<2,"",VLOOKUP(I15,licens,4,FALSE)) -> ABK 31 | M15: =IF(H$74<2,"",VLOOKUP(I15,licens,6,FALSE)) -> 0.912 | P15: =G15+100 -> 102 | S15: =IF(G15=F15,I15,0) -> 116295
A16: =G16 -> 3 | C16: =IF(S16<1,"",IF($H$74<A16,"",VLOOKUP(A16+100,spiller,2,FALSE))) -> 114962 | D16: =IF(S16<1,"",IF($H$74<A16,"",VLOOKUP(C16,licens,2,FALSE))) -> Poul Bjerring | E16: =IF(S16<1,"",IF($H$74<A16,"",VLOOKUP(C16,licens,6,FALSE))) -> 1.013 | F16: =IF(N16>0,$M$1,3) -> 3 | G16: 3 | I16: =IF(H$74<3,"",VLOOKUP(3,spiller,2,FALSE)) -> 114962 | J16: =IF(H$74<3,"",VLOOKUP(I16,licens,3,FALSE)) -> 603 | K16: =IF(H$74<3,"",VLOOKUP(I16,licens,2,FALSE)) -> Poul Bjerring | L16: =IF(H$74<3,"",VLOOKUP(I16,licens,4,FALSE)) -> ABK 31 | M16: =IF(H$74<3,"",VLOOKUP(I16,licens,6,FALSE)) -> 1.013 | P16: 103 | S16: 114962
A17: =G24 -> 21 | C17: =IF(S24<1,"",IF($H$74<A17,"",VLOOKUP(A17+100,spiller,2,FALSE))) ->  | D17: =IF(S24<1,"",IF($H$74<A17,"",VLOOKUP(C17,licens,2,FALSE))) ->  | E17: =IF(S24<1,"",IF($H$74<A17,"",VLOOKUP(C17,licens,6,FALSE))) ->  | F17: =IF(N17>0,$M$1,4) -> 4 | G17: 4 | I17: =IF(H$74<4,"",VLOOKUP(4,spiller,2,FALSE)) -> 114711 | J17: =IF(H$74<4,"",VLOOKUP(I17,licens,3,FALSE)) -> 503 | K17: =IF(H$74<4,"",VLOOKUP(I17,licens,2,FALSE)) -> Thomas Knudsen | L17: =IF(H$74<4,"",VLOOKUP(I17,licens,4,FALSE)) -> Bristol | M17: =IF(H$74<4,"",VLOOKUP(I17,licens,6,FALSE)) -> 0.975 | P17: 104 | S17: 114711
A18: =G32 -> 17 | C18: =IF(S32<1,"",IF($H$74<A18,"",VLOOKUP(A18+100,spiller,2,FALSE))) -> 111940 | D18: =IF(S32<1,"",IF($H$74<A18,"",VLOOKUP(C18,licens,2,FALSE))) -> Johnny Søgaard | E18: =IF(S32<1,"",IF($H$74<A18,"",VLOOKUP(C18,licens,6,FALSE))) -> 0.711 | F18: =IF(N18>0,$M$1,5) -> 5 | G18: 5 | I18: =IF(H$74<5,"",VLOOKUP(5,spiller,2,FALSE)) -> 120054 | J18: =IF(H$74<5,"",VLOOKUP(I18,licens,3,FALSE)) -> 923 | K18: =IF(H$74<5,"",VLOOKUP(I18,licens,2,FALSE)) -> Thomas Wollerup | L18: =IF(H$74<5,"",VLOOKUP(I18,licens,4,FALSE)) -> Varde BK | M18: =IF(H$74<5,"",VLOOKUP(I18,licens,6,FALSE)) -> 0.744 | P18: 105 | S18: 120054
C19: Pulje 4 | F19: =IF(N19>0,$M$1,6) -> 6 | G19: 6 | I19: =IF(H$74<6,"",VLOOKUP(6,spiller,2,FALSE)) -> 120905 | J19: =IF(H$74<6,"",VLOOKUP(I19,licens,3,FALSE)) -> 923 | K19: =IF(H$74<6,"",VLOOKUP(I19,licens,2,FALSE)) -> Daniel Kristiansen | L19: =IF(H$74<6,"",VLOOKUP(I19,licens,4,FALSE)) -> Varde BK | M19: =IF(H$74<6,"",VLOOKUP(I19,licens,6,FALSE)) -> 0.891 | P19: 106 | S19: 120905
A20: =G17 -> 4 | C20: =IF(S17<1,"",IF($H$74<A20,"",VLOOKUP(A20+100,spiller,2,FALSE))) -> 114711 | D20: =IF(S17<1,"",IF($H$74<A20,"",VLOOKUP(C20,licens,2,FALSE))) -> Thomas Knudsen | E20: =IF(S17<1,"",IF($H$74<A20,"",VLOOKUP(C20,licens,6,FALSE))) -> 0.975 | F20: =IF(N20>0,$M$1,7) -> 7 | G20: 7 | I20: =IF(H$74<7,"",VLOOKUP(7,spiller,2,FALSE)) -> 122231 | J20: =IF(H$74<7,"",VLOOKUP(I20,licens,3,FALSE)) -> 648 | K20: =IF(H$74<7,"",VLOOKUP(I20,licens,2,FALSE)) -> Kim Keith | L20: =IF(H$74<7,"",VLOOKUP(I20,licens,4,FALSE)) -> Horsens BK | M20: =IF(H$74<7,"",VLOOKUP(I20,licens,6,FALSE)) -> 0.931 | P20: 107 | S20: 122231
A21: =G25 -> 18 | C21: =IF(S25<1,"",IF($H$74<A21,"",VLOOKUP(A21+100,spiller,2,FALSE))) ->  | D21: =IF(S25<1,"",IF($H$74<A21,"",VLOOKUP(C21,licens,2,FALSE))) ->  | E21: =IF(S25<1,"",IF($H$74<A21,"",VLOOKUP(C21,licens,6,FALSE))) ->  | F21: =IF(N21>0,$M$1,8) -> 8 | G21: 8 | I21: =IF(H$74<8,"",VLOOKUP(8,spiller,2,FALSE)) -> 115312 | J21: =IF(H$74<8,"",VLOOKUP(I21,licens,3,FALSE)) -> 503 | K21: =IF(H$74<8,"",VLOOKUP(I21,licens,2,FALSE)) -> Tommy Magnussen | L21: =IF(H$74<8,"",VLOOKUP(I21,licens,4,FALSE)) -> Bristol | M21: =IF(H$74<8,"",VLOOKUP(I21,licens,6,FALSE)) -> 0.944 | P21: 108 | S21: 115312
A22: =G33 -> 9 | C22: =IF(S33<1,"",IF($H$74<A22,"",VLOOKUP(A22+100,spiller,2,FALSE))) -> 116405 | D22: =IF(S33<1,"",IF($H$74<A22,"",VLOOKUP(C22,licens,2,FALSE))) -> Tonny Carlsen | E22: =IF(S33<1,"",IF($H$74<A22,"",VLOOKUP(C22,licens,6,FALSE))) -> 1.322 | F22: =IF(N22>0,$M$1,9) -> 9 | G22: 16 | H22: =IF(Q$3<1,"",RANDBETWEEN(5,1000)) -> 879 | I22: =IF(H$74<9,"",VLOOKUP(9,spiller,2,FALSE)) -> 116405 | J22: =IF(H$74<9,"",VLOOKUP(I22,licens,3,FALSE)) -> 672 | K22: =IF(H$74<9,"",VLOOKUP(I22,licens,2,FALSE)) -> Tonny Carlsen | L22: =IF(H$74<9,"",VLOOKUP(I22,licens,4,FALSE)) -> Randers BK | M22: =IF(H$74<9,"",VLOOKUP(I22,licens,6,FALSE)) -> 1.322 | P22: 116 | Q22: =IF($G22=$F$22,$I$22,IF($G22=$F$23,$I$23,IF($G22=$F$24,$I$24,IF($G22=$F$25,$I$25,IF($G22=$F$26,$I$26,IF($G22=$F$27,$I$27,IF($G22=$F$28,$I$28,IF($G22=$F$29,$I$29)))))))) -> 115918 | R22: =IF($G22=$F$30,$I$30,IF($G22=$F$31,$I$31,IF($G22=$F$32,$I$32,IF($G22=$F$33,$I$33,IF($G22=$F$34,$I$34,IF($G22=$F$35,$I$35,IF($G22=$F$36,$I$36,IF($G22=$F$37,$I$37)))))))) -> FALSE | S22: =SUM(Q22:R22) -> 115918
C23: Pulje 5 | F23: =IF(N23>0,$M$1,10) -> 10 | G23: 15 | H23: =IF(Q$3<1,"",RANDBETWEEN(5,1000)) -> 330 | I23: =IF(H$74<10,"",VLOOKUP(10,spiller,2,FALSE)) -> 111715 | J23: =IF(H$74<10,"",VLOOKUP(I23,licens,3,FALSE)) -> 603 | K23: =IF(H$74<10,"",VLOOKUP(I23,licens,2,FALSE)) -> Søren Andersson | L23: =IF(H$74<10,"",VLOOKUP(I23,licens,4,FALSE)) -> ABK 31 | M23: =IF(H$74<10,"",VLOOKUP(I23,licens,6,FALSE)) -> 1.054 | P23: 115 | Q23: =IF($G23=$F$22,$I$22,IF($G23=$F$23,$I$23,IF($G23=$F$24,$I$24,IF($G23=$F$25,$I$25,IF($G23=$F$26,$I$26,IF($G23=$F$27,$I$27,IF($G23=$F$28,$I$28,IF($G23=$F$29,$I$29)))))))) -> 119231 | R23: =IF($G23=$F$30,$I$30,IF($G23=$F$31,$I$31,IF($G23=$F$32,$I$32,IF($G23=$F$33,$I$33,IF($G23=$F$34,$I$34,IF($G23=$F$35,$I$35,IF($G23=$F$36,$I$36,IF($G23=$F$37,$I$37)))))))) -> FALSE | S23: =SUM(Q23:R23) -> 119231
A24: =G18 -> 5 | C24: =IF(S18<1,"",IF($H$74<A24,"",VLOOKUP(A24+100,spiller,2,FALSE))) -> 120054 | D24: =IF(S18<1,"",IF($H$74<A24,"",VLOOKUP(C24,licens,2,FALSE))) -> Thomas Wollerup | E24: =IF(S18<1,"",IF($H$74<A24,"",VLOOKUP(C24,licens,6,FALSE))) -> 0.744 | F24: =IF(N24>0,$M$1,11) -> 11 | G24: 21 | H24: =IF(Q$3<1,"",RANDBETWEEN(5,1000)) -> 61 | I24: =IF(H$74<11,"",VLOOKUP(11,spiller,2,FALSE)) -> 113686 | J24: =IF(H$74<11,"",VLOOKUP(I24,licens,3,FALSE)) -> 239 | K24: =IF(H$74<11,"",VLOOKUP(I24,licens,2,FALSE)) -> Thomas Andersen | L24: =IF(H$74<11,"",VLOOKUP(I24,licens,4,FALSE)) -> Ringsted BC | M24: =IF(H$74<11,"",VLOOKUP(I24,licens,6,FALSE)) -> 0.977 | P24: 121 | Q24: FALSE | S24: 0
A25: =G26 -> 14 | C25: =IF(S26<1,"",IF($H$74<A25,"",VLOOKUP(A25+100,spiller,2,FALSE))) -> 115742 | D25: =IF(S26<1,"",IF($H$74<A25,"",VLOOKUP(C25,licens,2,FALSE))) -> Kim Nielsen | E25: =IF(S26<1,"",IF($H$74<A25,"",VLOOKUP(C25,licens,6,FALSE))) -> 0.828 | F25: =IF(N25>0,$M$1,12) -> 12 | G25: 18 | H25: =IF(Q$3<1,"",RANDBETWEEN(5,1000)) -> 249 | I25: =IF(H$74<12,"",VLOOKUP(12,spiller,2,FALSE)) -> 119489 | J25: =IF(H$74<12,"",VLOOKUP(I25,licens,3,FALSE)) -> 239 | K25: =IF(H$74<12,"",VLOOKUP(I25,licens,2,FALSE)) -> Bjørn M Jensen | L25: =IF(H$74<12,"",VLOOKUP(I25,licens,4,FALSE)) -> Ringsted BC | M25: =IF(H$74<12,"",VLOOKUP(I25,licens,6,FALSE)) -> 0.968 | P25: 118 | Q25: FALSE | S25: 0
A26: =G34 -> 24 | C26: =IF(S34<1,"",IF($H$74<A26,"",VLOOKUP(A26+100,spiller,2,FALSE))) ->  | D26: =IF(S34<1,"",IF($H$74<A26,"",VLOOKUP(C26,licens,2,FALSE))) ->  | E26: =IF(S34<1,"",IF($H$74<A26,"",VLOOKUP(C26,licens,6,FALSE))) ->  | F26: =IF(N26>0,$M$1,13) -> 13 | G26: 14 | H26: =IF(Q$3<1,"",RANDBETWEEN(5,1000)) -> 167 | I26: =IF(H$74<13,"",VLOOKUP(13,spiller,2,FALSE)) -> 110623 | J26: =IF(H$74<13,"",VLOOKUP(I26,licens,3,FALSE)) -> 672 | K26: =IF(H$74<13,"",VLOOKUP(I26,licens,2,FALSE)) -> Kim Mortensen | L26: =IF(H$74<13,"",VLOOKUP(I26,licens,4,FALSE)) -> Randers BK | M26: =IF(H$74<13,"",VLOOKUP(I26,licens,6,FALSE)) -> 0.947 | P26: 114 | Q26: 115742 | R26: FALSE | S26: 115742
C27: Pulje 6 | F27: =IF(N27>0,$M$1,14) -> 14 | G27: 19 | H27: =IF(Q$3<1,"",RANDBETWEEN(5,1000)) -> 868 | I27: =IF(H$74<14,"",VLOOKUP(14,spiller,2,FALSE)) -> 115742 | J27: =IF(H$74<14,"",VLOOKUP(I27,licens,3,FALSE)) -> 631 | K27: =IF(H$74<14,"",VLOOKUP(I27,licens,2,FALSE)) -> Kim Nielsen | L27: =IF(H$74<14,"",VLOOKUP(I27,licens,4,FALSE)) -> Fredericia BK | M27: =IF(H$74<14,"",VLOOKUP(I27,licens,6,FALSE)) -> 0.828 | P27: 119 | Q27: FALSE | S27: 0
A28: =G19 -> 6 | C28: =IF(S19<1,"",IF($H$74<A28,"",VLOOKUP(A28+100,spiller,2,FALSE))) -> 120905 | D28: =IF(S19<1,"",IF($H$74<A28,"",VLOOKUP(C28,licens,2,FALSE))) -> Daniel Kristiansen | E28: =IF(S19<1,"",IF($H$74<A28,"",VLOOKUP(C28,licens,6,FALSE))) -> 0.891 | F28: =IF(N28>0,$M$1,15) -> 15 | G28: 12 | H28: =IF(Q$3<1,"",RANDBETWEEN(5,1000)) -> 833 | I28: =IF(H$74<15,"",VLOOKUP(15,spiller,2,FALSE)) -> 119231 | J28: =IF(H$74<15,"",VLOOKUP(I28,licens,3,FALSE)) -> 631 | K28: =IF(H$74<15,"",VLOOKUP(I28,licens,2,FALSE)) -> Claus Mosskov | L28: =IF(H$74<15,"",VLOOKUP(I28,licens,4,FALSE)) -> Fredericia BK | M28: =IF(H$74<15,"",VLOOKUP(I28,licens,6,FALSE)) -> 0.826 | P28: 112 | Q28: 119489 | R28: FALSE | S28: 119489
A29: =G27 -> 19 | C29: =IF(S27<1,"",IF($H$74<A29,"",VLOOKUP(A29+100,spiller,2,FALSE))) ->  | D29: =IF(S27<1,"",IF($H$74<A29,"",VLOOKUP(C29,licens,2,FALSE))) ->  | E29: =IF(S27<1,"",IF($H$74<A29,"",VLOOKUP(C29,licens,6,FALSE))) ->  | F29: =IF(N29>0,$M$1,16) -> 16 | G29: 11 | H29: =IF(Q$3<1,"",RANDBETWEEN(5,1000)) -> 354 | I29: =IF(H$74<16,"",VLOOKUP(16,spiller,2,FALSE)) -> 115918 | J29: =IF(H$74<16,"",VLOOKUP(I29,licens,3,FALSE)) -> 631 | K29: =IF(H$74<16,"",VLOOKUP(I29,licens,2,FALSE)) -> Dan Jensen | L29: =IF(H$74<16,"",VLOOKUP(I29,licens,4,FALSE)) -> Fredericia BK | M29: =IF(H$74<16,"",VLOOKUP(I29,licens,6,FALSE)) -> 0.712 | P29: 111 | Q29: 113686 | R29: FALSE | S29: 113686
A30: =G35 -> 10 | C30: =IF(S35<1,"",IF($H$74<A30,"",VLOOKUP(A30+100,spiller,2,FALSE))) -> 111715 | D30: =IF(S35<1,"",IF($H$74<A30,"",VLOOKUP(C30,licens,2,FALSE))) -> Søren Andersson | E30: =IF(S35<1,"",IF($H$74<A30,"",VLOOKUP(C30,licens,6,FALSE))) -> 1.054 | F30: =IF(N30>0,$M$1,17) -> 17 | G30: 23 | H30: =IF(Q$3<1,"",RANDBETWEEN(5,1000)) -> 315 | I30: =IF(H$74<17,"",VLOOKUP(17,spiller,2,FALSE)) -> 111940 | J30: =IF(H$74<17,"",VLOOKUP(I30,licens,3,FALSE)) -> 672 | K30: =IF(H$74<17,"",VLOOKUP(I30,licens,2,FALSE)) -> Johnny Søgaard | L30: =IF(H$74<17,"",VLOOKUP(I30,licens,4,FALSE)) -> Randers BK | M30: =IF(H$74<17,"",VLOOKUP(I30,licens,6,FALSE)) -> 0.711 | P30: 123 | Q30: FALSE | S30: 0
C31: Pulje 7 | F31: =IF(N31>0,$M$1,18) -> 18 | G31: 22 | H31: =IF(Q$3<1,"",RANDBETWEEN(5,1000)) -> 495 | I31: =IF(H$74<18,"",VLOOKUP(18,spiller,2,FALSE)) ->  | J31: =IF(H$74<18,"",VLOOKUP(I31,licens,3,FALSE)) ->  | K31: =IF(H$74<18,"",VLOOKUP(I31,licens,2,FALSE)) ->  | L31: =IF(H$74<18,"",VLOOKUP(I31,licens,4,FALSE)) ->  | M31: =IF(H$74<18,"",VLOOKUP(I31,licens,6,FALSE)) ->  | P31: 122 | Q31: FALSE | S31: 0
A32: =G20 -> 7 | C32: =IF(S20<1,"",IF($H$74<A32,"",VLOOKUP(A32+100,spiller,2,FALSE))) -> 122231 | D32: =IF(S20<1,"",IF($H$74<A32,"",VLOOKUP(C32,licens,2,FALSE))) -> Kim Keith | E32: =IF(S20<1,"",IF($H$74<A32,"",VLOOKUP(C32,licens,6,FALSE))) -> 0.931 | F32: =IF(N32>0,$M$1,19) -> 19 | G32: 17 | H32: =IF(Q$3<1,"",RANDBETWEEN(5,1000)) -> 953 | I32: =IF(H$74<19,"",VLOOKUP(19,spiller,2,FALSE)) ->  | J32: =IF(H$74<19,"",VLOOKUP(I32,licens,3,FALSE)) ->  | K32: =IF(H$74<19,"",VLOOKUP(I32,licens,2,FALSE)) ->  | L32: =IF(H$74<19,"",VLOOKUP(I32,licens,4,FALSE)) ->  | M32: =IF(H$74<19,"",VLOOKUP(I32,licens,6,FALSE)) ->  | P32: 117 | Q32: FALSE | R32: 111940 | S32: 111940
A33: =G28 -> 12 | C33: =IF(S28<1,"",IF($H$74<A33,"",VLOOKUP(A33+100,spiller,2,FALSE))) -> 119489 | D33: =IF(S28<1,"",IF($H$74<A33,"",VLOOKUP(C33,licens,2,FALSE))) -> Bjørn M Jensen | E33: =IF(S28<1,"",IF($H$74<A33,"",VLOOKUP(C33,licens,6,FALSE))) -> 0.968 | F33: =IF(N33>0,$M$1,20) -> 20 | G33: 9 | H33: =IF(Q$3<1,"",RANDBETWEEN(5,1000)) -> 48 | I33: =IF(H$74<20,"",VLOOKUP(20,spiller,2,FALSE)) ->  | J33: =IF(H$74<20,"",VLOOKUP(I33,licens,3,FALSE)) ->  | K33: =IF(H$74<20,"",VLOOKUP(I33,licens,2,FALSE)) ->  | L33: =IF(H$74<20,"",VLOOKUP(I33,licens,4,FALSE)) ->  | M33: =IF(H$74<20,"",VLOOKUP(I33,licens,6,FALSE)) ->  | P33: 109 | Q33: 116405 | R33: FALSE | S33: 116405
A34: =G36 -> 13 | C34: =IF(S36<1,"",IF($H$74<A34,"",VLOOKUP(A34+100,spiller,2,FALSE))) -> 110623 | D34: =IF(S36<1,"",IF($H$74<A34,"",VLOOKUP(C34,licens,2,FALSE))) -> Kim Mortensen | E34: =IF(S36<1,"",IF($H$74<A34,"",VLOOKUP(C34,licens,6,FALSE))) -> 0.947 | F34: =IF(N34>0,$M$1,21) -> 21 | G34: 24 | H34: =IF(Q$3<1,"",RANDBETWEEN(5,1000)) -> 864 | I34: =IF(H$74<21,"",VLOOKUP(21,spiller,2,FALSE)) ->  | J34: =IF(H$74<21,"",VLOOKUP(I34,licens,3,FALSE)) ->  | K34: =IF(H$74<21,"",VLOOKUP(I34,licens,2,FALSE)) ->  | L34: =IF(H$74<21,"",VLOOKUP(I34,licens,4,FALSE)) ->  | M34: =IF(H$74<21,"",VLOOKUP(I34,licens,6,FALSE)) ->  | P34: 124 | Q34: FALSE | S34: 0
C35: Pulje 8 | F35: =IF(N35>0,$M$1,22) -> 22 | G35: 10 | H35: =IF(Q$3<1,"",RANDBETWEEN(5,1000)) -> 373 | I35: =IF(H$74<22,"",VLOOKUP(22,spiller,2,FALSE)) ->  | J35: =IF(H$74<22,"",VLOOKUP(I35,licens,3,FALSE)) ->  | K35: =IF(H$74<22,"",VLOOKUP(I35,licens,2,FALSE)) ->  | L35: =IF(H$74<22,"",VLOOKUP(I35,licens,4,FALSE)) ->  | M35: =IF(H$74<22,"",VLOOKUP(I35,licens,6,FALSE)) ->  | P35: 110 | Q35: 111715 | R35: FALSE | S35: 111715
A36: =G21 -> 8 | C36: =IF(S21<1,"",IF($H$74<A36,"",VLOOKUP(A36+100,spiller,2,FALSE))) -> 115312 | D36: =IF(S21<1,"",IF($H$74<A36,"",VLOOKUP(C36,licens,2,FALSE))) -> Tommy Magnussen | E36: =IF(S21<1,"",IF($H$74<A36,"",VLOOKUP(C36,licens,6,FALSE))) -> 0.944 | F36: =IF(N36>0,$M$1,23) -> 23 | G36: 13 | H36: =IF(Q$3<1,"",RANDBETWEEN(5,1000)) -> 791 | I36: =IF(H$74<23,"",VLOOKUP(23,spiller,2,FALSE)) ->  | J36: =IF(H$74<23,"",VLOOKUP(I36,licens,3,FALSE)) ->  | K36: =IF(H$74<23,"",VLOOKUP(I36,licens,2,FALSE)) ->  | L36: =IF(H$74<23,"",VLOOKUP(I36,licens,4,FALSE)) ->  | M36: =IF(H$74<23,"",VLOOKUP(I36,licens,6,FALSE)) ->  | P36: 113 | Q36: 110623 | R36: FALSE | S36: 110623
A37: =G29 -> 11 | C37: =IF(S29<1,"",IF($H$74<A37,"",VLOOKUP(A37+100,spiller,2,FALSE))) -> 113686 | D37: =IF(S29<1,"",IF($H$74<A37,"",VLOOKUP(C37,licens,2,FALSE))) -> Thomas Andersen | E37: =IF(S29<1,"",IF($H$74<A37,"",VLOOKUP(C37,licens,6,FALSE))) -> 0.977 | F37: =IF(N37>0,$M$1,24) -> 24 | G37: 20 | H37: =IF(Q$3<1,"",RANDBETWEEN(5,1000)) -> 677 | I37: =IF(H$74<24,"",VLOOKUP(24,spiller,2,FALSE)) ->  | J37: =IF(H$74<24,"",VLOOKUP(I37,licens,3,FALSE)) ->  | K37: =IF(H$74<24,"",VLOOKUP(I37,licens,2,FALSE)) ->  | L37: =IF(H$74<24,"",VLOOKUP(I37,licens,4,FALSE)) ->  | M37: =IF(H$74<24,"",VLOOKUP(I37,licens,6,FALSE)) ->  | P37: 120 | Q37: FALSE | S37: 0
A38: =G37 -> 20 | C38: =IF(S37<1,"",IF($H$74<A38,"",VLOOKUP(A38+100,spiller,2,FALSE))) ->  | D38: =IF(S37<1,"",IF($H$74<A38,"",VLOOKUP(C38,licens,2,FALSE))) ->  | E38: =IF(S37<1,"",IF($H$74<A38,"",VLOOKUP(C38,licens,6,FALSE))) -> 
H39: Indtast her | K39: Hvis navn og klub ikke kommer frem skal database opdateres.
B41: =A74 -> 8 | C41: =B74 -> 17 | I41: Licensnr. | J41: Klubnr. | K41: Navn | L41: Klub | M41: Snit | N41: Rangering | Q41: sum | V41: 1 | W41: 2 | X41: 3 | Y41: 4 | Z41: 5 | AA41: 6 | AB41: 7 | AC41: 8 | AD41: 9 | AE41: 10 | AF41: 11 | AG41: 12 | AH41: 13 | AI41: 14 | AJ41: 15 | AK41: 16 | AL41: 17 | AM41: 18 | AN41: 19 | AO41: 20 | AP41: 21 | AQ41: 22 | AR41: 23 | AS41: 24 | AT41: 25 | AU41: 26 | AV41: 27 | AW41: 28 | AX41: 29 | AY41: 30 | AZ41: 31 | BA41: 32
A42: =IF(N42<1,0,N42) -> 2 | B42: =IF(I42<1,"",IF(A42>0,A42,IF(M42<0.65,0,IF(M42>0.649,1+B41)))) -> 2 | C42: =IF(I42<1,"",IF(A42>0,0,IF(M42>0.649,0,IF(M42<0.65,1,0)+MAX(C$41:C41)))) -> 0 | D42: =SUM(B42:C42) -> 2 | E42: =IF(D42<A$75,0,IF(SUM(B42:C42)>24,0,Q42)) -> 0 | G42: =IF(A42>0,0,Q42) -> 0 | H42: =IF(D42<A$75,D42,IF(E42<0.001,"",RANK(E42,E$42:E$73)+A$74)) -> 2 | I42: 116295 | J42: =IF(I42="","",VLOOKUP(I42,licens,3,FALSE)) -> 603 | K42: =IF(I42="","",VLOOKUP(I42,licens,2,FALSE)) -> Claus Petersen | L42: =IF(I42="","",VLOOKUP(I42,licens,4,FALSE)) -> ABK 31 | M42: =IF(I42="","",VLOOKUP(I42,licens,6,FALSE)) -> 0.912 | N42: 2 | O42: =BC42 -> 0 | P42: =IF(I42<1,"",IF(A42>0,A42,RANK(G42,G$42:G$73)+A$74)) -> 2 | Q42: =SUM(M42,O42) -> 0.912 | R42: =IF(N42>0,0) -> 0 | W42: =IF($I42<1,"",IF($M42=$M43,$W$1)) -> FALSE | X42: =IF($I42<1,"",IF($M42=$M44,$W$1)) -> FALSE | Y42: =IF($I42<1,"",IF($M42=$M45,$W$1)) -> FALSE | Z42: =IF($I42<1,"",IF($M42=$M46,$W$1)) -> FALSE | AA42: =IF($I42<1,"",IF($M42=$M47,$W$1)) -> FALSE | AB42: =IF($I42<1,"",IF($M42=$M48,$W$1)) -> FALSE | AC42: =IF($I42<1,"",IF($M42=$M49,$W$1)) -> FALSE | AD42: =IF($I42<1,"",IF($M42=$M50,$W$1)) -> FALSE | AE42: =IF($I42<1,"",IF($M42=$M51,$W$1)) -> FALSE | AF42: =IF($I42<1,"",IF($M42=$M52,$W$1)) -> FALSE | AG42: =IF($I42<1,"",IF($M42=$M53,$W$1)) -> FALSE | AH42: =IF($I42<1,"",IF($M42=$M54,$W$1)) -> FALSE | AI42: =IF($I42<1,"",IF($M42=$M55,$W$1)) -> FALSE | AJ42: =IF($I42<1,"",IF($M42=$M56,$W$1)) -> FALSE | AK42: =IF($I42<1,"",IF($M42=$M57,$W$1)) -> FALSE | AL42: =IF($I42<1,"",IF($M42=$M58,$W$1)) -> FALSE | AM42: =IF($I42<1,"",IF($M42=$M59,$W$1)) -> FALSE | AN42: =IF($I42<1,"",IF($M42=$M60,$W$1)) -> FALSE | AO42: =IF($I42<1,"",IF($M42=$M61,$W$1)) -> FALSE | AP42: =IF($I42<1,"",IF($M42=$M62,$W$1)) -> FALSE | AQ42: =IF($I42<1,"",IF($M42=$M63,$W$1)) -> FALSE | AR42: =IF($I42<1,"",IF($M42=$M64,$W$1)) -> FALSE | AS42: =IF($I42<1,"",IF($M42=$M65,$W$1)) -> FALSE | AT42: =IF($I42<1,"",IF($M42=$M66,$W$1)) -> FALSE | AU42: =IF($I42<1,"",IF($M42=$M67,$W$1)) -> FALSE | AV42: =IF($I42<1,"",IF($M42=$M68,$W$1)) -> FALSE | AW42: =IF($I42<1,"",IF($M42=$M69,$W$1)) -> FALSE | AX42: =IF($I42<1,"",IF($M42=$M70,$W$1)) -> FALSE | AY42: =IF($I42<1,"",IF($M42=$M71,$W$1)) -> FALSE | AZ42: =IF($I42<1,"",IF($M42=$M72,$W$1)) -> FALSE | BA42: =IF($I42<1,"",IF($M42=$M73,$W$1)) -> FALSE | BC42: =SUM(W42:BA42) -> 0
A43: =IF(N43<1,0,N43) -> 3 | B43: =IF(I43<1,"",IF(A43>0,A43,IF(M43<0.65,0,IF(M43>0.649,1)+MAX(B$41:B42)))) -> 3 | C43: =IF(I43<1,"",IF(A43>0,0,IF(M43>0.649,0,IF(M43<0.65,1,0)+MAX(C$41:C42)))) -> 0 | D43: =SUM(B43:C43) -> 3 | E43: =IF(D43<A$75,0,IF(SUM(B43:C43)>24,0,Q43)) -> 0 | G43: =IF(A43>0,0,Q43) -> 0 | H43: =IF(D43<A$75,D43,IF(E43<0.001,"",RANK(E43,E$42:E$73)+A$74)) -> 3 | I43: 114962 | J43: 603 | K43: Poul Bjerring | L43: ABK 31 | M43: 1.013 | N43: 3 | O43: =BC43 -> 0 | P43: =IF(I43<1,"",IF(A43>0,A43,RANK(G43,G$42:G$73)+A$74)) -> 3 | Q43: =SUM(M43,O43) -> 1.013 | R43: 0 | W43: FALSE | X43: FALSE | Y43: FALSE | Z43: FALSE | AA43: FALSE | AB43: FALSE | AC43: FALSE | AD43: FALSE | AE43: FALSE | AF43: FALSE | AG43: FALSE | AH43: FALSE | AI43: FALSE | AJ43: FALSE | AK43: FALSE | AL43: FALSE | AM43: FALSE | AN43: FALSE | AO43: FALSE | AP43: FALSE | AQ43: FALSE | AR43: FALSE | AS43: FALSE | AT43: FALSE | AU43: FALSE | AV43: FALSE | AW43: =IF($I43<1,"",IF($M43=$M70,$W$1)) -> FALSE | AX43: =IF($I43<1,"",IF($M43=$M71,$W$1)) -> FALSE | AY43: =IF($I43<1,"",IF($M43=$M72,$W$1)) -> FALSE | AZ43: =IF($I43<1,"",IF($M43=$M73,$W$1)) -> FALSE | BC43: =SUM(W43:BA43) -> 0
A44: 5 | B44: =IF(I44<1,"",IF(A44>0,A44,IF(M44<0.65,0,IF(M44>0.649,1)+MAX(B$41:B43)))) -> 5 | C44: =IF(I44<1,"",IF(A44>0,0,IF(M44>0.649,0,IF(M44<0.65,1,0)+MAX(C$41:C43)))) -> 0 | D44: 5 | E44: 0 | G44: 0 | H44: 5 | I44: 120054 | J44: 923 | K44: Thomas Wollerup | L44: Varde BK | M44: 0.744 | N44: 5 | O44: 0 | P44: 5 | Q44: 0.744 | R44: 0 | W44: FALSE | X44: FALSE | Y44: FALSE | Z44: FALSE | AA44: FALSE | AB44: FALSE | AC44: FALSE | AD44: FALSE | AE44: FALSE | AF44: FALSE | AG44: FALSE | AH44: FALSE | AI44: FALSE | AJ44: FALSE | AK44: FALSE | AL44: FALSE | AM44: FALSE | AN44: FALSE | AO44: FALSE | AP44: FALSE | AQ44: FALSE | AR44: FALSE | AS44: FALSE | AT44: FALSE | AU44: FALSE | AV44: FALSE | AW44: =IF($I44<1,"",IF($M44=$M71,$W$1)) -> FALSE | AX44: =IF($I44<1,"",IF($M44=$M72,$W$1)) -> FALSE | AY44: =IF($I44<1,"",IF($M44=$M73,$W$1)) -> FALSE | BC44: 0
A45: 8 | B45: =IF(I45<1,"",IF(A45>0,A45,IF(M45<0.65,0,IF(M45>0.649,1)+MAX(B$41:B44)))) -> 8 | C45: =IF(I45<1,"",IF(A45>0,0,IF(M45>0.649,0,IF(M45<0.65,1,0)+MAX(C$41:C44)))) -> 0 | D45: 8 | E45: 0 | G45: 0 | H45: 8 | I45: 115312 | J45: 503 | K45: Tommy Magnussen | L45: Bristol | M45: 0.944 | N45: 8 | O45: 0 | P45: 8 | Q45: 0.944 | R45: 0 | W45: FALSE | X45: FALSE | Y45: FALSE | Z45: FALSE | AA45: FALSE | AB45: FALSE | AC45: FALSE | AD45: FALSE | AE45: FALSE | AF45: FALSE | AG45: FALSE | AH45: FALSE | AI45: FALSE | AJ45: FALSE | AK45: FALSE | AL45: FALSE | AM45: FALSE | AN45: FALSE | AO45: FALSE | AP45: FALSE | AQ45: FALSE | AR45: FALSE | AS45: FALSE | AT45: FALSE | AU45: FALSE | AV45: FALSE | AW45: =IF($I45<1,"",IF($M45=$M72,$W$1)) -> FALSE | AX45: =IF($I45<1,"",IF($M45=$M73,$W$1)) -> FALSE | BC45: 0
A46: 0 | B46: =IF(I46<1,"",IF(A46>0,A46,IF(M46<0.65,0,IF(M46>0.649,1)+MAX(B$41:B45)))) -> 9 | C46: =IF(I46<1,"",IF(A46>0,0,IF(M46>0.649,0,IF(M46<0.65,1,0)+MAX(C$41:C45)))) -> 0 | D46: 9 | E46: 0.947 | G46: 0.947 | H46: 13 | I46: 110623 | J46: 672 | K46: Kim Mortensen | L46: Randers BK | M46: 0.947 | O46: 0 | P46: 13 | Q46: 0.947 | R46: FALSE | W46: FALSE | X46: FALSE | Y46: FALSE | Z46: FALSE | AA46: FALSE | AB46: FALSE | AC46: FALSE | AD46: FALSE | AE46: FALSE | AF46: FALSE | AG46: FALSE | AH46: FALSE | AI46: FALSE | AJ46: FALSE | AK46: FALSE | AL46: FALSE | AM46: FALSE | AN46: FALSE | AO46: FALSE | AP46: FALSE | AQ46: FALSE | AR46: FALSE | AS46: FALSE | AT46: FALSE | AU46: FALSE | AV46: FALSE | AW46: =IF($I46<1,"",IF($M46=$M73,$W$1)) -> FALSE | BC46: 0
A47: 0 | B47: =IF(I47<1,"",IF(A47>0,A47,IF(M47<0.65,0,IF(M47>0.649,1)+MAX(B$41:B46)))) -> 10 | C47: =IF(I47<1,"",IF(A47>0,0,IF(M47>0.649,0,IF(M47<0.65,1,0)+MAX(C$41:C46)))) -> 0 | D47: 10 | E47: 1.322 | G47: 1.322 | H47: 9 | I47: 116405 | J47: 672 | K47: Tonny Carlsen | L47: Randers BK | M47: 1.322 | O47: 0 | P47: 9 | Q47: 1.322 | R47: =IF(N47>0,0) -> FALSE | W47: FALSE | X47: FALSE | Y47: FALSE | Z47: FALSE | AA47: FALSE | AB47: FALSE | AC47: FALSE | AD47: FALSE | AE47: FALSE | AF47: FALSE | AG47: FALSE | AH47: FALSE | AI47: FALSE | AJ47: FALSE | AK47: FALSE | AL47: FALSE | AM47: FALSE | AN47: FALSE | AO47: FALSE | AP47: FALSE | AQ47: FALSE | AR47: FALSE | AS47: FALSE | AT47: FALSE | AU47: FALSE | AV47: FALSE | BC47: 0
A48: 0 | B48: =IF(I48<1,"",IF(A48>0,A48,IF(M48<0.65,0,IF(M48>0.649,1)+MAX(B$41:B47)))) -> 11 | C48: =IF(I48<1,"",IF(A48>0,0,IF(M48>0.649,0,IF(M48<0.65,1,0)+MAX(C$41:C47)))) -> 0 | D48: 11 | E48: 0.711 | G48: 0.711 | H48: 17 | I48: 111940 | J48: 672 | K48: Johnny Søgaard | L48: Randers BK | M48: 0.711 | O48: 0 | P48: 17 | Q48: 0.711 | R48: FALSE | W48: FALSE | X48: FALSE | Y48: FALSE | Z48: FALSE | AA48: FALSE | AB48: FALSE | AC48: FALSE | AD48: FALSE | AE48: FALSE | AF48: FALSE | AG48: FALSE | AH48: FALSE | AI48: FALSE | AJ48: FALSE | AK48: FALSE | AL48: FALSE | AM48: FALSE | AN48: FALSE | AO48: FALSE | AP48: FALSE | AQ48: FALSE | AR48: FALSE | AS48: FALSE | AT48: FALSE | AU48: FALSE | BC48: 0
A49: 0 | B49: =IF(I49<1,"",IF(A49>0,A49,IF(M49<0.65,0,IF(M49>0.649,1)+MAX(B$41:B48)))) -> 12 | C49: =IF(I49<1,"",IF(A49>0,0,IF(M49>0.649,0,IF(M49<0.65,1,0)+MAX(C$41:C48)))) -> 0 | D49: 12 | E49: 0.828 | G49: 0.828 | H49: 14 | I49: 115742 | J49: 631 | K49: Kim Nielsen | L49: Fredericia BK | M49: 0.828 | O49: 0 | P49: 14 | Q49: 0.828 | R49: FALSE | W49: FALSE | X49: FALSE | Y49: FALSE | Z49: FALSE | AA49: FALSE | AB49: FALSE | AC49: FALSE | AD49: FALSE | AE49: FALSE | AF49: FALSE | AG49: FALSE | AH49: FALSE | AI49: FALSE | AJ49: FALSE | AK49: FALSE | AL49: FALSE | AM49: FALSE | AN49: FALSE | AO49: FALSE | AP49: FALSE | AQ49: FALSE | AR49: FALSE | AS49: FALSE | AT49: FALSE | BC49: 0
A50: 0 | B50: =IF(I50<1,"",IF(A50>0,A50,IF(M50<0.65,0,IF(M50>0.649,1)+MAX(B$41:B49)))) -> 13 | C50: =IF(I50<1,"",IF(A50>0,0,IF(M50>0.649,0,IF(M50<0.65,1,0)+MAX(C$41:C49)))) -> 0 | D50: 13 | E50: 1.054 | G50: 1.054 | H50: 10 | I50: 111715 | J50: 603 | K50: Søren Andersson | L50: ABK 31 | M50: 1.054 | O50: 0 | P50: 10 | Q50: 1.054 | R50: FALSE | W50: FALSE | X50: FALSE | Y50: FALSE | Z50: FALSE | AA50: FALSE | AB50: FALSE | AC50: FALSE | AD50: FALSE | AE50: FALSE | AF50: FALSE | AG50: FALSE | AH50: FALSE | AI50: FALSE | AJ50: FALSE | AK50: FALSE | AL50: FALSE | AM50: FALSE | AN50: FALSE | AO50: FALSE | AP50: FALSE | AQ50: FALSE | AR50: FALSE | AS50: FALSE | BC50: 0
A51: 0 | B51: =IF(I51<1,"",IF(A51>0,A51,IF(M51<0.65,0,IF(M51>0.649,1)+MAX(B$41:B50)))) -> 14 | C51: =IF(I51<1,"",IF(A51>0,0,IF(M51>0.649,0,IF(M51<0.65,1,0)+MAX(C$41:C50)))) -> 0 | D51: 14 | E51: 0.712 | G51: 0.712 | H51: 16 | I51: 115918 | J51: 631 | K51: Dan Jensen | L51: Fredericia BK | M51: 0.712 | O51: 0 | P51: 16 | Q51: 0.712 | R51: FALSE | W51: FALSE | X51: FALSE | Y51: FALSE | Z51: FALSE | AA51: FALSE | AB51: FALSE | AC51: FALSE | AD51: FALSE | AE51: FALSE | AF51: FALSE | AG51: FALSE | AH51: FALSE | AI51: FALSE | AJ51: FALSE | AK51: FALSE | AL51: FALSE | AM51: FALSE | AN51: FALSE | AO51: FALSE | AP51: FALSE | AQ51: FALSE | AR51: FALSE | BC51: 0
A52: 4 | B52: =IF(I52<1,"",IF(A52>0,A52,IF(M52<0.65,0,IF(M52>0.649,1)+MAX(B$41:B51)))) -> 4 | C52: =IF(I52<1,"",IF(A52>0,0,IF(M52>0.649,0,IF(M52<0.65,1,0)+MAX(C$41:C51)))) -> 0 | D52: 4 | E52: 0 | G52: 0 | H52: 4 | I52: 114711 | J52: 503 | K52: =IF(I52="","",VLOOKUP(I52,licens,2,FALSE)) -> Thomas Knudsen | L52: =IF(I52="","",VLOOKUP(I52,licens,4,FALSE)) -> Bristol | M52: =IF(I52="","",VLOOKUP(I52,licens,6,FALSE)) -> 0.975 | N52: 4 | O52: 0 | P52: 4 | Q52: 0.975 | R52: 0 | W52: FALSE | X52: FALSE | Y52: FALSE | Z52: FALSE | AA52: FALSE | AB52: FALSE | AC52: FALSE | AD52: FALSE | AE52: FALSE | AF52: FALSE | AG52: FALSE | AH52: FALSE | AI52: FALSE | AJ52: FALSE | AK52: FALSE | AL52: FALSE | AM52: FALSE | AN52: FALSE | AO52: FALSE | AP52: FALSE | AQ52: FALSE | BC52: 0
A53: 0 | B53: =IF(I53<1,"",IF(A53>0,A53,IF(M53<0.65,0,IF(M53>0.649,1)+MAX(B$41:B52)))) -> 15 | C53: =IF(I53<1,"",IF(A53>0,0,IF(M53>0.649,0,IF(M53<0.65,1,0)+MAX(C$41:C52)))) -> 0 | D53: 15 | E53: 0.968 | G53: 0.968 | H53: 12 | I53: 119489 | J53: 239 | K53: Bjørn M Jensen | L53: Ringsted BC | M53: 0.968 | O53: 0 | P53: 12 | Q53: 0.968 | R53: FALSE | W53: FALSE | X53: FALSE | Y53: FALSE | Z53: FALSE | AA53: FALSE | AB53: FALSE | AC53: FALSE | AD53: FALSE | AE53: FALSE | AF53: FALSE | AG53: FALSE | AH53: FALSE | AI53: FALSE | AJ53: FALSE | AK53: FALSE | AL53: FALSE | AM53: FALSE | AN53: FALSE | AO53: FALSE | AP53: FALSE | BC53: 0
A54: 7 | B54: =IF(I54<1,"",IF(A54>0,A54,IF(M54<0.65,0,IF(M54>0.649,1)+MAX(B$41:B53)))) -> 7 | C54: =IF(I54<1,"",IF(A54>0,0,IF(M54>0.649,0,IF(M54<0.65,1,0)+MAX(C$41:C53)))) -> 0 | D54: 7 | E54: 0 | G54: 0 | H54: 7 | I54: 122231 | J54: 648 | K54: Kim Keith | L54: Horsens BK | M54: 0.931 | N54: 7 | O54: 0 | P54: 7 | Q54: 0.931 | R54: 0 | W54: FALSE | X54: FALSE | Y54: FALSE | Z54: FALSE | AA54: FALSE | AB54: FALSE | AC54: FALSE | AD54: FALSE | AE54: FALSE | AF54: FALSE | AG54: FALSE | AH54: FALSE | AI54: FALSE | AJ54: FALSE | AK54: FALSE | AL54: FALSE | AM54: FALSE | AN54: FALSE | AO54: FALSE | BC54: 0
A55: 0 | B55: =IF(I55<1,"",IF(A55>0,A55,IF(M55<0.65,0,IF(M55>0.649,1)+MAX(B$41:B54)))) -> 16 | C55: =IF(I55<1,"",IF(A55>0,0,IF(M55>0.649,0,IF(M55<0.65,1,0)+MAX(C$41:C54)))) -> 0 | D55: 16 | E55: 0.977 | G55: 0.977 | H55: 11 | I55: 113686 | J55: 239 | K55: Thomas Andersen | L55: Ringsted BC | M55: 0.977 | O55: 0 | P55: 11 | Q55: 0.977 | R55: FALSE | W55: FALSE | X55: FALSE | Y55: FALSE | Z55: FALSE | AA55: FALSE | AB55: FALSE | AC55: FALSE | AD55: FALSE | AE55: FALSE | AF55: FALSE | AG55: FALSE | AH55: FALSE | AI55: FALSE | AJ55: FALSE | AK55: FALSE | AL55: FALSE | AM55: FALSE | AN55: FALSE | BC55: 0
A56: 0 | B56: =IF(I56<1,"",IF(A56>0,A56,IF(M56<0.65,0,IF(M56>0.649,1)+MAX(B$41:B55)))) -> 17 | C56: =IF(I56<1,"",IF(A56>0,0,IF(M56>0.649,0,IF(M56<0.65,1,0)+MAX(C$41:C55)))) -> 0 | D56: 17 | E56: 0.826 | G56: 0.826 | H56: 15 | I56: 119231 | J56: 631 | K56: Claus Mosskov | L56: Fredericia BK | M56: 0.826 | O56: 0 | P56: 15 | Q56: 0.826 | R56: FALSE | W56: FALSE | X56: FALSE | Y56: FALSE | Z56: FALSE | AA56: FALSE | AB56: FALSE | AC56: FALSE | AD56: FALSE | AE56: FALSE | AF56: FALSE | AG56: FALSE | AH56: FALSE | AI56: FALSE | AJ56: FALSE | AK56: FALSE | AL56: FALSE | AM56: FALSE | BC56: 0
A57: 6 | B57: =IF(I57<1,"",IF(A57>0,A57,IF(M57<0.65,0,IF(M57>0.649,1)+MAX(B$41:B56)))) -> 6 | C57: =IF(I57<1,"",IF(A57>0,0,IF(M57>0.649,0,IF(M57<0.65,1,0)+MAX(C$41:C56)))) -> 0 | D57: 6 | E57: 0 | G57: 0 | H57: 6 | I57: 120905 | J57: 923 | K57: Daniel Kristiansen | L57: Varde BK | M57: 0.891 | N57: 6 | O57: 0 | P57: 6 | Q57: 0.891 | R57: 0 | W57: FALSE | X57: FALSE | Y57: FALSE | Z57: FALSE | AA57: FALSE | AB57: FALSE | AC57: FALSE | AD57: FALSE | AE57: FALSE | AF57: FALSE | AG57: FALSE | AH57: FALSE | AI57: FALSE | AJ57: FALSE | AK57: FALSE | AL57: FALSE | BC57: 0
A58: 1 | B58: =IF(I58<1,"",IF(A58>0,A58,IF(M58<0.65,0,IF(M58>0.649,1)+MAX(B$41:B57)))) -> 1 | C58: =IF(I58<1,"",IF(A58>0,0,IF(M58>0.649,0,IF(M58<0.65,1,0)+MAX(C$41:C57)))) -> 0 | D58: 1 | E58: 0 | G58: 0 | H58: 1 | I58: 116686 | J58: 923 | K58: Allan Schrøder | L58: Varde BK | M58: 1.193 | N58: 1 | O58: 0 | P58: 1 | Q58: 1.193 | R58: 0 | W58: FALSE | X58: FALSE | Y58: FALSE | Z58: FALSE | AA58: FALSE | AB58: FALSE | AC58: FALSE | AD58: FALSE | AE58: FALSE | AF58: FALSE | AG58: FALSE | AH58: FALSE | AI58: FALSE | AJ58: FALSE | AK58: FALSE | BC58: 0
A59: 0 | B59: =IF(I59<1,"",IF(A59>0,A59,IF(M59<0.65,0,IF(M59>0.649,1)+MAX(B$41:B58)))) ->  | C59: =IF(I59<1,"",IF(A59>0,0,IF(M59>0.649,0,IF(M59<0.65,1,0)+MAX(C$41:C58)))) ->  | D59: 0 | E59: 0 | G59: 0 | H59: 0 | O59: 0 | Q59: 0 | R59: FALSE | BC59: 0
A60: 0 | B60: =IF(I60<1,"",IF(A60>0,A60,IF(M60<0.65,0,IF(M60>0.649,1)+MAX(B$41:B59)))) ->  | C60: =IF(I60<1,"",IF(A60>0,0,IF(M60>0.649,0,IF(M60<0.65,1,0)+MAX(C$41:C59)))) ->  | D60: 0 | E60: 0 | G60: 0 | H60: 0 | O60: 0 | Q60: 0 | R60: FALSE | BC60: 0
A61: 0 | B61: =IF(I61<1,"",IF(A61>0,A61,IF(M61<0.65,0,IF(M61>0.649,1)+MAX(B$41:B60)))) ->  | C61: =IF(I61<1,"",IF(A61>0,0,IF(M61>0.649,0,IF(M61<0.65,1,0)+MAX(C$41:C60)))) ->  | D61: 0 | E61: 0 | G61: 0 | H61: 0 | O61: 0 | Q61: 0 | R61: FALSE | BC61: 0
A62: 0 | B62: =IF(I62<1,"",IF(A62>0,A62,IF(M62<0.65,0,IF(M62>0.649,1)+MAX(B$41:B61)))) ->  | C62: =IF(I62<1,"",IF(A62>0,0,IF(M62>0.649,0,IF(M62<0.65,1,0)+MAX(C$41:C61)))) ->  | D62: 0 | E62: 0 | G62: 0 | H62: 0 | O62: 0 | Q62: 0 | R62: FALSE | BC62: 0
A63: 0 | B63: =IF(I63<1,"",IF(A63>0,A63,IF(M63<0.65,0,IF(M63>0.649,1)+MAX(B$41:B62)))) ->  | C63: =IF(I63<1,"",IF(A63>0,0,IF(M63>0.649,0,IF(M63<0.65,1,0)+MAX(C$41:C62)))) ->  | D63: 0 | E63: 0 | G63: 0 | H63: 0 | O63: 0 | Q63: 0 | R63: FALSE | BC63: 0
A64: 0 | B64: =IF(I64<1,"",IF(A64>0,A64,IF(M64<0.65,0,IF(M64>0.649,1)+MAX(B$41:B63)))) ->  | C64: =IF(I64<1,"",IF(A64>0,0,IF(M64>0.649,0,IF(M64<0.65,1,0)+MAX(C$41:C63)))) ->  | D64: 0 | E64: 0 | G64: 0 | H64: 0 | O64: 0 | Q64: 0 | R64: FALSE | BC64: 0
A65: 0 | B65: =IF(I65<1,"",IF(A65>0,A65,IF(M65<0.65,0,IF(M65>0.649,1)+MAX(B$41:B64)))) ->  | C65: =IF(I65<1,"",IF(A65>0,0,IF(M65>0.649,0,IF(M65<0.65,1,0)+MAX(C$41:C64)))) ->  | D65: 0 | E65: 0 | G65: 0 | H65: 0 | O65: 0 | Q65: 0 | R65: FALSE | BC65: 0
A66: 0 | B66: =IF(I66<1,"",IF(A66>0,A66,IF(M66<0.65,0,IF(M66>0.649,1)+MAX(B$41:B65)))) ->  | C66: =IF(I66<1,"",IF(A66>0,0,IF(M66>0.649,0,IF(M66<0.65,1,0)+MAX(C$41:C65)))) ->  | D66: 0 | E66: 0 | G66: 0 | H66: 0 | O66: 0 | Q66: 0 | R66: FALSE | BC66: 0
A67: 0 | B67: =IF(I67<1,"",IF(A67>0,A67,IF(M67<0.65,0,IF(M67>0.649,1)+MAX(B$41:B66)))) ->  | C67: =IF(I67<1,"",IF(A67>0,0,IF(M67>0.649,0,IF(M67<0.65,1,0)+MAX(C$41:C66)))) ->  | D67: 0 | E67: 0 | G67: 0 | H67: 0 | O67: 0 | Q67: 0 | R67: FALSE | BC67: 0
A68: 0 | B68: =IF(I68<1,"",IF(A68>0,A68,IF(M68<0.65,0,IF(M68>0.649,1)+MAX(B$41:B67)))) ->  | C68: =IF(I68<1,"",IF(A68>0,0,IF(M68>0.649,0,IF(M68<0.65,1,0)+MAX(C$41:C67)))) ->  | D68: 0 | E68: 0 | G68: 0 | H68: 0 | O68: 0 | Q68: 0 | R68: FALSE | BC68: 0
A69: 0 | B69: =IF(I69<1,"",IF(A69>0,A69,IF(M69<0.65,0,IF(M69>0.649,1)+MAX(B$41:B68)))) ->  | C69: =IF(I69<1,"",IF(A69>0,0,IF(M69>0.649,0,IF(M69<0.65,1,0)+MAX(C$41:C68)))) ->  | D69: 0 | E69: 0 | G69: 0 | H69: 0 | O69: 0 | Q69: 0 | R69: FALSE | BC69: 0
A70: 0 | B70: =IF(I70<1,"",IF(A70>0,A70,IF(M70<0.65,0,IF(M70>0.649,1)+MAX(B$41:B69)))) ->  | C70: =IF(I70<1,"",IF(A70>0,0,IF(M70>0.649,0,IF(M70<0.65,1,0)+MAX(C$41:C69)))) ->  | D70: 0 | E70: 0 | G70: 0 | H70: 0 | O70: 0 | Q70: 0 | R70: FALSE | BC70: 0
A71: 0 | B71: =IF(I71<1,"",IF(A71>0,A71,IF(M71<0.65,0,IF(M71>0.649,1)+MAX(B$41:B70)))) ->  | C71: =IF(I71<1,"",IF(A71>0,0,IF(M71>0.649,0,IF(M71<0.65,1,0)+MAX(C$41:C70)))) ->  | D71: 0 | E71: 0 | G71: 0 | H71: 0 | O71: 0 | Q71: 0 | R71: FALSE | BC71: 0
A72: 0 | B72: =IF(I72<1,"",IF(A72>0,A72,IF(M72<0.65,0,IF(M72>0.649,1)+MAX(B$41:B71)))) ->  | C72: =IF(I72<1,"",IF(A72>0,0,IF(M72>0.649,0,IF(M72<0.65,1,0)+MAX(C$41:C71)))) ->  | D72: 0 | E72: 0 | G72: 0 | H72: 0 | O72: 0 | Q72: 0 | R72: FALSE | BC72: 0
A73: 0 | B73: =IF(I73<1,"",IF(A73>0,A73,IF(M73<0.65,0,IF(M73>0.649,1)+MAX(B$41:B72)))) ->  | C73: =IF(I73<1,"",IF(A73>0,0,IF(M73>0.649,0,IF(M73<0.65,1,0)+MAX(C$41:C72)))) ->  | D73: 0 | E73: 0 | G73: 0 | H73: 0 | O73: 0 | Q73: 0 | R73: FALSE | BC73: 0
A74: =MAX(A42:A73) -> 8 | B74: =MAX(B42:B73) -> 17 | H74: =MAX(H42:H73) -> 17
A75: =IF(SUM(A42:A73)<1,0,MAX(A42:A73)+1) -> 9

Sheet Puljer
X1: nulstil | AB1: Sedning | AE1: x | AF1: Fejl | AG1: x
AB2: MP | AC2: Snit | AD2: score | AE2: 10000
X3: Betinget formatering | AB3: x | AC3: =IF(AB3>0,"",AE1) ->  | AE3: 100000
A4: 3 Bande Tour | X4: Sæt kryds her | AA4: x | AB4: Ved afbud gives der 2 MP til de andre | AE4: 1000000
X5: Udskriv
A6: Pulje 1:
B7: Licens nr. | C7: Navn | D7: 1 | H7: 2 | L7: 3 | P7: MP med oversider | Q7: Score | R7: Indg | S7: Snit | T7: Serie | U7: Plac. | V7: sæt x ved lige (serier) | W7: Syg / afbud | X7: kampe | Z7: MP | AD7: Score | AE7: Indg. | AF7: Snit | AG7: Serie | AO7: MP | AP7: Snit | AQ7: score | AR7: Serie | AZ7: lige | BA7: I alt
B8: Klub Nr. | C8: Klub
A9: 1 | B9: =lodtrækning!C8 -> 116686 | C9: =IF(B9="","",VLOOKUP(B9,licens,2,FALSE)) -> Allan Schrøder | D9: Score | F9: Indg. | P9: =IF(AE9<1," ",AC9) ->  | Q9: =IF(AE9<1," ",AD9) ->  | R9: =IF(AE9<1," ",AE9) ->  | S9: =IF(AE9<1," ",AF9) ->  | T9: =IF(AE9<1," ",MAX(H10:O10)) ->  | U9: =IF(AE9<1," ",RANK(BA9,BA$9:BA$15,1)) ->  | X9: =IF(AE9<1,0,2) -> 0 | Z9: =IF(J9<1,"",IF(H9>D12,2,IF(H9=D12,1,0))) ->  | AA9: =IF(N9<1,"",IF(L9>D15,2,IF(L9=D15,1,0))) ->  | AB9: =IF(AE12<1,2,IF(AE15<1,2)) -> 2 | AC9: =SUM(Z9:AB9) -> 2 | AD9: =SUM(H9,L9) -> 0 | AE9: =SUM(J9,N9) -> 0 | AF9: =IF(AE9<1," ",ROUNDDOWN(AD9/AE9,3)) ->  | AG9: =IF($BF9=1,$BC9,IF($BF10=1,$BC10,IF($BF11=1,$BC11,IF($BF12=1,$BC12,IF($BF13=1,$BC13,IF($BF14=1,$BC14,IF($BF15=1,$BC15,IF($BF16=1,$BC16)))))))) -> 0 | AH9: =IF($BF9=2,$BC9,IF($BF10=2,$BC10,IF($BF11=2,$BC11,IF($BF12=2,$BC12,IF($BF13=2,$BC13,IF($BF14=2,$BC14,IF($BF15=2,$BC15,IF($BF16=2,$BC16)))))))) -> 0 | AI9: =IF($BF9=3,$BC9,IF($BF10=3,$BC10,IF($BF11=3,$BC11,IF($BF12=3,$BC12,IF($BF13=3,$BC13,IF($BF14=3,$BC14,IF($BF15=3,$BC15,IF($BF16=3,$BC16)))))))) -> 0 | AJ9: =IF($BF9=4,$BC9,IF($BF10=4,$BC10,IF($BF11=4,$BC11,IF($BF12=4,$BC12,IF($BF13=4,$BC13,IF($BF14=4,$BC14,IF($BF15=4,$BC15,IF($BF16=4,$BC16)))))))) -> 0 | AK9: =IF($BF9=5,$BC9,IF($BF10=5,$BC10,IF($BF11=5,$BC11,IF($BF12=5,$BC12,IF($BF13=5,$BC13,IF($BF14=5,$BC14,IF($BF15=5,$BC15,IF($BF16=5,$BC16)))))))) -> 0 | AL9: =IF($BF9=6,$BC9,IF($BF10=6,$BC10,IF($BF11=6,$BC11,IF($BF12=6,$BC12,IF($BF13=6,$BC13,IF($BF14=6,$BC14,IF($BF15=6,$BC15,IF($BF16=6,$BC16)))))))) -> 0 | AM9: =IF($BF9=7,$BC9,IF($BF10=7,$BC10,IF($BF11=7,$BC11,IF($BF12=7,$BC12,IF($BF13=7,$BC13,IF($BF14=7,$BC14,IF($BF15=7,$BC15,IF($BF16=7,$BC16)))))))) -> 0 | AN9: =IF($BF9=8,$BC9,IF($BF10=8,$BC10,IF($BF11=8,$BC11,IF($BF12=8,$BC12,IF($BF13=8,$BC13,IF($BF14=8,$BC14,IF($BF15=8,$BC15,IF($BF16=8,$BC16)))))))) -> 0 | AO9: =RANK(AC9,AC$9:AC$15)*10000000000 -> 10000000000 | AP9: =IF(AE9<1,"",RANK(AF9,AF$9:AF$15)*1000000000) ->  | AQ9: =IF(AD$3<1,"",RANK(AD9,AD$9:AD$15)*100000000) ->  | AR9: =RANK(AG9,AG$9:AG$15)*10000000 -> 10000000 | AS9: =RANK(AH9,AH$9:AH$15)*1000000 -> 1000000 | AT9: =RANK(AI9,AI$9:AI$15)*100000 -> 100000 | AU9: =RANK(AJ9,AJ$9:AJ$15)*10000 -> 10000 | AV9: =RANK(AK9,AK$9:AK$15)*1000 -> 1000 | AW9: =RANK(AL9,AL$9:AL$15)*100 -> 100 | AX9: =RANK(AM9,AM$9:AM$15)*10 -> 10 | AY9: =RANK(AN9,AN$9:AN$15) -> 1 | AZ9: =IF(V9>0,1,0) -> 0 | BA9: =IF(AE9<1,"",SUM(AO9:AZ9)) ->  | BC9: =H10 -> 0 | BD9: =BN9 -> 0.07 | BE9: =SUM(BC9:BD9) -> 0.07 | BF9: =RANK(BE9,BE$9:BE$16) -> 1 | BG9: =IF($BC9=$BC10,0.01) -> 0.01 | BH9: =IF($BC9=$BC11,0.01) -> 0.01 | BI9: =IF($BC9=$BC12,0.01) -> 0.01 | BJ9: =IF($BC9=$BC13,0.01) -> 0.01 | BK9: =IF($BC9=$BC14,0.01) -> 0.01 | BL9: =IF($BC9=$BC15,0.01) -> 0.01 | BM9: =IF($BC9=$BC16,0.01) -> 0.01 | BN9: =SUM(BG9:BM9) -> 0.07 | BP9: =D13 -> 0 | BQ9: =CA9 -> 0.07 | BR9: =SUM(BP9:BQ9) -> 0.07 | BS9: =RANK(BR9,BR$9:BR$16) -> 1 | BT9: =IF($BP9=$BP10,0.01) -> 0.01 | BU9: =IF($BP9=$BP11,0.01) -> 0.01 | BV9: =IF($BP9=$BP12,0.01) -> 0.01 | BW9: =IF($BP9=$BP13,0.01) -> 0.01 | BX9: =IF($BP9=$BP14,0.01) -> 0.01 | BY9: =IF($BP9=$BP15,0.01) -> 0.01 | BZ9: =IF($BP9=$BP16,0.01) -> 0.01 | CA9: =SUM(BT9:BZ9) -> 0.07 | CC9: =D16 -> 0 | CD9: =CN9 -> 0.07 | CE9: =SUM(CC9:CD9) -> 0.07 | CF9: =RANK(CE9,CE$9:CE$16) -> 1 | CG9: =IF($CC9=$CC10,0.01) -> 0.01 | CH9: =IF($CC9=$CC11,0.01) -> 0.01 | CI9: =IF($CC9=$CC12,0.01) -> 0.01 | CJ9: =IF($CC9=$CC13,0.01) -> 0.01 | CK9: =IF($CC9=$CC14,0.01) -> 0.01 | CL9: =IF($CC9=$CC15,0.01) -> 0.01 | CM9: =IF($CC9=$CC16,0.01) -> 0.01 | CN9: =SUM(CG9:CM9) -> 0.07
D10: 4 største serier | BC10: =I10 -> 0 | BD10: 0.06 | BE10: =SUM(BC10:BD10) -> 0.06 | BF10: 2 | BG10: 0.01 | BH10: 0.01 | BI10: =IF($BC10=$BC13,0.01) -> 0.01 | BJ10: =IF($BC10=$BC14,0.01) -> 0.01 | BK10: =IF($BC10=$BC15,0.01) -> 0.01 | BL10: =IF($BC10=$BC16,0.01) -> 0.01 | BN10: =SUM(BG10:BM10) -> 0.06 | BP10: =E13 -> 0 | BQ10: 0.06 | BR10: =SUM(BP10:BQ10) -> 0.06 | BS10: 2 | BT10: =IF($BP10=$BP11,0.01) -> 0.01 | BU10: 0.01 | BV10: =IF($BP10=$BP13,0.01) -> 0.01 | BW10: =IF($BP10=$BP14,0.01) -> 0.01 | BX10: =IF($BP10=$BP15,0.01) -> 0.01 | BY10: =IF($BP10=$BP16,0.01) -> 0.01 | CA10: =SUM(BT10:BZ10) -> 0.06 | CC10: =E16 -> 0 | CD10: 0.06 | CE10: =SUM(CC10:CD10) -> 0.06 | CF10: 2 | CG10: =IF($CC10=$CC11,0.01) -> 0.01 | CH10: 0.01 | CI10: =IF($CC10=$CC13,0.01) -> 0.01 | CJ10: =IF($CC10=$CC14,0.01) -> 0.01 | CK10: =IF($CC10=$CC15,0.01) -> 0.01 | CL10: =IF($CC10=$CC16,0.01) -> 0.01 | CN10: =SUM(CG10:CM10) -> 0.06
B11: =IF(B9="","",VLOOKUP(B9,licens,3,FALSE)) -> 923 | C11: =IF(B9="","",VLOOKUP(B9,licens,4,FALSE)) -> Varde BK | D11: snit | H11: =IF(J9<1," ",IF(J18<1,$AF$1,ROUNDDOWN(H9/J9,3))) ->  | L11: =IF(N9<1," ",IF(J19<1,$AF$1,ROUNDDOWN(L9/N9,3))) ->  | BC11: =J10 -> 0 | BD11: 0.05 | BE11: 0.05 | BF11: 3 | BG11: 0.01 | BH11: 0.01 | BI11: =IF($BC11=$BC14,0.01) -> 0.01 | BJ11: =IF($BC11=$BC15,0.01) -> 0.01 | BK11: =IF($BC11=$BC16,0.01) -> 0.01 | BN11: 0.05 | BP11: =F13 -> 0 | BQ11: 0.05 | BR11: 0.05 | BS11: 3 | BT11: 0.01 | BU11: 0.01 | BV11: =IF($BP11=$BP14,0.01) -> 0.01 | BW11: =IF($BP11=$BP15,0.01) -> 0.01 | BX11: =IF($BP11=$BP16,0.01) -> 0.01 | CA11: 0.05 | CC11: =F16 -> 0 | CD11: 0.05 | CE11: 0.05 | CF11: 3 | CG11: 0.01 | CH11: 0.01 | CI11: =IF($CC11=$CC14,0.01) -> 0.01 | CJ11: =IF($CC11=$CC15,0.01) -> 0.01 | CK11: =IF($CC11=$CC16,0.01) -> 0.01 | CN11: 0.05
A12: 2 | B12: =lodtrækning!C9 -> 115918 | C12: =IF(B12="","",VLOOKUP(B12,licens,2,FALSE)) -> Dan Jensen | F12: =IF(J9<1," ",J9) ->  | P12: =IF(AE12<1," ",AC12) ->  | Q12: =IF(AE12<1," ",AD12) ->  | R12: =IF(AE12<1," ",AE12) ->  | S12: =IF(AE12<1," ",AF12) ->  | T12: =IF(AE12<1," ",MAX(D13:O13)) ->  | U12: =IF(AE12<1," ",RANK(BA12,BA$9:BA$15,1)) ->  | X12: =IF(AE12<1,0,2) -> 0 | Z12: =IF(J9<1,"",IF(D12>H9,2,IF(D12=H9,1,0))) ->  | AA12: =IF(N12<1,"",IF(L12>H15,2,IF(L12=H15,1,0))) ->  | AB12: =IF(AE9<1,2,IF(AE15<1,2)) -> 2 | AC12: =SUM(Z12:AB12) -> 2 | AD12: =SUM(D12,L12) -> 0 | AE12: =SUM(F12,N12) -> 0 | AF12: =IF(AE12<1," ",ROUNDDOWN(AD12/AE12,3)) ->  | AG12: =IF($BS9=1,$BP9,IF($BS10=1,$BP10,IF($BS11=1,$BP11,IF($BS12=1,$BP12,IF($BS13=1,$BP13,IF($BS14=1,$BP14,IF($BS15=1,$BP15,IF($BS16=1,$BP16)))))))) -> 0 | AH12: =IF($BS9=2,$BP9,IF($BS10=2,$BP10,IF($BS11=2,$BP11,IF($BS12=2,$BP12,IF($BS13=2,$BP13,IF($BS14=2,$BP14,IF($BS15=2,$BP15,IF($BS16=2,$BP16)))))))) -> 0 | AI12: =IF($BS9=3,$BP9,IF($BS10=3,$BP10,IF($BS11=3,$BP11,IF($BS12=3,$BP12,IF($BS13=3,$BP13,IF($BS14=3,$BP14,IF($BS15=3,$BP15,IF($BS16=3,$BP16)))))))) -> 0 | AJ12: =IF($BS9=4,$BP9,IF($BS10=4,$BP10,IF($BS11=4,$BP11,IF($BS12=4,$BP12,IF($BS13=4,$BP13,IF($BS14=4,$BP14,IF($BS15=4,$BP15,IF($BS16=4,$BP16)))))))) -> 0 | AK12: =IF($BS9=5,$BP9,IF($BS10=5,$BP10,IF($BS11=5,$BP11,IF($BS12=5,$BP12,IF($BS13=5,$BP13,IF($BS14=5,$BP14,IF($BS15=5,$BP15,IF($BS16=5,$BP16)))))))) -> 0 | AL12: =IF($BS9=6,$BP9,IF($BS10=6,$BP10,IF($BS11=6,$BP11,IF($BS12=6,$BP12,IF($BS13=6,$BP13,IF($BS14=6,$BP14,IF($BS15=6,$BP15,IF($BS16=6,$BP16)))))))) -> 0 | AM12: =IF($BS9=7,$BP9,IF($BS10=7,$BP10,IF($BS11=7,$BP11,IF($BS12=7,$BP12,IF($BS13=7,$BP13,IF($BS14=7,$BP14,IF($BS15=7,$BP15,IF($BS16=7,$BP16)))))))) -> 0 | AN12: =IF($BS9=8,$BP9,IF($BS10=8,$BP10,IF($BS11=8,$BP11,IF($BS12=8,$BP12,IF($BS13=8,$BP13,IF($BS14=8,$BP14,IF($BS15=8,$BP15,IF($BS16=8,$BP16)))))))) -> 0 | AO12: =RANK(AC12,AC$9:AC$15)*10000000000 -> 10000000000 | AP12: =IF(AE12<1,"",RANK(AF12,AF$9:AF$15)*1000000000) ->  | AQ12: =IF(AD$3<1,"",RANK(AD12,AD$9:AD$15)*100000000) ->  | AR12: =RANK(AG12,AG$9:AG$15)*10000000 -> 10000000 | AS12: =RANK(AH12,AH$9:AH$15)*1000000 -> 1000000 | AT12: =RANK(AI12,AI$9:AI$15)*100000 -> 100000 | AU12: =RANK(AJ12,AJ$9:AJ$15)*10000 -> 10000 | AV12: =RANK(AK12,AK$9:AK$15)*1000 -> 1000 | AW12: =RANK(AL12,AL$9:AL$15)*100 -> 100 | AX12: =RANK(AM12,AM$9:AM$15)*10 -> 10 | AY12: =RANK(AN12,AN$9:AN$15) -> 1 | AZ12: =IF(V12>0,1,0) -> 0 | BA12: =IF(AE12<1,"",SUM(AO12:AZ12)) ->  | BC12: =K10 -> 0 | BD12: 0.04 | BE12: 0.04 | BF12: 4 | BG12: 0.01 | BH12: 0.01 | BI12: =IF($BC12=$BC15,0.01) -> 0.01 | BJ12: =IF($BC12=$BC16,0.01) -> 0.01 | BN12: 0.04 | BP12: =G13 -> 0 | BQ12: 0.04 | BR12: 0.04 | BS12: 4 | BT12: 0.01 | BU12: 0.01 | BV12: =IF($BP12=$BP15,0.01) -> 0.01 | BW12: =IF($BP12=$BP16,0.01) -> 0.01 | CA12: 0.04 | CC12: =G16 -> 0 | CD12: 0.04 | CE12: 0.04 | CF12: 4 | CG12: 0.01 | CH12: 0.01 | CI12: =IF($CC12=$CC15,0.01) -> 0.01 | CJ12: =IF($CC12=$CC16,0.01) -> 0.01 | CN12: 0.04
BC13: =L10 -> 0 | BD13: 0.03 | BE13: 0.03 | BF13: 5 | BG13: 0.01 | BH13: 0.01 | BI13: =IF($BC13=$BC16,0.01) -> 0.01 | BN13: 0.03 | BP13: =L13 -> 0 | BQ13: 0.03 | BR13: 0.03 | BS13: 5 | BT13: 0.01 | BU13: 0.01 | BV13: =IF($BP13=$BP16,0.01) -> 0.01 | CA13: 0.03 | CC13: =H16 -> 0 | CD13: 0.03 | CE13: 0.03 | CF13: 5 | CG13: 0.01 | CH13: 0.01 | CI13: =IF($CC13=$CC16,0.01) -> 0.01 | CN13: 0.03
B14: =IF(B12="","",VLOOKUP(B12,licens,3,FALSE)) -> 631 | C14: =IF(B12="","",VLOOKUP(B12,licens,4,FALSE)) -> Fredericia BK | D14: =IF(J9<1," ",IF(J18<1,$AF$1,ROUNDDOWN(D12/F12,3))) ->  | L14: =IF(N12<1," ",IF(N19<1,$AF$1,ROUNDDOWN(L12/N12,3))) ->  | BC14: =M10 -> 0 | BD14: 0.02 | BE14: 0.02 | BF14: 6 | BG14: 0.01 | BH14: 0.01 | BN14: 0.02 | BP14: =M13 -> 0 | BQ14: 0.02 | BR14: 0.02 | BS14: 6 | BT14: 0.01 | BU14: 0.01 | CA14: 0.02 | CC14: =I16 -> 0 | CD14: 0.02 | CE14: 0.02 | CF14: 6 | CG14: 0.01 | CH14: 0.01 | CN14: 0.02
A15: 3 | B15: =lodtrækning!C10 ->  | C15: =IF(B15="","",VLOOKUP(B15,licens,2,FALSE)) ->  | F15: =IF(N9<1," ",N9) ->  | J15: =IF(N12<1," ",N12) ->  | P15: =IF(AE15<1," ",AC15) ->  | Q15: =IF(AE15<1," ",AD15) ->  | R15: =IF(AE15<1," ",AE15) ->  | S15: =IF(AE15<1," ",AF15) ->  | T15: =IF(AE15<1," ",MAX(D16:K16)) ->  | U15: =IF(AE15<1," ",RANK(BA15,BA$9:BA$15,1)) ->  | X15: =IF(AE15<1,0,2) -> 0 | Z15: =IF(N9<1,"",IF(D15>L9,2,IF(D15=L9,1,0))) ->  | AA15: =IF(N12<1,"",IF(H15>L12,2,IF(H15=L12,1,0))) ->  | AB15: =IF(AE9<1,2,IF(AE12<1,2)) -> 2 | AC15: =SUM(Z15:AB15) -> 2 | AD15: =SUM(D15,H15) -> 0 | AE15: =SUM(F15,J15) -> 0 | AF15: =IF(AE15<1," ",ROUNDDOWN(AD15/AE15,3)) ->  | AG15: =IF($CF9=1,$CC9,IF($CF10=1,$CC10,IF($CF11=1,$CC11,IF($CF12=1,$CC12,IF($CF13=1,$CC13,IF($CF14=1,$CC14,IF($CF15=1,$CC15,IF($CF16=1,$CC16)))))))) -> 0 | AH15: =IF($CF9=2,$CC9,IF($CF10=2,$CC10,IF($CF11=2,$CC11,IF($CF12=2,$CC12,IF($CF13=2,$CC13,IF($CF14=2,$CC14,IF($CF15=2,$CC15,IF($CF16=2,$CC16)))))))) -> 0 | AI15: =IF($CF9=3,$CC9,IF($CF10=3,$CC10,IF($CF11=3,$CC11,IF($CF12=3,$CC12,IF($CF13=3,$CC13,IF($CF14=3,$CC14,IF($CF15=3,$CC15,IF($CF16=3,$CC16)))))))) -> 0 | AJ15: =IF($CF9=4,$CC9,IF($CF10=4,$CC10,IF($CF11=4,$CC11,IF($CF12=4,$CC12,IF($CF13=4,$CC13,IF($CF14=4,$CC14,IF($CF15=4,$CC15,IF($CF16=4,$CC16)))))))) -> 0 | AK15: =IF($CF9=5,$CC9,IF($CF10=5,$CC10,IF($CF11=5,$CC11,IF($CF12=5,$CC12,IF($CF13=5,$CC13,IF($CF14=5,$CC14,IF($CF15=5,$CC15,IF($CF16=5,$CC16)))))))) -> 0 | AL15: =IF($CF9=6,$CC9,IF($CF10=6,$CC10,IF($CF11=6,$CC11,IF($CF12=6,$CC12,IF($CF13=6,$CC13,IF($CF14=6,$CC14,IF($CF15=6,$CC15,IF($CF16=6,$CC16)))))))) -> 0 | AM15: =IF($CF9=7,$CC9,IF($CF10=7,$CC10,IF($CF11=7,$CC11,IF($CF12=7,$CC12,IF($CF13=7,$CC13,IF($CF14=7,$CC14,IF($CF15=7,$CC15,IF($CF16=7,$CC16)))))))) -> 0 | AN15: =IF($CF9=8,$CC9,IF($CF10=8,$CC10,IF($CF11=8,$CC11,IF($CF12=8,$CC12,IF($CF13=8,$CC13,IF($CF14=8,$CC14,IF($CF15=8,$CC15,IF($CF16=8,$CC16)))))))) -> 0 | AO15: =RANK(AC15,AC$9:AC$15)*10000000000 -> 10000000000 | AP15: =IF(AE15<1,"",RANK(AF15,AF$9:AF$15)*1000000000) ->  | AQ15: =IF(AD$3<1,"",RANK(AD15,AD$9:AD$15)*100000000) ->  | AR15: =RANK(AG15,AG$9:AG$15)*10000000 -> 10000000 | AS15: =RANK(AH15,AH$9:AH$15)*1000000 -> 1000000 | AT15: =RANK(AI15,AI$9:AI$15)*100000 -> 100000 | AU15: =RANK(AJ15,AJ$9:AJ$15)*10000 -> 10000 | AV15: =RANK(AK15,AK$9:AK$15)*1000 -> 1000 | AW15: =RANK(AL15,AL$9:AL$15)*100 -> 100 | AX15: =RANK(AM15,AM$9:AM$15)*10 -> 10 | AY15: =RANK(AN15,AN$9:AN$15) -> 1 | AZ15: =IF(V15>0,1,0) -> 0 | BA15: =IF(AE15<1,"",SUM(AO15:AZ15)) ->  | BC15: =N10 -> 0 | BD15: 0.01 | BE15: 0.01 | BF15: 7 | BG15: 0.01 | BN15: 0.01 | BP15: =N13 -> 0 | BQ15: 0.01 | BR15: 0.01 | BS15: 7 | BT15: 0.01 | CA15: 0.01 | CC15: =J16 -> 0 | CD15: 0.01 | CE15: 0.01 | CF15: 7 | CG15: 0.01 | CN15: 0.01
BC16: =O10 -> 0 | BD16: 0 | BE16: 0 | BF16: 8 | BN16: 0 | BP16: =O13 -> 0 | BQ16: 0 | BR16: 0 | BS16: 8 | CA16: 0 | CC16: =K16 -> 0 | CD16: 0 | CE16: 0 | CF16: 8 | CN16: 0
B17: =IF(B15="","",VLOOKUP(B15,licens,3,FALSE)) ->  | C17: =IF(B15="","",VLOOKUP(B15,licens,4,FALSE)) ->  | D17: =IF(N9<1," ",IF(J19<1,$AF$1,ROUNDDOWN(D15/F15,3))) ->  | H17: =IF(N12<1," ",IF(N19<1,$AF$1,ROUNDDOWN(H15/J15,3))) -> 
H18: =IF($AA$4<1,0,IF(H9>0,1,0)) -> 0 | J18: =IF(H9<1,FALSE,IF(D12<1,FALSE,IF(MAX(H9,D12)<30,0))) -> FALSE
H19: =IF($AA$4<1,0,IF(L9>0,1,0)) -> 0 | J19: =IF(L9<1,FALSE,IF(D15<1,FALSE,IF(MAX(L9,D15)<30,0))) -> FALSE | L19: =IF($AA$4<1,0,IF(L12>0,1,0)) -> 0 | N19: =IF(L12<1,FALSE,IF(H15<1,FALSE,IF(MAX(L12,H15)<30,0))) -> FALSE
A20: Pulje 2:
B21: Licens nr. | C21: Navn | D21: 1 | H21: 2 | L21: 3 | P21: MP med oversider | Q21: Score | R21: Indg | S21: Snit | T21: Serie | U21: Plac. | V21: sæt x ved lige (serier) | W21: Syg / afbud | X21: kampe | Z21: MP | AD21: Score | AE21: Indg. | AF21: Snit | AG21: Serie | AO21: MP | AP21: Snit | AQ21: score | AR21: Serie | AZ21: lige | BA21: I alt
B22: Klub Nr. | C22: Klub
A23: 1 | B23: =lodtrækning!C12 -> 116295 | C23: =IF(B23="","",VLOOKUP(B23,licens,2,FALSE)) -> Claus Petersen | D23: Score | F23: Indg. | P23: =IF(AE23<1," ",AC23) ->  | Q23: =IF(AE23<1," ",AD23) ->  | R23: =IF(AE23<1," ",AE23) ->  | S23: =IF(AE23<1," ",AF23) ->  | T23: =IF(AE23<1," ",MAX(H24:O24)) ->  | U23: =IF(AE23<1," ",RANK(BA23,BA$23:BA$30,1)) ->  | X23: =IF(AE23<1,0,2) -> 0 | Z23: =IF(J23<1,"",IF(H23>D26,2,IF(H23=D26,1,0))) ->  | AA23: =IF(N23<1,"",IF(L23>D29,2,IF(L23=D29,1,0))) ->  | AB23: =IF(AE26<1,2,IF(AE29<1,2)) -> 2 | AC23: =SUM(Z23:AB23) -> 2 | AD23: =SUM(H23,L23) -> 0 | AE23: =SUM(J23,N23) -> 0 | AF23: =IF(AE23<1," ",ROUNDDOWN(AD23/AE23,3)) ->  | AG23: =IF($BF23=1,$BC23,IF($BF24=1,$BC24,IF($BF25=1,$BC25,IF($BF26=1,$BC26,IF($BF27=1,$BC27,IF($BF28=1,$BC28,IF($BF29=1,$BC29,IF($BF30=1,$BC30)))))))) -> 0 | AH23: =IF($BF23=2,$BC23,IF($BF24=2,$BC24,IF($BF25=2,$BC25,IF($BF26=2,$BC26,IF($BF27=2,$BC27,IF($BF28=2,$BC28,IF($BF29=2,$BC29,IF($BF30=2,$BC30)))))))) -> 0 | AI23: =IF($BF23=3,$BC23,IF($BF24=3,$BC24,IF($BF25=3,$BC25,IF($BF26=3,$BC26,IF($BF27=3,$BC27,IF($BF28=3,$BC28,IF($BF29=3,$BC29,IF($BF30=3,$BC30)))))))) -> 0 | AJ23: =IF($BF23=4,$BC23,IF($BF24=4,$BC24,IF($BF25=4,$BC25,IF($BF26=4,$BC26,IF($BF27=4,$BC27,IF($BF28=4,$BC28,IF($BF29=4,$BC29,IF($BF30=4,$BC30)))))))) -> 0 | AK23: =IF($BF23=5,$BC23,IF($BF24=5,$BC24,IF($BF25=5,$BC25,IF($BF26=5,$BC26,IF($BF27=5,$BC27,IF($BF28=5,$BC28,IF($BF29=5,$BC29,IF($BF30=5,$BC30)))))))) -> 0 | AL23: =IF($BF23=6,$BC23,IF($BF24=6,$BC24,IF($BF25=6,$BC25,IF($BF26=6,$BC26,IF($BF27=6,$BC27,IF($BF28=6,$BC28,IF($BF29=6,$BC29,IF($BF30=6,$BC30)))))))) -> 0 | AM23: =IF($BF23=7,$BC23,IF($BF24=7,$BC24,IF($BF25=7,$BC25,IF($BF26=7,$BC26,IF($BF27=7,$BC27,IF($BF28=7,$BC28,IF($BF29=7,$BC29,IF($BF30=7,$BC30)))))))) -> 0 | AN23: =IF($BF23=8,$BC23,IF($BF24=8,$BC24,IF($BF25=8,$BC25,IF($BF26=8,$BC26,IF($BF27=8,$BC27,IF($BF28=8,$BC28,IF($BF29=8,$BC29,IF($BF30=8,$BC30)))))))) -> 0 | AO23: =RANK(AC23,AC$23:AC$29)*10000000000 -> 10000000000 | AP23: =IF(AE23<1,"",RANK(AF23,AF$23:AF$29)*1000000000) ->  | AQ23: =IF(AD$3<1,"",RANK(AD23,AD$23:AD$29)*100000000) ->  | AR23: =RANK(AG23,AG$23:AG$29)*10000000 -> 10000000 | AS23: =RANK(AH23,AH$23:AH$29)*1000000 -> 1000000 | AT23: =RANK(AI23,AI$23:AI$29)*100000 -> 100000 | AU23: =RANK(AJ23,AJ$23:AJ$29)*10000 -> 10000 | AV23: =RANK(AK23,AK$23:AK$29)*1000 -> 1000 | AW23: =RANK(AL23,AL$23:AL$29)*100 -> 100 | AX23: =RANK(AM23,AM$23:AM$29)*10 -> 10 | AY23: =RANK(AN23,AN$23:AN$29) -> 1 | AZ23: =IF(V23>0,1,0) -> 0 | BA23: =IF(AE23<1,"",SUM(AO23:AZ23)) ->  | BC23: =H24 -> 0 | BD23: =BN23 -> 0.07 | BE23: =SUM(BC23:BD23) -> 0.07 | BF23: =RANK(BE23,BE$23:BE$30) -> 1 | BG23: =IF($BC23=$BC24,0.01) -> 0.01 | BH23: =IF($BC23=$BC25,0.01) -> 0.01 | BI23: =IF($BC23=$BC26,0.01) -> 0.01 | BJ23: =IF($BC23=$BC27,0.01) -> 0.01 | BK23: =IF($BC23=$BC28,0.01) -> 0.01 | BL23: =IF($BC23=$BC29,0.01) -> 0.01 | BM23: =IF($BC23=$BC30,0.01) -> 0.01 | BN23: =SUM(BG23:BM23) -> 0.07 | BP23: =D27 -> 0 | BQ23: =CA23 -> 0.07 | BR23: =SUM(BP23:BQ23) -> 0.07 | BS23: =RANK(BR23,BR$23:BR$30) -> 1 | BT23: =IF($BP23=$BP24,0.01) -> 0.01 | BU23: =IF($BP23=$BP25,0.01) -> 0.01 | BV23: =IF($BP23=$BP26,0.01) -> 0.01 | BW23: =IF($BP23=$BP27,0.01) -> 0.01 | BX23: =IF($BP23=$BP28,0.01) -> 0.01 | BY23: =IF($BP23=$BP29,0.01) -> 0.01 | BZ23: =IF($BP23=$BP30,0.01) -> 0.01 | CA23: =SUM(BT23:BZ23) -> 0.07 | CC23: =D30 -> 0 | CD23: =CN23 -> 0.07 | CE23: =SUM(CC23:CD23) -> 0.07 | CF23: =RANK(CE23,CE$23:CE$30) -> 1 | CG23: =IF($CC23=$CC24,0.01) -> 0.01 | CH23: =IF($CC23=$CC25,0.01) -> 0.01 | CI23: =IF($CC23=$CC26,0.01) -> 0.01 | CJ23: =IF($CC23=$CC27,0.01) -> 0.01 | CK23: =IF($CC23=$CC28,0.01) -> 0.01 | CL23: =IF($CC23=$CC29,0.01) -> 0.01 | CM23: =IF($CC23=$CC30,0.01) -> 0.01 | CN23: =SUM(CG23:CM23) -> 0.07
D24: 4 største serier | BC24: =I24 -> 0 | BD24: 0.06 | BE24: =SUM(BC24:BD24) -> 0.06 | BF24: =RANK(BE24,BE$23:BE$30) -> 2 | BG24: 0.01 | BH24: 0.01 | BI24: =IF($BC24=$BC27,0.01) -> 0.01 | BJ24: =IF($BC24=$BC28,0.01) -> 0.01 | BK24: =IF($BC24=$BC29,0.01) -> 0.01 | BL24: =IF($BC24=$BC30,0.01) -> 0.01 | BN24: =SUM(BG24:BM24) -> 0.06 | BP24: =E27 -> 0 | BQ24: 0.06 | BR24: =SUM(BP24:BQ24) -> 0.06 | BS24: =RANK(BR24,BR$23:BR$30) -> 2 | BT24: =IF($BP24=$BP25,0.01) -> 0.01 | BU24: 0.01 | BV24: =IF($BP24=$BP27,0.01) -> 0.01 | BW24: =IF($BP24=$BP28,0.01) -> 0.01 | BX24: =IF($BP24=$BP29,0.01) -> 0.01 | BY24: =IF($BP24=$BP30,0.01) -> 0.01 | CA24: =SUM(BT24:BZ24) -> 0.06 | CC24: =E30 -> 0 | CD24: 0.06 | CE24: =SUM(CC24:CD24) -> 0.06 | CF24: =RANK(CE24,CE$23:CE$30) -> 2 | CG24: =IF($CC24=$CC25,0.01) -> 0.01 | CH24: 0.01 | CI24: =IF($CC24=$CC27,0.01) -> 0.01 | CJ24: =IF($CC24=$CC28,0.01) -> 0.01 | CK24: =IF($CC24=$CC29,0.01) -> 0.01 | CL24: =IF($CC24=$CC30,0.01) -> 0.01 | CN24: =SUM(CG24:CM24) -> 0.06
B25: =IF(B23="","",VLOOKUP(B23,licens,3,FALSE)) -> 603 | C25: =IF(B23="","",VLOOKUP(B23,licens,4,FALSE)) -> ABK 31 | D25: snit | H25: =IF(J23<1," ",IF(J32<1,AF1,ROUNDDOWN(H23/J23,3))) ->  | L25: =IF(N23<1," ",IF(J33<1,AF1,ROUNDDOWN(L23/N23,3))) ->  | BC25: =J24 -> 0 | BD25: 0.05 | BE25: 0.05 | BF25: 3 | BG25: 0.01 | BH25: 0.01 | BI25: =IF($BC25=$BC28,0.01) -> 0.01 | BJ25: =IF($BC25=$BC29,0.01) -> 0.01 | BK25: =IF($BC25=$BC30,0.01) -> 0.01 | BN25: 0.05 | BP25: =F27 -> 0 | BQ25: 0.05 | BR25: 0.05 | BS25: 3 | BT25: 0.01 | BU25: 0.01 | BV25: =IF($BP25=$BP28,0.01) -> 0.01 | BW25: =IF($BP25=$BP29,0.01) -> 0.01 | BX25: =IF($BP25=$BP30,0.01) -> 0.01 | CA25: 0.05 | CC25: =F30 -> 0 | CD25: 0.05 | CE25: 0.05 | CF25: 3 | CG25: 0.01 | CH25: 0.01 | CI25: =IF($CC25=$CC28,0.01) -> 0.01 | CJ25: =IF($CC25=$CC29,0.01) -> 0.01 | CK25: =IF($CC25=$CC30,0.01) -> 0.01 | CN25: 0.05
A26: 2 | B26: =lodtrækning!C13 -> 119231 | C26: =IF(B26="","",VLOOKUP(B26,licens,2,FALSE)) -> Claus Mosskov | F26: =IF(J23<1," ",J23) ->  | P26: =IF(AE26<1," ",AC26) ->  | Q26: =IF(AE26<1," ",AD26) ->  | R26: =IF(AE26<1," ",AE26) ->  | S26: =IF(AE26<1," ",AF26) ->  | T26: =IF(AE26<1," ",MAX(D27:O27)) ->  | U26: =IF(AE26<1," ",RANK(BA26,BA$23:BA$30,1)) ->  | X26: =IF(AE26<1,0,2) -> 0 | Z26: =IF(J23<1,"",IF(D26>H23,2,IF(D26=H23,1,0))) ->  | AA26: =IF(N26<1,"",IF(L26>H29,2,IF(L26=H29,1,0))) ->  | AB26: =IF(AE23<1,2,IF(AE29<1,2)) -> 2 | AC26: =SUM(Z26:AB26) -> 2 | AD26: =SUM(D26,L26) -> 0 | AE26: =SUM(F26,N26) -> 0 | AF26: =IF(AE26<1," ",ROUNDDOWN(AD26/AE26,3)) ->  | AG26: =IF($BS23=1,$BP23,IF($BS24=1,$BP24,IF($BS25=1,$BP25,IF($BS26=1,$BP26,IF($BS27=1,$BP27,IF($BS28=1,$BP28,IF($BS29=1,$BP29,IF($BS30=1,$BP30)))))))) -> 0 | AH26: =IF($BS23=2,$BP23,IF($BS24=2,$BP24,IF($BS25=2,$BP25,IF($BS26=2,$BP26,IF($BS27=2,$BP27,IF($BS28=2,$BP28,IF($BS29=2,$BP29,IF($BS30=2,$BP30)))))))) -> 0 | AI26: =IF($BS23=3,$BP23,IF($BS24=3,$BP24,IF($BS25=3,$BP25,IF($BS26=3,$BP26,IF($BS27=3,$BP27,IF($BS28=3,$BP28,IF($BS29=3,$BP29,IF($BS30=3,$BP30)))))))) -> 0 | AJ26: =IF($BS23=4,$BP23,IF($BS24=4,$BP24,IF($BS25=4,$BP25,IF($BS26=4,$BP26,IF($BS27=4,$BP27,IF($BS28=4,$BP28,IF($BS29=4,$BP29,IF($BS30=4,$BP30)))))))) -> 0 | AK26: =IF($BS23=5,$BP23,IF($BS24=5,$BP24,IF($BS25=5,$BP25,IF($BS26=5,$BP26,IF($BS27=5,$BP27,IF($BS28=5,$BP28,IF($BS29=5,$BP29,IF($BS30=5,$BP30)))))))) -> 0 | AL26: =IF($BS23=6,$BP23,IF($BS24=6,$BP24,IF($BS25=6,$BP25,IF($BS26=6,$BP26,IF($BS27=6,$BP27,IF($BS28=6,$BP28,IF($BS29=6,$BP29,IF($BS30=6,$BP30)))))))) -> 0 | AM26: =IF($BS23=7,$BP23,IF($BS24=7,$BP24,IF($BS25=7,$BP25,IF($BS26=7,$BP26,IF($BS27=7,$BP27,IF($BS28=7,$BP28,IF($BS29=7,$BP29,IF($BS30=7,$BP30)))))))) -> 0 | AN26: =IF($BS23=8,$BP23,IF($BS24=8,$BP24,IF($BS25=8,$BP25,IF($BS26=8,$BP26,IF($BS27=8,$BP27,IF($BS28=8,$BP28,IF($BS29=8,$BP29,IF($BS30=8,$BP30)))))))) -> 0 | AO26: =RANK(AC26,AC$23:AC$29)*10000000000 -> 10000000000 | AP26: =IF(AE26<1,"",RANK(AF26,AF$23:AF$29)*1000000000) ->  | AQ26: =IF(AD$3<1,"",RANK(AD26,AD$23:AD$29)*100000000) ->  | AR26: =RANK(AG26,AG$23:AG$29)*10000000 -> 10000000 | AS26: =RANK(AH26,AH$23:AH$29)*1000000 -> 1000000 | AT26: =RANK(AI26,AI$23:AI$29)*100000 -> 100000 | AU26: =RANK(AJ26,AJ$23:AJ$29)*10000 -> 10000 | AV26: =RANK(AK26,AK$23:AK$29)*1000 -> 1000 | AW26: =RANK(AL26,AL$23:AL$29)*100 -> 100 | AX26: =RANK(AM26,AM$23:AM$29)*10 -> 10 | AY26: =RANK(AN26,AN$23:AN$29) -> 1 | AZ26: =IF(V26>0,1,0) -> 0 | BA26: =IF(AE26<1,"",SUM(AO26:AZ26)) ->  | BC26: =K24 -> 0 | BD26: 0.04 | BE26: 0.04 | BF26: 4 | BG26: 0.01 | BH26: 0.01 | BI26: =IF($BC26=$BC29,0.01) -> 0.01 | BJ26: =IF($BC26=$BC30,0.01) -> 0.01 | BN26: 0.04 | BP26: =G27 -> 0 | BQ26: 0.04 | BR26: 0.04 | BS26: 4 | BT26: 0.01 | BU26: 0.01 | BV26: =IF($BP26=$BP29,0.01) -> 0.01 | BW26: =IF($BP26=$BP30,0.01) -> 0.01 | CA26: 0.04 | CC26: =G30 -> 0 | CD26: 0.04 | CE26: 0.04 | CF26: 4 | CG26: 0.01 | CH26: 0.01 | CI26: =IF($CC26=$CC29,0.01) -> 0.01 | CJ26: =IF($CC26=$CC30,0.01) -> 0.01 | CN26: 0.04
BC27: =L24 -> 0 | BD27: 0.03 | BE27: 0.03 | BF27: 5 | BG27: 0.01 | BH27: 0.01 | BI27: =IF($BC27=$BC30,0.01) -> 0.01 | BN27: 0.03 | BP27: =L27 -> 0 | BQ27: 0.03 | BR27: 0.03 | BS27: 5 | BT27: 0.01 | BU27: 0.01 | BV27: =IF($BP27=$BP30,0.01) -> 0.01 | CA27: 0.03 | CC27: =H30 -> 0 | CD27: 0.03 | CE27: 0.03 | CF27: 5 | CG27: 0.01 | CH27: 0.01 | CI27: =IF($CC27=$CC30,0.01) -> 0.01 | CN27: 0.03
B28: =IF(B26="","",VLOOKUP(B26,licens,3,FALSE)) -> 631 | C28: =IF(B26="","",VLOOKUP(B26,licens,4,FALSE)) -> Fredericia BK | D28: =IF(J23<1," ",IF(J32<1,AF1,ROUNDDOWN(D26/F26,3))) ->  | L28: =IF(N26<1," ",IF(N33<1,AF1,ROUNDDOWN(L26/N26,3))) ->  | BC28: =M24 -> 0 | BD28: 0.02 | BE28: 0.02 | BF28: 6 | BG28: 0.01 | BH28: 0.01 | BN28: 0.02 | BP28: =M27 -> 0 | BQ28: 0.02 | BR28: 0.02 | BS28: 6 | BT28: 0.01 | BU28: 0.01 | CA28: 0.02 | CC28: =I30 -> 0 | CD28: 0.02 | CE28: 0.02 | CF28: 6 | CG28: 0.01 | CH28: 0.01 | CN28: 0.02
A29: 3 | B29: =lodtrækning!C14 ->  | C29: =IF(B29="","",VLOOKUP(B29,licens,2,FALSE)) ->  | F29: =IF(N23<1," ",N23) ->  | J29: =IF(N26<1," ",N26) ->  | P29: =IF(AE29<1," ",AC29) ->  | Q29: =IF(AE29<1," ",AD29) ->  | R29: =IF(AE29<1," ",AE29) ->  | S29: =IF(AE29<1," ",AF29) ->  | T29: =IF(AE29<1," ",MAX(D30:K30)) ->  | U29: =IF(AE29<1," ",RANK(BA29,BA$23:BA$30,1)) ->  | X29: =IF(AE29<1,0,2) -> 0 | Z29: =IF(N23<1,"",IF(D29>L23,2,IF(D29=L23,1,0))) ->  | AA29: =IF(N26<1,"",IF(H29>L26,2,IF(H29=L26,1,0))) ->  | AB29: =IF(AE23<1,2,IF(AE26<1,2)) -> 2 | AC29: =SUM(Z29:AB29) -> 2 | AD29: =SUM(D29,H29) -> 0 | AE29: =SUM(F29,J29) -> 0 | AF29: =IF(AE29<1," ",ROUNDDOWN(AD29/AE29,3)) ->  | AG29: =IF($CF23=1,$CC23,IF($CF24=1,$CC24,IF($CF25=1,$CC25,IF($CF26=1,$CC26,IF($CF27=1,$CC27,IF($CF28=1,$CC28,IF($CF29=1,$CC29,IF($CF30=1,$CC30)))))))) -> 0 | AH29: =IF($CF23=2,$CC23,IF($CF24=2,$CC24,IF($CF25=2,$CC25,IF($CF26=2,$CC26,IF($CF27=2,$CC27,IF($CF28=2,$CC28,IF($CF29=2,$CC29,IF($CF30=2,$CC30)))))))) -> 0 | AI29: =IF($CF23=3,$CC23,IF($CF24=3,$CC24,IF($CF25=3,$CC25,IF($CF26=3,$CC26,IF($CF27=3,$CC27,IF($CF28=3,$CC28,IF($CF29=3,$CC29,IF($CF30=3,$CC30)))))))) -> 0 | AJ29: =IF($CF23=4,$CC23,IF($CF24=4,$CC24,IF($CF25=4,$CC25,IF($CF26=4,$CC26,IF($CF27=4,$CC27,IF($CF28=4,$CC28,IF($CF29=4,$CC29,IF($CF30=4,$CC30)))))))) -> 0 | AK29: =IF($CF23=5,$CC23,IF($CF24=5,$CC24,IF($CF25=5,$CC25,IF($CF26=5,$CC26,IF($CF27=5,$CC27,IF($CF28=5,$CC28,IF($CF29=5,$CC29,IF($CF30=5,$CC30)))))))) -> 0 | AL29: =IF($CF23=6,$CC23,IF($CF24=6,$CC24,IF($CF25=6,$CC25,IF($CF26=6,$CC26,IF($CF27=6,$CC27,IF($CF28=6,$CC28,IF($CF29=6,$CC29,IF($CF30=6,$CC30)))))))) -> 0 | AM29: =IF($CF23=7,$CC23,IF($CF24=7,$CC24,IF($CF25=7,$CC25,IF($CF26=7,$CC26,IF($CF27=7,$CC27,IF($CF28=7,$CC28,IF($CF29=7,$CC29,IF($CF30=7,$CC30)))))))) -> 0 | AN29: =IF($CF23=8,$CC23,IF($CF24=8,$CC24,IF($CF25=8,$CC25,IF($CF26=8,$CC26,IF($CF27=8,$CC27,IF($CF28=8,$CC28,IF($CF29=8,$CC29,IF($CF30=8,$CC30)))))))) -> 0 | AO29: =RANK(AC29,AC$23:AC$29)*10000000000 -> 10000000000 | AP29: =IF(AE29<1,"",RANK(AF29,AF$23:AF$29)*1000000000) ->  | AQ29: =IF(AD$3<1,"",RANK(AD29,AD$23:AD$29)*100000000) ->  | AR29: =RANK(AG29,AG$23:AG$29)*10000000 -> 10000000 | AS29: =RANK(AH29,AH$23:AH$29)*1000000 -> 1000000 | AT29: =RANK(AI29,AI$23:AI$29)*100000 -> 100000 | AU29: =RANK(AJ29,AJ$23:AJ$29)*10000 -> 10000 | AV29: =RANK(AK29,AK$23:AK$29)*1000 -> 1000 | AW29: =RANK(AL29,AL$23:AL$29)*100 -> 100 | AX29: =RANK(AM29,AM$23:AM$29)*10 -> 10 | AY29: =RANK(AN29,AN$23:AN$29) -> 1 | AZ29: =IF(V29>0,1,0) -> 0 | BA29: =IF(AE29<1,"",SUM(AO29:AZ29)) ->  | BC29: =N24 -> 0 | BD29: 0.01 | BE29: 0.01 | BF29: 7 | BG29: 0.01 | BN29: 0.01 | BP29: =N27 -> 0 | BQ29: 0.01 | BR29: 0.01 | BS29: 7 | BT29: 0.01 | CA29: 0.01 | CC29: =J30 -> 0 | CD29: 0.01 | CE29: 0.01 | CF29: 7 | CG29: 0.01 | CN29: 0.01
BC30: =O24 -> 0 | BD30: 0 | BE30: 0 | BF30: 8 | BN30: 0 | BP30: =O27 -> 0 | BQ30: 0 | BR30: 0 | BS30: 8 | CA30: 0 | CC30: =K30 -> 0 | CD30: 0 | CE30: 0 | CF30: 8 | CN30: 0
B31: =IF(B29="","",VLOOKUP(B29,licens,3,FALSE)) ->  | C31: =IF(B29="","",VLOOKUP(B29,licens,4,FALSE)) ->  | D31: =IF(N23<1," ",IF(J33<1,AF1,ROUNDDOWN(D29/F29,3))) ->  | H31: =IF(N26<1," ",IF(N33<1,AF1,ROUNDDOWN(H29/J29,3))) -> 
H32: =IF($AA$4<1,0,IF(H23>0,1,0)) -> 0 | J32: =IF(H23<1,FALSE,IF(D26<1,FALSE,IF(MAX(H23,D26)<30,0))) -> FALSE
H33: =IF($AA$4<1,0,IF(L23>0,1,0)) -> 0 | J33: =IF(L23<1,FALSE,IF(D29<1,FALSE,IF(MAX(L23,D29)<30,0))) -> FALSE | L33: =IF($AA$4<1,0,IF(L26>0,1,0)) -> 0 | N33: =IF(L26<1,FALSE,IF(H29<1,FALSE,IF(MAX(L26,H29)<30,0))) -> FALSE
A34: Pulje 3:
B35: Licens nr. | C35: Navn | D35: 1 | H35: 2 | L35: 3 | P35: MP med oversider | Q35: Score | R35: Indg | S35: Snit | T35: Serie | U35: Plac. | V35: sæt x ved lige (serier) | W35: Syg / afbud | X35: kampe | Z35: MP | AD35: Score | AE35: Indg. | AF35: Snit | AG35: Serie | AO35: MP | AP35: Snit | AQ35: score | AR35: Serie | AZ35: lige | BA35: I alt
B36: Klub Nr. | C36: Klub
A37: 1 | B37: =lodtrækning!C16 -> 114962 | C37: =IF(B37="","",VLOOKUP(B37,licens,2,FALSE)) -> Poul Bjerring | D37: Score | F37: Indg. | P37: =IF(AE37<1," ",AC37) ->  | Q37: =IF(AE37<1," ",AD37) ->  | R37: =IF(AE37<1," ",AE37) ->  | S37: =IF(AE37<1," ",AF37) ->  | T37: =IF(AE37<1," ",MAX(H38:O38)) ->  | U37: =IF(AE37<1," ",RANK(BA37,BA$37:BA$43,1)) ->  | X37: =IF(AE37<1,0,2) -> 0 | Z37: =IF(J37<1,"",IF(H37>D40,2,IF(H37=D40,1,0))) ->  | AA37: =IF(N37<1,"",IF(L37>D43,2,IF(L37=D43,1,0))) ->  | AB37: =IF(AE40<1,2,IF(AE43<1,2)) -> 2 | AC37: =SUM(Z37:AB37) -> 2 | AD37: =SUM(H37,L37) -> 0 | AE37: =SUM(J37,N37) -> 0 | AF37: =IF(AE37<1," ",ROUNDDOWN(AD37/AE37,3)) ->  | AG37: =IF($BF37=1,$BC37,IF($BF38=1,$BC38,IF($BF39=1,$BC39,IF($BF40=1,$BC40,IF($BF41=1,$BC41,IF($BF42=1,$BC42,IF($BF43=1,$BC43,IF($BF44=1,$BC44)))))))) -> 0 | AH37: =IF($BF37=2,$BC37,IF($BF38=2,$BC38,IF($BF39=2,$BC39,IF($BF40=2,$BC40,IF($BF41=2,$BC41,IF($BF42=2,$BC42,IF($BF43=2,$BC43,IF($BF44=2,$BC44)))))))) -> 0 | AI37: =IF($BF37=3,$BC37,IF($BF38=3,$BC38,IF($BF39=3,$BC39,IF($BF40=3,$BC40,IF($BF41=3,$BC41,IF($BF42=3,$BC42,IF($BF43=3,$BC43,IF($BF44=3,$BC44)))))))) -> 0 | AJ37: =IF($BF37=4,$BC37,IF($BF38=4,$BC38,IF($BF39=4,$BC39,IF($BF40=4,$BC40,IF($BF41=4,$BC41,IF($BF42=4,$BC42,IF($BF43=4,$BC43,IF($BF44=4,$BC44)))))))) -> 0 | AK37: =IF($BF37=5,$BC37,IF($BF38=5,$BC38,IF($BF39=5,$BC39,IF($BF40=5,$BC40,IF($BF41=5,$BC41,IF($BF42=5,$BC42,IF($BF43=5,$BC43,IF($BF44=5,$BC44)))))))) -> 0 | AL37: =IF($BF37=6,$BC37,IF($BF38=6,$BC38,IF($BF39=6,$BC39,IF($BF40=6,$BC40,IF($BF41=6,$BC41,IF($BF42=6,$BC42,IF($BF43=6,$BC43,IF($BF44=6,$BC44)))))))) -> 0 | AM37: =IF($BF37=7,$BC37,IF($BF38=7,$BC38,IF($BF39=7,$BC39,IF($BF40=7,$BC40,IF($BF41=7,$BC41,IF($BF42=7,$BC42,IF($BF43=7,$BC43,IF($BF44=7,$BC44)))))))) -> 0 | AN37: =IF($BF37=8,$BC37,IF($BF38=8,$BC38,IF($BF39=8,$BC39,IF($BF40=8,$BC40,IF($BF41=8,$BC41,IF($BF42=8,$BC42,IF($BF43=8,$BC43,IF($BF44=8,$BC44)))))))) -> 0 | AO37: =RANK(AC37,AC$37:AC$43)*10000000000 -> 10000000000 | AP37: =IF(AE37<1,"",RANK(AF37,AF$37:AF$43)*1000000000) ->  | AQ37: =IF(AD$3<1,"",RANK(AD37,AD$37:AD$43)*100000000) ->  | AR37: =RANK(AG37,AG$37:AG$43)*10000000 -> 10000000 | AS37: =RANK(AH37,AH$37:AH$43)*1000000 -> 1000000 | AT37: =RANK(AI37,AI$37:AI$43)*100000 -> 100000 | AU37: =RANK(AJ37,AJ$37:AJ$43)*10000 -> 10000 | AV37: =RANK(AK37,AK$37:AK$43)*1000 -> 1000 | AW37: =RANK(AL37,AL$37:AL$43)*100 -> 100 | AX37: =RANK(AM37,AM$37:AM$43)*10 -> 10 | AY37: =RANK(AN37,AN$37:AN$43) -> 1 | AZ37: =IF(V37>0,1,0) -> 0 | BA37: =IF(AE37<1,"",SUM(AO37:AZ37)) ->  | BC37: =H38 -> 0 | BD37: =BN37 -> 0.07 | BE37: =SUM(BC37:BD37) -> 0.07 | BF37: =RANK(BE37,BE$37:BE$44) -> 1 | BG37: =IF($BC37=$BC38,0.01) -> 0.01 | BH37: =IF($BC37=$BC39,0.01) -> 0.01 | BI37: =IF($BC37=$BC40,0.01) -> 0.01 | BJ37: =IF($BC37=$BC41,0.01) -> 0.01 | BK37: =IF($BC37=$BC42,0.01) -> 0.01 | BL37: =IF($BC37=$BC43,0.01) -> 0.01 | BM37: =IF($BC37=$BC44,0.01) -> 0.01 | BN37: =SUM(BG37:BM37) -> 0.07 | BP37: =D41 -> 0 | BQ37: =CA37 -> 0.07 | BR37: =SUM(BP37:BQ37) -> 0.07 | BS37: =RANK(BR37,BR$37:BR$44) -> 1 | BT37: =IF($BP37=$BP38,0.01) -> 0.01 | BU37: =IF($BP37=$BP39,0.01) -> 0.01 | BV37: =IF($BP37=$BP40,0.01) -> 0.01 | BW37: =IF($BP37=$BP41,0.01) -> 0.01 | BX37: =IF($BP37=$BP42,0.01) -> 0.01 | BY37: =IF($BP37=$BP43,0.01) -> 0.01 | BZ37: =IF($BP37=$BP44,0.01) -> 0.01 | CA37: =SUM(BT37:BZ37) -> 0.07 | CC37: =D44 -> 0 | CD37: =CN37 -> 0.07 | CE37: =SUM(CC37:CD37) -> 0.07 | CF37: =RANK(CE37,CE$37:CE$44) -> 1 | CG37: =IF($CC37=$CC38,0.01) -> 0.01 | CH37: =IF($CC37=$CC39,0.01) -> 0.01 | CI37: =IF($CC37=$CC40,0.01) -> 0.01 | CJ37: =IF($CC37=$CC41,0.01) -> 0.01 | CK37: =IF($CC37=$CC42,0.01) -> 0.01 | CL37: =IF($CC37=$CC43,0.01) -> 0.01 | CM37: =IF($CC37=$CC44,0.01) -> 0.01 | CN37: =SUM(CG37:CM37) -> 0.07
D38: 4 største serier | BC38: =I38 -> 0 | BD38: 0.06 | BE38: =SUM(BC38:BD38) -> 0.06 | BF38: =RANK(BE38,BE$37:BE$44) -> 2 | BG38: 0.01 | BH38: 0.01 | BI38: =IF($BC38=$BC41,0.01) -> 0.01 | BJ38: =IF($BC38=$BC42,0.01) -> 0.01 | BK38: =IF($BC38=$BC43,0.01) -> 0.01 | BL38: =IF($BC38=$BC44,0.01) -> 0.01 | BN38: =SUM(BG38:BM38) -> 0.06 | BP38: =E41 -> 0 | BQ38: 0.06 | BR38: =SUM(BP38:BQ38) -> 0.06 | BS38: =RANK(BR38,BR$37:BR$44) -> 2 | BT38: =IF($BP38=$BP39,0.01) -> 0.01 | BU38: 0.01 | BV38: =IF($BP38=$BP41,0.01) -> 0.01 | BW38: =IF($BP38=$BP42,0.01) -> 0.01 | BX38: =IF($BP38=$BP43,0.01) -> 0.01 | BY38: =IF($BP38=$BP44,0.01) -> 0.01 | CA38: =SUM(BT38:BZ38) -> 0.06 | CC38: =E44 -> 0 | CD38: 0.06 | CE38: =SUM(CC38:CD38) -> 0.06 | CF38: =RANK(CE38,CE$37:CE$44) -> 2 | CG38: =IF($CC38=$CC39,0.01) -> 0.01 | CH38: 0.01 | CI38: =IF($CC38=$CC41,0.01) -> 0.01 | CJ38: =IF($CC38=$CC42,0.01) -> 0.01 | CK38: =IF($CC38=$CC43,0.01) -> 0.01 | CL38: =IF($CC38=$CC44,0.01) -> 0.01 | CN38: =SUM(CG38:CM38) -> 0.06
B39: =IF(B37="","",VLOOKUP(B37,licens,3,FALSE)) -> 603 | C39: =IF(B37="","",VLOOKUP(B37,licens,4,FALSE)) -> ABK 31 | D39: snit | H39: =IF(J37<1," ",IF(J46<1,AF1,ROUNDDOWN(H37/J37,3))) ->  | L39: =IF(N37<1," ",IF(J47<1,AF1,ROUNDDOWN(L37/N37,3))) ->  | BC39: =J38 -> 0 | BD39: 0.05 | BE39: 0.05 | BF39: 3 | BG39: 0.01 | BH39: 0.01 | BI39: =IF($BC39=$BC42,0.01) -> 0.01 | BJ39: =IF($BC39=$BC43,0.01) -> 0.01 | BK39: =IF($BC39=$BC44,0.01) -> 0.01 | BN39: 0.05 | BP39: =F41 -> 0 | BQ39: 0.05 | BR39: 0.05 | BS39: 3 | BT39: 0.01 | BU39: 0.01 | BV39: =IF($BP39=$BP42,0.01) -> 0.01 | BW39: =IF($BP39=$BP43,0.01) -> 0.01 | BX39: =IF($BP39=$BP44,0.01) -> 0.01 | CA39: 0.05 | CC39: =F44 -> 0 | CD39: 0.05 | CE39: 0.05 | CF39: 3 | CG39: 0.01 | CH39: 0.01 | CI39: =IF($CC39=$CC42,0.01) -> 0.01 | CJ39: =IF($CC39=$CC43,0.01) -> 0.01 | CK39: =IF($CC39=$CC44,0.01) -> 0.01 | CN39: 0.05
A40: 2 | B40: =lodtrækning!C17 ->  | C40: =IF(B40="","",VLOOKUP(B40,licens,2,FALSE)) ->  | F40: =IF(J37<1," ",J37) ->  | P40: =IF(AE40<1," ",AC40) ->  | Q40: =IF(AE40<1," ",AD40) ->  | R40: =IF(AE40<1," ",AE40) ->  | S40: =IF(AE40<1," ",AF40) ->  | T40: =IF(AE40<1," ",MAX(D41:O41)) ->  | U40: =IF(AE40<1," ",RANK(BA40,BA$37:BA$43,1)) ->  | X40: =IF(AE40<1,0,2) -> 0 | Z40: =IF(J37<1,"",IF(D40>H37,2,IF(D40=H37,1,0))) ->  | AA40: =IF(N40<1,"",IF(L40>H43,2,IF(L40=H43,1,0))) ->  | AB40: =IF(AE37<1,2,IF(AE43<1,2)) -> 2 | AC40: =SUM(Z40:AB40) -> 2 | AD40: =SUM(D40,L40) -> 0 | AE40: =SUM(F40,N40) -> 0 | AF40: =IF(AE40<1," ",ROUNDDOWN(AD40/AE40,3)) ->  | AG40: =IF($BS37=1,$BP37,IF($BS38=1,$BP38,IF($BS39=1,$BP39,IF($BS40=1,$BP40,IF($BS41=1,$BP41,IF($BS42=1,$BP42,IF($BS43=1,$BP43,IF($BS44=1,$BP44)))))))) -> 0 | AH40: =IF($BS37=2,$BP37,IF($BS38=2,$BP38,IF($BS39=2,$BP39,IF($BS40=2,$BP40,IF($BS41=2,$BP41,IF($BS42=2,$BP42,IF($BS43=2,$BP43,IF($BS44=2,$BP44)))))))) -> 0 | AI40: =IF($BS37=3,$BP37,IF($BS38=3,$BP38,IF($BS39=3,$BP39,IF($BS40=3,$BP40,IF($BS41=3,$BP41,IF($BS42=3,$BP42,IF($BS43=3,$BP43,IF($BS44=3,$BP44)))))))) -> 0 | AJ40: =IF($BS37=4,$BP37,IF($BS38=4,$BP38,IF($BS39=4,$BP39,IF($BS40=4,$BP40,IF($BS41=4,$BP41,IF($BS42=4,$BP42,IF($BS43=4,$BP43,IF($BS44=4,$BP44)))))))) -> 0 | AK40: =IF($BS37=5,$BP37,IF($BS38=5,$BP38,IF($BS39=5,$BP39,IF($BS40=5,$BP40,IF($BS41=5,$BP41,IF($BS42=5,$BP42,IF($BS43=5,$BP43,IF($BS44=5,$BP44)))))))) -> 0 | AL40: =IF($BS37=6,$BP37,IF($BS38=6,$BP38,IF($BS39=6,$BP39,IF($BS40=6,$BP40,IF($BS41=6,$BP41,IF($BS42=6,$BP42,IF($BS43=6,$BP43,IF($BS44=6,$BP44)))))))) -> 0 | AM40: =IF($BS37=7,$BP37,IF($BS38=7,$BP38,IF($BS39=7,$BP39,IF($BS40=7,$BP40,IF($BS41=7,$BP41,IF($BS42=7,$BP42,IF($BS43=7,$BP43,IF($BS44=7,$BP44)))))))) -> 0 | AN40: =IF($BS37=8,$BP37,IF($BS38=8,$BP38,IF($BS39=8,$BP39,IF($BS40=8,$BP40,IF($BS41=8,$BP41,IF($BS42=8,$BP42,IF($BS43=8,$BP43,IF($BS44=8,$BP44)))))))) -> 0 | AO40: =RANK(AC40,AC$37:AC$43)*10000000000 -> 10000000000 | AP40: =IF(AE40<1,"",RANK(AF40,AF$37:AF$43)*1000000000) ->  | AQ40: =IF(AD$3<1,"",RANK(AD40,AD$37:AD$43)*100000000) ->  | AR40: =RANK(AG40,AG$37:AG$43)*10000000 -> 10000000 | AS40: =RANK(AH40,AH$37:AH$43)*1000000 -> 1000000 | AT40: =RANK(AI40,AI$37:AI$43)*100000 -> 100000 | AU40: =RANK(AJ40,AJ$37:AJ$43)*10000 -> 10000 | AV40: =RANK(AK40,AK$37:AK$43)*1000 -> 1000 | AW40: =RANK(AL40,AL$37:AL$43)*100 -> 100 | AX40: =RANK(AM40,AM$37:AM$43)*10 -> 10 | AY40: =RANK(AN40,AN$37:AN$43) -> 1 | AZ40: =IF(V40>0,1,0) -> 0 | BA40: =IF(AE40<1,"",SUM(AO40:AZ40)) ->  | BC40: =K38 -> 0 | BD40: 0.04 | BE40: 0.04 | BF40: 4 | BG40: 0.01 | BH40: 0.01 | BI40: =IF($BC40=$BC43,0.01) -> 0.01 | BJ40: =IF($BC40=$BC44,0.01) -> 0.01 | BN40: 0.04 | BP40: =G41 -> 0 | BQ40: 0.04 | BR40: 0.04 | BS40: 4 | BT40: 0.01 | BU40: 0.01 | BV40: =IF($BP40=$BP43,0.01) -> 0.01 | BW40: =IF($BP40=$BP44,0.01) -> 0.01 | CA40: 0.04 | CC40: =G44 -> 0 | CD40: 0.04 | CE40: 0.04 | CF40: 4 | CG40: 0.01 | CH40: 0.01 | CI40: =IF($CC40=$CC43,0.01) -> 0.01 | CJ40: =IF($CC40=$CC44,0.01) -> 0.01 | CN40: 0.04
BC41: =L38 -> 0 | BD41: 0.03 | BE41: 0.03 | BF41: 5 | BG41: 0.01 | BH41: 0.01 | BI41: =IF($BC41=$BC44,0.01) -> 0.01 | BN41: 0.03 | BP41: =L41 -> 0 | BQ41: 0.03 | BR41: 0.03 | BS41: 5 | BT41: 0.01 | BU41: 0.01 | BV41: =IF($BP41=$BP44,0.01) -> 0.01 | CA41: 0.03 | CC41: =H44 -> 0 | CD41: 0.03 | CE41: 0.03 | CF41: 5 | CG41: 0.01 | CH41: 0.01 | CI41: =IF($CC41=$CC44,0.01) -> 0.01 | CN41: 0.03
B42: =IF(B40="","",VLOOKUP(B40,licens,3,FALSE)) ->  | C42: =IF(B40="","",VLOOKUP(B40,licens,4,FALSE)) ->  | D42: =IF(J37<1," ",IF(J46<1,AF1,ROUNDDOWN(D40/F40,3))) ->  | L42: =IF(N40<1," ",IF(N47<1,AF1,ROUNDDOWN(L40/N40,3))) ->  | BC42: =M38 -> 0 | BD42: 0.02 | BE42: 0.02 | BF42: 6 | BG42: 0.01 | BH42: 0.01 | BN42: 0.02 | BP42: =M41 -> 0 | BQ42: 0.02 | BR42: 0.02 | BS42: 6 | BT42: 0.01 | BU42: 0.01 | CA42: 0.02 | CC42: =I44 -> 0 | CD42: 0.02 | CE42: 0.02 | CF42: 6 | CG42: 0.01 | CH42: 0.01 | CN42: 0.02
A43: 3 | B43: =lodtrækning!C18 -> 111940 | C43: =IF(B43="","",VLOOKUP(B43,licens,2,FALSE)) -> Johnny Søgaard | F43: =IF(N37<1," ",N37) ->  | J43: =IF(N40<1," ",N40) ->  | P43: =IF(AE43<1," ",AC43) ->  | Q43: =IF(AE43<1," ",AD43) ->  | R43: =IF(AE43<1," ",AE43) ->  | S43: =IF(AE43<1," ",AF43) ->  | T43: =IF(AE43<1," ",MAX(D44:K44)) ->  | U43: =IF(AE43<1," ",RANK(BA43,BA$37:BA$43,1)) ->  | X43: =IF(AE43<1,0,2) -> 0 | Z43: =IF(N37<1,"",IF(D43>L37,2,IF(D43=L37,1,0))) ->  | AA43: =IF(N40<1,"",IF(H43>L40,2,IF(H43=L40,1,0))) ->  | AB43: =IF(AE37<1,2,IF(AE40<1,2)) -> 2 | AC43: =SUM(Z43:AB43) -> 2 | AD43: =SUM(D43,H43) -> 0 | AE43: =SUM(F43,J43) -> 0 | AF43: =IF(AE43<1," ",ROUNDDOWN(AD43/AE43,3)) ->  | AG43: =IF($CF37=1,$CC37,IF($CF38=1,$CC38,IF($CF39=1,$CC39,IF($CF40=1,$CC40,IF($CF41=1,$CC41,IF($CF42=1,$CC42,IF($CF43=1,$CC43,IF($CF44=1,$CC44)))))))) -> 0 | AH43: =IF($CF37=2,$CC37,IF($CF38=2,$CC38,IF($CF39=2,$CC39,IF($CF40=2,$CC40,IF($CF41=2,$CC41,IF($CF42=2,$CC42,IF($CF43=2,$CC43,IF($CF44=2,$CC44)))))))) -> 0 | AI43: =IF($CF37=3,$CC37,IF($CF38=3,$CC38,IF($CF39=3,$CC39,IF($CF40=3,$CC40,IF($CF41=3,$CC41,IF($CF42=3,$CC42,IF($CF43=3,$CC43,IF($CF44=3,$CC44)))))))) -> 0 | AJ43: =IF($CF37=4,$CC37,IF($CF38=4,$CC38,IF($CF39=4,$CC39,IF($CF40=4,$CC40,IF($CF41=4,$CC41,IF($CF42=4,$CC42,IF($CF43=4,$CC43,IF($CF44=4,$CC44)))))))) -> 0 | AK43: =IF($CF37=5,$CC37,IF($CF38=5,$CC38,IF($CF39=5,$CC39,IF($CF40=5,$CC40,IF($CF41=5,$CC41,IF($CF42=5,$CC42,IF($CF43=5,$CC43,IF($CF44=5,$CC44)))))))) -> 0 | AL43: =IF($CF37=6,$CC37,IF($CF38=6,$CC38,IF($CF39=6,$CC39,IF($CF40=6,$CC40,IF($CF41=6,$CC41,IF($CF42=6,$CC42,IF($CF43=6,$CC43,IF($CF44=6,$CC44)))))))) -> 0 | AM43: =IF($CF37=7,$CC37,IF($CF38=7,$CC38,IF($CF39=7,$CC39,IF($CF40=7,$CC40,IF($CF41=7,$CC41,IF($CF42=7,$CC42,IF($CF43=7,$CC43,IF($CF44=7,$CC44)))))))) -> 0 | AN43: =IF($CF37=8,$CC37,IF($CF38=8,$CC38,IF($CF39=8,$CC39,IF($CF40=8,$CC40,IF($CF41=8,$CC41,IF($CF42=8,$CC42,IF($CF43=8,$CC43,IF($CF44=8,$CC44)))))))) -> 0 | AO43: =RANK(AC43,AC$37:AC$43)*10000000000 -> 10000000000 | AP43: =IF(AE43<1,"",RANK(AF43,AF$37:AF$43)*1000000000) ->  | AQ43: =IF(AD$3<1,"",RANK(AD43,AD$37:AD$43)*100000000) ->  | AR43: =RANK(AG43,AG$37:AG$43)*10000000 -> 10000000 | AS43: =RANK(AH43,AH$37:AH$43)*1000000 -> 1000000 | AT43: =RANK(AI43,AI$37:AI$43)*100000 -> 100000 | AU43: =RANK(AJ43,AJ$37:AJ$43)*10000 -> 10000 | AV43: =RANK(AK43,AK$37:AK$43)*1000 -> 1000 | AW43: =RANK(AL43,AL$37:AL$43)*100 -> 100 | AX43: =RANK(AM43,AM$37:AM$43)*10 -> 10 | AY43: =RANK(AN43,AN$37:AN$43) -> 1 | AZ43: =IF(V43>0,1,0) -> 0 | BA43: =IF(AE43<1,"",SUM(AO43:AZ43)) ->  | BC43: =N38 -> 0 | BD43: 0.01 | BE43: 0.01 | BF43: 7 | BG43: 0.01 | BN43: 0.01 | BP43: =N41 -> 0 | BQ43: 0.01 | BR43: 0.01 | BS43: 7 | BT43: 0.01 | CA43: 0.01 | CC43: =J44 -> 0 | CD43: 0.01 | CE43: 0.01 | CF43: 7 | CG43: 0.01 | CN43: 0.01
BC44: =O38 -> 0 | BD44: 0 | BE44: 0 | BF44: 8 | BN44: 0 | BP44: =O41 -> 0 | BQ44: 0 | BR44: 0 | BS44: 8 | CA44: 0 | CC44: =K44 -> 0 | CD44: 0 | CE44: 0 | CF44: 8 | CN44: 0
B45: =IF(B43="","",VLOOKUP(B43,licens,3,FALSE)) -> 672 | C45: =IF(B43="","",VLOOKUP(B43,licens,4,FALSE)) -> Randers BK | D45: =IF(N37<1," ",IF(J47<1,AF1,ROUNDDOWN(D43/F43,3))) ->  | H45: =IF(N40<1," ",IF(N47<1,AF1,ROUNDDOWN(H43/J43,3))) -> 
H46: =IF($AA$4<1,0,IF(H37>0,1,0)) -> 0 | J46: =IF(H37<1,FALSE,IF(D40<1,FALSE,IF(MAX(H37,D40)<30,0))) -> FALSE | P46: =IF(AD46<1," ",SUM(Y46:Z46)) ->  | Q46: =IF(AD46<1," ",SUM(AC46)) ->  | R46: =IF(AD46<1," ",SUM(AD46)) ->  | S46: =IF(AD46<1," ",SUM(AE46)) ->  | T46: =IF(AD46<1," ",SUM(AF46)) ->  | U46: =IF(AD46<1," ",RANK(AL46,AH$9:AH$17,1)) -> 
H47: =IF($AA$4<1,0,IF(L37>0,1,0)) -> 0 | J47: =IF(L37<1,FALSE,IF(D43<1,FALSE,IF(MAX(L37,D43)<30,0))) -> FALSE | L47: =IF($AA$4<1,0,IF(L40>0,1,0)) -> 0 | N47: =IF(L40<1,FALSE,IF(H43<1,FALSE,IF(MAX(L40,H43)<30,0))) -> FALSE
A48: Pulje 4:
B49: Licens nr. | C49: Navn | D49: 1 | H49: 2 | L49: 3 | P49: MP med oversider | Q49: Score | R49: Indg | S49: Snit | T49: Serie | U49: Plac. | V49: sæt x ved lige (serier) | W49: Syg / afbud | X49: kampe | Z49: MP | AD49: Score | AE49: Indg. | AF49: Snit | AG49: Serie | AO49: MP | AP49: Snit | AQ49: score | AR49: Serie | AZ49: lige | BA49: I alt
B50: Klub Nr. | C50: Klub
A51: 1 | B51: =lodtrækning!C20 -> 114711 | C51: =IF(B51="","",VLOOKUP(B51,licens,2,FALSE)) -> Thomas Knudsen | D51: Score | F51: Indg. | P51: =IF(AE51<1," ",AC51) ->  | Q51: =IF(AE51<1," ",AD51) ->  | R51: =IF(AE51<1," ",AE51) ->  | S51: =IF(AE51<1," ",AF51) ->  | T51: =IF(AE51<1," ",MAX(H52:O52)) ->  | U51: =IF(AE51<1," ",RANK(BA51,BA$51:BA$57,1)) ->  | X51: =IF(AE51<1,0,2) -> 0 | Z51: =IF(J51<1,"",IF(H51>D54,2,IF(H51=D54,1,0))) ->  | AA51: =IF(N51<1,"",IF(L51>D57,2,IF(L51=D57,1,0))) ->  | AB51: =IF(AE54<1,2,IF(AE57<1,2)) -> 2 | AC51: =SUM(Z51:AB51) -> 2 | AD51: =SUM(H51,L51) -> 0 | AE51: =SUM(J51,N51) -> 0 | AF51: =IF(AE51<1," ",ROUNDDOWN(AD51/AE51,3)) ->  | AG51: =IF($BF51=1,$BC51,IF($BF52=1,$BC52,IF($BF53=1,$BC53,IF($BF54=1,$BC54,IF($BF55=1,$BC55,IF($BF56=1,$BC56,IF($BF57=1,$BC57,IF($BF58=1,$BC58)))))))) -> 0 | AH51: =IF($BF51=2,$BC51,IF($BF52=2,$BC52,IF($BF53=2,$BC53,IF($BF54=2,$BC54,IF($BF55=2,$BC55,IF($BF56=2,$BC56,IF($BF57=2,$BC57,IF($BF58=2,$BC58)))))))) -> 0 | AI51: =IF($BF51=3,$BC51,IF($BF52=3,$BC52,IF($BF53=3,$BC53,IF($BF54=3,$BC54,IF($BF55=3,$BC55,IF($BF56=3,$BC56,IF($BF57=3,$BC57,IF($BF58=3,$BC58)))))))) -> 0 | AJ51: =IF($BF51=4,$BC51,IF($BF52=4,$BC52,IF($BF53=4,$BC53,IF($BF54=4,$BC54,IF($BF55=4,$BC55,IF($BF56=4,$BC56,IF($BF57=4,$BC57,IF($BF58=4,$BC58)))))))) -> 0 | AK51: =IF($BF51=5,$BC51,IF($BF52=5,$BC52,IF($BF53=5,$BC53,IF($BF54=5,$BC54,IF($BF55=5,$BC55,IF($BF56=5,$BC56,IF($BF57=5,$BC57,IF($BF58=5,$BC58)))))))) -> 0 | AL51: =IF($BF51=6,$BC51,IF($BF52=6,$BC52,IF($BF53=6,$BC53,IF($BF54=6,$BC54,IF($BF55=6,$BC55,IF($BF56=6,$BC56,IF($BF57=6,$BC57,IF($BF58=6,$BC58)))))))) -> 0 | AM51: =IF($BF51=7,$BC51,IF($BF52=7,$BC52,IF($BF53=7,$BC53,IF($BF54=7,$BC54,IF($BF55=7,$BC55,IF($BF56=7,$BC56,IF($BF57=7,$BC57,IF($BF58=7,$BC58)))))))) -> 0 | AN51: =IF($BF51=8,$BC51,IF($BF52=8,$BC52,IF($BF53=8,$BC53,IF($BF54=8,$BC54,IF($BF55=8,$BC55,IF($BF56=8,$BC56,IF($BF57=8,$BC57,IF($BF58=8,$BC58)))))))) -> 0 | AO51: =RANK(AC51,AC$51:AC$57)*10000000000 -> 10000000000 | AP51: =IF(AE51<1,"",RANK(AF51,AF$51:AF$57)*1000000000) ->  | AQ51: =IF(AD$3<1,"",RANK(AD51,AD$51:AD$57)*100000000) ->  | AR51: =RANK(AG51,AG$51:AG$57)*10000000 -> 10000000 | AS51: =RANK(AH51,AH$51:AH$57)*1000000 -> 1000000 | AT51: =RANK(AI51,AI$51:AI$57)*100000 -> 100000 | AU51: =RANK(AJ51,AJ$51:AJ$57)*10000 -> 10000 | AV51: =RANK(AK51,AK$51:AK$57)*1000 -> 1000 | AW51: =RANK(AL51,AL$51:AL$57)*100 -> 100 | AX51: =RANK(AM51,AM$51:AM$57)*10 -> 10 | AY51: =RANK(AN51,AN$51:AN$57) -> 1 | AZ51: =IF(V51>0,1,0) -> 0 | BA51: =IF(AE51<1,"",SUM(AO51:AZ51)) ->  | BC51: =H52 -> 0 | BD51: =BN51 -> 0.07 | BE51: =SUM(BC51:BD51) -> 0.07 | BF51: =RANK(BE51,BE$51:BE$58) -> 1 | BG51: =IF($BC51=$BC52,0.01) -> 0.01 | BH51: =IF($BC51=$BC53,0.01) -> 0.01 | BI51: =IF($BC51=$BC54,0.01) -> 0.01 | BJ51: =IF($BC51=$BC55,0.01) -> 0.01 | BK51: =IF($BC51=$BC56,0.01) -> 0.01 | BL51: =IF($BC51=$BC57,0.01) -> 0.01 | BM51: =IF($BC51=$BC58,0.01) -> 0.01 | BN51: =SUM(BG51:BM51) -> 0.07 | BP51: =D55 -> 0 | BQ51: =CA51 -> 0.07 | BR51: =SUM(BP51:BQ51) -> 0.07 | BS51: =RANK(BR51,BR$51:BR$58) -> 1 | BT51: =IF($BP51=$BP52,0.01) -> 0.01 | BU51: =IF($BP51=$BP53,0.01) -> 0.01 | BV51: =IF($BP51=$BP54,0.01) -> 0.01 | BW51: =IF($BP51=$BP55,0.01) -> 0.01 | BX51: =IF($BP51=$BP56,0.01) -> 0.01 | BY51: =IF($BP51=$BP57,0.01) -> 0.01 | BZ51: =IF($BP51=$BP58,0.01) -> 0.01 | CA51: =SUM(BT51:BZ51) -> 0.07 | CC51: =D58 -> 0 | CD51: =CN51 -> 0.07 | CE51: =SUM(CC51:CD51) -> 0.07 | CF51: =RANK(CE51,CE$51:CE$58) -> 1 | CG51: =IF($CC51=$CC52,0.01) -> 0.01 | CH51: =IF($CC51=$CC53,0.01) -> 0.01 | CI51: =IF($CC51=$CC54,0.01) -> 0.01 | CJ51: =IF($CC51=$CC55,0.01) -> 0.01 | CK51: =IF($CC51=$CC56,0.01) -> 0.01 | CL51: =IF($CC51=$CC57,0.01) -> 0.01 | CM51: =IF($CC51=$CC58,0.01) -> 0.01 | CN51: =SUM(CG51:CM51) -> 0.07
D52: 4 største serier | BC52: =I52 -> 0 | BD52: 0.06 | BE52: =SUM(BC52:BD52) -> 0.06 | BF52: =RANK(BE52,BE$51:BE$58) -> 2 | BG52: 0.01 | BH52: 0.01 | BI52: =IF($BC52=$BC55,0.01) -> 0.01 | BJ52: =IF($BC52=$BC56,0.01) -> 0.01 | BK52: =IF($BC52=$BC57,0.01) -> 0.01 | BL52: =IF($BC52=$BC58,0.01) -> 0.01 | BN52: =SUM(BG52:BM52) -> 0.06 | BP52: =E55 -> 0 | BQ52: 0.06 | BR52: =SUM(BP52:BQ52) -> 0.06 | BS52: =RANK(BR52,BR$51:BR$58) -> 2 | BT52: =IF($BP52=$BP53,0.01) -> 0.01 | BU52: 0.01 | BV52: =IF($BP52=$BP55,0.01) -> 0.01 | BW52: =IF($BP52=$BP56,0.01) -> 0.01 | BX52: =IF($BP52=$BP57,0.01) -> 0.01 | BY52: =IF($BP52=$BP58,0.01) -> 0.01 | CA52: =SUM(BT52:BZ52) -> 0.06 | CC52: =E58 -> 0 | CD52: 0.06 | CE52: =SUM(CC52:CD52) -> 0.06 | CF52: =RANK(CE52,CE$51:CE$58) -> 2 | CG52: =IF($CC52=$CC53,0.01) -> 0.01 | CH52: 0.01 | CI52: =IF($CC52=$CC55,0.01) -> 0.01 | CJ52: =IF($CC52=$CC56,0.01) -> 0.01 | CK52: =IF($CC52=$CC57,0.01) -> 0.01 | CL52: =IF($CC52=$CC58,0.01) -> 0.01 | CN52: =SUM(CG52:CM52) -> 0.06
B53: =IF(B51="","",VLOOKUP(B51,licens,3,FALSE)) -> 503 | C53: =IF(B51="","",VLOOKUP(B51,licens,4,FALSE)) -> Bristol | D53: snit | H53: =IF(J51<1," ",IF(J60<1,AF1,ROUNDDOWN(H51/J51,3))) ->  | L53: =IF(N51<1," ",IF(J61<1,AF1,ROUNDDOWN(L51/N51,3))) ->  | BC53: =J52 -> 0 | BD53: 0.05 | BE53: 0.05 | BF53: 3 | BG53: 0.01 | BH53: 0.01 | BI53: =IF($BC53=$BC56,0.01) -> 0.01 | BJ53: =IF($BC53=$BC57,0.01) -> 0.01 | BK53: =IF($BC53=$BC58,0.01) -> 0.01 | BN53: 0.05 | BP53: =F55 -> 0 | BQ53: 0.05 | BR53: 0.05 | BS53: 3 | BT53: 0.01 | BU53: 0.01 | BV53: =IF($BP53=$BP56,0.01) -> 0.01 | BW53: =IF($BP53=$BP57,0.01) -> 0.01 | BX53: =IF($BP53=$BP58,0.01) -> 0.01 | CA53: 0.05 | CC53: =F58 -> 0 | CD53: 0.05 | CE53: 0.05 | CF53: 3 | CG53: 0.01 | CH53: 0.01 | CI53: =IF($CC53=$CC56,0.01) -> 0.01 | CJ53: =IF($CC53=$CC57,0.01) -> 0.01 | CK53: =IF($CC53=$CC58,0.01) -> 0.01 | CN53: 0.05
A54: 2 | B54: =lodtrækning!C21 ->  | C54: =IF(B54="","",VLOOKUP(B54,licens,2,FALSE)) ->  | F54: =IF(J51<1," ",J51) ->  | P54: =IF(AE54<1," ",AC54) ->  | Q54: =IF(AE54<1," ",AD54) ->  | R54: =IF(AE54<1," ",AE54) ->  | S54: =IF(AE54<1," ",AF54) ->  | T54: =IF(AE54<1," ",MAX(D55:O55)) ->  | U54: =IF(AE54<1," ",RANK(BA54,BA$51:BA$57,1)) ->  | X54: =IF(AE54<1,0,2) -> 0 | Z54: =IF(J51<1,"",IF(D54>H51,2,IF(D54=H51,1,0))) ->  | AA54: =IF(N54<1,"",IF(L54>H57,2,IF(L54=H57,1,0))) ->  | AB54: =IF(AE51<1,2,IF(AE57<1,2)) -> 2 | AC54: =SUM(Z54:AB54) -> 2 | AD54: =SUM(D54,L54) -> 0 | AE54: =SUM(F54,N54) -> 0 | AF54: =IF(AE54<1," ",ROUNDDOWN(AD54/AE54,3)) ->  | AG54: =IF($BS51=1,$BP51,IF($BS52=1,$BP52,IF($BS53=1,$BP53,IF($BS54=1,$BP54,IF($BS55=1,$BP55,IF($BS56=1,$BP56,IF($BS57=1,$BP57,IF($BS58=1,$BP58)))))))) -> 0 | AH54: =IF($BS51=2,$BP51,IF($BS52=2,$BP52,IF($BS53=2,$BP53,IF($BS54=2,$BP54,IF($BS55=2,$BP55,IF($BS56=2,$BP56,IF($BS57=2,$BP57,IF($BS58=2,$BP58)))))))) -> 0 | AI54: =IF($BS51=3,$BP51,IF($BS52=3,$BP52,IF($BS53=3,$BP53,IF($BS54=3,$BP54,IF($BS55=3,$BP55,IF($BS56=3,$BP56,IF($BS57=3,$BP57,IF($BS58=3,$BP58)))))))) -> 0 | AJ54: =IF($BS51=4,$BP51,IF($BS52=4,$BP52,IF($BS53=4,$BP53,IF($BS54=4,$BP54,IF($BS55=4,$BP55,IF($BS56=4,$BP56,IF($BS57=4,$BP57,IF($BS58=4,$BP58)))))))) -> 0 | AK54: =IF($BS51=5,$BP51,IF($BS52=5,$BP52,IF($BS53=5,$BP53,IF($BS54=5,$BP54,IF($BS55=5,$BP55,IF($BS56=5,$BP56,IF($BS57=5,$BP57,IF($BS58=5,$BP58)))))))) -> 0 | AL54: =IF($BS51=6,$BP51,IF($BS52=6,$BP52,IF($BS53=6,$BP53,IF($BS54=6,$BP54,IF($BS55=6,$BP55,IF($BS56=6,$BP56,IF($BS57=6,$BP57,IF($BS58=6,$BP58)))))))) -> 0 | AM54: =IF($BS51=7,$BP51,IF($BS52=7,$BP52,IF($BS53=7,$BP53,IF($BS54=7,$BP54,IF($BS55=7,$BP55,IF($BS56=7,$BP56,IF($BS57=7,$BP57,IF($BS58=7,$BP58)))))))) -> 0 | AN54: =IF($BS51=8,$BP51,IF($BS52=8,$BP52,IF($BS53=8,$BP53,IF($BS54=8,$BP54,IF($BS55=8,$BP55,IF($BS56=8,$BP56,IF($BS57=8,$BP57,IF($BS58=8,$BP58)))))))) -> 0 | AO54: =RANK(AC54,AC$51:AC$57)*10000000000 -> 10000000000 | AP54: =IF(AE54<1,"",RANK(AF54,AF$51:AF$57)*1000000000) ->  | AQ54: =IF(AD$3<1,"",RANK(AD54,AD$51:AD$57)*100000000) ->  | AR54: =RANK(AG54,AG$51:AG$57)*10000000 -> 10000000 | AS54: =RANK(AH54,AH$51:AH$57)*1000000 -> 1000000 | AT54: =RANK(AI54,AI$51:AI$57)*100000 -> 100000 | AU54: =RANK(AJ54,AJ$51:AJ$57)*10000 -> 10000 | AV54: =RANK(AK54,AK$51:AK$57)*1000 -> 1000 | AW54: =RANK(AL54,AL$51:AL$57)*100 -> 100 | AX54: =RANK(AM54,AM$51:AM$57)*10 -> 10 | AY54: =RANK(AN54,AN$51:AN$57) -> 1 | AZ54: =IF(V54>0,1,0) -> 0 | BA54: =IF(AE54<1,"",SUM(AO54:AZ54)) ->  | BC54: =K52 -> 0 | BD54: 0.04 | BE54: 0.04 | BF54: 4 | BG54: 0.01 | BH54: 0.01 | BI54: =IF($BC54=$BC57,0.01) -> 0.01 | BJ54: =IF($BC54=$BC58,0.01) -> 0.01 | BN54: 0.04 | BP54: =G55 -> 0 | BQ54: 0.04 | BR54: 0.04 | BS54: 4 | BT54: 0.01 | BU54: 0.01 | BV54: =IF($BP54=$BP57,0.01) -> 0.01 | BW54: =IF($BP54=$BP58,0.01) -> 0.01 | CA54: 0.04 | CC54: =G58 -> 0 | CD54: 0.04 | CE54: 0.04 | CF54: 4 | CG54: 0.01 | CH54: 0.01 | CI54: =IF($CC54=$CC57,0.01) -> 0.01 | CJ54: =IF($CC54=$CC58,0.01) -> 0.01 | CN54: 0.04
BC55: =L52 -> 0 | BD55: 0.03 | BE55: 0.03 | BF55: 5 | BG55: 0.01 | BH55: 0.01 | BI55: =IF($BC55=$BC58,0.01) -> 0.01 | BN55: 0.03 | BP55: =L55 -> 0 | BQ55: 0.03 | BR55: 0.03 | BS55: 5 | BT55: 0.01 | BU55: 0.01 | BV55: =IF($BP55=$BP58,0.01) -> 0.01 | CA55: 0.03 | CC55: =H58 -> 0 | CD55: 0.03 | CE55: 0.03 | CF55: 5 | CG55: 0.01 | CH55: 0.01 | CI55: =IF($CC55=$CC58,0.01) -> 0.01 | CN55: 0.03
B56: =IF(B54="","",VLOOKUP(B54,licens,3,FALSE)) ->  | C56: =IF(B54="","",VLOOKUP(B54,licens,4,FALSE)) ->  | D56: =IF(J51<1," ",IF(J60<1,AF1,ROUNDDOWN(D54/F54,3))) ->  | L56: =IF(N54<1," ",IF(N61<1,AF1,ROUNDDOWN(L54/N54,3))) ->  | BC56: =M52 -> 0 | BD56: 0.02 | BE56: 0.02 | BF56: 6 | BG56: 0.01 | BH56: 0.01 | BN56: 0.02 | BP56: =M55 -> 0 | BQ56: 0.02 | BR56: 0.02 | BS56: 6 | BT56: 0.01 | BU56: 0.01 | CA56: 0.02 | CC56: =I58 -> 0 | CD56: 0.02 | CE56: 0.02 | CF56: 6 | CG56: 0.01 | CH56: 0.01 | CN56: 0.02
A57: 3 | B57: =lodtrækning!C22 -> 116405 | C57: =IF(B57="","",VLOOKUP(B57,licens,2,FALSE)) -> Tonny Carlsen | F57: =IF(N51<1," ",N51) ->  | J57: =IF(N54<1," ",N54) ->  | P57: =IF(AE57<1," ",AC57) ->  | Q57: =IF(AE57<1," ",AD57) ->  | R57: =IF(AE57<1," ",AE57) ->  | S57: =IF(AE57<1," ",AF57) ->  | T57: =IF(AE57<1," ",MAX(D58:K58)) ->  | U57: =IF(AE57<1," ",RANK(BA57,BA$51:BA$57,1)) ->  | X57: =IF(AE57<1,0,2) -> 0 | Z57: =IF(N51<1,"",IF(D57>L51,2,IF(D57=L51,1,0))) ->  | AA57: =IF(N54<1,"",IF(H57>L54,2,IF(H57=L54,1,0))) ->  | AB57: =IF(AE51<1,2,IF(AE54<1,2)) -> 2 | AC57: =SUM(Z57:AB57) -> 2 | AD57: =SUM(D57,H57) -> 0 | AE57: =SUM(F57,J57) -> 0 | AF57: =IF(AE57<1," ",ROUNDDOWN(AD57/AE57,3)) ->  | AG57: =IF($CF51=1,$CC51,IF($CF52=1,$CC52,IF($CF53=1,$CC53,IF($CF54=1,$CC54,IF($CF55=1,$CC55,IF($CF56=1,$CC56,IF($CF57=1,$CC57,IF($CF58=1,$CC58)))))))) -> 0 | AH57: =IF($CF51=2,$CC51,IF($CF52=2,$CC52,IF($CF53=2,$CC53,IF($CF54=2,$CC54,IF($CF55=2,$CC55,IF($CF56=2,$CC56,IF($CF57=2,$CC57,IF($CF58=2,$CC58)))))))) -> 0 | AI57: =IF($CF51=3,$CC51,IF($CF52=3,$CC52,IF($CF53=3,$CC53,IF($CF54=3,$CC54,IF($CF55=3,$CC55,IF($CF56=3,$CC56,IF($CF57=3,$CC57,IF($CF58=3,$CC58)))))))) -> 0 | AJ57: =IF($CF51=4,$CC51,IF($CF52=4,$CC52,IF($CF53=4,$CC53,IF($CF54=4,$CC54,IF($CF55=4,$CC55,IF($CF56=4,$CC56,IF($CF57=4,$CC57,IF($CF58=4,$CC58)))))))) -> 0 | AK57: =IF($CF51=5,$CC51,IF($CF52=5,$CC52,IF($CF53=5,$CC53,IF($CF54=5,$CC54,IF($CF55=5,$CC55,IF($CF56=5,$CC56,IF($CF57=5,$CC57,IF($CF58=5,$CC58)))))))) -> 0 | AL57: =IF($CF51=6,$CC51,IF($CF52=6,$CC52,IF($CF53=6,$CC53,IF($CF54=6,$CC54,IF($CF55=6,$CC55,IF($CF56=6,$CC56,IF($CF57=6,$CC57,IF($CF58=6,$CC58)))))))) -> 0 | AM57: =IF($CF51=7,$CC51,IF($CF52=7,$CC52,IF($CF53=7,$CC53,IF($CF54=7,$CC54,IF($CF55=7,$CC55,IF($CF56=7,$CC56,IF($CF57=7,$CC57,IF($CF58=7,$CC58)))))))) -> 0 | AN57: =IF($CF51=8,$CC51,IF($CF52=8,$CC52,IF($CF53=8,$CC53,IF($CF54=8,$CC54,IF($CF55=8,$CC55,IF($CF56=8,$CC56,IF($CF57=8,$CC57,IF($CF58=8,$CC58)))))))) -> 0 | AO57: =RANK(AC57,AC$51:AC$57)*10000000000 -> 10000000000 | AP57: =IF(AE57<1,"",RANK(AF57,AF$51:AF$57)*1000000000) ->  | AQ57: =IF(AD$3<1,"",RANK(AD57,AD$51:AD$57)*100000000) ->  | AR57: =RANK(AG57,AG$51:AG$57)*10000000 -> 10000000 | AS57: =RANK(AH57,AH$51:AH$57)*1000000 -> 1000000 | AT57: =RANK(AI57,AI$51:AI$57)*100000 -> 100000 | AU57: =RANK(AJ57,AJ$51:AJ$57)*10000 -> 10000 | AV57: =RANK(AK57,AK$51:AK$57)*1000 -> 1000 | AW57: =RANK(AL57,AL$51:AL$57)*100 -> 100 | AX57: =RANK(AM57,AM$51:AM$57)*10 -> 10 | AY57: =RANK(AN57,AN$51:AN$57) -> 1 | AZ57: =IF(V57>0,1,0) -> 0 | BA57: =IF(AE57<1,"",SUM(AO57:AZ57)) ->  | BC57: =N52 -> 0 | BD57: 0.01 | BE57: 0.01 | BF57: 7 | BG57: 0.01 | BN57: 0.01 | BP57: =N55 -> 0 | BQ57: 0.01 | BR57: 0.01 | BS57: 7 | BT57: 0.01 | CA57: 0.01 | CC57: =J58 -> 0 | CD57: 0.01 | CE57: 0.01 | CF57: 7 | CG57: 0.01 | CN57: 0.01
BC58: =O52 -> 0 | BD58: 0 | BE58: 0 | BF58: 8 | BN58: 0 | BP58: =O55 -> 0 | BQ58: 0 | BR58: 0 | BS58: 8 | CA58: 0 | CC58: =K58 -> 0 | CD58: 0 | CE58: 0 | CF58: 8 | CN58: 0
B59: =IF(B57="","",VLOOKUP(B57,licens,3,FALSE)) -> 672 | C59: =IF(B57="","",VLOOKUP(B57,licens,4,FALSE)) -> Randers BK | D59: =IF(N51<1," ",IF(J61<1,AF1,ROUNDDOWN(D57/F57,3))) ->  | H59: =IF(N54<1," ",IF(N61<1,AF1,ROUNDDOWN(H57/J57,3))) -> 
H60: =IF($AA$4<1,0,IF(H51>0,1,0)) -> 0 | J60: =IF(H51<1,FALSE,IF(D54<1,FALSE,IF(MAX(H51,D54)<30,0))) -> FALSE
H61: =IF($AA$4<1,0,IF(L51>0,1,0)) -> 0 | J61: =IF(L51<1,FALSE,IF(D57<1,FALSE,IF(MAX(L51,D57)<30,0))) -> FALSE | L61: =IF($AA$4<1,0,IF(L54>0,1,0)) -> 0 | N61: =IF(L54<1,FALSE,IF(H57<1,FALSE,IF(MAX(L54,H57)<30,0))) -> FALSE
A62: Pulje 5:
B63: Licens nr. | C63: Navn | D63: 1 | H63: 2 | L63: 3 | P63: MP med oversider | Q63: Score | R63: Indg | S63: Snit | T63: Serie | U63: Plac. | V63: sæt x ved lige (serier) | W63: Syg / afbud | X63: kampe | Z63: MP | AD63: Score | AE63: Indg. | AF63: Snit | AG63: Serie | AO63: MP | AP63: Snit | AQ63: score | AR63: Serie | AZ63: lige | BA63: I alt
B64: Klub Nr. | C64: Klub
A65: 1 | B65: =lodtrækning!C24 -> 120054 | C65: =IF(B65="","",VLOOKUP(B65,licens,2,FALSE)) -> Thomas Wollerup | D65: Score | F65: Indg. | P65: =IF(AE65<1," ",AC65) ->  | Q65: =IF(AE65<1," ",AD65) ->  | R65: =IF(AE65<1," ",AE65) ->  | S65: =IF(AE65<1," ",AF65) ->  | T65: =IF(AE65<1," ",MAX(H66:O66)) ->  | U65: =IF(AE65<1," ",RANK(BA65,BA$65:BA$71,1)) ->  | X65: =IF(AE65<1,0,2) -> 0 | Z65: =IF(J65<1,"",IF(H65>D68,2,IF(H65=D68,1,0))) ->  | AA65: =IF(N65<1,"",IF(L65>D71,2,IF(L65=D71,1,0))) ->  | AB65: =IF(AE68<1,2,IF(AE71<1,2)) -> 2 | AC65: =SUM(Z65:AB65) -> 2 | AD65: =SUM(H65,L65) -> 0 | AE65: =SUM(J65,N65) -> 0 | AF65: =IF(AE65<1," ",ROUNDDOWN(AD65/AE65,3)) ->  | AG65: =IF($BF65=1,$BC65,IF($BF66=1,$BC66,IF($BF67=1,$BC67,IF($BF68=1,$BC68,IF($BF69=1,$BC69,IF($BF70=1,$BC70,IF($BF71=1,$BC71,IF($BF72=1,$BC72)))))))) -> 0 | AH65: =IF($BF65=2,$BC65,IF($BF66=2,$BC66,IF($BF67=2,$BC67,IF($BF68=2,$BC68,IF($BF69=2,$BC69,IF($BF70=2,$BC70,IF($BF71=2,$BC71,IF($BF72=2,$BC72)))))))) -> 0 | AI65: =IF($BF65=3,$BC65,IF($BF66=3,$BC66,IF($BF67=3,$BC67,IF($BF68=3,$BC68,IF($BF69=3,$BC69,IF($BF70=3,$BC70,IF($BF71=3,$BC71,IF($BF72=3,$BC72)))))))) -> 0 | AJ65: =IF($BF65=4,$BC65,IF($BF66=4,$BC66,IF($BF67=4,$BC67,IF($BF68=4,$BC68,IF($BF69=4,$BC69,IF($BF70=4,$BC70,IF($BF71=4,$BC71,IF($BF72=4,$BC72)))))))) -> 0 | AK65: =IF($BF65=5,$BC65,IF($BF66=5,$BC66,IF($BF67=5,$BC67,IF($BF68=5,$BC68,IF($BF69=5,$BC69,IF($BF70=5,$BC70,IF($BF71=5,$BC71,IF($BF72=5,$BC72)))))))) -> 0 | AL65: =IF($BF65=6,$BC65,IF($BF66=6,$BC66,IF($BF67=6,$BC67,IF($BF68=6,$BC68,IF($BF69=6,$BC69,IF($BF70=6,$BC70,IF($BF71=6,$BC71,IF($BF72=6,$BC72)))))))) -> 0 | AM65: =IF($BF65=7,$BC65,IF($BF66=7,$BC66,IF($BF67=7,$BC67,IF($BF68=7,$BC68,IF($BF69=7,$BC69,IF($BF70=7,$BC70,IF($BF71=7,$BC71,IF($BF72=7,$BC72)))))))) -> 0 | AN65: =IF($BF65=8,$BC65,IF($BF66=8,$BC66,IF($BF67=8,$BC67,IF($BF68=8,$BC68,IF($BF69=8,$BC69,IF($BF70=8,$BC70,IF($BF71=8,$BC71,IF($BF72=8,$BC72)))))))) -> 0 | AO65: =RANK(AC65,AC$65:AC$71)*10000000000 -> 10000000000 | AP65: =IF(AE65<1,"",RANK(AF65,AF$65:AF$71)*1000000000) ->  | AQ65: =IF(AD$3<1,"",RANK(AD65,AD$65:AD$71)*100000000) ->  | AR65: =RANK(AG65,AG$65:AG$71)*10000000 -> 10000000 | AS65: =RANK(AH65,AH$65:AH$71)*1000000 -> 1000000 | AT65: =RANK(AI65,AI$65:AI$71)*100000 -> 100000 | AU65: =RANK(AJ65,AJ$65:AJ$71)*10000 -> 10000 | AV65: =RANK(AK65,AK$65:AK$71)*1000 -> 1000 | AW65: =RANK(AL65,AL$65:AL$71)*100 -> 100 | AX65: =RANK(AM65,AM$65:AM$71)*10 -> 10 | AY65: =RANK(AN65,AN$65:AN$71) -> 1 | AZ65: =IF(V65>0,1,0) -> 0 | BA65: =IF(AE65<1,"",SUM(AO65:AZ65)) ->  | BC65: =H66 -> 0 | BD65: =BN65 -> 0.07 | BE65: =SUM(BC65:BD65) -> 0.07 | BF65: =RANK(BE65,BE$65:BE$72) -> 1 | BG65: =IF($BC65=$BC66,0.01) -> 0.01 | BH65: =IF($BC65=$BC67,0.01) -> 0.01 | BI65: =IF($BC65=$BC68,0.01) -> 0.01 | BJ65: =IF($BC65=$BC69,0.01) -> 0.01 | BK65: =IF($BC65=$BC70,0.01) -> 0.01 | BL65: =IF($BC65=$BC71,0.01) -> 0.01 | BM65: =IF($BC65=$BC72,0.01) -> 0.01 | BN65: =SUM(BG65:BM65) -> 0.07 | BP65: =D69 -> 0 | BQ65: =CA65 -> 0.07 | BR65: =SUM(BP65:BQ65) -> 0.07 | BS65: =RANK(BR65,BR$65:BR$72) -> 1 | BT65: =IF($BP65=$BP66,0.01) -> 0.01 | BU65: =IF($BP65=$BP67,0.01) -> 0.01 | BV65: =IF($BP65=$BP68,0.01) -> 0.01 | BW65: =IF($BP65=$BP69,0.01) -> 0.01 | BX65: =IF($BP65=$BP70,0.01) -> 0.01 | BY65: =IF($BP65=$BP71,0.01) -> 0.01 | BZ65: =IF($BP65=$BP72,0.01) -> 0.01 | CA65: =SUM(BT65:BZ65) -> 0.07 | CC65: =D72 -> 0 | CD65: =CN65 -> 0.07 | CE65: =SUM(CC65:CD65) -> 0.07 | CF65: =RANK(CE65,CE$65:CE$72) -> 1 | CG65: =IF($CC65=$CC66,0.01) -> 0.01 | CH65: =IF($CC65=$CC67,0.01) -> 0.01 | CI65: =IF($CC65=$CC68,0.01) -> 0.01 | CJ65: =IF($CC65=$CC69,0.01) -> 0.01 | CK65: =IF($CC65=$CC70,0.01) -> 0.01 | CL65: =IF($CC65=$CC71,0.01) -> 0.01 | CM65: =IF($CC65=$CC72,0.01) -> 0.01 | CN65: =SUM(CG65:CM65) -> 0.07
D66: 4 største serier | BC66: =I66 -> 0 | BD66: 0.06 | BE66: =SUM(BC66:BD66) -> 0.06 | BF66: =RANK(BE66,BE$65:BE$72) -> 2 | BG66: 0.01 | BH66: 0.01 | BI66: =IF($BC66=$BC69,0.01) -> 0.01 | BJ66: =IF($BC66=$BC70,0.01) -> 0.01 | BK66: =IF($BC66=$BC71,0.01) -> 0.01 | BL66: =IF($BC66=$BC72,0.01) -> 0.01 | BN66: =SUM(BG66:BM66) -> 0.06 | BP66: =E69 -> 0 | BQ66: 0.06 | BR66: =SUM(BP66:BQ66) -> 0.06 | BS66: =RANK(BR66,BR$65:BR$72) -> 2 | BT66: =IF($BP66=$BP67,0.01) -> 0.01 | BU66: 0.01 | BV66: =IF($BP66=$BP69,0.01) -> 0.01 | BW66: =IF($BP66=$BP70,0.01) -> 0.01 | BX66: =IF($BP66=$BP71,0.01) -> 0.01 | BY66: =IF($BP66=$BP72,0.01) -> 0.01 | CA66: =SUM(BT66:BZ66) -> 0.06 | CC66: =E72 -> 0 | CD66: 0.06 | CE66: =SUM(CC66:CD66) -> 0.06 | CF66: =RANK(CE66,CE$65:CE$72) -> 2 | CG66: =IF($CC66=$CC67,0.01) -> 0.01 | CH66: 0.01 | CI66: =IF($CC66=$CC69,0.01) -> 0.01 | CJ66: =IF($CC66=$CC70,0.01) -> 0.01 | CK66: =IF($CC66=$CC71,0.01) -> 0.01 | CL66: =IF($CC66=$CC72,0.01) -> 0.01 | CN66: =SUM(CG66:CM66) -> 0.06
B67: =IF(B65="","",VLOOKUP(B65,licens,3,FALSE)) -> 923 | C67: =IF(B65="","",VLOOKUP(B65,licens,4,FALSE)) -> Varde BK | D67: snit | H67: =IF(J65<1," ",IF(J74<1,AF1,ROUNDDOWN(H65/J65,3))) ->  | L67: =IF(N65<1," ",IF(J75<1,AF1,ROUNDDOWN(L65/N65,3))) ->  | BC67: =J66 -> 0 | BD67: 0.05 | BE67: 0.05 | BF67: 3 | BG67: 0.01 | BH67: 0.01 | BI67: =IF($BC67=$BC70,0.01) -> 0.01 | BJ67: =IF($BC67=$BC71,0.01) -> 0.01 | BK67: =IF($BC67=$BC72,0.01) -> 0.01 | BN67: 0.05 | BP67: =F69 -> 0 | BQ67: 0.05 | BR67: 0.05 | BS67: 3 | BT67: 0.01 | BU67: 0.01 | BV67: =IF($BP67=$BP70,0.01) -> 0.01 | BW67: =IF($BP67=$BP71,0.01) -> 0.01 | BX67: =IF($BP67=$BP72,0.01) -> 0.01 | CA67: 0.05 | CC67: =F72 -> 0 | CD67: 0.05 | CE67: 0.05 | CF67: 3 | CG67: 0.01 | CH67: 0.01 | CI67: =IF($CC67=$CC70,0.01) -> 0.01 | CJ67: =IF($CC67=$CC71,0.01) -> 0.01 | CK67: =IF($CC67=$CC72,0.01) -> 0.01 | CN67: 0.05
A68: 2 | B68: =lodtrækning!C25 -> 115742 | C68: =IF(B68="","",VLOOKUP(B68,licens,2,FALSE)) -> Kim Nielsen | F68: =IF(J65<1," ",J65) ->  | P68: =IF(AE68<1," ",AC68) ->  | Q68: =IF(AE68<1," ",AD68) ->  | R68: =IF(AE68<1," ",AE68) ->  | S68: =IF(AE68<1," ",AF68) ->  | T68: =IF(AE68<1," ",MAX(D69:O69)) ->  | U68: =IF(AE68<1," ",RANK(BA68,BA$65:BA$71,1)) ->  | X68: =IF(AE68<1,0,2) -> 0 | Z68: =IF(J65<1,"",IF(D68>H65,2,IF(D68=H65,1,0))) ->  | AA68: =IF(N68<1,"",IF(L68>H71,2,IF(L68=H71,1,0))) ->  | AB68: =IF(AE65<1,2,IF(AE71<1,2)) -> 2 | AC68: =SUM(Z68:AB68) -> 2 | AD68: =SUM(D68,L68) -> 0 | AE68: =SUM(F68,N68) -> 0 | AF68: =IF(AE68<1," ",ROUNDDOWN(AD68/AE68,3)) ->  | AG68: =IF($BS65=1,$BP65,IF($BS66=1,$BP66,IF($BS67=1,$BP67,IF($BS68=1,$BP68,IF($BS69=1,$BP69,IF($BS70=1,$BP70,IF($BS71=1,$BP71,IF($BS72=1,$BP72)))))))) -> 0 | AH68: =IF($BS65=2,$BP65,IF($BS66=2,$BP66,IF($BS67=2,$BP67,IF($BS68=2,$BP68,IF($BS69=2,$BP69,IF($BS70=2,$BP70,IF($BS71=2,$BP71,IF($BS72=2,$BP72)))))))) -> 0 | AI68: =IF($BS65=3,$BP65,IF($BS66=3,$BP66,IF($BS67=3,$BP67,IF($BS68=3,$BP68,IF($BS69=3,$BP69,IF($BS70=3,$BP70,IF($BS71=3,$BP71,IF($BS72=3,$BP72)))))))) -> 0 | AJ68: =IF($BS65=4,$BP65,IF($BS66=4,$BP66,IF($BS67=4,$BP67,IF($BS68=4,$BP68,IF($BS69=4,$BP69,IF($BS70=4,$BP70,IF($BS71=4,$BP71,IF($BS72=4,$BP72)))))))) -> 0 | AK68: =IF($BS65=5,$BP65,IF($BS66=5,$BP66,IF($BS67=5,$BP67,IF($BS68=5,$BP68,IF($BS69=5,$BP69,IF($BS70=5,$BP70,IF($BS71=5,$BP71,IF($BS72=5,$BP72)))))))) -> 0 | AL68: =IF($BS65=6,$BP65,IF($BS66=6,$BP66,IF($BS67=6,$BP67,IF($BS68=6,$BP68,IF($BS69=6,$BP69,IF($BS70=6,$BP70,IF($BS71=6,$BP71,IF($BS72=6,$BP72)))))))) -> 0 | AM68: =IF($BS65=7,$BP65,IF($BS66=7,$BP66,IF($BS67=7,$BP67,IF($BS68=7,$BP68,IF($BS69=7,$BP69,IF($BS70=7,$BP70,IF($BS71=7,$BP71,IF($BS72=7,$BP72)))))))) -> 0 | AN68: =IF($BS65=8,$BP65,IF($BS66=8,$BP66,IF($BS67=8,$BP67,IF($BS68=8,$BP68,IF($BS69=8,$BP69,IF($BS70=8,$BP70,IF($BS71=8,$BP71,IF($BS72=8,$BP72)))))))) -> 0 | AO68: =RANK(AC68,AC$65:AC$71)*10000000000 -> 10000000000 | AP68: =IF(AE68<1,"",RANK(AF68,AF$65:AF$71)*1000000000) ->  | AQ68: =IF(AD$3<1,"",RANK(AD68,AD$65:AD$71)*100000000) ->  | AR68: =RANK(AG68,AG$65:AG$71)*10000000 -> 10000000 | AS68: =RANK(AH68,AH$65:AH$71)*1000000 -> 1000000 | AT68: =RANK(AI68,AI$65:AI$71)*100000 -> 100000 | AU68: =RANK(AJ68,AJ$65:AJ$71)*10000 -> 10000 | AV68: =RANK(AK68,AK$65:AK$71)*1000 -> 1000 | AW68: =RANK(AL68,AL$65:AL$71)*100 -> 100 | AX68: =RANK(AM68,AM$65:AM$71)*10 -> 10 | AY68: =RANK(AN68,AN$65:AN$71) -> 1 | AZ68: =IF(V68>0,1,0) -> 0 | BA68: =IF(AE68<1,"",SUM(AO68:AZ68)) ->  | BC68: =K66 -> 0 | BD68: 0.04 | BE68: 0.04 | BF68: 4 | BG68: 0.01 | BH68: 0.01 | BI68: =IF($BC68=$BC71,0.01) -> 0.01 | BJ68: =IF($BC68=$BC72,0.01) -> 0.01 | BN68: 0.04 | BP68: =G69 -> 0 | BQ68: 0.04 | BR68: 0.04 | BS68: 4 | BT68: 0.01 | BU68: 0.01 | BV68: =IF($BP68=$BP71,0.01) -> 0.01 | BW68: =IF($BP68=$BP72,0.01) -> 0.01 | CA68: 0.04 | CC68: =G72 -> 0 | CD68: 0.04 | CE68: 0.04 | CF68: 4 | CG68: 0.01 | CH68: 0.01 | CI68: =IF($CC68=$CC71,0.01) -> 0.01 | CJ68: =IF($CC68=$CC72,0.01) -> 0.01 | CN68: 0.04
BC69: =L66 -> 0 | BD69: 0.03 | BE69: 0.03 | BF69: 5 | BG69: 0.01 | BH69: 0.01 | BI69: =IF($BC69=$BC72,0.01) -> 0.01 | BN69: 0.03 | BP69: =L69 -> 0 | BQ69: 0.03 | BR69: 0.03 | BS69: 5 | BT69: 0.01 | BU69: 0.01 | BV69: =IF($BP69=$BP72,0.01) -> 0.01 | CA69: 0.03 | CC69: =H72 -> 0 | CD69: 0.03 | CE69: 0.03 | CF69: 5 | CG69: 0.01 | CH69: 0.01 | CI69: =IF($CC69=$CC72,0.01) -> 0.01 | CN69: 0.03
B70: =IF(B68="","",VLOOKUP(B68,licens,3,FALSE)) -> 631 | C70: =IF(B68="","",VLOOKUP(B68,licens,4,FALSE)) -> Fredericia BK | D70: =IF(J65<1," ",IF(J74<1,AF1,ROUNDDOWN(D68/F68,3))) ->  | L70: =IF(N68<1," ",IF(N75<1,AF1,ROUNDDOWN(L68/N68,3))) ->  | BC70: =M66 -> 0 | BD70: 0.02 | BE70: 0.02 | BF70: 6 | BG70: 0.01 | BH70: 0.01 | BN70: 0.02 | BP70: =M69 -> 0 | BQ70: 0.02 | BR70: 0.02 | BS70: 6 | BT70: 0.01 | BU70: 0.01 | CA70: 0.02 | CC70: =I72 -> 0 | CD70: 0.02 | CE70: 0.02 | CF70: 6 | CG70: 0.01 | CH70: 0.01 | CN70: 0.02
A71: 3 | B71: =lodtrækning!C26 ->  | C71: =IF(B71="","",VLOOKUP(B71,licens,2,FALSE)) ->  | F71: =IF(N65<1," ",N65) ->  | J71: =IF(N68<1," ",N68) ->  | P71: =IF(AE71<1," ",AC71) ->  | Q71: =IF(AE71<1," ",AD71) ->  | R71: =IF(AE71<1," ",AE71) ->  | S71: =IF(AE71<1," ",AF71) ->  | T71: =IF(AE71<1," ",MAX(D72:K72)) ->  | U71: =IF(AE71<1," ",RANK(BA71,BA$65:BA$71,1)) ->  | X71: =IF(AE71<1,0,2) -> 0 | Z71: =IF(N65<1,"",IF(D71>L65,2,IF(D71=L65,1,0))) ->  | AA71: =IF(N68<1,"",IF(H71>L68,2,IF(H71=L68,1,0))) ->  | AB71: =IF(AE65<1,2,IF(AE68<1,2)) -> 2 | AC71: =SUM(Z71:AB71) -> 2 | AD71: =SUM(D71,H71) -> 0 | AE71: =SUM(F71,J71) -> 0 | AF71: =IF(AE71<1," ",ROUNDDOWN(AD71/AE71,3)) ->  | AG71: =IF($CF65=1,$CC65,IF($CF66=1,$CC66,IF($CF67=1,$CC67,IF($CF68=1,$CC68,IF($CF69=1,$CC69,IF($CF70=1,$CC70,IF($CF71=1,$CC71,IF($CF72=1,$CC72)))))))) -> 0 | AH71: =IF($CF65=2,$CC65,IF($CF66=2,$CC66,IF($CF67=2,$CC67,IF($CF68=2,$CC68,IF($CF69=2,$CC69,IF($CF70=2,$CC70,IF($CF71=2,$CC71,IF($CF72=2,$CC72)))))))) -> 0 | AI71: =IF($CF65=3,$CC65,IF($CF66=3,$CC66,IF($CF67=3,$CC67,IF($CF68=3,$CC68,IF($CF69=3,$CC69,IF($CF70=3,$CC70,IF($CF71=3,$CC71,IF($CF72=3,$CC72)))))))) -> 0 | AJ71: =IF($CF65=4,$CC65,IF($CF66=4,$CC66,IF($CF67=4,$CC67,IF($CF68=4,$CC68,IF($CF69=4,$CC69,IF($CF70=4,$CC70,IF($CF71=4,$CC71,IF($CF72=4,$CC72)))))))) -> 0 | AK71: =IF($CF65=5,$CC65,IF($CF66=5,$CC66,IF($CF67=5,$CC67,IF($CF68=5,$CC68,IF($CF69=5,$CC69,IF($CF70=5,$CC70,IF($CF71=5,$CC71,IF($CF72=5,$CC72)))))))) -> 0 | AL71: =IF($CF65=6,$CC65,IF($CF66=6,$CC66,IF($CF67=6,$CC67,IF($CF68=6,$CC68,IF($CF69=6,$CC69,IF($CF70=6,$CC70,IF($CF71=6,$CC71,IF($CF72=6,$CC72)))))))) -> 0 | AM71: =IF($CF65=7,$CC65,IF($CF66=7,$CC66,IF($CF67=7,$CC67,IF($CF68=7,$CC68,IF($CF69=7,$CC69,IF($CF70=7,$CC70,IF($CF71=7,$CC71,IF($CF72=7,$CC72)))))))) -> 0 | AN71: =IF($CF65=8,$CC65,IF($CF66=8,$CC66,IF($CF67=8,$CC67,IF($CF68=8,$CC68,IF($CF69=8,$CC69,IF($CF70=8,$CC70,IF($CF71=8,$CC71,IF($CF72=8,$CC72)))))))) -> 0 | AO71: =RANK(AC71,AC$65:AC$71)*10000000000 -> 10000000000 | AP71: =IF(AE71<1,"",RANK(AF71,AF$65:AF$71)*1000000000) ->  | AQ71: =IF(AD$3<1,"",RANK(AD71,AD$65:AD$71)*100000000) ->  | AR71: =RANK(AG71,AG$65:AG$71)*10000000 -> 10000000 | AS71: =RANK(AH71,AH$65:AH$71)*1000000 -> 1000000 | AT71: =RANK(AI71,AI$65:AI$71)*100000 -> 100000 | AU71: =RANK(AJ71,AJ$65:AJ$71)*10000 -> 10000 | AV71: =RANK(AK71,AK$65:AK$71)*1000 -> 1000 | AW71: =RANK(AL71,AL$65:AL$71)*100 -> 100 | AX71: =RANK(AM71,AM$65:AM$71)*10 -> 10 | AY71: =RANK(AN71,AN$65:AN$71) -> 1 | AZ71: =IF(V71>0,1,0) -> 0 | BA71: =IF(AE71<1,"",SUM(AO71:AZ71)) ->  | BC71: =N66 -> 0 | BD71: 0.01 | BE71: 0.01 | BF71: 7 | BG71: 0.01 | BN71: 0.01 | BP71: =N69 -> 0 | BQ71: 0.01 | BR71: 0.01 | BS71: 7 | BT71: 0.01 | CA71: 0.01 | CC71: =J72 -> 0 | CD71: 0.01 | CE71: 0.01 | CF71: 7 | CG71: 0.01 | CN71: 0.01
BC72: =O66 -> 0 | BD72: 0 | BE72: 0 | BF72: 8 | BN72: 0 | BP72: =O69 -> 0 | BQ72: 0 | BR72: 0 | BS72: 8 | CA72: 0 | CC72: =K72 -> 0 | CD72: 0 | CE72: 0 | CF72: 8 | CN72: 0
B73: =IF(B71="","",VLOOKUP(B71,licens,3,FALSE)) ->  | C73: =IF(B71="","",VLOOKUP(B71,licens,4,FALSE)) ->  | D73: =IF(N65<1," ",IF(J75<1,AF1,ROUNDDOWN(D71/F71,3))) ->  | H73: =IF(N68<1," ",IF(N75<1,AF1,ROUNDDOWN(H71/J71,3))) -> 
H74: =IF($AA$4<1,0,IF(H65>0,1,0)) -> 0 | J74: =IF(H65<1,FALSE,IF(D68<1,FALSE,IF(MAX(H65,D68)<30,0))) -> FALSE
H75: =IF($AA$4<1,0,IF(L65>0,1,0)) -> 0 | J75: =IF(L65<1,FALSE,IF(D71<1,FALSE,IF(MAX(L65,D71)<30,0))) -> FALSE | L75: =IF($AA$4<1,0,IF(L68>0,1,0)) -> 0 | N75: =IF(L68<1,FALSE,IF(H71<1,FALSE,IF(MAX(L68,H71)<30,0))) -> FALSE
A76: Pulje 6:
B77: Licens nr. | C77: Navn | D77: 1 | H77: 2 | L77: 3 | P77: MP med oversider | Q77: Score | R77: Indg | S77: Snit | T77: Serie | U77: Plac. | V77: sæt x ved lige (serier) | W77: Syg / afbud | X77: kampe | Z77: MP | AD77: Score | AE77: Indg. | AF77: Snit | AG77: Serie | AO77: MP | AP77: Snit | AQ77: score | AR77: Serie | AZ77: lige | BA77: I alt
B78: Klub Nr. | C78: Klub
A79: 1 | B79: =lodtrækning!C28 -> 120905 | C79: =IF(B79="","",VLOOKUP(B79,licens,2,FALSE)) -> Daniel Kristiansen | D79: Score | F79: Indg. | P79: =IF(AE79<1," ",AC79) ->  | Q79: =IF(AE79<1," ",AD79) ->  | R79: =IF(AE79<1," ",AE79) ->  | S79: =IF(AE79<1," ",AF79) ->  | T79: =IF(AE79<1," ",MAX(H80:O80)) ->  | U79: =IF(AE79<1," ",RANK(BA79,BA$79:BA$85,1)) ->  | X79: =IF(AE79<1,0,2) -> 0 | Z79: =IF(J79<1,"",IF(H79>D82,2,IF(H79=D82,1,0))) ->  | AA79: =IF(N79<1,"",IF(L79>D85,2,IF(L79=D85,1,0))) ->  | AB79: =IF(AE82<1,2,IF(AE85<1,2)) -> 2 | AC79: =SUM(Z79:AB79) -> 2 | AD79: =SUM(H79,L79) -> 0 | AE79: =SUM(J79,N79) -> 0 | AF79: =IF(AE79<1," ",ROUNDDOWN(AD79/AE79,3)) ->  | AG79: =IF($BF79=1,$BC79,IF($BF80=1,$BC80,IF($BF81=1,$BC81,IF($BF82=1,$BC82,IF($BF83=1,$BC83,IF($BF84=1,$BC84,IF($BF85=1,$BC85,IF($BF86=1,$BC86)))))))) -> 0 | AH79: =IF($BF79=2,$BC79,IF($BF80=2,$BC80,IF($BF81=2,$BC81,IF($BF82=2,$BC82,IF($BF83=2,$BC83,IF($BF84=2,$BC84,IF($BF85=2,$BC85,IF($BF86=2,$BC86)))))))) -> 0 | AI79: =IF($BF79=3,$BC79,IF($BF80=3,$BC80,IF($BF81=3,$BC81,IF($BF82=3,$BC82,IF($BF83=3,$BC83,IF($BF84=3,$BC84,IF($BF85=3,$BC85,IF($BF86=3,$BC86)))))))) -> 0 | AJ79: =IF($BF79=4,$BC79,IF($BF80=4,$BC80,IF($BF81=4,$BC81,IF($BF82=4,$BC82,IF($BF83=4,$BC83,IF($BF84=4,$BC84,IF($BF85=4,$BC85,IF($BF86=4,$BC86)))))))) -> 0 | AK79: =IF($BF79=5,$BC79,IF($BF80=5,$BC80,IF($BF81=5,$BC81,IF($BF82=5,$BC82,IF($BF83=5,$BC83,IF($BF84=5,$BC84,IF($BF85=5,$BC85,IF($BF86=5,$BC86)))))))) -> 0 | AL79: =IF($BF79=6,$BC79,IF($BF80=6,$BC80,IF($BF81=6,$BC81,IF($BF82=6,$BC82,IF($BF83=6,$BC83,IF($BF84=6,$BC84,IF($BF85=6,$BC85,IF($BF86=6,$BC86)))))))) -> 0 | AM79: =IF($BF79=7,$BC79,IF($BF80=7,$BC80,IF($BF81=7,$BC81,IF($BF82=7,$BC82,IF($BF83=7,$BC83,IF($BF84=7,$BC84,IF($BF85=7,$BC85,IF($BF86=7,$BC86)))))))) -> 0 | AN79: =IF($BF79=8,$BC79,IF($BF80=8,$BC80,IF($BF81=8,$BC81,IF($BF82=8,$BC82,IF($BF83=8,$BC83,IF($BF84=8,$BC84,IF($BF85=8,$BC85,IF($BF86=8,$BC86)))))))) -> 0 | AO79: =RANK(AC79,AC$79:AC$85)*10000000000 -> 10000000000 | AP79: =IF(AE79<1,"",RANK(AF79,AF$79:AF$85)*1000000000) ->  | AQ79: =IF(AD$3<1,"",RANK(AD79,AD$79:AD$85)*100000000) ->  | AR79: =RANK(AG79,AG$79:AG$85)*10000000 -> 10000000 | AS79: =RANK(AH79,AH$79:AH$85)*1000000 -> 1000000 | AT79: =RANK(AI79,AI$79:AI$85)*100000 -> 100000 | AU79: =RANK(AJ79,AJ$79:AJ$85)*10000 -> 10000 | AV79: =RANK(AK79,AK$79:AK$85)*1000 -> 1000 | AW79: =RANK(AL79,AL$79:AL$85)*100 -> 100 | AX79: =RANK(AM79,AM$79:AM$85)*10 -> 10 | AY79: =RANK(AN79,AN$79:AN$85) -> 1 | AZ79: =IF(V79>0,1,0) -> 0 | BA79: =IF(AE79<1,"",SUM(AO79:AZ79)) ->  | BC79: =H80 -> 0 | BD79: =BN79 -> 0.07 | BE79: =SUM(BC79:BD79) -> 0.07 | BF79: =RANK(BE79,BE$79:BE$86) -> 1 | BG79: =IF($BC79=$BC80,0.01) -> 0.01 | BH79: =IF($BC79=$BC81,0.01) -> 0.01 | BI79: =IF($BC79=$BC82,0.01) -> 0.01 | BJ79: =IF($BC79=$BC83,0.01) -> 0.01 | BK79: =IF($BC79=$BC84,0.01) -> 0.01 | BL79: =IF($BC79=$BC85,0.01) -> 0.01 | BM79: =IF($BC79=$BC86,0.01) -> 0.01 | BN79: =SUM(BG79:BM79) -> 0.07 | BP79: =D83 -> 0 | BQ79: =CA79 -> 0.07 | BR79: =SUM(BP79:BQ79) -> 0.07 | BS79: =RANK(BR79,BR$79:BR$86) -> 1 | BT79: =IF($BP79=$BP80,0.01) -> 0.01 | BU79: =IF($BP79=$BP81,0.01) -> 0.01 | BV79: =IF($BP79=$BP82,0.01) -> 0.01 | BW79: =IF($BP79=$BP83,0.01) -> 0.01 | BX79: =IF($BP79=$BP84,0.01) -> 0.01 | BY79: =IF($BP79=$BP85,0.01) -> 0.01 | BZ79: =IF($BP79=$BP86,0.01) -> 0.01 | CA79: =SUM(BT79:BZ79) -> 0.07 | CC79: =D86 -> 0 | CD79: =CN79 -> 0.07 | CE79: =SUM(CC79:CD79) -> 0.07 | CF79: =RANK(CE79,CE$79:CE$86) -> 1 | CG79: =IF($CC79=$CC80,0.01) -> 0.01 | CH79: =IF($CC79=$CC81,0.01) -> 0.01 | CI79: =IF($CC79=$CC82,0.01) -> 0.01 | CJ79: =IF($CC79=$CC83,0.01) -> 0.01 | CK79: =IF($CC79=$CC84,0.01) -> 0.01 | CL79: =IF($CC79=$CC85,0.01) -> 0.01 | CM79: =IF($CC79=$CC86,0.01) -> 0.01 | CN79: =SUM(CG79:CM79) -> 0.07
D80: 4 største serier | BC80: =I80 -> 0 | BD80: 0.06 | BE80: =SUM(BC80:BD80) -> 0.06 | BF80: =RANK(BE80,BE$79:BE$86) -> 2 | BG80: 0.01 | BH80: 0.01 | BI80: =IF($BC80=$BC83,0.01) -> 0.01 | BJ80: =IF($BC80=$BC84,0.01) -> 0.01 | BK80: =IF($BC80=$BC85,0.01) -> 0.01 | BL80: =IF($BC80=$BC86,0.01) -> 0.01 | BN80: =SUM(BG80:BM80) -> 0.06 | BP80: =E83 -> 0 | BQ80: 0.06 | BR80: =SUM(BP80:BQ80) -> 0.06 | BS80: =RANK(BR80,BR$79:BR$86) -> 2 | BT80: =IF($BP80=$BP81,0.01) -> 0.01 | BU80: 0.01 | BV80: =IF($BP80=$BP83,0.01) -> 0.01 | BW80: =IF($BP80=$BP84,0.01) -> 0.01 | BX80: =IF($BP80=$BP85,0.01) -> 0.01 | BY80: =IF($BP80=$BP86,0.01) -> 0.01 | CA80: =SUM(BT80:BZ80) -> 0.06 | CC80: =E86 -> 0 | CD80: 0.06 | CE80: =SUM(CC80:CD80) -> 0.06 | CF80: =RANK(CE80,CE$79:CE$86) -> 2 | CG80: =IF($CC80=$CC81,0.01) -> 0.01 | CH80: 0.01 | CI80: =IF($CC80=$CC83,0.01) -> 0.01 | CJ80: =IF($CC80=$CC84,0.01) -> 0.01 | CK80: =IF($CC80=$CC85,0.01) -> 0.01 | CL80: =IF($CC80=$CC86,0.01) -> 0.01 | CN80: =SUM(CG80:CM80) -> 0.06
B81: =IF(B79="","",VLOOKUP(B79,licens,3,FALSE)) -> 923 | C81: =IF(B79="","",VLOOKUP(B79,licens,4,FALSE)) -> Varde BK | D81: snit | H81: =IF(J79<1," ",IF(J88<1,AF1,ROUNDDOWN(H79/J79,3))) ->  | L81: =IF(N79<1," ",IF(J89<1,AF1,ROUNDDOWN(L79/N79,3))) ->  | BC81: =J80 -> 0 | BD81: 0.05 | BE81: 0.05 | BF81: 3 | BG81: 0.01 | BH81: 0.01 | BI81: =IF($BC81=$BC84,0.01) -> 0.01 | BJ81: =IF($BC81=$BC85,0.01) -> 0.01 | BK81: =IF($BC81=$BC86,0.01) -> 0.01 | BN81: 0.05 | BP81: =F83 -> 0 | BQ81: 0.05 | BR81: 0.05 | BS81: 3 | BT81: 0.01 | BU81: 0.01 | BV81: =IF($BP81=$BP84,0.01) -> 0.01 | BW81: =IF($BP81=$BP85,0.01) -> 0.01 | BX81: =IF($BP81=$BP86,0.01) -> 0.01 | CA81: 0.05 | CC81: =F86 -> 0 | CD81: 0.05 | CE81: 0.05 | CF81: 3 | CG81: 0.01 | CH81: 0.01 | CI81: =IF($CC81=$CC84,0.01) -> 0.01 | CJ81: =IF($CC81=$CC85,0.01) -> 0.01 | CK81: =IF($CC81=$CC86,0.01) -> 0.01 | CN81: 0.05
A82: 2 | B82: =lodtrækning!C29 ->  | C82: =IF(B82="","",VLOOKUP(B82,licens,2,FALSE)) ->  | F82: =IF(J79<1," ",J79) ->  | P82: =IF(AE82<1," ",AC82) ->  | Q82: =IF(AE82<1," ",AD82) ->  | R82: =IF(AE82<1," ",AE82) ->  | S82: =IF(AE82<1," ",AF82) ->  | T82: =IF(AE82<1," ",MAX(D83:O83)) ->  | U82: =IF(AE82<1," ",RANK(BA82,BA$79:BA$85,1)) ->  | X82: =IF(AE82<1,0,2) -> 0 | Z82: =IF(J79<1,"",IF(D82>H79,2,IF(D82=H79,1,0))) ->  | AA82: =IF(N82<1,"",IF(L82>H85,2,IF(L82=H85,1,0))) ->  | AB82: =IF(AE79<1,2,IF(AE85<1,2)) -> 2 | AC82: =SUM(Z82:AB82) -> 2 | AD82: =SUM(D82,L82) -> 0 | AE82: =SUM(F82,N82) -> 0 | AF82: =IF(AE82<1," ",ROUNDDOWN(AD82/AE82,3)) ->  | AG82: =IF($BS79=1,$BP79,IF($BS80=1,$BP80,IF($BS81=1,$BP81,IF($BS82=1,$BP82,IF($BS83=1,$BP83,IF($BS84=1,$BP84,IF($BS85=1,$BP85,IF($BS86=1,$BP86)))))))) -> 0 | AH82: =IF($BS79=2,$BP79,IF($BS80=2,$BP80,IF($BS81=2,$BP81,IF($BS82=2,$BP82,IF($BS83=2,$BP83,IF($BS84=2,$BP84,IF($BS85=2,$BP85,IF($BS86=2,$BP86)))))))) -> 0 | AI82: =IF($BS79=3,$BP79,IF($BS80=3,$BP80,IF($BS81=3,$BP81,IF($BS82=3,$BP82,IF($BS83=3,$BP83,IF($BS84=3,$BP84,IF($BS85=3,$BP85,IF($BS86=3,$BP86)))))))) -> 0 | AJ82: =IF($BS79=4,$BP79,IF($BS80=4,$BP80,IF($BS81=4,$BP81,IF($BS82=4,$BP82,IF($BS83=4,$BP83,IF($BS84=4,$BP84,IF($BS85=4,$BP85,IF($BS86=4,$BP86)))))))) -> 0 | AK82: =IF($BS79=5,$BP79,IF($BS80=5,$BP80,IF($BS81=5,$BP81,IF($BS82=5,$BP82,IF($BS83=5,$BP83,IF($BS84=5,$BP84,IF($BS85=5,$BP85,IF($BS86=5,$BP86)))))))) -> 0 | AL82: =IF($BS79=6,$BP79,IF($BS80=6,$BP80,IF($BS81=6,$BP81,IF($BS82=6,$BP82,IF($BS83=6,$BP83,IF($BS84=6,$BP84,IF($BS85=6,$BP85,IF($BS86=6,$BP86)))))))) -> 0 | AM82: =IF($BS79=7,$BP79,IF($BS80=7,$BP80,IF($BS81=7,$BP81,IF($BS82=7,$BP82,IF($BS83=7,$BP83,IF($BS84=7,$BP84,IF($BS85=7,$BP85,IF($BS86=7,$BP86)))))))) -> 0 | AN82: =IF($BS79=8,$BP79,IF($BS80=8,$BP80,IF($BS81=8,$BP81,IF($BS82=8,$BP82,IF($BS83=8,$BP83,IF($BS84=8,$BP84,IF($BS85=8,$BP85,IF($BS86=8,$BP86)))))))) -> 0 | AO82: =RANK(AC82,AC$79:AC$85)*10000000000 -> 10000000000 | AP82: =IF(AE82<1,"",RANK(AF82,AF$79:AF$85)*1000000000) ->  | AQ82: =IF(AD$3<1,"",RANK(AD82,AD$79:AD$85)*100000000) ->  | AR82: =RANK(AG82,AG$79:AG$85)*10000000 -> 10000000 | AS82: =RANK(AH82,AH$79:AH$85)*1000000 -> 1000000 | AT82: =RANK(AI82,AI$79:AI$85)*100000 -> 100000 | AU82: =RANK(AJ82,AJ$79:AJ$85)*10000 -> 10000 | AV82: =RANK(AK82,AK$79:AK$85)*1000 -> 1000 | AW82: =RANK(AL82,AL$79:AL$85)*100 -> 100 | AX82: =RANK(AM82,AM$79:AM$85)*10 -> 10 | AY82: =RANK(AN82,AN$79:AN$85) -> 1 | AZ82: =IF(V82>0,1,0) -> 0 | BA82: =IF(AE82<1,"",SUM(AO82:AZ82)) ->  | BC82: =K80 -> 0 | BD82: 0.04 | BE82: 0.04 | BF82: 4 | BG82: 0.01 | BH82: 0.01 | BI82: =IF($BC82=$BC85,0.01) -> 0.01 | BJ82: =IF($BC82=$BC86,0.01) -> 0.01 | BN82: 0.04 | BP82: =G83 -> 0 | BQ82: 0.04 | BR82: 0.04 | BS82: 4 | BT82: 0.01 | BU82: 0.01 | BV82: =IF($BP82=$BP85,0.01) -> 0.01 | BW82: =IF($BP82=$BP86,0.01) -> 0.01 | CA82: 0.04 | CC82: =G86 -> 0 | CD82: 0.04 | CE82: 0.04 | CF82: 4 | CG82: 0.01 | CH82: 0.01 | CI82: =IF($CC82=$CC85,0.01) -> 0.01 | CJ82: =IF($CC82=$CC86,0.01) -> 0.01 | CN82: 0.04
BC83: =L80 -> 0 | BD83: 0.03 | BE83: 0.03 | BF83: 5 | BG83: 0.01 | BH83: 0.01 | BI83: =IF($BC83=$BC86,0.01) -> 0.01 | BN83: 0.03 | BP83: =L83 -> 0 | BQ83: 0.03 | BR83: 0.03 | BS83: 5 | BT83: 0.01 | BU83: 0.01 | BV83: =IF($BP83=$BP86,0.01) -> 0.01 | CA83: 0.03 | CC83: =H86 -> 0 | CD83: 0.03 | CE83: 0.03 | CF83: 5 | CG83: 0.01 | CH83: 0.01 | CI83: =IF($CC83=$CC86,0.01) -> 0.01 | CN83: 0.03
B84: =IF(B82="","",VLOOKUP(B82,licens,3,FALSE)) ->  | C84: =IF(B82="","",VLOOKUP(B82,licens,4,FALSE)) ->  | D84: =IF(J79<1," ",IF(J88<1,AF1,ROUNDDOWN(D82/F82,3))) ->  | L84: =IF(N82<1," ",IF(N89<1,AF1,ROUNDDOWN(L82/N82,3))) ->  | BC84: =M80 -> 0 | BD84: 0.02 | BE84: 0.02 | BF84: 6 | BG84: 0.01 | BH84: 0.01 | BN84: 0.02 | BP84: =M83 -> 0 | BQ84: 0.02 | BR84: 0.02 | BS84: 6 | BT84: 0.01 | BU84: 0.01 | CA84: 0.02 | CC84: =I86 -> 0 | CD84: 0.02 | CE84: 0.02 | CF84: 6 | CG84: 0.01 | CH84: 0.01 | CN84: 0.02
A85: 3 | B85: =lodtrækning!C30 -> 111715 | C85: =IF(B85="","",VLOOKUP(B85,licens,2,FALSE)) -> Søren Andersson | F85: =IF(N79<1," ",N79) ->  | J85: =IF(N82<1," ",N82) ->  | P85: =IF(AE85<1," ",AC85) ->  | Q85: =IF(AE85<1," ",AD85) ->  | R85: =IF(AE85<1," ",AE85) ->  | S85: =IF(AE85<1," ",AF85) ->  | T85: =IF(AE85<1," ",MAX(D86:K86)) ->  | U85: =IF(AE85<1," ",RANK(BA85,BA$79:BA$85,1)) ->  | X85: =IF(AE85<1,0,2) -> 0 | Z85: =IF(N79<1,"",IF(D85>L79,2,IF(D85=L79,1,0))) ->  | AA85: =IF(N82<1,"",IF(H85>L82,2,IF(H85=L82,1,0))) ->  | AB85: =IF(AE79<1,2,IF(AE82<1,2)) -> 2 | AC85: =SUM(Z85:AB85) -> 2 | AD85: =SUM(D85,H85) -> 0 | AE85: =SUM(F85,J85) -> 0 | AF85: =IF(AE85<1," ",ROUNDDOWN(AD85/AE85,3)) ->  | AG85: =IF($CF79=1,$CC79,IF($CF80=1,$CC80,IF($CF81=1,$CC81,IF($CF82=1,$CC82,IF($CF83=1,$CC83,IF($CF84=1,$CC84,IF($CF85=1,$CC85,IF($CF86=1,$CC86)))))))) -> 0 | AH85: =IF($CF79=2,$CC79,IF($CF80=2,$CC80,IF($CF81=2,$CC81,IF($CF82=2,$CC82,IF($CF83=2,$CC83,IF($CF84=2,$CC84,IF($CF85=2,$CC85,IF($CF86=2,$CC86)))))))) -> 0 | AI85: =IF($CF79=3,$CC79,IF($CF80=3,$CC80,IF($CF81=3,$CC81,IF($CF82=3,$CC82,IF($CF83=3,$CC83,IF($CF84=3,$CC84,IF($CF85=3,$CC85,IF($CF86=3,$CC86)))))))) -> 0 | AJ85: =IF($CF79=4,$CC79,IF($CF80=4,$CC80,IF($CF81=4,$CC81,IF($CF82=4,$CC82,IF($CF83=4,$CC83,IF($CF84=4,$CC84,IF($CF85=4,$CC85,IF($CF86=4,$CC86)))))))) -> 0 | AK85: =IF($CF79=5,$CC79,IF($CF80=5,$CC80,IF($CF81=5,$CC81,IF($CF82=5,$CC82,IF($CF83=5,$CC83,IF($CF84=5,$CC84,IF($CF85=5,$CC85,IF($CF86=5,$CC86)))))))) -> 0 | AL85: =IF($CF79=6,$CC79,IF($CF80=6,$CC80,IF($CF81=6,$CC81,IF($CF82=6,$CC82,IF($CF83=6,$CC83,IF($CF84=6,$CC84,IF($CF85=6,$CC85,IF($CF86=6,$CC86)))))))) -> 0 | AM85: =IF($CF79=7,$CC79,IF($CF80=7,$CC80,IF($CF81=7,$CC81,IF($CF82=7,$CC82,IF($CF83=7,$CC83,IF($CF84=7,$CC84,IF($CF85=7,$CC85,IF($CF86=7,$CC86)))))))) -> 0 | AN85: =IF($CF79=8,$CC79,IF($CF80=8,$CC80,IF($CF81=8,$CC81,IF($CF82=8,$CC82,IF($CF83=8,$CC83,IF($CF84=8,$CC84,IF($CF85=8,$CC85,IF($CF86=8,$CC86)))))))) -> 0 | AO85: =RANK(AC85,AC$79:AC$85)*10000000000 -> 10000000000 | AP85: =IF(AE85<1,"",RANK(AF85,AF$79:AF$85)*1000000000) ->  | AQ85: =IF(AD$3<1,"",RANK(AD85,AD$79:AD$85)*100000000) ->  | AR85: =RANK(AG85,AG$79:AG$85)*10000000 -> 10000000 | AS85: =RANK(AH85,AH$79:AH$85)*1000000 -> 1000000 | AT85: =RANK(AI85,AI$79:AI$85)*100000 -> 100000 | AU85: =RANK(AJ85,AJ$79:AJ$85)*10000 -> 10000 | AV85: =RANK(AK85,AK$79:AK$85)*1000 -> 1000 | AW85: =RANK(AL85,AL$79:AL$85)*100 -> 100 | AX85: =RANK(AM85,AM$79:AM$85)*10 -> 10 | AY85: =RANK(AN85,AN$79:AN$85) -> 1 | AZ85: =IF(V85>0,1,0) -> 0 | BA85: =IF(AE85<1,"",SUM(AO85:AZ85)) ->  | BC85: =N80 -> 0 | BD85: 0.01 | BE85: 0.01 | BF85: 7 | BG85: 0.01 | BN85: 0.01 | BP85: =N83 -> 0 | BQ85: 0.01 | BR85: 0.01 | BS85: 7 | BT85: 0.01 | CA85: 0.01 | CC85: =J86 -> 0 | CD85: 0.01 | CE85: 0.01 | CF85: 7 | CG85: 0.01 | CN85: 0.01
BC86: =O80 -> 0 | BD86: 0 | BE86: 0 | BF86: 8 | BN86: 0 | BP86: =O83 -> 0 | BQ86: 0 | BR86: 0 | BS86: 8 | CA86: 0 | CC86: =K86 -> 0 | CD86: 0 | CE86: 0 | CF86: 8 | CN86: 0
B87: =IF(B85="","",VLOOKUP(B85,licens,3,FALSE)) -> 603 | C87: =IF(B85="","",VLOOKUP(B85,licens,4,FALSE)) -> ABK 31 | D87: =IF(N79<1," ",IF(J89<1,AF1,ROUNDDOWN(D85/F85,3))) ->  | H87: =IF(N82<1," ",IF(N89<1,AF1,ROUNDDOWN(H85/J85,3))) -> 
H88: =IF($AA$4<1,0,IF(H79>0,1,0)) -> 0 | J88: =IF(H79<1,FALSE,IF(D82<1,FALSE,IF(MAX(H79,D82)<30,0))) -> FALSE
H89: =IF($AA$4<1,0,IF(L79>0,1,0)) -> 0 | J89: =IF(L79<1,FALSE,IF(D85<1,FALSE,IF(MAX(L79,D85)<30,0))) -> FALSE | L89: =IF($AA$4<1,0,IF(L82>0,1,0)) -> 0 | N89: =IF(L82<1,FALSE,IF(H85<1,FALSE,IF(MAX(L82,H85)<30,0))) -> FALSE
A90: Pulje 7:
B91: Licens nr. | C91: Navn | D91: 1 | H91: 2 | L91: 3 | P91: MP med oversider | Q91: Score | R91: Indg | S91: Snit | T91: Serie | U91: Plac. | V91: sæt x ved lige (serier) | W91: Syg / afbud | X91: kampe | Z91: MP | AD91: Score | AE91: Indg. | AF91: Snit | AG91: Serie | AO91: MP | AP91: Snit | AQ91: score | AR91: Serie | AZ91: lige | BA91: I alt
B92: Klub Nr. | C92: Klub
A93: 1 | B93: =lodtrækning!C32 -> 122231 | C93: =IF(B93="","",VLOOKUP(B93,licens,2,FALSE)) -> Kim Keith | D93: Score | F93: Indg. | P93: =IF(AE93<1," ",AC93) ->  | Q93: =IF(AE93<1," ",AD93) ->  | R93: =IF(AE93<1," ",AE93) ->  | S93: =IF(AE93<1," ",AF93) ->  | T93: =IF(AE93<1," ",MAX(H94:O94)) ->  | U93: =IF(AE93<1," ",RANK(BA93,BA$93:BA$99,1)) ->  | X93: =IF(AE93<1,0,2) -> 0 | Z93: =IF(J93<1,"",IF(H93>D96,2,IF(H93=D96,1,0))) ->  | AA93: =IF(N93<1,"",IF(L93>D99,2,IF(L93=D99,1,0))) ->  | AB93: =IF(AE96<1,2,IF(AE99<1,2)) -> 2 | AC93: =SUM(Z93:AB93) -> 2 | AD93: =SUM(H93,L93) -> 0 | AE93: =SUM(J93,N93) -> 0 | AF93: =IF(AE93<1," ",ROUNDDOWN(AD93/AE93,3)) ->  | AG93: =IF($BF93=1,$BC93,IF($BF94=1,$BC94,IF($BF95=1,$BC95,IF($BF96=1,$BC96,IF($BF97=1,$BC97,IF($BF98=1,$BC98,IF($BF99=1,$BC99,IF($BF100=1,$BC100)))))))) -> 0 | AH93: =IF($BF93=2,$BC93,IF($BF94=2,$BC94,IF($BF95=2,$BC95,IF($BF96=2,$BC96,IF($BF97=2,$BC97,IF($BF98=2,$BC98,IF($BF99=2,$BC99,IF($BF100=2,$BC100)))))))) -> 0 | AI93: =IF($BF93=3,$BC93,IF($BF94=3,$BC94,IF($BF95=3,$BC95,IF($BF96=3,$BC96,IF($BF97=3,$BC97,IF($BF98=3,$BC98,IF($BF99=3,$BC99,IF($BF100=3,$BC100)))))))) -> 0 | AJ93: =IF($BF93=4,$BC93,IF($BF94=4,$BC94,IF($BF95=4,$BC95,IF($BF96=4,$BC96,IF($BF97=4,$BC97,IF($BF98=4,$BC98,IF($BF99=4,$BC99,IF($BF100=4,$BC100)))))))) -> 0 | AK93: =IF($BF93=5,$BC93,IF($BF94=5,$BC94,IF($BF95=5,$BC95,IF($BF96=5,$BC96,IF($BF97=5,$BC97,IF($BF98=5,$BC98,IF($BF99=5,$BC99,IF($BF100=5,$BC100)))))))) -> 0 | AL93: =IF($BF93=6,$BC93,IF($BF94=6,$BC94,IF($BF95=6,$BC95,IF($BF96=6,$BC96,IF($BF97=6,$BC97,IF($BF98=6,$BC98,IF($BF99=6,$BC99,IF($BF100=6,$BC100)))))))) -> 0 | AM93: =IF($BF93=7,$BC93,IF($BF94=7,$BC94,IF($BF95=7,$BC95,IF($BF96=7,$BC96,IF($BF97=7,$BC97,IF($BF98=7,$BC98,IF($BF99=7,$BC99,IF($BF100=7,$BC100)))))))) -> 0 | AN93: =IF($BF93=8,$BC93,IF($BF94=8,$BC94,IF($BF95=8,$BC95,IF($BF96=8,$BC96,IF($BF97=8,$BC97,IF($BF98=8,$BC98,IF($BF99=8,$BC99,IF($BF100=8,$BC100)))))))) -> 0 | AO93: =RANK(AC93,AC$93:AC$99)*10000000000 -> 10000000000 | AP93: =IF(AE93<1,"",RANK(AF93,AF$93:AF$99)*1000000000) ->  | AQ93: =IF(AD$3<1,"",RANK(AD93,AD$93:AD$99)*100000000) ->  | AR93: =RANK(AG93,AG$93:AG$99)*10000000 -> 10000000 | AS93: =RANK(AH93,AH$93:AH$99)*1000000 -> 1000000 | AT93: =RANK(AI93,AI$93:AI$99)*100000 -> 100000 | AU93: =RANK(AJ93,AJ$93:AJ$99)*10000 -> 10000 | AV93: =RANK(AK93,AK$93:AK$99)*1000 -> 1000 | AW93: =RANK(AL93,AL$93:AL$99)*100 -> 100 | AX93: =RANK(AM93,AM$93:AM$99)*10 -> 10 | AY93: =RANK(AN93,AN$93:AN$99) -> 1 | AZ93: =IF(V93>0,1,0) -> 0 | BA93: =IF(AE93<1,"",SUM(AO93:AZ93)) ->  | BC93: =H94 -> 0 | BD93: =BN93 -> 0.07 | BE93: =SUM(BC93:BD93) -> 0.07 | BF93: =RANK(BE93,BE$93:BE$100) -> 1 | BG93: =IF($BC93=$BC94,0.01) -> 0.01 | BH93: =IF($BC93=$BC95,0.01) -> 0.01 | BI93: =IF($BC93=$BC96,0.01) -> 0.01 | BJ93: =IF($BC93=$BC97,0.01) -> 0.01 | BK93: =IF($BC93=$BC98,0.01) -> 0.01 | BL93: =IF($BC93=$BC99,0.01) -> 0.01 | BM93: =IF($BC93=$BC100,0.01) -> 0.01 | BN93: =SUM(BG93:BM93) -> 0.07 | BP93: =D97 -> 0 | BQ93: =CA93 -> 0.07 | BR93: =SUM(BP93:BQ93) -> 0.07 | BS93: =RANK(BR93,BR$93:BR$100) -> 1 | BT93: =IF($BP93=$BP94,0.01) -> 0.01 | BU93: =IF($BP93=$BP95,0.01) -> 0.01 | BV93: =IF($BP93=$BP96,0.01) -> 0.01 | BW93: =IF($BP93=$BP97,0.01) -> 0.01 | BX93: =IF($BP93=$BP98,0.01) -> 0.01 | BY93: =IF($BP93=$BP99,0.01) -> 0.01 | BZ93: =IF($BP93=$BP100,0.01) -> 0.01 | CA93: =SUM(BT93:BZ93) -> 0.07 | CC93: =D100 -> 0 | CD93: =CN93 -> 0.07 | CE93: =SUM(CC93:CD93) -> 0.07 | CF93: =RANK(CE93,CE$93:CE$100) -> 1 | CG93: =IF($CC93=$CC94,0.01) -> 0.01 | CH93: =IF($CC93=$CC95,0.01) -> 0.01 | CI93: =IF($CC93=$CC96,0.01) -> 0.01 | CJ93: =IF($CC93=$CC97,0.01) -> 0.01 | CK93: =IF($CC93=$CC98,0.01) -> 0.01 | CL93: =IF($CC93=$CC99,0.01) -> 0.01 | CM93: =IF($CC93=$CC100,0.01) -> 0.01 | CN93: =SUM(CG93:CM93) -> 0.07
D94: 4 største serier | BC94: =I94 -> 0 | BD94: 0.06 | BE94: =SUM(BC94:BD94) -> 0.06 | BF94: =RANK(BE94,BE$93:BE$100) -> 2 | BG94: 0.01 | BH94: 0.01 | BI94: =IF($BC94=$BC97,0.01) -> 0.01 | BJ94: =IF($BC94=$BC98,0.01) -> 0.01 | BK94: =IF($BC94=$BC99,0.01) -> 0.01 | BL94: =IF($BC94=$BC100,0.01) -> 0.01 | BN94: =SUM(BG94:BM94) -> 0.06 | BP94: =E97 -> 0 | BQ94: 0.06 | BR94: =SUM(BP94:BQ94) -> 0.06 | BS94: =RANK(BR94,BR$93:BR$100) -> 2 | BT94: =IF($BP94=$BP95,0.01) -> 0.01 | BU94: 0.01 | BV94: =IF($BP94=$BP97,0.01) -> 0.01 | BW94: =IF($BP94=$BP98,0.01) -> 0.01 | BX94: =IF($BP94=$BP99,0.01) -> 0.01 | BY94: =IF($BP94=$BP100,0.01) -> 0.01 | CA94: =SUM(BT94:BZ94) -> 0.06 | CC94: =E100 -> 0 | CD94: 0.06 | CE94: =SUM(CC94:CD94) -> 0.06 | CF94: =RANK(CE94,CE$93:CE$100) -> 2 | CG94: =IF($CC94=$CC95,0.01) -> 0.01 | CH94: 0.01 | CI94: =IF($CC94=$CC97,0.01) -> 0.01 | CJ94: =IF($CC94=$CC98,0.01) -> 0.01 | CK94: =IF($CC94=$CC99,0.01) -> 0.01 | CL94: =IF($CC94=$CC100,0.01) -> 0.01 | CN94: =SUM(CG94:CM94) -> 0.06
B95: =IF(B93="","",VLOOKUP(B93,licens,3,FALSE)) -> 648 | C95: =IF(B93="","",VLOOKUP(B93,licens,4,FALSE)) -> Horsens BK | D95: snit | H95: =IF(J93<1," ",IF(J102<1,AF1,ROUNDDOWN(H93/J93,3))) ->  | L95: =IF(N93<1," ",IF(J103<1,AF1,ROUNDDOWN(L93/N93,3))) ->  | BC95: =J94 -> 0 | BD95: 0.05 | BE95: 0.05 | BF95: 3 | BG95: 0.01 | BH95: 0.01 | BI95: =IF($BC95=$BC98,0.01) -> 0.01 | BJ95: =IF($BC95=$BC99,0.01) -> 0.01 | BK95: =IF($BC95=$BC100,0.01) -> 0.01 | BN95: 0.05 | BP95: =F97 -> 0 | BQ95: 0.05 | BR95: 0.05 | BS95: 3 | BT95: 0.01 | BU95: 0.01 | BV95: =IF($BP95=$BP98,0.01) -> 0.01 | BW95: =IF($BP95=$BP99,0.01) -> 0.01 | BX95: =IF($BP95=$BP100,0.01) -> 0.01 | CA95: 0.05 | CC95: =F100 -> 0 | CD95: 0.05 | CE95: 0.05 | CF95: 3 | CG95: 0.01 | CH95: 0.01 | CI95: =IF($CC95=$CC98,0.01) -> 0.01 | CJ95: =IF($CC95=$CC99,0.01) -> 0.01 | CK95: =IF($CC95=$CC100,0.01) -> 0.01 | CN95: 0.05
A96: 2 | B96: =lodtrækning!C33 -> 119489 | C96: =IF(B96="","",VLOOKUP(B96,licens,2,FALSE)) -> Bjørn M Jensen | F96: =IF(J93<1," ",J93) ->  | P96: =IF(AE96<1," ",AC96) ->  | Q96: =IF(AE96<1," ",AD96) ->  | R96: =IF(AE96<1," ",AE96) ->  | S96: =IF(AE96<1," ",AF96) ->  | T96: =IF(AE96<1," ",MAX(D97:O97)) ->  | U96: =IF(AE96<1," ",RANK(BA96,BA$93:BA$99,1)) ->  | X96: =IF(AE96<1,0,2) -> 0 | Z96: =IF(J93<1,"",IF(D96>H93,2,IF(D96=H93,1,0))) ->  | AA96: =IF(N96<1,"",IF(L96>H99,2,IF(L96=H99,1,0))) ->  | AB96: =IF(AE93<1,2,IF(AE99<1,2)) -> 2 | AC96: =SUM(Z96:AB96) -> 2 | AD96: =SUM(D96,L96) -> 0 | AE96: =SUM(F96,N96) -> 0 | AF96: =IF(AE96<1," ",ROUNDDOWN(AD96/AE96,3)) ->  | AG96: =IF($BS93=1,$BP93,IF($BS94=1,$BP94,IF($BS95=1,$BP95,IF($BS96=1,$BP96,IF($BS97=1,$BP97,IF($BS98=1,$BP98,IF($BS99=1,$BP99,IF($BS100=1,$BP100)))))))) -> 0 | AH96: =IF($BS93=2,$BP93,IF($BS94=2,$BP94,IF($BS95=2,$BP95,IF($BS96=2,$BP96,IF($BS97=2,$BP97,IF($BS98=2,$BP98,IF($BS99=2,$BP99,IF($BS100=2,$BP100)))))))) -> 0 | AI96: =IF($BS93=3,$BP93,IF($BS94=3,$BP94,IF($BS95=3,$BP95,IF($BS96=3,$BP96,IF($BS97=3,$BP97,IF($BS98=3,$BP98,IF($BS99=3,$BP99,IF($BS100=3,$BP100)))))))) -> 0 | AJ96: =IF($BS93=4,$BP93,IF($BS94=4,$BP94,IF($BS95=4,$BP95,IF($BS96=4,$BP96,IF($BS97=4,$BP97,IF($BS98=4,$BP98,IF($BS99=4,$BP99,IF($BS100=4,$BP100)))))))) -> 0 | AK96: =IF($BS93=5,$BP93,IF($BS94=5,$BP94,IF($BS95=5,$BP95,IF($BS96=5,$BP96,IF($BS97=5,$BP97,IF($BS98=5,$BP98,IF($BS99=5,$BP99,IF($BS100=5,$BP100)))))))) -> 0 | AL96: =IF($BS93=6,$BP93,IF($BS94=6,$BP94,IF($BS95=6,$BP95,IF($BS96=6,$BP96,IF($BS97=6,$BP97,IF($BS98=6,$BP98,IF($BS99=6,$BP99,IF($BS100=6,$BP100)))))))) -> 0 | AM96: =IF($BS93=7,$BP93,IF($BS94=7,$BP94,IF($BS95=7,$BP95,IF($BS96=7,$BP96,IF($BS97=7,$BP97,IF($BS98=7,$BP98,IF($BS99=7,$BP99,IF($BS100=7,$BP100)))))))) -> 0 | AN96: =IF($BS93=8,$BP93,IF($BS94=8,$BP94,IF($BS95=8,$BP95,IF($BS96=8,$BP96,IF($BS97=8,$BP97,IF($BS98=8,$BP98,IF($BS99=8,$BP99,IF($BS100=8,$BP100)))))))) -> 0 | AO96: =RANK(AC96,AC$93:AC$99)*10000000000 -> 10000000000 | AP96: =IF(AE96<1,"",RANK(AF96,AF$93:AF$99)*1000000000) ->  | AQ96: =IF(AD$3<1,"",RANK(AD96,AD$93:AD$99)*100000000) ->  | AR96: =RANK(AG96,AG$93:AG$99)*10000000 -> 10000000 | AS96: =RANK(AH96,AH$93:AH$99)*1000000 -> 1000000 | AT96: =RANK(AI96,AI$93:AI$99)*100000 -> 100000 | AU96: =RANK(AJ96,AJ$93:AJ$99)*10000 -> 10000 | AV96: =RANK(AK96,AK$93:AK$99)*1000 -> 1000 | AW96: =RANK(AL96,AL$93:AL$99)*100 -> 100 | AX96: =RANK(AM96,AM$93:AM$99)*10 -> 10 | AY96: =RANK(AN96,AN$93:AN$99) -> 1 | AZ96: =IF(V96>0,1,0) -> 0 | BA96: =IF(AE96<1,"",SUM(AO96:AZ96)) ->  | BC96: =K94 -> 0 | BD96: 0.04 | BE96: 0.04 | BF96: 4 | BG96: 0.01 | BH96: 0.01 | BI96: =IF($BC96=$BC99,0.01) -> 0.01 | BJ96: =IF($BC96=$BC100,0.01) -> 0.01 | BN96: 0.04 | BP96: =G97 -> 0 | BQ96: 0.04 | BR96: 0.04 | BS96: 4 | BT96: 0.01 | BU96: 0.01 | BV96: =IF($BP96=$BP99,0.01) -> 0.01 | BW96: =IF($BP96=$BP100,0.01) -> 0.01 | CA96: 0.04 | CC96: =G100 -> 0 | CD96: 0.04 | CE96: 0.04 | CF96: 4 | CG96: 0.01 | CH96: 0.01 | CI96: =IF($CC96=$CC99,0.01) -> 0.01 | CJ96: =IF($CC96=$CC100,0.01) -> 0.01 | CN96: 0.04
BC97: =L94 -> 0 | BD97: 0.03 | BE97: 0.03 | BF97: 5 | BG97: 0.01 | BH97: 0.01 | BI97: =IF($BC97=$BC100,0.01) -> 0.01 | BN97: 0.03 | BP97: =L97 -> 0 | BQ97: 0.03 | BR97: 0.03 | BS97: 5 | BT97: 0.01 | BU97: 0.01 | BV97: =IF($BP97=$BP100,0.01) -> 0.01 | CA97: 0.03 | CC97: =H100 -> 0 | CD97: 0.03 | CE97: 0.03 | CF97: 5 | CG97: 0.01 | CH97: 0.01 | CI97: =IF($CC97=$CC100,0.01) -> 0.01 | CN97: 0.03
B98: =IF(B96="","",VLOOKUP(B96,licens,3,FALSE)) -> 239 | C98: =IF(B96="","",VLOOKUP(B96,licens,4,FALSE)) -> Ringsted BC | D98: =IF(J93<1," ",IF(J102<1,AF1,ROUNDDOWN(D96/F96,3))) ->  | L98: =IF(N96<1," ",IF(N103<1,AF1,ROUNDDOWN(L96/N96,3))) ->  | BC98: =M94 -> 0 | BD98: 0.02 | BE98: 0.02 | BF98: 6 | BG98: 0.01 | BH98: 0.01 | BN98: 0.02 | BP98: =M97 -> 0 | BQ98: 0.02 | BR98: 0.02 | BS98: 6 | BT98: 0.01 | BU98: 0.01 | CA98: 0.02 | CC98: =I100 -> 0 | CD98: 0.02 | CE98: 0.02 | CF98: 6 | CG98: 0.01 | CH98: 0.01 | CN98: 0.02
A99: 3 | B99: =lodtrækning!C34 -> 110623 | C99: =IF(B99="","",VLOOKUP(B99,licens,2,FALSE)) -> Kim Mortensen | F99: =IF(N93<1," ",N93) ->  | J99: =IF(N96<1," ",N96) ->  | P99: =IF(AE99<1," ",AC99) ->  | Q99: =IF(AE99<1," ",AD99) ->  | R99: =IF(AE99<1," ",AE99) ->  | S99: =IF(AE99<1," ",AF99) ->  | T99: =IF(AE99<1," ",MAX(D100:K100)) ->  | U99: =IF(AE99<1," ",RANK(BA99,BA$93:BA$99,1)) ->  | X99: =IF(AE99<1,0,2) -> 0 | Z99: =IF(N93<1,"",IF(D99>L93,2,IF(D99=L93,1,0))) ->  | AA99: =IF(N96<1,"",IF(H99>L96,2,IF(H99=L96,1,0))) ->  | AB99: =IF(AE93<1,2,IF(AE96<1,2)) -> 2 | AC99: =SUM(Z99:AB99) -> 2 | AD99: =SUM(D99,H99) -> 0 | AE99: =SUM(F99,J99) -> 0 | AF99: =IF(AE99<1," ",ROUNDDOWN(AD99/AE99,3)) ->  | AG99: =IF($CF93=1,$CC93,IF($CF94=1,$CC94,IF($CF95=1,$CC95,IF($CF96=1,$CC96,IF($CF97=1,$CC97,IF($CF98=1,$CC98,IF($CF99=1,$CC99,IF($CF100=1,$CC100)))))))) -> 0 | AH99: =IF($CF93=2,$CC93,IF($CF94=2,$CC94,IF($CF95=2,$CC95,IF($CF96=2,$CC96,IF($CF97=2,$CC97,IF($CF98=2,$CC98,IF($CF99=2,$CC99,IF($CF100=2,$CC100)))))))) -> 0 | AI99: =IF($CF93=3,$CC93,IF($CF94=3,$CC94,IF($CF95=3,$CC95,IF($CF96=3,$CC96,IF($CF97=3,$CC97,IF($CF98=3,$CC98,IF($CF99=3,$CC99,IF($CF100=3,$CC100)))))))) -> 0 | AJ99: =IF($CF93=4,$CC93,IF($CF94=4,$CC94,IF($CF95=4,$CC95,IF($CF96=4,$CC96,IF($CF97=4,$CC97,IF($CF98=4,$CC98,IF($CF99=4,$CC99,IF($CF100=4,$CC100)))))))) -> 0 | AK99: =IF($CF93=5,$CC93,IF($CF94=5,$CC94,IF($CF95=5,$CC95,IF($CF96=5,$CC96,IF($CF97=5,$CC97,IF($CF98=5,$CC98,IF($CF99=5,$CC99,IF($CF100=5,$CC100)))))))) -> 0 | AL99: =IF($CF93=6,$CC93,IF($CF94=6,$CC94,IF($CF95=6,$CC95,IF($CF96=6,$CC96,IF($CF97=6,$CC97,IF($CF98=6,$CC98,IF($CF99=6,$CC99,IF($CF100=6,$CC100)))))))) -> 0 | AM99: =IF($CF93=7,$CC93,IF($CF94=7,$CC94,IF($CF95=7,$CC95,IF($CF96=7,$CC96,IF($CF97=7,$CC97,IF($CF98=7,$CC98,IF($CF99=7,$CC99,IF($CF100=7,$CC100)))))))) -> 0 | AN99: =IF($CF93=8,$CC93,IF($CF94=8,$CC94,IF($CF95=8,$CC95,IF($CF96=8,$CC96,IF($CF97=8,$CC97,IF($CF98=8,$CC98,IF($CF99=8,$CC99,IF($CF100=8,$CC100)))))))) -> 0 | AO99: =RANK(AC99,AC$93:AC$99)*10000000000 -> 10000000000 | AP99: =IF(AE99<1,"",RANK(AF99,AF$93:AF$99)*1000000000) ->  | AQ99: =IF(AD$3<1,"",RANK(AD99,AD$93:AD$99)*100000000) ->  | AR99: =RANK(AG99,AG$93:AG$99)*10000000 -> 10000000 | AS99: =RANK(AH99,AH$93:AH$99)*1000000 -> 1000000 | AT99: =RANK(AI99,AI$93:AI$99)*100000 -> 100000 | AU99: =RANK(AJ99,AJ$93:AJ$99)*10000 -> 10000 | AV99: =RANK(AK99,AK$93:AK$99)*1000 -> 1000 | AW99: =RANK(AL99,AL$93:AL$99)*100 -> 100 | AX99: =RANK(AM99,AM$93:AM$99)*10 -> 10 | AY99: =RANK(AN99,AN$93:AN$99) -> 1 | AZ99: =IF(V99>0,1,0) -> 0 | BA99: =IF(AE99<1,"",SUM(AO99:AZ99)) ->  | BC99: =N94 -> 0 | BD99: 0.01 | BE99: 0.01 | BF99: 7 | BG99: 0.01 | BN99: 0.01 | BP99: =N97 -> 0 | BQ99: 0.01 | BR99: 0.01 | BS99: 7 | BT99: 0.01 | CA99: 0.01 | CC99: =J100 -> 0 | CD99: 0.01 | CE99: 0.01 | CF99: 7 | CG99: 0.01 | CN99: 0.01
BC100: =O94 -> 0 | BD100: 0 | BE100: 0 | BF100: 8 | BN100: 0 | BP100: =O97 -> 0 | BQ100: 0 | BR100: 0 | BS100: 8 | CA100: 0 | CC100: =K100 -> 0 | CD100: 0 | CE100: 0 | CF100: 8 | CN100: 0
B101: =IF(B99="","",VLOOKUP(B99,licens,3,FALSE)) -> 672 | C101: =IF(B99="","",VLOOKUP(B99,licens,4,FALSE)) -> Randers BK | D101: =IF(N93<1," ",IF(J103<1,AF1,ROUNDDOWN(D99/F99,3))) ->  | H101: =IF(N96<1," ",IF(N103<1,AF1,ROUNDDOWN(H99/J99,3))) -> 
H102: =IF($AA$4<1,0,IF(H93>0,1,0)) -> 0 | J102: =IF(H93<1,FALSE,IF(D96<1,FALSE,IF(MAX(H93,D96)<30,0))) -> FALSE
H103: =IF($AA$4<1,0,IF(L93>0,1,0)) -> 0 | J103: =IF(L93<1,FALSE,IF(D99<1,FALSE,IF(MAX(L93,D99)<30,0))) -> FALSE | L103: =IF($AA$4<1,0,IF(L96>0,1,0)) -> 0 | N103: =IF(L96<1,FALSE,IF(H99<1,FALSE,IF(MAX(L96,H99)<30,0))) -> FALSE
A104: Pulje 8:
B105: Licens nr. | C105: Navn | D105: 1 | H105: 2 | L105: 3 | P105: MP med oversider | Q105: Score | R105: Indg | S105: Snit | T105: Serie | U105: Plac. | V105: sæt x ved lige (serier) | W105: Syg / afbud | X105: kampe | Z105: MP | AD105: Score | AE105: Indg. | AF105: Snit | AG105: Serie | AO105: MP | AP105: Snit | AQ105: score | AR105: Serie | AZ105: lige | BA105: I alt
B106: Klub Nr. | C106: Klub
A107: 1 | B107: =lodtrækning!C36 -> 115312 | C107: =IF(B107="","",VLOOKUP(B107,licens,2,FALSE)) -> Tommy Magnussen | D107: Score | F107: Indg. | P107: =IF(AE107<1," ",AC107) ->  | Q107: =IF(AE107<1," ",AD107) ->  | R107: =IF(AE107<1," ",AE107) ->  | S107: =IF(AE107<1," ",AF107) ->  | T107: =IF(AE107<1," ",MAX(H108:O108)) ->  | U107: =IF(AE107<1," ",RANK(BA107,BA$107:BA$113,1)) ->  | X107: =IF(AE107<1,0,2) -> 0 | Z107: =IF(J107<1,"",IF(H107>D110,2,IF(H107=D110,1,0))) ->  | AA107: =IF(N107<1,"",IF(L107>D113,2,IF(L107=D113,1,0))) ->  | AB107: =IF(AE110<1,2,IF(AE113<1,2)) -> 2 | AC107: =SUM(Z107:AB107) -> 2 | AD107: =SUM(H107,L107) -> 0 | AE107: =SUM(J107,N107) -> 0 | AF107: =IF(AE107<1," ",ROUNDDOWN(AD107/AE107,3)) ->  | AG107: =IF($BF107=1,$BC107,IF($BF108=1,$BC108,IF($BF109=1,$BC109,IF($BF110=1,$BC110,IF($BF111=1,$BC111,IF($BF112=1,$BC112,IF($BF113=1,$BC113,IF($BF114=1,$BC114)))))))) -> 0 | AH107: =IF($BF107=2,$BC107,IF($BF108=2,$BC108,IF($BF109=2,$BC109,IF($BF110=2,$BC110,IF($BF111=2,$BC111,IF($BF112=2,$BC112,IF($BF113=2,$BC113,IF($BF114=2,$BC114)))))))) -> 0 | AI107: =IF($BF107=3,$BC107,IF($BF108=3,$BC108,IF($BF109=3,$BC109,IF($BF110=3,$BC110,IF($BF111=3,$BC111,IF($BF112=3,$BC112,IF($BF113=3,$BC113,IF($BF114=3,$BC114)))))))) -> 0 | AJ107: =IF($BF107=4,$BC107,IF($BF108=4,$BC108,IF($BF109=4,$BC109,IF($BF110=4,$BC110,IF($BF111=4,$BC111,IF($BF112=4,$BC112,IF($BF113=4,$BC113,IF($BF114=4,$BC114)))))))) -> 0 | AK107: =IF($BF107=5,$BC107,IF($BF108=5,$BC108,IF($BF109=5,$BC109,IF($BF110=5,$BC110,IF($BF111=5,$BC111,IF($BF112=5,$BC112,IF($BF113=5,$BC113,IF($BF114=5,$BC114)))))))) -> 0 | AL107: =IF($BF107=6,$BC107,IF($BF108=6,$BC108,IF($BF109=6,$BC109,IF($BF110=6,$BC110,IF($BF111=6,$BC111,IF($BF112=6,$BC112,IF($BF113=6,$BC113,IF($BF114=6,$BC114)))))))) -> 0 | AM107: =IF($BF107=7,$BC107,IF($BF108=7,$BC108,IF($BF109=7,$BC109,IF($BF110=7,$BC110,IF($BF111=7,$BC111,IF($BF112=7,$BC112,IF($BF113=7,$BC113,IF($BF114=7,$BC114)))))))) -> 0 | AN107: =IF($BF107=8,$BC107,IF($BF108=8,$BC108,IF($BF109=8,$BC109,IF($BF110=8,$BC110,IF($BF111=8,$BC111,IF($BF112=8,$BC112,IF($BF113=8,$BC113,IF($BF114=8,$BC114)))))))) -> 0 | AO107: =RANK(AC107,AC$107:AC$113)*10000000000 -> 10000000000 | AP107: =IF(AE107<1,"",RANK(AF107,AF$107:AF$113)*1000000000) ->  | AQ107: =IF(AD$3<1,"",RANK(AD107,AD$107:AD$113)*100000000) ->  | AR107: =RANK(AG107,AG$107:AG$113)*10000000 -> 10000000 | AS107: =RANK(AH107,AH$107:AH$113)*1000000 -> 1000000 | AT107: =RANK(AI107,AI$107:AI$113)*100000 -> 100000 | AU107: =RANK(AJ107,AJ$107:AJ$113)*10000 -> 10000 | AV107: =RANK(AK107,AK$107:AK$113)*1000 -> 1000 | AW107: =RANK(AL107,AL$107:AL$113)*100 -> 100 | AX107: =RANK(AM107,AM$107:AM$113)*10 -> 10 | AY107: =RANK(AN107,AN$107:AN$113) -> 1 | AZ107: =IF(V107>0,1,0) -> 0 | BA107: =IF(AE107<1,"",SUM(AO107:AZ107)) ->  | BC107: =H108 -> 0 | BD107: =BN107 -> 0.07 | BE107: =SUM(BC107:BD107) -> 0.07 | BF107: =RANK(BE107,BE$107:BE$114) -> 1 | BG107: =IF($BC107=$BC108,0.01) -> 0.01 | BH107: =IF($BC107=$BC109,0.01) -> 0.01 | BI107: =IF($BC107=$BC110,0.01) -> 0.01 | BJ107: =IF($BC107=$BC111,0.01) -> 0.01 | BK107: =IF($BC107=$BC112,0.01) -> 0.01 | BL107: =IF($BC107=$BC113,0.01) -> 0.01 | BM107: =IF($BC107=$BC114,0.01) -> 0.01 | BN107: =SUM(BG107:BM107) -> 0.07 | BP107: =D111 -> 0 | BQ107: =CA107 -> 0.07 | BR107: =SUM(BP107:BQ107) -> 0.07 | BS107: =RANK(BR107,BR$107:BR$114) -> 1 | BT107: =IF($BP107=$BP108,0.01) -> 0.01 | BU107: =IF($BP107=$BP109,0.01) -> 0.01 | BV107: =IF($BP107=$BP110,0.01) -> 0.01 | BW107: =IF($BP107=$BP111,0.01) -> 0.01 | BX107: =IF($BP107=$BP112,0.01) -> 0.01 | BY107: =IF($BP107=$BP113,0.01) -> 0.01 | BZ107: =IF($BP107=$BP114,0.01) -> 0.01 | CA107: =SUM(BT107:BZ107) -> 0.07 | CC107: =D114 -> 0 | CD107: =CN107 -> 0.07 | CE107: =SUM(CC107:CD107) -> 0.07 | CF107: =RANK(CE107,CE$107:CE$114) -> 1 | CG107: =IF($CC107=$CC108,0.01) -> 0.01 | CH107: =IF($CC107=$CC109,0.01) -> 0.01 | CI107: =IF($CC107=$CC110,0.01) -> 0.01 | CJ107: =IF($CC107=$CC111,0.01) -> 0.01 | CK107: =IF($CC107=$CC112,0.01) -> 0.01 | CL107: =IF($CC107=$CC113,0.01) -> 0.01 | CM107: =IF($CC107=$CC114,0.01) -> 0.01 | CN107: =SUM(CG107:CM107) -> 0.07
D108: 4 største serier | BC108: =I108 -> 0 | BD108: 0.06 | BE108: =SUM(BC108:BD108) -> 0.06 | BF108: =RANK(BE108,BE$107:BE$114) -> 2 | BG108: 0.01 | BH108: 0.01 | BI108: =IF($BC108=$BC111,0.01) -> 0.01 | BJ108: =IF($BC108=$BC112,0.01) -> 0.01 | BK108: =IF($BC108=$BC113,0.01) -> 0.01 | BL108: =IF($BC108=$BC114,0.01) -> 0.01 | BN108: =SUM(BG108:BM108) -> 0.06 | BP108: =E111 -> 0 | BQ108: 0.06 | BR108: =SUM(BP108:BQ108) -> 0.06 | BS108: =RANK(BR108,BR$107:BR$114) -> 2 | BT108: =IF($BP108=$BP109,0.01) -> 0.01 | BU108: 0.01 | BV108: =IF($BP108=$BP111,0.01) -> 0.01 | BW108: =IF($BP108=$BP112,0.01) -> 0.01 | BX108: =IF($BP108=$BP113,0.01) -> 0.01 | BY108: =IF($BP108=$BP114,0.01) -> 0.01 | CA108: =SUM(BT108:BZ108) -> 0.06 | CC108: =E114 -> 0 | CD108: 0.06 | CE108: =SUM(CC108:CD108) -> 0.06 | CF108: =RANK(CE108,CE$107:CE$114) -> 2 | CG108: =IF($CC108=$CC109,0.01) -> 0.01 | CH108: 0.01 | CI108: =IF($CC108=$CC111,0.01) -> 0.01 | CJ108: =IF($CC108=$CC112,0.01) -> 0.01 | CK108: =IF($CC108=$CC113,0.01) -> 0.01 | CL108: =IF($CC108=$CC114,0.01) -> 0.01 | CN108: =SUM(CG108:CM108) -> 0.06
B109: =IF(B107="","",VLOOKUP(B107,licens,3,FALSE)) -> 503 | C109: =IF(B107="","",VLOOKUP(B107,licens,4,FALSE)) -> Bristol | D109: snit | H109: =IF(J107<1," ",IF(J116<1,AF1,ROUNDDOWN(H107/J107,3))) ->  | L109: =IF(N107<1," ",IF(J117<1,AF1,ROUNDDOWN(L107/N107,3))) ->  | BC109: =J108 -> 0 | BD109: 0.05 | BE109: 0.05 | BF109: 3 | BG109: 0.01 | BH109: 0.01 | BI109: =IF($BC109=$BC112,0.01) -> 0.01 | BJ109: =IF($BC109=$BC113,0.01) -> 0.01 | BK109: =IF($BC109=$BC114,0.01) -> 0.01 | BN109: 0.05 | BP109: =F111 -> 0 | BQ109: 0.05 | BR109: 0.05 | BS109: 3 | BT109: 0.01 | BU109: 0.01 | BV109: =IF($BP109=$BP112,0.01) -> 0.01 | BW109: =IF($BP109=$BP113,0.01) -> 0.01 | BX109: =IF($BP109=$BP114,0.01) -> 0.01 | CA109: 0.05 | CC109: =F114 -> 0 | CD109: 0.05 | CE109: 0.05 | CF109: 3 | CG109: 0.01 | CH109: 0.01 | CI109: =IF($CC109=$CC112,0.01) -> 0.01 | CJ109: =IF($CC109=$CC113,0.01) -> 0.01 | CK109: =IF($CC109=$CC114,0.01) -> 0.01 | CN109: 0.05
A110: 2 | B110: =lodtrækning!C37 -> 113686 | C110: =IF(B110="","",VLOOKUP(B110,licens,2,FALSE)) -> Thomas Andersen | F110: =IF(J107<1," ",J107) ->  | P110: =IF(AE110<1," ",AC110) ->  | Q110: =IF(AE110<1," ",AD110) ->  | R110: =IF(AE110<1," ",AE110) ->  | S110: =IF(AE110<1," ",AF110) ->  | T110: =IF(AE110<1," ",MAX(D111:O111)) ->  | U110: =IF(AE110<1," ",RANK(BA110,BA$107:BA$113,1)) ->  | X110: =IF(AE110<1,0,2) -> 0 | Z110: =IF(J107<1,"",IF(D110>H107,2,IF(D110=H107,1,0))) ->  | AA110: =IF(N110<1,"",IF(L110>H113,2,IF(L110=H113,1,0))) ->  | AB110: =IF(AE107<1,2,IF(AE113<1,2)) -> 2 | AC110: =SUM(Z110:AB110) -> 2 | AD110: =SUM(D110,L110) -> 0 | AE110: =SUM(F110,N110) -> 0 | AF110: =IF(AE110<1," ",ROUNDDOWN(AD110/AE110,3)) ->  | AG110: =IF($BS107=1,$BP107,IF($BS108=1,$BP108,IF($BS109=1,$BP109,IF($BS110=1,$BP110,IF($BS111=1,$BP111,IF($BS112=1,$BP112,IF($BS113=1,$BP113,IF($BS114=1,$BP114)))))))) -> 0 | AH110: =IF($BS107=2,$BP107,IF($BS108=2,$BP108,IF($BS109=2,$BP109,IF($BS110=2,$BP110,IF($BS111=2,$BP111,IF($BS112=2,$BP112,IF($BS113=2,$BP113,IF($BS114=2,$BP114)))))))) -> 0 | AI110: =IF($BS107=3,$BP107,IF($BS108=3,$BP108,IF($BS109=3,$BP109,IF($BS110=3,$BP110,IF($BS111=3,$BP111,IF($BS112=3,$BP112,IF($BS113=3,$BP113,IF($BS114=3,$BP114)))))))) -> 0 | AJ110: =IF($BS107=4,$BP107,IF($BS108=4,$BP108,IF($BS109=4,$BP109,IF($BS110=4,$BP110,IF($BS111=4,$BP111,IF($BS112=4,$BP112,IF($BS113=4,$BP113,IF($BS114=4,$BP114)))))))) -> 0 | AK110: =IF($BS107=5,$BP107,IF($BS108=5,$BP108,IF($BS109=5,$BP109,IF($BS110=5,$BP110,IF($BS111=5,$BP111,IF($BS112=5,$BP112,IF($BS113=5,$BP113,IF($BS114=5,$BP114)))))))) -> 0 | AL110: =IF($BS107=6,$BP107,IF($BS108=6,$BP108,IF($BS109=6,$BP109,IF($BS110=6,$BP110,IF($BS111=6,$BP111,IF($BS112=6,$BP112,IF($BS113=6,$BP113,IF($BS114=6,$BP114)))))))) -> 0 | AM110: =IF($BS107=7,$BP107,IF($BS108=7,$BP108,IF($BS109=7,$BP109,IF($BS110=7,$BP110,IF($BS111=7,$BP111,IF($BS112=7,$BP112,IF($BS113=7,$BP113,IF($BS114=7,$BP114)))))))) -> 0 | AN110: =IF($BS107=8,$BP107,IF($BS108=8,$BP108,IF($BS109=8,$BP109,IF($BS110=8,$BP110,IF($BS111=8,$BP111,IF($BS112=8,$BP112,IF($BS113=8,$BP113,IF($BS114=8,$BP114)))))))) -> 0 | AO110: =RANK(AC110,AC$107:AC$113)*10000000000 -> 10000000000 | AP110: =IF(AE110<1,"",RANK(AF110,AF$107:AF$113)*1000000000) ->  | AQ110: =IF(AD$3<1,"",RANK(AD110,AD$107:AD$113)*100000000) ->  | AR110: =RANK(AG110,AG$107:AG$113)*10000000 -> 10000000 | AS110: =RANK(AH110,AH$107:AH$113)*1000000 -> 1000000 | AT110: =RANK(AI110,AI$107:AI$113)*100000 -> 100000 | AU110: =RANK(AJ110,AJ$107:AJ$113)*10000 -> 10000 | AV110: =RANK(AK110,AK$107:AK$113)*1000 -> 1000 | AW110: =RANK(AL110,AL$107:AL$113)*100 -> 100 | AX110: =RANK(AM110,AM$107:AM$113)*10 -> 10 | AY110: =RANK(AN110,AN$107:AN$113) -> 1 | AZ110: =IF(V110>0,1,0) -> 0 | BA110: =IF(AE110<1,"",SUM(AO110:AZ110)) ->  | BC110: =K108 -> 0 | BD110: 0.04 | BE110: 0.04 | BF110: 4 | BG110: 0.01 | BH110: 0.01 | BI110: =IF($BC110=$BC113,0.01) -> 0.01 | BJ110: =IF($BC110=$BC114,0.01) -> 0.01 | BN110: 0.04 | BP110: =G111 -> 0 | BQ110: 0.04 | BR110: 0.04 | BS110: 4 | BT110: 0.01 | BU110: 0.01 | BV110: =IF($BP110=$BP113,0.01) -> 0.01 | BW110: =IF($BP110=$BP114,0.01) -> 0.01 | CA110: 0.04 | CC110: =G114 -> 0 | CD110: 0.04 | CE110: 0.04 | CF110: 4 | CG110: 0.01 | CH110: 0.01 | CI110: =IF($CC110=$CC113,0.01) -> 0.01 | CJ110: =IF($CC110=$CC114,0.01) -> 0.01 | CN110: 0.04
BC111: =L108 -> 0 | BD111: 0.03 | BE111: 0.03 | BF111: 5 | BG111: 0.01 | BH111: 0.01 | BI111: =IF($BC111=$BC114,0.01) -> 0.01 | BN111: 0.03 | BP111: =L111 -> 0 | BQ111: 0.03 | BR111: 0.03 | BS111: 5 | BT111: 0.01 | BU111: 0.01 | BV111: =IF($BP111=$BP114,0.01) -> 0.01 | CA111: 0.03 | CC111: =H114 -> 0 | CD111: 0.03 | CE111: 0.03 | CF111: 5 | CG111: 0.01 | CH111: 0.01 | CI111: =IF($CC111=$CC114,0.01) -> 0.01 | CN111: 0.03
B112: =IF(B110="","",VLOOKUP(B110,licens,3,FALSE)) -> 239 | C112: =IF(B110="","",VLOOKUP(B110,licens,4,FALSE)) -> Ringsted BC | D112: =IF(J107<1," ",IF(J116<1,AF1,ROUNDDOWN(D110/F110,3))) ->  | L112: =IF(N110<1," ",IF(N117<1,AF1,ROUNDDOWN(L110/N110,3))) ->  | BC112: =M108 -> 0 | BD112: 0.02 | BE112: 0.02 | BF112: 6 | BG112: 0.01 | BH112: 0.01 | BN112: 0.02 | BP112: =M111 -> 0 | BQ112: 0.02 | BR112: 0.02 | BS112: 6 | BT112: 0.01 | BU112: 0.01 | CA112: 0.02 | CC112: =I114 -> 0 | CD112: 0.02 | CE112: 0.02 | CF112: 6 | CG112: 0.01 | CH112: 0.01 | CN112: 0.02
A113: 3 | B113: =lodtrækning!C38 ->  | C113: =IF(B113="","",VLOOKUP(B113,licens,2,FALSE)) ->  | F113: =IF(N107<1," ",N107) ->  | J113: =IF(N110<1," ",N110) ->  | P113: =IF(AE113<1," ",AC113) ->  | Q113: =IF(AE113<1," ",AD113) ->  | R113: =IF(AE113<1," ",AE113) ->  | S113: =IF(AE113<1," ",AF113) ->  | T113: =IF(AE113<1," ",MAX(D114:K114)) ->  | U113: =IF(AE113<1," ",RANK(BA113,BA$107:BA$113,1)) ->  | X113: =IF(AE113<1,0,2) -> 0 | Z113: =IF(N107<1,"",IF(D113>L107,2,IF(D113=L107,1,0))) ->  | AA113: =IF(N110<1,"",IF(H113>L110,2,IF(H113=L110,1,0))) ->  | AB113: =IF(AE107<1,2,IF(AE110<1,2)) -> 2 | AC113: =SUM(Z113:AB113) -> 2 | AD113: =SUM(D113,H113) -> 0 | AE113: =SUM(F113,J113) -> 0 | AF113: =IF(AE113<1," ",ROUNDDOWN(AD113/AE113,3)) ->  | AG113: =IF($CF107=1,$CC107,IF($CF108=1,$CC108,IF($CF109=1,$CC109,IF($CF110=1,$CC110,IF($CF111=1,$CC111,IF($CF112=1,$CC112,IF($CF113=1,$CC113,IF($CF114=1,$CC114)))))))) -> 0 | AH113: =IF($CF107=2,$CC107,IF($CF108=2,$CC108,IF($CF109=2,$CC109,IF($CF110=2,$CC110,IF($CF111=2,$CC111,IF($CF112=2,$CC112,IF($CF113=2,$CC113,IF($CF114=2,$CC114)))))))) -> 0 | AI113: =IF($CF107=3,$CC107,IF($CF108=3,$CC108,IF($CF109=3,$CC109,IF($CF110=3,$CC110,IF($CF111=3,$CC111,IF($CF112=3,$CC112,IF($CF113=3,$CC113,IF($CF114=3,$CC114)))))))) -> 0 | AJ113: =IF($CF107=4,$CC107,IF($CF108=4,$CC108,IF($CF109=4,$CC109,IF($CF110=4,$CC110,IF($CF111=4,$CC111,IF($CF112=4,$CC112,IF($CF113=4,$CC113,IF($CF114=4,$CC114)))))))) -> 0 | AK113: =IF($CF107=5,$CC107,IF($CF108=5,$CC108,IF($CF109=5,$CC109,IF($CF110=5,$CC110,IF($CF111=5,$CC111,IF($CF112=5,$CC112,IF($CF113=5,$CC113,IF($CF114=5,$CC114)))))))) -> 0 | AL113: =IF($CF107=6,$CC107,IF($CF108=6,$CC108,IF($CF109=6,$CC109,IF($CF110=6,$CC110,IF($CF111=6,$CC111,IF($CF112=6,$CC112,IF($CF113=6,$CC113,IF($CF114=6,$CC114)))))))) -> 0 | AM113: =IF($CF107=7,$CC107,IF($CF108=7,$CC108,IF($CF109=7,$CC109,IF($CF110=7,$CC110,IF($CF111=7,$CC111,IF($CF112=7,$CC112,IF($CF113=7,$CC113,IF($CF114=7,$CC114)))))))) -> 0 | AN113: =IF($CF107=8,$CC107,IF($CF108=8,$CC108,IF($CF109=8,$CC109,IF($CF110=8,$CC110,IF($CF111=8,$CC111,IF($CF112=8,$CC112,IF($CF113=8,$CC113,IF($CF114=8,$CC114)))))))) -> 0 | AO113: =RANK(AC113,AC$107:AC$113)*10000000000 -> 10000000000 | AP113: =IF(AE113<1,"",RANK(AF113,AF$107:AF$113)*1000000000) ->  | AQ113: =IF(AD$3<1,"",RANK(AD113,AD$107:AD$113)*100000000) ->  | AR113: =RANK(AG113,AG$107:AG$113)*10000000 -> 10000000 | AS113: =RANK(AH113,AH$107:AH$113)*1000000 -> 1000000 | AT113: =RANK(AI113,AI$107:AI$113)*100000 -> 100000 | AU113: =RANK(AJ113,AJ$107:AJ$113)*10000 -> 10000 | AV113: =RANK(AK113,AK$107:AK$113)*1000 -> 1000 | AW113: =RANK(AL113,AL$107:AL$113)*100 -> 100 | AX113: =RANK(AM113,AM$107:AM$113)*10 -> 10 | AY113: =RANK(AN113,AN$107:AN$113) -> 1 | AZ113: =IF(V113>0,1,0) -> 0 | BA113: =IF(AE113<1,"",SUM(AO113:AZ113)) ->  | BC113: =N108 -> 0 | BD113: 0.01 | BE113: 0.01 | BF113: 7 | BG113: 0.01 | BN113: 0.01 | BP113: =N111 -> 0 | BQ113: 0.01 | BR113: 0.01 | BS113: 7 | BT113: 0.01 | CA113: 0.01 | CC113: =J114 -> 0 | CD113: 0.01 | CE113: 0.01 | CF113: 7 | CG113: 0.01 | CN113: 0.01
BC114: =O108 -> 0 | BD114: 0 | BE114: 0 | BF114: 8 | BN114: 0 | BP114: =O111 -> 0 | BQ114: 0 | BR114: 0 | BS114: 8 | CA114: 0 | CC114: =K114 -> 0 | CD114: 0 | CE114: 0 | CF114: 8 | CN114: 0
B115: =IF(B113="","",VLOOKUP(B113,licens,3,FALSE)) ->  | C115: =IF(B113="","",VLOOKUP(B113,licens,4,FALSE)) ->  | D115: =IF(N107<1," ",IF(J117<1,AF1,ROUNDDOWN(D113/F113,3))) ->  | H115: =IF(N110<1," ",IF(N117<1,AF1,ROUNDDOWN(H113/J113,3))) -> 
H116: =IF($AA$4<1,0,IF(H107>0,1,0)) -> 0 | J116: =IF(H107<1,FALSE,IF(D110<1,FALSE,IF(MAX(H107,D110)<30,0))) -> FALSE
H117: =IF($AA$4<1,0,IF(L107>0,1,0)) -> 0 | J117: =IF(L107<1,FALSE,IF(D113<1,FALSE,IF(MAX(L107,D113)<30,0))) -> FALSE | L117: =IF($AA$4<1,0,IF(L110>0,1,0)) -> 0 | N117: =IF(L110<1,FALSE,IF(H113<1,FALSE,IF(MAX(L110,H113)<30,0))) -> FALSE
D119: kampe | F119: score | H119: ing. | J119: snit | L119: serie | T119: mp | Y119: MP | Z119: snit | AA119: snit | AB119: Score | AC119: Serie | AK119: I alt
A120: 1 | B120: =IF($U$9=A120,B$9,IF($U$12=A120,B$12,IF($U$15=A120,B$15,0))) -> 0 | C120: =IF($U$9=A120,C$9,IF($U$12=A120,C$12,IF($U$15=A120,C$15,0))) -> 0 | D120: =IF(U$9=$A120,X$9,IF(U$12=$A120,X$12,IF(U$15=$A120,X$15,0))) -> 0 | F120: =IF($U$9=$A120,AD$9,IF($U$12=$A120,AD$12,IF($U$15=$A120,AD$15,0))) -> 0 | H120: =IF($U$9=$A120,AE$9,IF($U$12=$A120,AE$12,IF($U$15=$A120,AE$15,0))) -> 0 | J120: =IF(H120<1,0,ROUNDDOWN(F120/H120,3)) -> 0 | L120: =IF($U$9=$A120,AG$9,IF($U$12=$A120,AG$12,IF($U$15=$A120,AG$15,0))) -> 0 | M120: 0 | N120: 0 | O120: 0 | P120: 0 | Q120: 0 | R120: 0 | S120: 0 | T120: =IF(U$9=$A120,AC$9,IF(U$12=$A120,AC$12,IF(U$15=$A120,AC$15,0))) -> 0 | X120: =SUM(T120:V120) -> 0 | Y120: =IF(AB$3<1,"",RANK(X120,X$120:X$134,0)*100000000000) -> 100000000000 | Z120: =IF($AB$3>0,"",RANK(J120,J$120:J$134,0)*10000000000) ->  | AA120: =IF($AB$3<1,"",RANK(J120,J$120:J$134,0)*1000000000) -> 1000000000 | AB120: =IF(AD$3<1,"",RANK(F120,F$120:F$134,0)*100000000) ->  | AC120: =RANK(L120,L$120:L$134,0)*10000000 -> 10000000 | AD120: =RANK(M120,M$120:M$134,0)*1000000 -> 1000000 | AE120: =RANK(N120,N$120:N$134,0)*100000 -> 100000 | AF120: =RANK(O120,O$120:O$134,0)*10000 -> 10000 | AG120: =RANK(P120,P$120:P$134,0)*1000 -> 1000 | AH120: =RANK(Q120,Q$120:Q$134,0)*100 -> 100 | AI120: =RANK(R120,R$120:R$134,0)*10 -> 10 | AJ120: =RANK(S120,S$120:S$134,0) -> 1 | AK120: =IF(H120<1,"",SUM(Y120:AJ120)) ->  | AL120: =IF(H120<1,"",RANK(AK120,AK$120:AK$167,1)) -> 
B121: =IF($U$9=A120,B$11,IF($U$12=A120,B$14,IF($U$15=A120,B$17,0))) -> 0 | C121: =IF($U$9=A120,C$11,IF($U$12=A120,C$14,IF($U$15=A120,C$17,0))) -> 0
B122: =IF($U$23=A120,B$23,IF($U$26=A120,B$26,IF($U$29=A120,B$29,0))) -> 0 | C122: =IF($U$23=A120,C$23,IF($U$26=A120,C$26,IF($U$29=A120,C$29,0))) -> 0 | D122: =IF(U$23=$A120,X$23,IF(U$26=$A120,X$26,IF(U$29=$A120,X$29,0))) -> 0 | F122: =IF($U$23=$A120,AD$23,IF($U$26=$A120,AD$26,IF($U$29=$A120,AD$29,0))) -> 0 | H122: =IF($U$23=$A120,AE$23,IF($U$26=$A120,AE$26,IF($U$29=$A120,AE$29,0))) -> 0 | J122: =IF(H122<1,0,ROUNDDOWN(F122/H122,3)) -> 0 | L122: =IF($U$23=$A120,AG$23,IF($U$26=$A120,AG$26,IF($U$29=$A120,AG$29,0))) -> 0 | M122: 0 | N122: 0 | O122: 0 | P122: 0 | Q122: 0 | R122: 0 | S122: 0 | T122: =IF(U$23=$A120,AC$23,IF(U$26=$A120,AC$26,IF(U$29=$A120,AC$29,0))) -> 0 | X122: =SUM(T122:V122) -> 0 | Y122: =IF(AB$3<1,"",RANK(X122,X$120:X$134,0)*100000000000) -> 100000000000 | Z122: =IF($AB$3>0,"",RANK(J122,J$120:J$134,0)*10000000000) ->  | AA122: =IF($AB$3<1,"",RANK(J122,J$120:J$134,0)*1000000000) -> 1000000000 | AB122: =IF(AD$3<1,"",RANK(F122,F$120:F$134,0)*100000000) ->  | AC122: =RANK(L122,L$120:L$134,0)*10000000 -> 10000000 | AD122: =RANK(M122,M$120:M$134,0)*1000000 -> 1000000 | AE122: =RANK(N122,N$120:N$134,0)*100000 -> 100000 | AF122: =RANK(O122,O$120:O$134,0)*10000 -> 10000 | AG122: =RANK(P122,P$120:P$134,0)*1000 -> 1000 | AH122: =RANK(Q122,Q$120:Q$134,0)*100 -> 100 | AI122: =RANK(R122,R$120:R$134,0)*10 -> 10 | AJ122: =RANK(S122,S$120:S$134,0) -> 1 | AK122: =IF(H122<1,"",SUM(Y122:AJ122)) ->  | AL122: =IF(H122<1,"",RANK(AK122,AK$120:AK$167,1)) -> 
B123: =IF($U$23=A120,B$25,IF($U$26=A120,B$28,IF($U$29=A120,B$31,0))) -> 0 | C123: =IF($U$23=A120,C$25,IF($U$26=A120,C$28,IF($U$29=A120,C$31,0))) -> 0
B124: =IF($U$37=A120,B$37,IF($U$40=A120,B$40,IF($U$43=A120,B$43,0))) -> 0 | C124: =IF($U$37=A120,C$37,IF($U$40=A120,C$40,IF($U$43=A120,C$43,0))) -> 0 | D124: =IF(U$37=$A120,X$37,IF(U$40=$A120,X$40,IF(U$43=$A120,X$43,0))) -> 0 | F124: =IF($U$37=$A120,AD$37,IF($U$40=$A120,AD$40,IF($U$43=$A120,AD$43,0))) -> 0 | H124: =IF($U$37=$A120,AE$37,IF($U$40=$A120,AE$40,IF($U$43=$A120,AE$43,0))) -> 0 | J124: =IF(H124<1,0,ROUNDDOWN(F124/H124,3)) -> 0 | L124: =IF($U$37=$A120,AG$37,IF($U$40=$A120,AG$40,IF($U$43=$A120,AG$43,0))) -> 0 | M124: 0 | N124: 0 | O124: 0 | P124: 0 | Q124: 0 | R124: 0 | S124: 0 | T124: =IF(U$37=$A120,AC$37,IF(U$40=$A120,AC$40,IF(U$43=$A120,AC$43,0))) -> 0 | X124: 0 | Y124: =IF(AB$3<1,"",RANK(X124,X$120:X$134,0)*100000000000) -> 100000000000 | Z124: =IF($AB$3>0,"",RANK(J124,J$120:J$134,0)*10000000000) ->  | AA124: =IF($AB$3<1,"",RANK(J124,J$120:J$134,0)*1000000000) -> 1000000000 | AB124: =IF(AD$3<1,"",RANK(F124,F$120:F$134,0)*100000000) ->  | AC124: =RANK(L124,L$120:L$134,0)*10000000 -> 10000000 | AD124: =RANK(M124,M$120:M$134,0)*1000000 -> 1000000 | AE124: =RANK(N124,N$120:N$134,0)*100000 -> 100000 | AF124: =RANK(O124,O$120:O$134,0)*10000 -> 10000 | AG124: =RANK(P124,P$120:P$134,0)*1000 -> 1000 | AH124: =RANK(Q124,Q$120:Q$134,0)*100 -> 100 | AI124: =RANK(R124,R$120:R$134,0)*10 -> 10 | AJ124: =RANK(S124,S$120:S$134,0) -> 1 | AK124: =IF(H124<1,"",SUM(Y124:AJ124)) ->  | AL124: =IF(H124<1,"",RANK(AK124,AK$120:AK$167,1)) -> 
B125: =IF($U$37=A120,B$39,IF($U$40=A120,B$42,IF($U$43=A120,B$45,0))) -> 0 | C125: =IF($U$37=A120,C$39,IF($U$40=A120,C$42,IF($U$43=A120,C$45,0))) -> 0
B126: =IF($U$51=A120,B$51,IF($U$54=A120,B$54,IF($U$57=A120,B$57,0))) -> 0 | C126: =IF($U$51=A120,C$51,IF($U$54=A120,C$54,IF($U$57=A120,C$57,0))) -> 0 | D126: =IF(U$51=$A120,X$51,IF(U$54=$A120,X$54,IF(U$57=$A120,X$57,0))) -> 0 | F126: =IF($U$51=$A120,AD$51,IF($U$54=$A120,AD$54,IF($U$57=$A120,AD$57,0))) -> 0 | H126: =IF($U$51=$A120,AE$51,IF($U$54=$A120,AE$54,IF($U$57=$A120,AE$57,0))) -> 0 | J126: =IF(H126<1,0,ROUNDDOWN(F126/H126,3)) -> 0 | L126: =IF($U$51=$A120,AG$51,IF($U$54=$A120,AG$54,IF($U$57=$A120,AG$57,0))) -> 0 | M126: 0 | N126: 0 | O126: 0 | P126: 0 | Q126: 0 | R126: 0 | S126: 0 | T126: =IF(U$51=$A120,AC$51,IF(U$54=$A120,AC$54,IF(U$57=$A120,AC$57,0))) -> 0 | X126: 0 | Y126: =IF(AB$3<1,"",RANK(X126,X$120:X$134,0)*100000000000) -> 100000000000 | Z126: =IF($AB$3>0,"",RANK(J126,J$120:J$134,0)*10000000000) ->  | AA126: =IF($AB$3<1,"",RANK(J126,J$120:J$134,0)*1000000000) -> 1000000000 | AB126: =IF(AD$3<1,"",RANK(F126,F$120:F$134,0)*100000000) ->  | AC126: =RANK(L126,L$120:L$134,0)*10000000 -> 10000000 | AD126: =RANK(M126,M$120:M$134,0)*1000000 -> 1000000 | AE126: =RANK(N126,N$120:N$134,0)*100000 -> 100000 | AF126: =RANK(O126,O$120:O$134,0)*10000 -> 10000 | AG126: =RANK(P126,P$120:P$134,0)*1000 -> 1000 | AH126: =RANK(Q126,Q$120:Q$134,0)*100 -> 100 | AI126: =RANK(R126,R$120:R$134,0)*10 -> 10 | AJ126: =RANK(S126,S$120:S$134,0) -> 1 | AK126: =IF(H126<1,"",SUM(Y126:AJ126)) ->  | AL126: =IF(H126<1,"",RANK(AK126,AK$120:AK$167,1)) -> 
B127: =IF($U$51=A120,B$53,IF($U$54=A120,B$56,IF($U$57=A120,B$59,0))) -> 0 | C127: =IF($U$51=A120,C$53,IF($U$54=A120,C$56,IF($U$57=A120,C$59,0))) -> 0
B128: =IF($U$65=A120,B$65,IF($U$68=A120,B$68,IF($U$71=A120,B$71,0))) -> 0 | C128: =IF($U$65=A120,C$65,IF($U$68=A120,C$68,IF($U$71=A120,C$71,0))) -> 0 | D128: =IF(U$65=$A120,X$65,IF(U$68=$A120,X$68,IF(U$71=$A120,X$71,0))) -> 0 | F128: =IF($U$65=$A120,AD$65,IF($U$68=$A120,AD$68,IF($U$71=$A120,AD$71,0))) -> 0 | H128: =IF($U$65=$A120,AE$65,IF($U$68=$A120,AE$68,IF($U$71=$A120,AE$71,0))) -> 0 | J128: =IF(H128<1,0,ROUNDDOWN(F128/H128,3)) -> 0 | L128: =IF($U$65=$A120,AG$65,IF($U$68=$A120,AG$68,IF($U$71=$A120,AG$71,0))) -> 0 | M128: 0 | N128: 0 | O128: 0 | P128: 0 | Q128: 0 | R128: 0 | S128: 0 | T128: =IF(U$65=$A120,AC$65,IF(U$68=$A120,AC$68,IF(U$71=$A120,AC$71,0))) -> 0 | X128: 0 | Y128: =IF(AB$3<1,"",RANK(X128,X$120:X$134,0)*100000000000) -> 100000000000 | Z128: =IF($AB$3>0,"",RANK(J128,J$120:J$134,0)*10000000000) ->  | AA128: =IF($AB$3<1,"",RANK(J128,J$120:J$134,0)*1000000000) -> 1000000000 | AB128: =IF(AD$3<1,"",RANK(F128,F$120:F$134,0)*100000000) ->  | AC128: =RANK(L128,L$120:L$134,0)*10000000 -> 10000000 | AD128: =RANK(M128,M$120:M$134,0)*1000000 -> 1000000 | AE128: =RANK(N128,N$120:N$134,0)*100000 -> 100000 | AF128: =RANK(O128,O$120:O$134,0)*10000 -> 10000 | AG128: =RANK(P128,P$120:P$134,0)*1000 -> 1000 | AH128: =RANK(Q128,Q$120:Q$134,0)*100 -> 100 | AI128: =RANK(R128,R$120:R$134,0)*10 -> 10 | AJ128: =RANK(S128,S$120:S$134,0) -> 1 | AK128: =IF(H128<1,"",SUM(Y128:AJ128)) ->  | AL128: =IF(H128<1,"",RANK(AK128,AK$120:AK$167,1)) -> 
B129: =IF($U$65=A120,B$67,IF($U$68=A120,B$70,IF($U$71=A120,B$73,0))) -> 0 | C129: =IF($U$65=A120,C$67,IF($U$68=A120,C$70,IF($U$71=A120,C$73,0))) -> 0
B130: =IF($U$79=A120,B$79,IF($U$82=A120,B$82,IF($U$85=A120,B$85,0))) -> 0 | C130: =IF($U$79=A120,C$79,IF($U$82=A120,C$82,IF($U$85=A120,C$85,0))) -> 0 | D130: =IF(U$79=$A120,X$79,IF(U$82=$A120,X$82,IF(U$85=$A120,X$85,0))) -> 0 | F130: =IF($U$79=$A120,AD$79,IF($U$82=$A120,AD$82,IF($U$85=$A120,AD$85,0))) -> 0 | H130: =IF($U$79=$A120,AE$79,IF($U$82=$A120,AE$82,IF($U$85=$A120,AE$85,0))) -> 0 | J130: =IF(H130<1,0,ROUNDDOWN(F130/H130,3)) -> 0 | L130: =IF($U$79=$A120,AG$79,IF($U$82=$A120,AG$82,IF($U$85=$A120,AG$85,0))) -> 0 | M130: 0 | N130: 0 | O130: 0 | P130: 0 | Q130: 0 | R130: 0 | S130: 0 | T130: =IF(U$79=$A120,AC$79,IF(U$82=$A120,AC$82,IF(U$85=$A120,AC$85,0))) -> 0 | X130: 0 | Y130: =IF(AB$3<1,"",RANK(X130,X$120:X$134,0)*100000000000) -> 100000000000 | Z130: =IF($AB$3>0,"",RANK(J130,J$120:J$134,0)*10000000000) ->  | AA130: =IF($AB$3<1,"",RANK(J130,J$120:J$134,0)*1000000000) -> 1000000000 | AB130: =IF(AD$3<1,"",RANK(F130,F$120:F$134,0)*100000000) ->  | AC130: =RANK(L130,L$120:L$134,0)*10000000 -> 10000000 | AD130: =RANK(M130,M$120:M$134,0)*1000000 -> 1000000 | AE130: =RANK(N130,N$120:N$134,0)*100000 -> 100000 | AF130: =RANK(O130,O$120:O$134,0)*10000 -> 10000 | AG130: =RANK(P130,P$120:P$134,0)*1000 -> 1000 | AH130: =RANK(Q130,Q$120:Q$134,0)*100 -> 100 | AI130: =RANK(R130,R$120:R$134,0)*10 -> 10 | AJ130: =RANK(S130,S$120:S$134,0) -> 1 | AK130: =IF(H130<1,"",SUM(Y130:AJ130)) ->  | AL130: =IF(H130<1,"",RANK(AK130,AK$120:AK$167,1)) -> 
B131: =IF($U$79=A120,B$81,IF($U$82=A120,B$84,IF($U$85=A120,B$87,0))) -> 0 | C131: =IF($U$79=A120,C$81,IF($U$82=A120,C$84,IF($U$85=A120,C$87,0))) -> 0
B132: =IF($U$93=A120,B$93,IF($U$96=A120,B$96,IF($U$99=A120,B$99,0))) -> 0 | C132: =IF($U$93=A120,C$93,IF($U$96=A120,C$96,IF($U$99=A120,C$99,0))) -> 0 | D132: =IF(U$93=$A120,X$93,IF(U$96=$A120,X$96,IF(U$99=$A120,X$99,0))) -> 0 | F132: =IF($U$93=$A120,AD$93,IF($U$96=$A120,AD$96,IF($U$99=$A120,AD$99,0))) -> 0 | H132: =IF($U$93=$A120,AE$93,IF($U$96=$A120,AE$96,IF($U$99=$A120,AE$99,0))) -> 0 | J132: =IF(H132<1,0,ROUNDDOWN(F132/H132,3)) -> 0 | L132: =IF($U$93=$A120,AG$93,IF($U$96=$A120,AG$96,IF($U$99=$A120,AG$99,0))) -> 0 | M132: 0 | N132: 0 | O132: 0 | P132: 0 | Q132: 0 | R132: 0 | S132: 0 | T132: =IF(U$93=$A120,AC$93,IF(U$96=$A120,AC$96,IF(U$99=$A120,AC$99,0))) -> 0 | X132: 0 | Y132: =IF(AB$3<1,"",RANK(X132,X$120:X$134,0)*100000000000) -> 100000000000 | Z132: =IF($AB$3>0,"",RANK(J132,J$120:J$134,0)*10000000000) ->  | AA132: =IF($AB$3<1,"",RANK(J132,J$120:J$134,0)*1000000000) -> 1000000000 | AB132: =IF(AD$3<1,"",RANK(F132,F$120:F$134,0)*100000000) ->  | AC132: =RANK(L132,L$120:L$134,0)*10000000 -> 10000000 | AD132: =RANK(M132,M$120:M$134,0)*1000000 -> 1000000 | AE132: =RANK(N132,N$120:N$134,0)*100000 -> 100000 | AF132: =RANK(O132,O$120:O$134,0)*10000 -> 10000 | AG132: =RANK(P132,P$120:P$134,0)*1000 -> 1000 | AH132: =RANK(Q132,Q$120:Q$134,0)*100 -> 100 | AI132: =RANK(R132,R$120:R$134,0)*10 -> 10 | AJ132: =RANK(S132,S$120:S$134,0) -> 1 | AK132: =IF(H132<1,"",SUM(Y132:AJ132)) ->  | AL132: =IF(H132<1,"",RANK(AK132,AK$120:AK$167,1)) -> 
B133: =IF($U$93=A120,B$95,IF($U$96=A120,B$98,IF($U$99=A120,B$101,0))) -> 0 | C133: =IF($U$93=A120,C$95,IF($U$96=A120,C$98,IF($U$99=A120,C$101,0))) -> 0
B134: =IF($U$107=A120,B$107,IF($U$110=A120,B$110,IF($U$113=A120,B$113,0))) -> 0 | C134: =IF($U$107=A120,C$107,IF($U$110=A120,C$110,IF($U$113=A120,C$113,0))) -> 0 | D134: =IF(U$107=$A120,X$107,IF(U$110=$A120,X$110,IF(U$113=$A120,X$113,0))) -> 0 | F134: =IF($U$107=$A120,AD$107,IF($U$110=$A120,AD$110,IF($U$113=$A120,AD$113,0))) -> 0 | H134: =IF($U$107=$A120,AE$107,IF($U$110=$A120,AE$110,IF($U$113=$A120,AE$113,0))) -> 0 | J134: =IF(H134<1,0,ROUNDDOWN(F134/H134,3)) -> 0 | L134: =IF($U$107=$A120,AG$107,IF($U$110=$A120,AG$110,IF($U$113=$A120,AG$113,0))) -> 0 | M134: 0 | N134: 0 | O134: 0 | P134: 0 | Q134: 0 | R134: 0 | S134: 0 | T134: =IF(U$107=$A120,AC$107,IF(U$110=$A120,AC$110,IF(U$113=$A120,AC$113,0))) -> 0 | X134: 0 | Y134: =IF(AB$3<1,"",RANK(X134,X$120:X$134,0)*100000000000) -> 100000000000 | Z134: =IF($AB$3>0,"",RANK(J134,J$120:J$134,0)*10000000000) ->  | AA134: =IF($AB$3<1,"",RANK(J134,J$120:J$134,0)*1000000000) -> 1000000000 | AB134: =IF(AD$3<1,"",RANK(F134,F$120:F$134,0)*100000000) ->  | AC134: =RANK(L134,L$120:L$134,0)*10000000 -> 10000000 | AD134: =RANK(M134,M$120:M$134,0)*1000000 -> 1000000 | AE134: =RANK(N134,N$120:N$134,0)*100000 -> 100000 | AF134: =RANK(O134,O$120:O$134,0)*10000 -> 10000 | AG134: =RANK(P134,P$120:P$134,0)*1000 -> 1000 | AH134: =RANK(Q134,Q$120:Q$134,0)*100 -> 100 | AI134: =RANK(R134,R$120:R$134,0)*10 -> 10 | AJ134: =RANK(S134,S$120:S$134,0) -> 1 | AK134: =IF(H134<1,"",SUM(Y134:AJ134)) ->  | AL134: =IF(H134<1,"",RANK(AK134,AK$120:AK$167,1)) -> 
B135: =IF($U$107=A120,B$109,IF($U$110=A120,B$112,IF($U$113=A120,B$115,0))) -> 0 | C135: =IF($U$107=A120,C$109,IF($U$110=A120,C$112,IF($U$113=A120,C$115,0))) -> 0
A136: 2 | B136: =IF($U$9=A136,B$9,IF($U$12=A136,B$12,IF($U$15=A136,B$15,0))) -> 0 | C136: =IF($U$9=A136,C$9,IF($U$12=A136,C$12,IF($U$15=A136,C$15,0))) -> 0 | D136: =IF(U$9=$A136,X$9,IF(U$12=$A136,X$12,IF(U$15=$A136,X$15,0))) -> 0 | F136: =IF($U$9=$A136,AD$9,IF($U$12=$A136,AD$12,IF($U$15=$A136,AD$15,0))) -> 0 | H136: =IF($U$9=$A136,AE$9,IF($U$12=$A136,AE$12,IF($U$15=$A136,AE$15,0))) -> 0 | J136: =IF(H136<1,0,ROUNDDOWN(F136/H136,3)) -> 0 | L136: =IF($U$9=$A136,AG$9,IF($U$12=$A136,AG$12,IF($U$15=$A136,AG$15,0))) -> 0 | M136: 0 | N136: 0 | O136: 0 | P136: 0 | Q136: 0 | R136: 0 | S136: 0 | T136: =IF(U$9=$A136,AC$9,IF(U$12=$A136,AC$12,IF(U$15=$A136,AC$15,0))) -> 0 | X136: 0 | Y136: =IF(AB$3<1,"",RANK(X136,X$136:X$150,0)*1000000000000) -> 1000000000000 | Z136: =IF($AB$3>0,"",RANK(J136,J$136:J$150,0)*100000000000) ->  | AA136: =IF($AB$3<1,"",RANK(J136,J$136:J$150,0)*1000000000) -> 1000000000 | AB136: =IF(AD$3<1,"",RANK(F136,F$136:F$150,0)*100000000) ->  | AC136: =RANK(L136,L$136:L$150,0)*10000000 -> 10000000 | AD136: =RANK(M136,M$136:M$150,0)*1000000 -> 1000000 | AE136: =RANK(N136,N$136:N$150,0)*100000 -> 100000 | AF136: =RANK(O136,O$136:O$150,0)*10000 -> 10000 | AG136: =RANK(P136,P$136:P$150,0)*1000 -> 1000 | AH136: =RANK(Q136,Q$136:Q$150,0)*100 -> 100 | AI136: =RANK(R136,R$136:R$150,0)*10 -> 10 | AJ136: =RANK(S136,S$136:S$150,0) -> 1 | AK136: =IF(H136<1,"",SUM(Y136:AJ136)) ->  | AL136: =IF(H136<1,"",RANK(AK136,AK$120:AK$167,1)) -> 
B137: =IF($U$9=A136,B$11,IF($U$12=A136,B$14,IF($U$15=A136,B$17,0))) -> 0 | C137: =IF($U$9=A136,C$11,IF($U$12=A136,C$14,IF($U$15=A136,C$17,0))) -> 0
B138: =IF($U$23=A136,B$23,IF($U$26=A136,B$26,IF($U$29=A136,B$29,0))) -> 0 | C138: =IF($U$23=A136,C$23,IF($U$26=A136,C$26,IF($U$29=A136,C$29,0))) -> 0 | D138: =IF(U$23=$A136,X$23,IF(U$26=$A136,X$26,IF(U$29=$A136,X$29,0))) -> 0 | F138: =IF($U$23=$A136,AD$23,IF($U$26=$A136,AD$26,IF($U$29=$A136,AD$29,0))) -> 0 | H138: =IF($U$23=$A136,AE$23,IF($U$26=$A136,AE$26,IF($U$29=$A136,AE$29,0))) -> 0 | J138: =IF(H138<1,0,ROUNDDOWN(F138/H138,3)) -> 0 | L138: =IF($U$23=$A136,AG$23,IF($U$26=$A136,AG$26,IF($U$29=$A136,AG$29,0))) -> 0 | M138: 0 | N138: 0 | O138: 0 | P138: 0 | Q138: 0 | R138: 0 | S138: 0 | T138: =IF(U$23=$A136,AC$23,IF(U$26=$A136,AC$26,IF(U$29=$A136,AC$29,0))) -> 0 | X138: 0 | Y138: =IF(AB$3<1,"",RANK(X138,X$136:X$150,0)*1000000000000) -> 1000000000000 | Z138: =IF($AB$3>0,"",RANK(J138,J$136:J$150,0)*100000000000) ->  | AA138: =IF($AB$3<1,"",RANK(J138,J$136:J$150,0)*1000000000) -> 1000000000 | AB138: =IF(AD$3<1,"",RANK(F138,F$136:F$150,0)*100000000) ->  | AC138: =RANK(L138,L$136:L$150,0)*10000000 -> 10000000 | AD138: =RANK(M138,M$136:M$150,0)*1000000 -> 1000000 | AE138: =RANK(N138,N$136:N$150,0)*100000 -> 100000 | AF138: =RANK(O138,O$136:O$150,0)*10000 -> 10000 | AG138: =RANK(P138,P$136:P$150,0)*1000 -> 1000 | AH138: =RANK(Q138,Q$136:Q$150,0)*100 -> 100 | AI138: =RANK(R138,R$136:R$150,0)*10 -> 10 | AJ138: =RANK(S138,S$136:S$150,0) -> 1 | AK138: =IF(H138<1,"",SUM(Y138:AJ138)) ->  | AL138: =IF(H138<1,"",RANK(AK138,AK$120:AK$167,1)) -> 
B139: =IF($U$23=A136,B$25,IF($U$26=A136,B$28,IF($U$29=A136,B$31,0))) -> 0 | C139: =IF($U$23=A136,C$25,IF($U$26=A136,C$28,IF($U$29=A136,C$31,0))) -> 0
B140: =IF($U$37=A136,B$37,IF($U$40=A136,B$40,IF($U$43=A136,B$43,0))) -> 0 | C140: =IF($U$37=A136,C$37,IF($U$40=A136,C$40,IF($U$43=A136,C$43,0))) -> 0 | D140: =IF(U$37=$A136,X$37,IF(U$40=$A136,X$40,IF(U$43=$A136,X$43,0))) -> 0 | F140: =IF($U$37=$A136,AD$37,IF($U$40=$A136,AD$40,IF($U$43=$A136,AD$43,0))) -> 0 | H140: =IF($U$37=$A136,AE$37,IF($U$40=$A136,AE$40,IF($U$43=$A136,AE$43,0))) -> 0 | J140: =IF(H140<1,0,ROUNDDOWN(F140/H140,3)) -> 0 | L140: =IF($U$37=$A136,AG$37,IF($U$40=$A136,AG$40,IF($U$43=$A136,AG$43,0))) -> 0 | M140: 0 | N140: 0 | O140: 0 | P140: 0 | Q140: 0 | R140: 0 | S140: 0 | T140: =IF(U$37=$A136,AC$37,IF(U$40=$A136,AC$40,IF(U$43=$A136,AC$43,0))) -> 0 | X140: 0 | Y140: =IF(AB$3<1,"",RANK(X140,X$136:X$150,0)*1000000000000) -> 1000000000000 | Z140: =IF($AB$3>0,"",RANK(J140,J$136:J$150,0)*100000000000) ->  | AA140: =IF($AB$3<1,"",RANK(J140,J$136:J$150,0)*1000000000) -> 1000000000 | AB140: =IF(AD$3<1,"",RANK(F140,F$136:F$150,0)*100000000) ->  | AC140: =RANK(L140,L$136:L$150,0)*10000000 -> 10000000 | AD140: =RANK(M140,M$136:M$150,0)*1000000 -> 1000000 | AE140: =RANK(N140,N$136:N$150,0)*100000 -> 100000 | AF140: =RANK(O140,O$136:O$150,0)*10000 -> 10000 | AG140: =RANK(P140,P$136:P$150,0)*1000 -> 1000 | AH140: =RANK(Q140,Q$136:Q$150,0)*100 -> 100 | AI140: =RANK(R140,R$136:R$150,0)*10 -> 10 | AJ140: =RANK(S140,S$136:S$150,0) -> 1 | AK140: =IF(H140<1,"",SUM(Y140:AJ140)) ->  | AL140: =IF(H140<1,"",RANK(AK140,AK$120:AK$167,1)) -> 
B141: =IF($U$37=A136,B$39,IF($U$40=A136,B$42,IF($U$43=A136,B$45,0))) -> 0 | C141: =IF($U$37=A136,C$39,IF($U$40=A136,C$42,IF($U$43=A136,C$45,0))) -> 0
B142: =IF($U$51=A136,B$51,IF($U$54=A136,B$54,IF($U$57=A136,B$57,0))) -> 0 | C142: =IF($U$51=A136,C$51,IF($U$54=A136,C$54,IF($U$57=A136,C$57,0))) -> 0 | D142: =IF(U$51=$A136,X$51,IF(U$54=$A136,X$54,IF(U$57=$A136,X$57,0))) -> 0 | F142: =IF($U$51=$A136,AD$51,IF($U$54=$A136,AD$54,IF($U$57=$A136,AD$57,0))) -> 0 | H142: =IF($U$51=$A136,AE$51,IF($U$54=$A136,AE$54,IF($U$57=$A136,AE$57,0))) -> 0 | J142: =IF(H142<1,0,ROUNDDOWN(F142/H142,3)) -> 0 | L142: =IF($U$51=$A136,AG$51,IF($U$54=$A136,AG$54,IF($U$57=$A136,AG$57,0))) -> 0 | M142: 0 | N142: 0 | O142: 0 | P142: 0 | Q142: 0 | R142: 0 | S142: 0 | T142: =IF(U$51=$A136,AC$51,IF(U$54=$A136,AC$54,IF(U$57=$A136,AC$57,0))) -> 0 | X142: 0 | Y142: =IF(AB$3<1,"",RANK(X142,X$136:X$150,0)*1000000000000) -> 1000000000000 | Z142: =IF($AB$3>0,"",RANK(J142,J$136:J$150,0)*100000000000) ->  | AA142: =IF($AB$3<1,"",RANK(J142,J$136:J$150,0)*1000000000) -> 1000000000 | AB142: =IF(AD$3<1,"",RANK(F142,F$136:F$150,0)*100000000) ->  | AC142: =RANK(L142,L$136:L$150,0)*10000000 -> 10000000 | AD142: =RANK(M142,M$136:M$150,0)*1000000 -> 1000000 | AE142: =RANK(N142,N$136:N$150,0)*100000 -> 100000 | AF142: =RANK(O142,O$136:O$150,0)*10000 -> 10000 | AG142: =RANK(P142,P$136:P$150,0)*1000 -> 1000 | AH142: =RANK(Q142,Q$136:Q$150,0)*100 -> 100 | AI142: =RANK(R142,R$136:R$150,0)*10 -> 10 | AJ142: =RANK(S142,S$136:S$150,0) -> 1 | AK142: =IF(H142<1,"",SUM(Y142:AJ142)) ->  | AL142: =IF(H142<1,"",RANK(AK142,AK$120:AK$167,1)) -> 
B143: =IF($U$51=A136,B$53,IF($U$54=A136,B$56,IF($U$57=A136,B$59,0))) -> 0 | C143: =IF($U$51=A136,C$53,IF($U$54=A136,C$56,IF($U$57=A136,C$59,0))) -> 0
B144: =IF($U$65=A136,B$65,IF($U$68=A136,B$68,IF($U$71=A136,B$71,0))) -> 0 | C144: =IF($U$65=A136,C$65,IF($U$68=A136,C$68,IF($U$71=A136,C$71,0))) -> 0 | D144: =IF(U$65=$A136,X$65,IF(U$68=$A136,X$68,IF(U$71=$A136,X$71,0))) -> 0 | F144: =IF($U$65=$A136,AD$65,IF($U$68=$A136,AD$68,IF($U$71=$A136,AD$71,0))) -> 0 | H144: =IF($U$65=$A136,AE$65,IF($U$68=$A136,AE$68,IF($U$71=$A136,AE$71,0))) -> 0 | J144: =IF(H144<1,0,ROUNDDOWN(F144/H144,3)) -> 0 | L144: =IF($U$65=$A136,AG$65,IF($U$68=$A136,AG$68,IF($U$71=$A136,AG$71,0))) -> 0 | M144: 0 | N144: 0 | O144: 0 | P144: 0 | Q144: 0 | R144: 0 | S144: 0 | T144: =IF(U$65=$A136,AC$65,IF(U$68=$A136,AC$68,IF(U$71=$A136,AC$71,0))) -> 0 | X144: 0 | Y144: =IF(AB$3<1,"",RANK(X144,X$136:X$150,0)*1000000000000) -> 1000000000000 | Z144: =IF($AB$3>0,"",RANK(J144,J$136:J$150,0)*100000000000) ->  | AA144: =IF($AB$3<1,"",RANK(J144,J$136:J$150,0)*1000000000) -> 1000000000 | AB144: =IF(AD$3<1,"",RANK(F144,F$136:F$150,0)*100000000) ->  | AC144: =RANK(L144,L$136:L$150,0)*10000000 -> 10000000 | AD144: =RANK(M144,M$136:M$150,0)*1000000 -> 1000000 | AE144: =RANK(N144,N$136:N$150,0)*100000 -> 100000 | AF144: =RANK(O144,O$136:O$150,0)*10000 -> 10000 | AG144: =RANK(P144,P$136:P$150,0)*1000 -> 1000 | AH144: =RANK(Q144,Q$136:Q$150,0)*100 -> 100 | AI144: =RANK(R144,R$136:R$150,0)*10 -> 10 | AJ144: =RANK(S144,S$136:S$150,0) -> 1 | AK144: =IF(H144<1,"",SUM(Y144:AJ144)) ->  | AL144: =IF(H144<1,"",RANK(AK144,AK$120:AK$167,1)) -> 
B145: =IF($U$65=A136,B$67,IF($U$68=A136,B$70,IF($U$71=A136,B$73,0))) -> 0 | C145: =IF($U$65=A136,C$67,IF($U$68=A136,C$70,IF($U$71=A136,C$73,0))) -> 0
B146: =IF($U$79=A136,B$79,IF($U$82=A136,B$82,IF($U$85=A136,B$85,0))) -> 0 | C146: =IF($U$79=A136,C$79,IF($U$82=A136,C$82,IF($U$85=A136,C$85,0))) -> 0 | D146: =IF(U$79=$A136,X$79,IF(U$82=$A136,X$82,IF(U$85=$A136,X$85,0))) -> 0 | F146: =IF($U$79=$A136,AD$79,IF($U$82=$A136,AD$82,IF($U$85=$A136,AD$85,0))) -> 0 | H146: =IF($U$79=$A136,AE$79,IF($U$82=$A136,AE$82,IF($U$85=$A136,AE$85,0))) -> 0 | J146: =IF(H146<1,0,ROUNDDOWN(F146/H146,3)) -> 0 | L146: =IF($U$79=$A136,AG$79,IF($U$82=$A136,AG$82,IF($U$85=$A136,AG$85,0))) -> 0 | M146: 0 | N146: 0 | O146: 0 | P146: 0 | Q146: 0 | R146: 0 | S146: 0 | T146: =IF(U$79=$A136,AC$79,IF(U$82=$A136,AC$82,IF(U$85=$A136,AC$85,0))) -> 0 | X146: 0 | Y146: =IF(AB$3<1,"",RANK(X146,X$136:X$150,0)*1000000000000) -> 1000000000000 | Z146: =IF($AB$3>0,"",RANK(J146,J$136:J$150,0)*100000000000) ->  | AA146: =IF($AB$3<1,"",RANK(J146,J$136:J$150,0)*1000000000) -> 1000000000 | AB146: =IF(AD$3<1,"",RANK(F146,F$136:F$150,0)*100000000) ->  | AC146: =RANK(L146,L$136:L$150,0)*10000000 -> 10000000 | AD146: =RANK(M146,M$136:M$150,0)*1000000 -> 1000000 | AE146: =RANK(N146,N$136:N$150,0)*100000 -> 100000 | AF146: =RANK(O146,O$136:O$150,0)*10000 -> 10000 | AG146: =RANK(P146,P$136:P$150,0)*1000 -> 1000 | AH146: =RANK(Q146,Q$136:Q$150,0)*100 -> 100 | AI146: =RANK(R146,R$136:R$150,0)*10 -> 10 | AJ146: =RANK(S146,S$136:S$150,0) -> 1 | AK146: =IF(H146<1,"",SUM(Y146:AJ146)) ->  | AL146: =IF(H146<1,"",RANK(AK146,AK$120:AK$167,1)) -> 
B147: =IF($U$79=A136,B$81,IF($U$82=A136,B$84,IF($U$85=A136,B$87,0))) -> 0 | C147: =IF($U$79=A136,C$81,IF($U$82=A136,C$84,IF($U$85=A136,C$87,0))) -> 0
B148: =IF($U$93=A136,B$93,IF($U$96=A136,B$96,IF($U$99=A136,B$99,0))) -> 0 | C148: =IF($U$93=A136,C$93,IF($U$96=A136,C$96,IF($U$99=A136,C$99,0))) -> 0 | D148: =IF(U$93=$A136,X$93,IF(U$96=$A136,X$96,IF(U$99=$A136,X$99,0))) -> 0 | F148: =IF($U$93=$A136,AD$93,IF($U$96=$A136,AD$96,IF($U$99=$A136,AD$99,0))) -> 0 | H148: =IF($U$93=$A136,AE$93,IF($U$96=$A136,AE$96,IF($U$99=$A136,AE$99,0))) -> 0 | J148: =IF(H148<1,0,ROUNDDOWN(F148/H148,3)) -> 0 | L148: =IF($U$93=$A136,AG$93,IF($U$96=$A136,AG$96,IF($U$99=$A136,AG$99,0))) -> 0 | M148: 0 | N148: 0 | O148: 0 | P148: 0 | Q148: 0 | R148: 0 | S148: 0 | T148: =IF(U$93=$A136,AC$93,IF(U$96=$A136,AC$96,IF(U$99=$A136,AC$99,0))) -> 0 | X148: 0 | Y148: =IF(AB$3<1,"",RANK(X148,X$136:X$150,0)*1000000000000) -> 1000000000000 | Z148: =IF($AB$3>0,"",RANK(J148,J$136:J$150,0)*100000000000) ->  | AA148: =IF($AB$3<1,"",RANK(J148,J$136:J$150,0)*1000000000) -> 1000000000 | AB148: =IF(AD$3<1,"",RANK(F148,F$136:F$150,0)*100000000) ->  | AC148: =RANK(L148,L$136:L$150,0)*10000000 -> 10000000 | AD148: =RANK(M148,M$136:M$150,0)*1000000 -> 1000000 | AE148: =RANK(N148,N$136:N$150,0)*100000 -> 100000 | AF148: =RANK(O148,O$136:O$150,0)*10000 -> 10000 | AG148: =RANK(P148,P$136:P$150,0)*1000 -> 1000 | AH148: =RANK(Q148,Q$136:Q$150,0)*100 -> 100 | AI148: =RANK(R148,R$136:R$150,0)*10 -> 10 | AJ148: =RANK(S148,S$136:S$150,0) -> 1 | AK148: =IF(H148<1,"",SUM(Y148:AJ148)) ->  | AL148: =IF(H148<1,"",RANK(AK148,AK$120:AK$167,1)) -> 
B149: =IF($U$93=A136,B$95,IF($U$96=A136,B$98,IF($U$99=A136,B$101,0))) -> 0 | C149: =IF($U$93=A136,C$95,IF($U$96=A136,C$98,IF($U$99=A136,C$101,0))) -> 0
B150: =IF($U$107=A136,B$107,IF($U$110=A136,B$110,IF($U$113=A136,B$113,0))) -> 0 | C150: =IF($U$107=A136,C$107,IF($U$110=A136,C$110,IF($U$113=A136,C$113,0))) -> 0 | D150: =IF(U$107=$A136,X$107,IF(U$110=$A136,X$110,IF(U$113=$A136,X$113,0))) -> 0 | F150: =IF($U$107=$A136,AD$107,IF($U$110=$A136,AD$110,IF($U$113=$A136,AD$113,0))) -> 0 | H150: =IF($U$107=$A136,AE$107,IF($U$110=$A136,AE$110,IF($U$113=$A136,AE$113,0))) -> 0 | J150: =IF(H150<1,0,ROUNDDOWN(F150/H150,3)) -> 0 | L150: =IF($U$107=$A136,AG$107,IF($U$110=$A136,AG$110,IF($U$113=$A136,AG$113,0))) -> 0 | M150: 0 | N150: 0 | O150: 0 | P150: 0 | Q150: 0 | R150: 0 | S150: 0 | T150: =IF(U$107=$A136,AC$107,IF(U$110=$A136,AC$110,IF(U$113=$A136,AC$113,0))) -> 0 | X150: 0 | Y150: =IF(AB$3<1,"",RANK(X150,X$136:X$150,0)*1000000000000) -> 1000000000000 | Z150: =IF($AB$3>0,"",RANK(J150,J$136:J$150,0)*100000000000) ->  | AA150: =IF($AB$3<1,"",RANK(J150,J$136:J$150,0)*1000000000) -> 1000000000 | AB150: =IF(AD$3<1,"",RANK(F150,F$136:F$150,0)*100000000) ->  | AC150: =RANK(L150,L$136:L$150,0)*10000000 -> 10000000 | AD150: =RANK(M150,M$136:M$150,0)*1000000 -> 1000000 | AE150: =RANK(N150,N$136:N$150,0)*100000 -> 100000 | AF150: =RANK(O150,O$136:O$150,0)*10000 -> 10000 | AG150: =RANK(P150,P$136:P$150,0)*1000 -> 1000 | AH150: =RANK(Q150,Q$136:Q$150,0)*100 -> 100 | AI150: =RANK(R150,R$136:R$150,0)*10 -> 10 | AJ150: =RANK(S150,S$136:S$150,0) -> 1 | AK150: =IF(H150<1,"",SUM(Y150:AJ150)) ->  | AL150: =IF(H150<1,"",RANK(AK150,AK$120:AK$167,1)) -> 
B151: =IF($U$107=A136,B$109,IF($U$110=A136,B$112,IF($U$113=A136,B$115,0))) -> 0 | C151: =IF($U$107=A136,C$109,IF($U$110=A136,C$112,IF($U$113=A136,C$115,0))) -> 0
A152: 3 | B152: =IF($U$9=A152,B$9,IF($U$12=A152,B$12,IF($U$15=A152,B$15,0))) -> 0 | C152: =IF($U$9=A152,C$9,IF($U$12=A152,C$12,IF($U$15=A152,C$15,0))) -> 0 | D152: =IF(U$9=$A152,X$9,IF(U$12=$A152,X$12,IF(U$15=$A152,X$15,0))) -> 0 | F152: =IF($U$9=$A152,AD$9,IF($U$12=$A152,AD$12,IF($U$15=$A152,AD$15,0))) -> 0 | H152: =IF($U$9=$A152,AE$9,IF($U$12=$A152,AE$12,IF($U$15=$A152,AE$15,0))) -> 0 | J152: =IF(H152<1,0,ROUNDDOWN(F152/H152,3)) -> 0 | L152: =IF($U$9=$A152,AG$9,IF($U$12=$A152,AG$12,IF($U$15=$A152,AG$15,0))) -> 0 | M152: 0 | N152: 0 | O152: 0 | P152: 0 | Q152: 0 | R152: 0 | S152: 0 | T152: =IF(U$9=$A152,AC$9,IF(U$12=$A152,AC$12,IF(U$15=$A152,AC$15,0))) -> 0 | Y152: =IF(AB$3<1,"",RANK(T152,T$152:T$166,0)*10000000000000) -> 10000000000000 | Z152: =IF($AB$3>0,"",RANK(J152,J$152:J$166,0)*1000000000000) ->  | AA152: =IF($AB$3<1,"",RANK(J152,J$152:J$166,0)*1000000000) -> 1000000000 | AB152: =IF(AD$3<1,"",RANK(F152,F$152:F$166,0)*100000000) ->  | AC152: =RANK(L152,L$152:L$166,0)*10000000 -> 10000000 | AD152: =RANK(M152,M$152:M$166,0)*1000000 -> 1000000 | AE152: =RANK(N152,N$152:N$166,0)*100000 -> 100000 | AF152: =RANK(O152,O$152:O$166,0)*10000 -> 10000 | AG152: =RANK(P152,P$152:P$166,0)*1000 -> 1000 | AH152: =RANK(Q152,Q$152:Q$166,0)*100 -> 100 | AI152: =RANK(R152,R$152:R$166,0)*10 -> 10 | AJ152: =RANK(S152,S$152:S$166,0) -> 1 | AK152: =IF(H152<1,"",SUM(Y152:AJ152)) ->  | AL152: =IF(H152<1,"",RANK(AK152,AK$120:AK$167,1)) -> 
B153: =IF($U$9=A152,B$11,IF($U$12=A152,B$14,IF($U$15=A152,B$17,0))) -> 0 | C153: =IF($U$9=A152,C$11,IF($U$12=A152,C$14,IF($U$15=A152,C$17,0))) -> 0
B154: =IF($U$23=A152,B$23,IF($U$26=A152,B$26,IF($U$29=A152,B$29,0))) -> 0 | C154: =IF($U$23=A152,C$23,IF($U$26=A152,C$26,IF($U$29=A152,C$29,0))) -> 0 | D154: =IF(U$23=$A152,X$23,IF(U$26=$A152,X$26,IF(U$29=$A152,X$29,0))) -> 0 | F154: =IF($U$23=$A152,AD$23,IF($U$26=$A152,AD$26,IF($U$29=$A152,AD$29,0))) -> 0 | H154: =IF($U$23=$A152,AE$23,IF($U$26=$A152,AE$26,IF($U$29=$A152,AE$29,0))) -> 0 | J154: =IF(H154<1,0,ROUNDDOWN(F154/H154,3)) -> 0 | L154: =IF($U$23=$A152,AG$23,IF($U$26=$A152,AG$26,IF($U$29=$A152,AG$29,0))) -> 0 | M154: 0 | N154: 0 | O154: 0 | P154: 0 | Q154: 0 | R154: 0 | S154: 0 | T154: =IF(U$23=$A152,AC$23,IF(U$26=$A152,AC$26,IF(U$29=$A152,AC$29,0))) -> 0 | Y154: =IF(AB$3<1,"",RANK(T154,T$152:T$166,0)*10000000000000) -> 10000000000000 | Z154: =IF($AB$3>0,"",RANK(J154,J$152:J$166,0)*1000000000000) ->  | AA154: =IF($AB$3<1,"",RANK(J154,J$152:J$166,0)*1000000000) -> 1000000000 | AB154: =IF(AD$3<1,"",RANK(F154,F$152:F$166,0)*100000000) ->  | AC154: =RANK(L154,L$152:L$166,0)*10000000 -> 10000000 | AD154: =RANK(M154,M$152:M$166,0)*1000000 -> 1000000 | AE154: =RANK(N154,N$152:N$166,0)*100000 -> 100000 | AF154: =RANK(O154,O$152:O$166,0)*10000 -> 10000 | AG154: =RANK(P154,P$152:P$166,0)*1000 -> 1000 | AH154: =RANK(Q154,Q$152:Q$166,0)*100 -> 100 | AI154: =RANK(R154,R$152:R$166,0)*10 -> 10 | AJ154: =RANK(S154,S$152:S$166,0) -> 1 | AK154: =IF(H154<1,"",SUM(Y154:AJ154)) ->  | AL154: =IF(H154<1,"",RANK(AK154,AK$120:AK$167,1)) -> 
B155: =IF($U$23=A152,B$25,IF($U$26=A152,B$28,IF($U$29=A152,B$31,0))) -> 0 | C155: =IF($U$23=A152,C$25,IF($U$26=A152,C$28,IF($U$29=A152,C$31,0))) -> 0
B156: =IF($U$37=A152,B$37,IF($U$40=A152,B$40,IF($U$43=A152,B$43,0))) -> 0 | C156: =IF($U$37=A152,C$37,IF($U$40=A152,C$40,IF($U$43=A152,C$43,0))) -> 0 | D156: =IF(U$37=$A152,X$37,IF(U$40=$A152,X$40,IF(U$43=$A152,X$43,0))) -> 0 | F156: =IF($U$37=$A152,AD$37,IF($U$40=$A152,AD$40,IF($U$43=$A152,AD$43,0))) -> 0 | H156: =IF($U$37=$A152,AE$37,IF($U$40=$A152,AE$40,IF($U$43=$A152,AE$43,0))) -> 0 | J156: =IF(H156<1,0,ROUNDDOWN(F156/H156,3)) -> 0 | L156: =IF($U$37=$A152,AG$37,IF($U$40=$A152,AG$40,IF($U$43=$A152,AG$43,0))) -> 0 | M156: 0 | N156: 0 | O156: 0 | P156: 0 | Q156: 0 | R156: 0 | S156: 0 | T156: =IF(U$37=$A152,AC$37,IF(U$40=$A152,AC$40,IF(U$43=$A152,AC$43,0))) -> 0 | Y156: =IF(AB$3<1,"",RANK(T156,T$152:T$166,0)*10000000000000) -> 10000000000000 | Z156: =IF($AB$3>0,"",RANK(J156,J$152:J$166,0)*1000000000000) ->  | AA156: =IF($AB$3<1,"",RANK(J156,J$152:J$166,0)*1000000000) -> 1000000000 | AB156: =IF(AD$3<1,"",RANK(F156,F$152:F$166,0)*100000000) ->  | AC156: =RANK(L156,L$152:L$166,0)*10000000 -> 10000000 | AD156: =RANK(M156,M$152:M$166,0)*1000000 -> 1000000 | AE156: =RANK(N156,N$152:N$166,0)*100000 -> 100000 | AF156: =RANK(O156,O$152:O$166,0)*10000 -> 10000 | AG156: =RANK(P156,P$152:P$166,0)*1000 -> 1000 | AH156: =RANK(Q156,Q$152:Q$166,0)*100 -> 100 | AI156: =RANK(R156,R$152:R$166,0)*10 -> 10 | AJ156: =RANK(S156,S$152:S$166,0) -> 1 | AK156: =IF(H156<1,"",SUM(Y156:AJ156)) ->  | AL156: =IF(H156<1,"",RANK(AK156,AK$120:AK$167,1)) -> 
B157: =IF($U$37=A152,B$39,IF($U$40=A152,B$42,IF($U$43=A152,B$45,0))) -> 0 | C157: =IF($U$37=A152,C$39,IF($U$40=A152,C$42,IF($U$43=A152,C$45,0))) -> 0
B158: =IF($U$51=A152,B$51,IF($U$54=A152,B$54,IF($U$57=A152,B$57,0))) -> 0 | C158: =IF($U$51=A152,C$51,IF($U$54=A152,C$54,IF($U$57=A152,C$57,0))) -> 0 | D158: =IF(U$51=$A152,X$51,IF(U$54=$A152,X$54,IF(U$57=$A152,X$57,0))) -> 0 | F158: =IF($U$51=$A152,AD$51,IF($U$54=$A152,AD$54,IF($U$57=$A152,AD$57,0))) -> 0 | H158: =IF($U$51=$A152,AE$51,IF($U$54=$A152,AE$54,IF($U$57=$A152,AE$57,0))) -> 0 | J158: =IF(H158<1,0,ROUNDDOWN(F158/H158,3)) -> 0 | L158: =IF($U$51=$A152,AG$51,IF($U$54=$A152,AG$54,IF($U$57=$A152,AG$57,0))) -> 0 | M158: 0 | N158: 0 | O158: 0 | P158: 0 | Q158: 0 | R158: 0 | S158: 0 | T158: =IF(U$51=$A152,AC$51,IF(U$54=$A152,AC$54,IF(U$57=$A152,AC$57,0))) -> 0 | Y158: =IF(AB$3<1,"",RANK(T158,T$152:T$166,0)*10000000000000) -> 10000000000000 | Z158: =IF($AB$3>0,"",RANK(J158,J$152:J$166,0)*1000000000000) ->  | AA158: =IF($AB$3<1,"",RANK(J158,J$152:J$166,0)*1000000000) -> 1000000000 | AB158: =IF(AD$3<1,"",RANK(F158,F$152:F$166,0)*100000000) ->  | AC158: =RANK(L158,L$152:L$166,0)*10000000 -> 10000000 | AD158: =RANK(M158,M$152:M$166,0)*1000000 -> 1000000 | AE158: =RANK(N158,N$152:N$166,0)*100000 -> 100000 | AF158: =RANK(O158,O$152:O$166,0)*10000 -> 10000 | AG158: =RANK(P158,P$152:P$166,0)*1000 -> 1000 | AH158: =RANK(Q158,Q$152:Q$166,0)*100 -> 100 | AI158: =RANK(R158,R$152:R$166,0)*10 -> 10 | AJ158: =RANK(S158,S$152:S$166,0) -> 1 | AK158: =IF(H158<1,"",SUM(Y158:AJ158)) ->  | AL158: =IF(H158<1,"",RANK(AK158,AK$120:AK$167,1)) -> 
B159: =IF($U$51=A152,B$53,IF($U$54=A152,B$56,IF($U$57=A152,B$59,0))) -> 0 | C159: =IF($U$51=A152,C$53,IF($U$54=A152,C$56,IF($U$57=A152,C$59,0))) -> 0
B160: =IF($U$65=A152,B$65,IF($U$68=A152,B$68,IF($U$71=A152,B$71,0))) -> 0 | C160: =IF($U$65=A152,C$65,IF($U$68=A152,C$68,IF($U$71=A152,C$71,0))) -> 0 | D160: =IF(U$65=$A152,X$65,IF(U$68=$A152,X$68,IF(U$71=$A152,X$71,0))) -> 0 | F160: =IF($U$65=$A152,AD$65,IF($U$68=$A152,AD$68,IF($U$71=$A152,AD$71,0))) -> 0 | H160: =IF($U$65=$A152,AE$65,IF($U$68=$A152,AE$68,IF($U$71=$A152,AE$71,0))) -> 0 | J160: =IF(H160<1,0,ROUNDDOWN(F160/H160,3)) -> 0 | L160: =IF($U$65=$A152,AG$65,IF($U$68=$A152,AG$68,IF($U$71=$A152,AG$71,0))) -> 0 | M160: 0 | N160: 0 | O160: 0 | P160: 0 | Q160: 0 | R160: 0 | S160: 0 | T160: =IF(U$65=$A152,AC$65,IF(U$68=$A152,AC$68,IF(U$71=$A152,AC$71,0))) -> 0 | Y160: =IF(AB$3<1,"",RANK(T160,T$152:T$166,0)*10000000000000) -> 10000000000000 | Z160: =IF($AB$3>0,"",RANK(J160,J$152:J$166,0)*1000000000000) ->  | AA160: =IF($AB$3<1,"",RANK(J160,J$152:J$166,0)*1000000000) -> 1000000000 | AB160: =IF(AD$3<1,"",RANK(F160,F$152:F$166,0)*100000000) ->  | AC160: =RANK(L160,L$152:L$166,0)*10000000 -> 10000000 | AD160: =RANK(M160,M$152:M$166,0)*1000000 -> 1000000 | AE160: =RANK(N160,N$152:N$166,0)*100000 -> 100000 | AF160: =RANK(O160,O$152:O$166,0)*10000 -> 10000 | AG160: =RANK(P160,P$152:P$166,0)*1000 -> 1000 | AH160: =RANK(Q160,Q$152:Q$166,0)*100 -> 100 | AI160: =RANK(R160,R$152:R$166,0)*10 -> 10 | AJ160: =RANK(S160,S$152:S$166,0) -> 1 | AK160: =IF(H160<1,"",SUM(Y160:AJ160)) ->  | AL160: =IF(H160<1,"",RANK(AK160,AK$120:AK$167,1)) -> 
B161: =IF($U$65=A152,B$67,IF($U$68=A152,B$70,IF($U$71=A152,B$73,0))) -> 0 | C161: =IF($U$65=A152,C$67,IF($U$68=A152,C$70,IF($U$71=A152,C$73,0))) -> 0
B162: =IF($U$79=A152,B$79,IF($U$82=A152,B$82,IF($U$85=A152,B$85,0))) -> 0 | C162: =IF($U$79=A152,C$79,IF($U$82=A152,C$82,IF($U$85=A152,C$85,0))) -> 0 | D162: =IF(U$79=$A152,X$79,IF(U$82=$A152,X$82,IF(U$85=$A152,X$85,0))) -> 0 | F162: =IF($U$79=$A152,AD$79,IF($U$82=$A152,AD$82,IF($U$85=$A152,AD$85,0))) -> 0 | H162: =IF($U$79=$A152,AE$79,IF($U$82=$A152,AE$82,IF($U$85=$A152,AE$85,0))) -> 0 | J162: =IF(H162<1,0,ROUNDDOWN(F162/H162,3)) -> 0 | L162: =IF($U$79=$A152,AG$79,IF($U$82=$A152,AG$82,IF($U$85=$A152,AG$85,0))) -> 0 | M162: 0 | N162: 0 | O162: 0 | P162: 0 | Q162: 0 | R162: 0 | S162: 0 | T162: =IF(U$79=$A152,AC$79,IF(U$82=$A152,AC$82,IF(U$85=$A152,AC$85,0))) -> 0 | Y162: =IF(AB$3<1,"",RANK(T162,T$152:T$166,0)*10000000000000) -> 10000000000000 | Z162: =IF($AB$3>0,"",RANK(J162,J$152:J$166,0)*1000000000000) ->  | AA162: =IF($AB$3<1,"",RANK(J162,J$152:J$166,0)*1000000000) -> 1000000000 | AB162: =IF(AD$3<1,"",RANK(F162,F$152:F$166,0)*100000000) ->  | AC162: =RANK(L162,L$152:L$166,0)*10000000 -> 10000000 | AD162: =RANK(M162,M$152:M$166,0)*1000000 -> 1000000 | AE162: =RANK(N162,N$152:N$166,0)*100000 -> 100000 | AF162: =RANK(O162,O$152:O$166,0)*10000 -> 10000 | AG162: =RANK(P162,P$152:P$166,0)*1000 -> 1000 | AH162: =RANK(Q162,Q$152:Q$166,0)*100 -> 100 | AI162: =RANK(R162,R$152:R$166,0)*10 -> 10 | AJ162: =RANK(S162,S$152:S$166,0) -> 1 | AK162: =IF(H162<1,"",SUM(Y162:AJ162)) ->  | AL162: =IF(H162<1,"",RANK(AK162,AK$120:AK$167,1)) -> 
B163: =IF($U$79=A152,B$81,IF($U$82=A152,B$84,IF($U$85=A152,B$87,0))) -> 0 | C163: =IF($U$79=A152,C$81,IF($U$82=A152,C$84,IF($U$85=A152,C$87,0))) -> 0
B164: =IF($U$93=A152,B$93,IF($U$96=A152,B$96,IF($U$99=A152,B$99,0))) -> 0 | C164: =IF($U$93=A152,C$93,IF($U$96=A152,C$96,IF($U$99=A152,C$99,0))) -> 0 | D164: =IF(U$93=$A152,X$93,IF(U$96=$A152,X$96,IF(U$99=$A152,X$99,0))) -> 0 | F164: =IF($U$93=$A152,AD$93,IF($U$96=$A152,AD$96,IF($U$99=$A152,AD$99,0))) -> 0 | H164: =IF($U$93=$A152,AE$93,IF($U$96=$A152,AE$96,IF($U$99=$A152,AE$99,0))) -> 0 | J164: =IF(H164<1,0,ROUNDDOWN(F164/H164,3)) -> 0 | L164: =IF($U$93=$A152,AG$93,IF($U$96=$A152,AG$96,IF($U$99=$A152,AG$99,0))) -> 0 | M164: 0 | N164: 0 | O164: 0 | P164: 0 | Q164: 0 | R164: 0 | S164: 0 | T164: =IF(U$93=$A152,AC$93,IF(U$96=$A152,AC$96,IF(U$99=$A152,AC$99,0))) -> 0 | Y164: =IF(AB$3<1,"",RANK(T164,T$152:T$166,0)*10000000000000) -> 10000000000000 | Z164: =IF($AB$3>0,"",RANK(J164,J$152:J$166,0)*1000000000000) ->  | AA164: =IF($AB$3<1,"",RANK(J164,J$152:J$166,0)*1000000000) -> 1000000000 | AB164: =IF(AD$3<1,"",RANK(F164,F$152:F$166,0)*100000000) ->  | AC164: =RANK(L164,L$152:L$166,0)*10000000 -> 10000000 | AD164: =RANK(M164,M$152:M$166,0)*1000000 -> 1000000 | AE164: =RANK(N164,N$152:N$166,0)*100000 -> 100000 | AF164: =RANK(O164,O$152:O$166,0)*10000 -> 10000 | AG164: =RANK(P164,P$152:P$166,0)*1000 -> 1000 | AH164: =RANK(Q164,Q$152:Q$166,0)*100 -> 100 | AI164: =RANK(R164,R$152:R$166,0)*10 -> 10 | AJ164: =RANK(S164,S$152:S$166,0) -> 1 | AK164: =IF(H164<1,"",SUM(Y164:AJ164)) ->  | AL164: =IF(H164<1,"",RANK(AK164,AK$120:AK$167,1)) -> 
B165: =IF($U$93=A152,B$95,IF($U$96=A152,B$98,IF($U$99=A152,B$101,0))) -> 0 | C165: =IF($U$93=A152,C$95,IF($U$96=A152,C$98,IF($U$99=A152,C$101,0))) -> 0
B166: =IF($U$107=A152,B$107,IF($U$110=A152,B$110,IF($U$113=A152,B$113,0))) -> 0 | C166: =IF($U$107=A152,C$107,IF($U$110=A152,C$110,IF($U$113=A152,C$113,0))) -> 0 | D166: =IF(U$107=$A152,X$107,IF(U$110=$A152,X$110,IF(U$113=$A152,X$113,0))) -> 0 | F166: =IF($U$107=$A152,AD$107,IF($U$110=$A152,AD$110,IF($U$113=$A152,AD$113,0))) -> 0 | H166: =IF($U$107=$A152,AE$107,IF($U$110=$A152,AE$110,IF($U$113=$A152,AE$113,0))) -> 0 | J166: =IF(H166<1,0,ROUNDDOWN(F166/H166,3)) -> 0 | L166: =IF($U$107=$A152,AG$107,IF($U$110=$A152,AG$110,IF($U$113=$A152,AG$113,0))) -> 0 | M166: 0 | N166: 0 | O166: 0 | P166: 0 | Q166: 0 | R166: 0 | S166: 0 | T166: =IF(U$107=$A152,AC$107,IF(U$110=$A152,AC$110,IF(U$113=$A152,AC$113,0))) -> 0 | Y166: =IF(AB$3<1,"",RANK(T166,T$152:T$166,0)*10000000000000) -> 10000000000000 | Z166: =IF($AB$3>0,"",RANK(J166,J$152:J$166,0)*1000000000000) ->  | AA166: =IF($AB$3<1,"",RANK(J166,J$152:J$166,0)*1000000000) -> 1000000000 | AB166: =IF(AD$3<1,"",RANK(F166,F$152:F$166,0)*100000000) ->  | AC166: =RANK(L166,L$152:L$166,0)*10000000 -> 10000000 | AD166: =RANK(M166,M$152:M$166,0)*1000000 -> 1000000 | AE166: =RANK(N166,N$152:N$166,0)*100000 -> 100000 | AF166: =RANK(O166,O$152:O$166,0)*10000 -> 10000 | AG166: =RANK(P166,P$152:P$166,0)*1000 -> 1000 | AH166: =RANK(Q166,Q$152:Q$166,0)*100 -> 100 | AI166: =RANK(R166,R$152:R$166,0)*10 -> 10 | AJ166: =RANK(S166,S$152:S$166,0) -> 1 | AK166: =IF(H166<1,"",SUM(Y166:AJ166)) ->  | AL166: =IF(H166<1,"",RANK(AK166,AK$120:AK$167,1)) -> 
B167: =IF($U$107=A152,B$109,IF($U$110=A152,B$112,IF($U$113=A152,B$115,0))) -> 0 | C167: =IF($U$107=A152,C$109,IF($U$110=A152,C$112,IF($U$113=A152,C$115,0))) -> 0

Sheet Knock Out
C1: =Puljer!$A$4 -> 3 Bande Tour | J1: DISTANCE | M1: nulstil | Q1: omkamp | R1: 1
J2: 40
A3: 1/8 finale 1 | D3: DISTANCE | E3: MP | F3: Score | G3: Indg | H3: Snit | I3: Serie | J3: Shoot-out | K3: Plac. | L3: Syg / afbud | M3: Udskriv
A5: 1 | B5: =IF(Q5<1,"",VLOOKUP(A5,plads,2,FALSE)) ->  | C5: =IF(B5="","",VLOOKUP(B5,licens,2,FALSE)) ->  | D5: =$J$2 -> 40 | E5: =IF(G5<1,"",IF(F5>F8,2,IF(F5=F8,1,0))) ->  | H5: =IF(G5<1," ",ROUNDDOWN(F5/G5,3)) ->  | K5: =IF(L8>0,1,IF(L5>0,2,IF(G5<1,"",IF(J5>J8,1,IF(J8>J5,2,IF(N5>0,Q$1,IF(F5>F8,1,2))))))) ->  | N5: =IF(G5<1,0,IF(F5=F8,1,0)) -> 0 | O5: =VLOOKUP(A5,plads,7,FALSE) -> 0 | P5: =VLOOKUP(A5,plads,8,FALSE) -> 0 | Q5: =VLOOKUP(A5,plads,9,FALSE) -> 0 | R5: =VLOOKUP(A5,plads,10,FALSE) -> 0 | S5: =VLOOKUP(A5,plads,11,FALSE) -> 0
B6: =IF(B5="","",VLOOKUP(B5,licens,3,FALSE)) ->  | C6: =IF(B5="","",VLOOKUP(B5,licens,4,FALSE)) ->  | O6: =IF(G5>0,1,0) -> 0 | P6: =F5 -> 0 | Q6: =IF(L10>0,$R$1,G5) -> 0 | S6: =I5 -> 0
K7: 25 | O7: =SUM(O5:O6) -> 0 | P7: =SUM(P5:P6) -> 0 | Q7: =IF(L10>0,Q5,SUM(Q5:Q6)) -> 0 | R7: =IF(Q6<1,0,P7/Q7) -> 0 | S7: =MAX(S5:S6) -> 0 | T7: =A5 -> 1
A8: 16 | B8: =IF(Q8<1,"",VLOOKUP(A8,plads,2,FALSE)) ->  | C8: =IF(B8="","",VLOOKUP(B8,licens,2,FALSE)) ->  | D8: =$J$2 -> 40 | E8: =IF(G5<1,"",IF(F8>F5,2,IF(F8=F5,1,0))) ->  | G8: =IF(G5<1,"",G5) ->  | H8: =IF(G5<1," ",ROUNDDOWN(F8/G8,3)) ->  | K8: =IF(L5>0,1,IF(L8>0,2,IF(G5<1,"",IF(J8>J5,1,IF(J5>J8,2,IF(N8>0,Q$1,IF(F8>F5,1,2))))))) ->  | N8: =IF(G5<1,0,IF(F8=F5,1,0)) -> 0 | O8: =VLOOKUP(A8,plads,7,FALSE) -> 0 | P8: =VLOOKUP(A8,plads,8,FALSE) -> 0 | Q8: =VLOOKUP(A8,plads,9,FALSE) -> 0 | R8: =VLOOKUP(A8,plads,10,FALSE) -> 0 | S8: =VLOOKUP(A8,plads,11,FALSE) -> 0
B9: =IF(B8="","",VLOOKUP(B8,licens,3,FALSE)) ->  | C9: =IF(B8="","",VLOOKUP(B8,licens,4,FALSE)) ->  | O9: =IF(G5>0,1,0) -> 0 | P9: =F8 -> 0 | Q9: =IF(L10>0,$R$1,G5) -> 0 | S9: =I8 -> 0
L10: =IF(L5>0,$R$1,IF(L8>0,$R$1,0)) -> 0 | N10: =IF(N5+N8<1,"",SUM(N5:N8)) ->  | O10: =SUM(O8:O9) -> 0 | P10: =SUM(P8:P9) -> 0 | Q10: =IF(L10>0,Q8,SUM(Q8:Q9)) -> 0 | R10: =IF(Q9<1,0,P10/Q10) -> 0 | S10: =MAX(S8:S9) -> 0 | T10: =A8 -> 16
A12: 1/8 finale 2 | D12: DISTANCE | E12: MP | F12: Score | G12: Indg | H12: Snit | I12: Serie | J12: Shoot-out | K12: Plac. | L12: Syg / afbud | O12: kampe | P12: point | Q12: indg. | R12: snit | S12: serie
A14: 8 | B14: =IF(Q14<1,"",VLOOKUP(A14,plads,2,FALSE)) ->  | C14: =IF(B14="","",VLOOKUP(B14,licens,2,FALSE)) ->  | D14: =$J$2 -> 40 | E14: =IF(L14>0,2,IF(G14<1,"",IF(F14>F17,2,IF(F14=F17,1,0)))) ->  | H14: =IF(G14<1," ",ROUNDDOWN(F14/G14,3)) ->  | K14: =IF(L17>0,1,IF(L14>0,2,IF(G14<1,"",IF(J14>J17,1,IF(J17>J14,2,IF(N14>0,Q$1,IF(F14>F17,1,2))))))) ->  | N14: =IF(G14<1,0,IF(F14=F17,1,0)) -> 0 | O14: =VLOOKUP(A14,plads,7,FALSE) -> 0 | P14: =VLOOKUP(A14,plads,8,FALSE) -> 0 | Q14: =VLOOKUP(A14,plads,9,FALSE) -> 0 | R14: =VLOOKUP(A14,plads,10,FALSE) -> 0 | S14: =VLOOKUP(A14,plads,11,FALSE) -> 0
B15: =IF(B14="","",VLOOKUP(B14,licens,3,FALSE)) ->  | C15: =IF(B14="","",VLOOKUP(B14,licens,4,FALSE)) ->  | O15: =IF(G14>0,1,0) -> 0 | P15: =F14 -> 0 | Q15: =IF(L19>0,$R$1,G14) -> 0 | S15: =I14 -> 0
K16: 26 | O16: =SUM(O14:O15) -> 0 | P16: =SUM(P14:P15) -> 0 | Q16: =IF(L19>0,Q14,SUM(Q14:Q15)) -> 0 | R16: =IF(Q15<1,0,P16/Q16) -> 0 | S16: =MAX(S14:S15) -> 0 | T16: =A14 -> 8
A17: 9 | B17: =IF(Q17<1,"",VLOOKUP(A17,plads,2,FALSE)) ->  | C17: =IF(B17="","",VLOOKUP(B17,licens,2,FALSE)) ->  | D17: =$J$2 -> 40 | E17: =IF(G14<1,"",IF(F17>F14,2,IF(F17=F14,1,0))) ->  | G17: =IF(G14<1,"",G14) ->  | H17: =IF(G14<1," ",ROUNDDOWN(F17/G17,3)) ->  | K17: =IF(L14>0,1,IF(L17>0,2,IF(G14<1,"",IF(J17>J14,1,IF(J14>J17,2,IF(N17>0,Q$1,IF(F17>F14,1,2))))))) ->  | N17: =IF(G14<1,0,IF(F17=F14,1,0)) -> 0 | O17: =VLOOKUP(A17,plads,7,FALSE) -> 0 | P17: =VLOOKUP(A17,plads,8,FALSE) -> 0 | Q17: =VLOOKUP(A17,plads,9,FALSE) -> 0 | R17: =VLOOKUP(A17,plads,10,FALSE) -> 0 | S17: =VLOOKUP(A17,plads,11,FALSE) -> 0
B18: =IF(B17="","",VLOOKUP(B17,licens,3,FALSE)) ->  | C18: =IF(B17="","",VLOOKUP(B17,licens,4,FALSE)) ->  | O18: =IF(G14>0,1,0) -> 0 | P18: =F17 -> 0 | Q18: =IF(L19>0,$R$1,G14) -> 0 | S18: =I17 -> 0
L19: =IF(L14>0,$R$1,IF(L17>0,$R$1,0)) -> 0 | N19: =IF(N14+N17<1,"",SUM(N14:N17)) ->  | O19: =SUM(O17:O18) -> 0 | P19: =SUM(P17:P18) -> 0 | Q19: =IF(L19>0,Q17,SUM(Q17:Q18)) -> 0 | R19: =IF(Q18<1,0,P19/Q19) -> 0 | S19: =MAX(S17:S18) -> 0 | T19: =A17 -> 9
A21: 1/8 finale 3 | D21: DISTANCE | E21: MP | F21: Score | G21: Indg | H21: Snit | I21: Serie | J21: Shoot-out | K21: Plac. | L21: Syg / afbud | O21: kampe | P21: point | Q21: indg. | R21: snit | S21: serie
Y22: =SUM(U22:W22) -> 0
A23: 5 | B23: =IF(P23<1,"",VLOOKUP(A23,plads,2,FALSE)) ->  | C23: =IF(P23<1,"",VLOOKUP(A23,plads,3,FALSE)) ->  | D23: =$J$2 -> 40 | E23: =IF(G23<1,"",IF(F23>F26,2,IF(F23=F26,1,0))) ->  | H23: =IF(G23<1," ",ROUNDDOWN(F23/G23,3)) ->  | K23: =IF(L26>0,1,IF(L23>0,2,IF(G23<1,"",IF(J23>J26,1,IF(J26>J23,2,IF(N23>0,Q$1,IF(F23>F26,1,2))))))) ->  | N23: =IF(G23<1,0,IF(F23=F26,1,0)) -> 0 | O23: =VLOOKUP(A23,plads,7,FALSE) -> 0 | P23: =VLOOKUP(A23,plads,8,FALSE) -> 0 | Q23: =VLOOKUP(A23,plads,9,FALSE) -> 0 | R23: =VLOOKUP(A23,plads,10,FALSE) -> 0 | S23: =VLOOKUP(A23,plads,11,FALSE) -> 0 | Y23: =SUM(U23:W23) -> 0
B24: =IF(P23<1,"",VLOOKUP(A23,plads,4,FALSE)) ->  | C24: =IF(P23<1,"",VLOOKUP(A23,plads,5,FALSE)) ->  | O24: =IF(G23>0,1,0) -> 0 | P24: =F23 -> 0 | Q24: =IF(L28>0,$R$1,G23) -> 0 | S24: =I23 -> 0 | Y24: =SUM(U24:W24) -> 0
K25: 27 | O25: =SUM(O23:O24) -> 0 | P25: =SUM(P23:P24) -> 0 | Q25: =IF(L28>0,Q23,SUM(Q23:Q24)) -> 0 | R25: =IF(Q24<1,0,P25/Q25) -> 0 | S25: =MAX(S23:S24) -> 0 | T25: =A23 -> 5 | Y25: =SUM(U25:W25) -> 0
A26: 12 | B26: =IF(P26<1,"",VLOOKUP(A26,plads,2,FALSE)) ->  | C26: =IF(P26<1,"",VLOOKUP(A26,plads,3,FALSE)) ->  | D26: =$J$2 -> 40 | E26: =IF(G23<1,"",IF(F26>F23,2,IF(F26=F23,1,0))) ->  | G26: =IF(G23<1,"",G23) ->  | H26: =IF(G23<1," ",ROUNDDOWN(F26/G26,3)) ->  | K26: =IF(L23>0,1,IF(L26>0,2,IF(G23<1,"",IF(J26>J23,1,IF(J23>J26,2,IF(N26>0,Q$1,IF(F26>F23,1,2))))))) ->  | N26: =IF(G23<1,0,IF(F26=F23,1,0)) -> 0 | O26: =VLOOKUP(A26,plads,7,FALSE) -> 0 | P26: =VLOOKUP(A26,plads,8,FALSE) -> 0 | Q26: =VLOOKUP(A26,plads,9,FALSE) -> 0 | R26: =VLOOKUP(A26,plads,10,FALSE) -> 0 | S26: =VLOOKUP(A26,plads,11,FALSE) -> 0 | Y26: =SUM(U26:W26) -> 0
B27: =IF(P26<1,"",VLOOKUP(A26,plads,4,FALSE)) ->  | C27: =IF(P26<1,"",VLOOKUP(A26,plads,5,FALSE)) ->  | O27: =IF(G23>0,1,0) -> 0 | P27: =F26 -> 0 | Q27: =IF(L28>0,$R$1,G23) -> 0 | S27: =I26 -> 0
L28: =IF(L23>0,$R$1,IF(L26>0,$R$1,0)) -> 0 | N28: =IF(N23+N26<1,"",SUM(N23:N26)) ->  | O28: =SUM(O26:O27) -> 0 | P28: =SUM(P26:P27) -> 0 | Q28: =IF(L28>0,Q26,SUM(Q26:Q27)) -> 0 | R28: =IF(Q27<1,0,P28/Q28) -> 0 | S28: =MAX(S26:S27) -> 0 | T28: =A26 -> 12
A30: 1/8 finale 4 | D30: DISTANCE | E30: MP | F30: Score | G30: Indg | H30: Snit | I30: Serie | J30: Shoot-out | K30: Plac. | L30: Syg / afbud | O30: kampe | P30: point | Q30: indg. | R30: snit | S30: serie
A32: 4 | B32: =IF(P32<1,"",VLOOKUP(A32,plads,2,FALSE)) ->  | C32: =IF(P32<1,"",VLOOKUP(A32,plads,3,FALSE)) ->  | D32: =$J$2 -> 40 | E32: =IF(G32<1,"",IF(F32>F35,2,IF(F32=F35,1,0))) ->  | H32: =IF(G32<1," ",ROUNDDOWN(F32/G32,3)) ->  | K32: =IF(L35>0,1,IF(L32>0,2,IF(G32<1,"",IF(J32>J35,1,IF(J35>J32,2,IF(N32>0,Q$1,IF(F32>F35,1,2))))))) ->  | N32: =IF(G32<1,0,IF(F32=F35,1,0)) -> 0 | O32: =VLOOKUP(A32,plads,7,FALSE) -> 0 | P32: =VLOOKUP(A32,plads,8,FALSE) -> 0 | Q32: =VLOOKUP(A32,plads,9,FALSE) -> 0 | R32: =VLOOKUP(A32,plads,10,FALSE) -> 0 | S32: =VLOOKUP(A32,plads,11,FALSE) -> 0
B33: =IF(P32<1,"",VLOOKUP(A32,plads,4,FALSE)) ->  | C33: =IF(P32<1,"",VLOOKUP(A32,plads,5,FALSE)) ->  | O33: =IF(G32>0,1,0) -> 0 | P33: =F32 -> 0 | Q33: =IF(L37>0,$R$1,G32) -> 0 | S33: =I32 -> 0
K34: 28 | O34: =SUM(O32:O33) -> 0 | P34: =SUM(P32:P33) -> 0 | Q34: =IF(L37>0,Q32,SUM(Q32:Q33)) -> 0 | R34: =IF(Q33<1,0,P34/Q34) -> 0 | S34: =MAX(S32:S33) -> 0 | T34: =A32 -> 4
A35: 13 | B35: =IF(P35<1,"",VLOOKUP(A35,plads,2,FALSE)) ->  | C35: =IF(P35<1,"",VLOOKUP(A35,plads,3,FALSE)) ->  | D35: =$J$2 -> 40 | E35: =IF(G32<1,"",IF(F35>F32,2,IF(F35=F32,1,0))) ->  | G35: =IF(G32<1,"",G32) ->  | H35: =IF(G32<1," ",ROUNDDOWN(F35/G35,3)) ->  | K35: =IF(L32>0,1,IF(L35>0,2,IF(G32<1,"",IF(J35>J32,1,IF(J32>J35,2,IF(N35>0,Q$1,IF(F35>F32,1,2))))))) ->  | N35: =IF(G32<1,0,IF(F35=F32,1,0)) -> 0 | O35: =VLOOKUP(A35,plads,7,FALSE) -> 0 | P35: =VLOOKUP(A35,plads,8,FALSE) -> 0 | Q35: =VLOOKUP(A35,plads,9,FALSE) -> 0 | R35: =VLOOKUP(A35,plads,10,FALSE) -> 0 | S35: =VLOOKUP(A35,plads,11,FALSE) -> 0
B36: =IF(P35<1,"",VLOOKUP(A35,plads,4,FALSE)) ->  | C36: =IF(P35<1,"",VLOOKUP(A35,plads,5,FALSE)) ->  | O36: =IF(G32>0,1,0) -> 0 | P36: =F35 -> 0 | Q36: =IF(L37>0,$R$1,G32) -> 0 | S36: =I35 -> 0
L37: =IF(L32>0,$R$1,IF(L35>0,$R$1,0)) -> 0 | N37: =IF(N32+N35<1,"",SUM(N32:N35)) ->  | O37: =SUM(O35:O36) -> 0 | P37: =SUM(P35:P36) -> 0 | Q37: =IF(L37>0,Q35,SUM(Q35:Q36)) -> 0 | R37: =IF(Q36<1,0,P37/Q37) -> 0 | S37: =MAX(S35:S36) -> 0 | T37: =A35 -> 13
A39: 1/8 finale 5 | D39: DISTANCE | E39: MP | F39: Score | G39: Indg | H39: Snit | I39: Serie | J39: Shoot-out | K39: Plac. | L39: Syg / afbud | O39: kampe | P39: point | Q39: indg. | R39: snit | S39: serie
A41: 3 | B41: =IF(Q41<1,"",VLOOKUP(A41,plads,2,FALSE)) ->  | C41: =IF(B41="","",VLOOKUP(B41,licens,2,FALSE)) ->  | D41: =$J$2 -> 40 | E41: =IF(G41<1,"",IF(F41>F44,2,IF(F41=F44,1,0))) ->  | H41: =IF(G41<1," ",ROUNDDOWN(F41/G41,3)) ->  | K41: =IF(L44>0,1,IF(L41>0,2,IF(G41<1,"",IF(J41>J44,1,IF(J44>J41,2,IF(N41>0,Q$1,IF(F41>F44,1,2))))))) ->  | N41: =IF(G41<1,0,IF(F41=F44,1,0)) -> 0 | O41: =VLOOKUP(A41,plads,7,FALSE) -> 0 | P41: =VLOOKUP(A41,plads,8,FALSE) -> 0 | Q41: =VLOOKUP(A41,plads,9,FALSE) -> 0 | R41: =VLOOKUP(A41,plads,10,FALSE) -> 0 | S41: =VLOOKUP(A41,plads,11,FALSE) -> 0
B42: =IF(B41="","",VLOOKUP(B41,licens,3,FALSE)) ->  | C42: =IF(B41="","",VLOOKUP(B41,licens,4,FALSE)) ->  | O42: =IF(G41>0,1,0) -> 0 | P42: =F41 -> 0 | Q42: =IF(L46>0,$R$1,G41) -> 0 | S42: =I41 -> 0
K43: 29 | O43: =SUM(O41:O42) -> 0 | P43: =SUM(P41:P42) -> 0 | Q43: =IF(L46>0,Q41,SUM(Q41:Q42)) -> 0 | R43: =IF(Q42<1,0,P43/Q43) -> 0 | S43: =MAX(S41:S42) -> 0 | T43: =A41 -> 3
A44: 14 | B44: =IF(Q44<1,"",VLOOKUP(A44,plads,2,FALSE)) ->  | C44: =IF(B44="","",VLOOKUP(B44,licens,2,FALSE)) ->  | D44: =$J$2 -> 40 | E44: =IF(G41<1,"",IF(F44>F41,2,IF(F44=F41,1,0))) ->  | G44: =IF(G41<1,"",G41) ->  | H44: =IF(G41<1," ",ROUNDDOWN(F44/G44,3)) ->  | K44: =IF(L41>0,1,IF(L44>0,2,IF(G41<1,"",IF(J44>J41,1,IF(J41>J44,2,IF(N44>0,Q$1,IF(F44>F41,1,2))))))) ->  | N44: =IF(G41<1,0,IF(F44=F41,1,0)) -> 0 | O44: =VLOOKUP(A44,plads,7,FALSE) -> 0 | P44: =VLOOKUP(A44,plads,8,FALSE) -> 0 | Q44: =VLOOKUP(A44,plads,9,FALSE) -> 0 | R44: =VLOOKUP(A44,plads,10,FALSE) -> 0 | S44: =VLOOKUP(A44,plads,11,FALSE) -> 0
B45: =IF(B44="","",VLOOKUP(B44,licens,3,FALSE)) ->  | C45: =IF(B44="","",VLOOKUP(B44,licens,4,FALSE)) ->  | O45: =IF(G41>0,1,0) -> 0 | P45: =F44 -> 0 | Q45: =IF(L46>0,$R$1,G41) -> 0 | S45: =I44 -> 0
L46: =IF(L41>0,$R$1,IF(L44>0,$R$1,0)) -> 0 | N46: =IF(N41+N44<1,"",SUM(N41:N44)) ->  | O46: =SUM(O44:O45) -> 0 | P46: =SUM(P44:P45) -> 0 | Q46: =IF(L46>0,Q44,SUM(Q44:Q45)) -> 0 | R46: =IF(Q45<1,0,P46/Q46) -> 0 | S46: =MAX(S44:S45) -> 0 | T46: =A44 -> 14
A48: 1/8 finale 6 | D48: DISTANCE | E48: MP | F48: Score | G48: Indg | H48: Snit | I48: Serie | J48: Shoot-out | K48: Plac. | L48: Syg / afbud | O48: kampe | P48: point | Q48: indg. | R48: snit | S48: serie
A50: 6 | B50: =IF(Q50<1,"",VLOOKUP(A50,plads,2,FALSE)) ->  | C50: =IF(B50="","",VLOOKUP(B50,licens,2,FALSE)) ->  | D50: =$J$2 -> 40 | E50: =IF(G50<1,"",IF(F50>F53,2,IF(F50=F53,1,0))) ->  | H50: =IF(G50<1," ",ROUNDDOWN(F50/G50,3)) ->  | K50: =IF(L53>0,1,IF(L50>0,2,IF(G50<1,"",IF(J50>J53,1,IF(J53>J50,2,IF(N50>0,Q$1,IF(F50>F53,1,2))))))) ->  | N50: =IF(G50<1,0,IF(F50=F53,1,0)) -> 0 | O50: =VLOOKUP(A50,plads,7,FALSE) -> 0 | P50: =VLOOKUP(A50,plads,8,FALSE) -> 0 | Q50: =VLOOKUP(A50,plads,9,FALSE) -> 0 | R50: =VLOOKUP(A50,plads,10,FALSE) -> 0 | S50: =VLOOKUP(A50,plads,11,FALSE) -> 0
B51: =IF(B50="","",VLOOKUP(B50,licens,3,FALSE)) ->  | C51: =IF(B50="","",VLOOKUP(B50,licens,4,FALSE)) ->  | O51: =IF(G50>0,1,0) -> 0 | P51: =F50 -> 0 | Q51: =IF(L55>0,$R$1,G50) -> 0 | S51: =I50 -> 0
K52: 30 | O52: =SUM(O50:O51) -> 0 | P52: =SUM(P50:P51) -> 0 | Q52: =IF(L55>0,Q50,SUM(Q50:Q51)) -> 0 | R52: =IF(Q51<1,0,P52/Q52) -> 0 | S52: =MAX(S50:S51) -> 0 | T52: =A50 -> 6
A53: 11 | B53: =IF(Q53<1,"",VLOOKUP(A53,plads,2,FALSE)) ->  | C53: =IF(B53="","",VLOOKUP(B53,licens,2,FALSE)) ->  | D53: =$J$2 -> 40 | E53: =IF(G50<1,"",IF(F53>F50,2,IF(F53=F50,1,0))) ->  | G53: =IF(G50<1,"",G50) ->  | H53: =IF(G50<1," ",ROUNDDOWN(F53/G53,3)) ->  | K53: =IF(L50>0,1,IF(L53>0,2,IF(G50<1,"",IF(J53>J50,1,IF(J50>J53,2,IF(N53>0,Q$1,IF(F53>F50,1,2))))))) ->  | N53: =IF(G50<1,0,IF(F53=F50,1,0)) -> 0 | O53: =VLOOKUP(A53,plads,7,FALSE) -> 0 | P53: =VLOOKUP(A53,plads,8,FALSE) -> 0 | Q53: =VLOOKUP(A53,plads,9,FALSE) -> 0 | R53: =VLOOKUP(A53,plads,10,FALSE) -> 0 | S53: =VLOOKUP(A53,plads,11,FALSE) -> 0
B54: =IF(B53="","",VLOOKUP(B53,licens,3,FALSE)) ->  | C54: =IF(B53="","",VLOOKUP(B53,licens,4,FALSE)) ->  | O54: =IF(G50>0,1,0) -> 0 | P54: =F53 -> 0 | Q54: =IF(L55>0,$R$1,G50) -> 0 | S54: =I53 -> 0
L55: =IF(L50>0,$R$1,IF(L53>0,$R$1,0)) -> 0 | N55: =IF(N50+N53<1,"",SUM(N50:N53)) ->  | O55: =SUM(O53:O54) -> 0 | P55: =SUM(P53:P54) -> 0 | Q55: =IF(L55>0,Q53,SUM(Q53:Q54)) -> 0 | R55: =IF(Q54<1,0,P55/Q55) -> 0 | S55: =MAX(S53:S54) -> 0 | T55: =A53 -> 11
A57: 1/8 finale 7 | D57: DISTANCE | E57: MP | F57: Score | G57: Indg | H57: Snit | I57: Serie | J57: Shoot-out | K57: Plac. | L57: Syg / afbud | O57: kampe | P57: point | Q57: indg. | R57: snit | S57: serie
A59: 7 | B59: =IF(P59<1,"",VLOOKUP(A59,plads,2,FALSE)) ->  | C59: =IF(P59<1,"",VLOOKUP(A59,plads,3,FALSE)) ->  | D59: =$J$2 -> 40 | E59: =IF(G59<1,"",IF(F59>F62,2,IF(F59=F62,1,0))) ->  | H59: =IF(G59<1," ",ROUNDDOWN(F59/G59,3)) ->  | K59: =IF(L62>0,1,IF(L59>0,2,IF(G59<1,"",IF(J59>J62,1,IF(J62>J59,2,IF(N59>0,Q$1,IF(F59>F62,1,2))))))) ->  | N59: =IF(G59<1,0,IF(F59=F62,1,0)) -> 0 | O59: =VLOOKUP(A59,plads,7,FALSE) -> 0 | P59: =VLOOKUP(A59,plads,8,FALSE) -> 0 | Q59: =VLOOKUP(A59,plads,9,FALSE) -> 0 | R59: =VLOOKUP(A59,plads,10,FALSE) -> 0 | S59: =VLOOKUP(A59,plads,11,FALSE) -> 0
B60: =IF(P59<1,"",VLOOKUP(A59,plads,4,FALSE)) ->  | C60: =IF(P59<1,"",VLOOKUP(A59,plads,5,FALSE)) ->  | O60: =IF(G59>0,1,0) -> 0 | P60: =F59 -> 0 | Q60: =IF(L64>0,$R$1,G59) -> 0 | S60: =I59 -> 0
K61: 31 | O61: =SUM(O59:O60) -> 0 | P61: =SUM(P59:P60) -> 0 | Q61: =IF(L64>0,Q59,SUM(Q59:Q60)) -> 0 | R61: =IF(Q60<1,0,P61/Q61) -> 0 | S61: =MAX(S59:S60) -> 0 | T61: =A59 -> 7
A62: 10 | B62: =IF(P62<1,"",VLOOKUP(A62,plads,2,FALSE)) ->  | C62: =IF(P62<1,"",VLOOKUP(A62,plads,3,FALSE)) ->  | D62: =$J$2 -> 40 | E62: =IF(G59<1,"",IF(F62>F59,2,IF(F62=F59,1,0))) ->  | G62: =IF(G59<1,"",G59) ->  | H62: =IF(G59<1," ",ROUNDDOWN(F62/G62,3)) ->  | K62: =IF(L59>0,1,IF(L62>0,2,IF(G59<1,"",IF(J62>J59,1,IF(J59>J62,2,IF(N62>0,Q$1,IF(F62>F59,1,2))))))) ->  | N62: =IF(G59<1,0,IF(F62=F59,1,0)) -> 0 | O62: =VLOOKUP(A62,plads,7,FALSE) -> 0 | P62: =VLOOKUP(A62,plads,8,FALSE) -> 0 | Q62: =VLOOKUP(A62,plads,9,FALSE) -> 0 | R62: =VLOOKUP(A62,plads,10,FALSE) -> 0 | S62: =VLOOKUP(A62,plads,11,FALSE) -> 0
B63: =IF(P62<1,"",VLOOKUP(A62,plads,4,FALSE)) ->  | C63: =IF(P62<1,"",VLOOKUP(A62,plads,5,FALSE)) ->  | O63: =IF(G59>0,1,0) -> 0 | P63: =F62 -> 0 | Q63: =IF(L64>0,$R$1,G59) -> 0 | S63: =I62 -> 0
L64: =IF(L59>0,$R$1,IF(L62>0,$R$1,0)) -> 0 | N64: =IF(N59+N62<1,"",SUM(N59:N62)) ->  | O64: =SUM(O62:O63) -> 0 | P64: =SUM(P62:P63) -> 0 | Q64: =IF(L64>0,Q62,SUM(Q62:Q63)) -> 0 | R64: =IF(Q63<1,0,P64/Q64) -> 0 | S64: =MAX(S62:S63) -> 0 | T64: =A62 -> 10
A66: 1/8 finale 8 | D66: DISTANCE | E66: MP | F66: Score | G66: Indg | H66: Snit | I66: Serie | J66: Shoot-out | K66: Plac. | L66: Syg / afbud | O66: kampe | P66: point | Q66: indg. | R66: snit | S66: serie
A68: 2 | B68: =IF(P68<1,"",VLOOKUP(A68,plads,2,FALSE)) ->  | C68: =IF(P68<1,"",VLOOKUP(A68,plads,3,FALSE)) ->  | D68: =$J$2 -> 40 | E68: =IF(G68<1,"",IF(F68>F71,2,IF(F68=F71,1,0))) ->  | H68: =IF(G68<1," ",ROUNDDOWN(F68/G68,3)) ->  | K68: =IF(L71>0,1,IF(L68>0,2,IF(G68<1,"",IF(J68>J71,1,IF(J71>J68,2,IF(N68>0,Q$1,IF(F68>F71,1,2))))))) ->  | N68: =IF(G68<1,0,IF(F68=F71,1,0)) -> 0 | O68: =VLOOKUP(A68,plads,7,FALSE) -> 0 | P68: =VLOOKUP(A68,plads,8,FALSE) -> 0 | Q68: =VLOOKUP(A68,plads,9,FALSE) -> 0 | R68: =VLOOKUP(A68,plads,10,FALSE) -> 0 | S68: =VLOOKUP(A68,plads,11,FALSE) -> 0
B69: =IF(P68<1,"",VLOOKUP(A68,plads,4,FALSE)) ->  | C69: =IF(P68<1,"",VLOOKUP(A68,plads,5,FALSE)) ->  | O69: =IF(G68>0,1,0) -> 0 | P69: =F68 -> 0 | Q69: =IF(L73>0,$R$1,G68) -> 0 | S69: =I68 -> 0
K70: 32 | O70: =SUM(O68:O69) -> 0 | P70: =SUM(P68:P69) -> 0 | Q70: =IF(L73>0,Q68,SUM(Q68:Q69)) -> 0 | R70: =IF(Q69<1,0,P70/Q70) -> 0 | S70: =MAX(S68:S69) -> 0 | T70: =A68 -> 2
A71: 15 | B71: =IF(P71<1,"",VLOOKUP(A71,plads,2,FALSE)) ->  | C71: =IF(P71<1,"",VLOOKUP(A71,plads,3,FALSE)) ->  | D71: =$J$2 -> 40 | E71: =IF(G68<1,"",IF(F71>F68,2,IF(F71=F68,1,0))) ->  | G71: =IF(G68<1,"",G68) ->  | H71: =IF(G68<1," ",ROUNDDOWN(F71/G71,3)) ->  | K71: =IF(L68>0,1,IF(L71>0,2,IF(G68<1,"",IF(J71>J68,1,IF(J68>J71,2,IF(N71>0,Q$1,IF(F71>F68,1,2))))))) ->  | N71: =IF(G68<1,0,IF(F71=F68,1,0)) -> 0 | O71: =VLOOKUP(A71,plads,7,FALSE) -> 0 | P71: =VLOOKUP(A71,plads,8,FALSE) -> 0 | Q71: =VLOOKUP(A71,plads,9,FALSE) -> 0 | R71: =VLOOKUP(A71,plads,10,FALSE) -> 0 | S71: =VLOOKUP(A71,plads,11,FALSE) -> 0
B72: =IF(P71<1,"",VLOOKUP(A71,plads,4,FALSE)) ->  | C72: =IF(P71<1,"",VLOOKUP(A71,plads,5,FALSE)) ->  | O72: =IF(G68>0,1,0) -> 0 | P72: =F71 -> 0 | Q72: =IF(L73>0,$R$1,G68) -> 0 | S72: =I71 -> 0
L73: =IF(L68>0,$R$1,IF(L71>0,$R$1,0)) -> 0 | N73: =IF(N68+N71<1,"",SUM(N68:N71)) ->  | O73: =SUM(O71:O72) -> 0 | P73: =SUM(P71:P72) -> 0 | Q73: =IF(L73>0,Q71,SUM(Q71:Q72)) -> 0 | R73: =IF(Q72<1,0,P73/Q73) -> 0 | S73: =MAX(S71:S72) -> 0 | T73: =A71 -> 15
B82: 1/4 finale 1 | D82: DISTANCE | E82: MP | F82: Score | G82: Indg | H82: Snit | I82: Serie | J82: Shoot-out | K82: Plac. | L82: Syg / afbud | O82: kampe | P82: point | Q82: indg. | R82: snit | S82: serie
B84: =IF(Q6<1,"",IF(K5=1,B5,B8)) ->  | C84: =IF(B84="","",VLOOKUP(B84,licens,2,FALSE)) ->  | D84: =$J$2 -> 40 | E84: =IF(G84<1,"",IF(F84>F87,2,IF(F84=F87,1,0))) ->  | H84: =IF(G84<1," ",ROUNDDOWN(F84/G84,3)) ->  | K84: =IF(L87>0,1,IF(L84>0,2,IF(G84<1,"",IF(J84>J87,1,IF(J87>J84,2,IF(N84>0,Q$1,IF(F84>F87,1,2))))))) ->  | N84: =IF(G84<1,0,IF(F84=F87,1,0)) -> 0 | O84: =IF($Q6<1,0,IF($K5=1,O7,O10)) -> 0 | P84: =IF($Q6<1,0,IF($K5=1,P7,P10)) -> 0 | Q84: =IF($Q6<1,0,IF($K5=1,Q7,Q10)) -> 0 | R84: =IF($Q6<1,0,IF($K5=1,R7,R10)) -> 0 | S84: =IF($Q6<1,0,IF($K5=1,S7,S10)) -> 0
B85: =IF(B84="","",VLOOKUP(B84,licens,3,FALSE)) ->  | C85: =IF(B84="","",VLOOKUP(B84,licens,4,FALSE)) ->  | O85: =IF(G84>0,1,0) -> 0 | P85: =F84 -> 0 | Q85: =IF(L89>0,$R$1,G84) -> 0 | S85: =I84 -> 0
K86: 33 | O86: =SUM(O84:O85) -> 0 | P86: =SUM(P84:P85) -> 0 | Q86: =IF(L89>0,Q84,SUM(Q84:Q85)) -> 0 | R86: =IF(Q85<1,0,P86/Q86) -> 0 | S86: =MAX(S84:S85) -> 0 | T86: =IF($Q6<1,0,IF($K5=1,T7,T10)) -> 0
B87: =IF(Q15<1,"",IF(K14=1,B14,B17)) ->  | C87: =IF(B87="","",VLOOKUP(B87,licens,2,FALSE)) ->  | D87: =$J$2 -> 40 | E87: =IF(G84<1,"",IF(F87>F84,2,IF(F87=F84,1,0))) ->  | G87: =IF(G84<1,"",G84) ->  | H87: =IF(G84<1," ",ROUNDDOWN(F87/G87,3)) ->  | K87: =IF(L84>0,1,IF(L87>0,2,IF(G84<1,"",IF(J87>J84,1,IF(J84>J87,2,IF(N87>0,Q$1,IF(F87>F84,1,2))))))) ->  | N87: =IF(G84<1,0,IF(F87=F84,1,0)) -> 0 | O87: =IF($Q15<1,0,IF($K14=1,O16,O19)) -> 0 | P87: =IF($Q15<1,0,IF($K14=1,P16,P19)) -> 0 | Q87: =IF($Q15<1,0,IF($K14=1,Q16,Q19)) -> 0 | R87: =IF($Q15<1,0,IF($K14=1,R16,R19)) -> 0 | S87: =IF($Q15<1,0,IF($K14=1,S16,S19)) -> 0
B88: =IF(B87="","",VLOOKUP(B87,licens,3,FALSE)) ->  | C88: =IF(B87="","",VLOOKUP(B87,licens,4,FALSE)) ->  | O88: =IF(G84>0,1,0) -> 0 | P88: =F87 -> 0 | Q88: =IF(L89>0,$R$1,G84) -> 0 | S88: =I87 -> 0
L89: =IF(L84>0,$R$1,IF(L87>0,$R$1,0)) -> 0 | N89: =IF(N84+N87<1,"",SUM(N84:N87)) ->  | O89: =SUM(O87:O88) -> 0 | P89: =SUM(P87:P88) -> 0 | Q89: =IF(L89>0,Q87,SUM(Q87:Q88)) -> 0 | R89: =IF(Q88<1,0,P89/Q89) -> 0 | S89: =MAX(S87:S88) -> 0 | T89: =IF($Q15<1,0,IF($K14=1,T16,T19)) -> 0
B91: 1/4 finale 2 | D91: DISTANCE | E91: MP | F91: Score | G91: Indg | H91: Snit | I91: Serie | J91: Shoot-out | K91: Plac. | L91: Syg / afbud | O91: kampe | P91: point | Q91: indg. | R91: snit | S91: serie
B93: =IF(Q24<1,"",IF(K23=1,B23,B26)) ->  | C93: =IF(B93="","",VLOOKUP(B93,licens,2,FALSE)) ->  | D93: =$J$2 -> 40 | E93: =IF(G93<1,"",IF(F93>F96,2,IF(F93=F96,1,0))) ->  | H93: =IF(G93<1," ",ROUNDDOWN(F93/G93,3)) ->  | K93: =IF(L96>0,1,IF(L93>0,2,IF(G93<1,"",IF(J93>J96,1,IF(J96>J93,2,IF(N93>0,Q$1,IF(F93>F96,1,2))))))) ->  | N93: =IF(G93<1,0,IF(F93=F96,1,0)) -> 0 | O93: =IF($Q24<1,0,IF($K23=1,O25,O28)) -> 0 | P93: =IF($Q24<1,0,IF($K23=1,P25,P28)) -> 0 | Q93: =IF($Q24<1,0,IF($K23=1,Q25,Q28)) -> 0 | R93: =IF($Q24<1,0,IF($K23=1,R25,R28)) -> 0 | S93: =IF($Q24<1,0,IF($K23=1,S25,S28)) -> 0
B94: =IF(B93="","",VLOOKUP(B93,licens,3,FALSE)) ->  | C94: =IF(B93="","",VLOOKUP(B93,licens,4,FALSE)) ->  | O94: =IF(G93>0,1,0) -> 0 | P94: =F93 -> 0 | Q94: =IF(L98>0,$R$1,G93) -> 0 | S94: =I93 -> 0
K95: 34 | O95: =SUM(O93:O94) -> 0 | P95: =SUM(P93:P94) -> 0 | Q95: =IF(L98>0,Q93,SUM(Q93:Q94)) -> 0 | R95: =IF(Q94<1,0,P95/Q95) -> 0 | S95: =MAX(S93:S94) -> 0 | T95: =IF($Q24<1,0,IF($K23=1,T25,T28)) -> 0
B96: =IF(Q33<1,"",IF(K32=1,B32,B35)) ->  | C96: =IF(B96="","",VLOOKUP(B96,licens,2,FALSE)) ->  | D96: =$J$2 -> 40 | E96: =IF(G93<1,"",IF(F96>F93,2,IF(F96=F93,1,0))) ->  | G96: =IF(G93<1,"",G93) ->  | H96: =IF(G93<1," ",ROUNDDOWN(F96/G96,3)) ->  | K96: =IF(L93>0,1,IF(L96>0,2,IF(G93<1,"",IF(J96>J93,1,IF(J93>J96,2,IF(N96>0,Q$1,IF(F96>F93,1,2))))))) ->  | N96: =IF(G93<1,0,IF(F96=F93,1,0)) -> 0 | O96: =IF($Q33<1,0,IF($K32=1,O34,O37)) -> 0 | P96: =IF($Q33<1,0,IF($K32=1,P34,P37)) -> 0 | Q96: =IF($Q33<1,0,IF($K32=1,Q34,Q37)) -> 0 | R96: =IF($Q33<1,0,IF($K32=1,R34,R37)) -> 0 | S96: =IF($Q33<1,0,IF($K32=1,S34,S37)) -> 0
B97: =IF(B96="","",VLOOKUP(B96,licens,3,FALSE)) ->  | C97: =IF(B96="","",VLOOKUP(B96,licens,4,FALSE)) ->  | O97: =IF(G93>0,1,0) -> 0 | P97: =F96 -> 0 | Q97: =IF(L98>0,$R$1,G93) -> 0 | S97: =I96 -> 0
L98: =IF(L93>0,$R$1,IF(L96>0,$R$1,0)) -> 0 | N98: =IF(N93+N96<1,"",SUM(N93:N96)) ->  | O98: =SUM(O96:O97) -> 0 | P98: =SUM(P96:P97) -> 0 | Q98: =IF(L98>0,Q96,SUM(Q96:Q97)) -> 0 | R98: =IF(Q97<1,0,P98/Q98) -> 0 | S98: =MAX(S96:S97) -> 0 | T98: =IF($Q33<1,0,IF($K32=1,T34,T37)) -> 0
B100: 1/4 finale 3 | D100: DISTANCE | E100: MP | F100: Score | G100: Indg | H100: Snit | I100: Serie | J100: Shoot-out | K100: Plac. | L100: Syg / afbud | O100: kampe | P100: point | Q100: indg. | R100: snit | S100: serie
B102: =IF(Q42<1,"",IF(K41=1,B41,B44)) ->  | C102: =IF(B102="","",VLOOKUP(B102,licens,2,FALSE)) ->  | D102: =$J$2 -> 40 | E102: =IF(G102<1,"",IF(F102>F105,2,IF(F102=F105,1,0))) ->  | H102: =IF(G102<1," ",ROUNDDOWN(F102/G102,3)) ->  | K102: =IF(L105>0,1,IF(L102>0,2,IF(G102<1,"",IF(J102>J105,1,IF(J105>J102,2,IF(N102>0,Q$1,IF(F102>F105,1,2))))))) ->  | N102: =IF(G102<1,0,IF(F102=F105,1,0)) -> 0 | O102: =IF($Q42<1,0,IF($K41=1,O43,O46)) -> 0 | P102: =IF($Q42<1,0,IF($K41=1,P43,P46)) -> 0 | Q102: =IF($Q42<1,0,IF($K41=1,Q43,Q46)) -> 0 | R102: =IF($Q42<1,0,IF($K41=1,R43,R46)) -> 0 | S102: =IF($Q42<1,0,IF($K41=1,S43,S46)) -> 0
B103: =IF(B102="","",VLOOKUP(B102,licens,3,FALSE)) ->  | C103: =IF(B102="","",VLOOKUP(B102,licens,4,FALSE)) ->  | O103: =IF(G102>0,1,0) -> 0 | P103: =F102 -> 0 | Q103: =IF(L107>0,$R$1,G102) -> 0 | S103: =I102 -> 0
K104: 35 | O104: =SUM(O102:O103) -> 0 | P104: =SUM(P102:P103) -> 0 | Q104: =IF(L107>0,Q102,SUM(Q102:Q103)) -> 0 | R104: =IF(Q103<1,0,P104/Q104) -> 0 | S104: =MAX(S102:S103) -> 0 | T104: =IF($Q42<1,0,IF($K41=1,T43,T46)) -> 0
B105: =IF(Q51<1,"",IF(K50=1,B50,B53)) ->  | C105: =IF(B105="","",VLOOKUP(B105,licens,2,FALSE)) ->  | D105: =$J$2 -> 40 | E105: =IF(G102<1,"",IF(F105>F102,2,IF(F105=F102,1,0))) ->  | G105: =IF(G102<1,"",G102) ->  | H105: =IF(G102<1," ",ROUNDDOWN(F105/G105,3)) ->  | K105: =IF(L102>0,1,IF(L105>0,2,IF(G102<1,"",IF(J105>J102,1,IF(J102>J105,2,IF(N105>0,Q$1,IF(F105>F102,1,2))))))) ->  | N105: =IF(G102<1,0,IF(F105=F102,1,0)) -> 0 | O105: =IF($Q51<1,0,IF($K50=1,O52,O55)) -> 0 | P105: =IF($Q51<1,0,IF($K50=1,P52,P55)) -> 0 | Q105: =IF($Q51<1,0,IF($K50=1,Q52,Q55)) -> 0 | R105: =IF($Q51<1,0,IF($K50=1,R52,R55)) -> 0 | S105: =IF($Q51<1,0,IF($K50=1,S52,S55)) -> 0
B106: =IF(B105="","",VLOOKUP(B105,licens,3,FALSE)) ->  | C106: =IF(B105="","",VLOOKUP(B105,licens,4,FALSE)) ->  | O106: =IF(G102>0,1,0) -> 0 | P106: =F105 -> 0 | Q106: =IF(L107>0,$R$1,G102) -> 0 | S106: =I105 -> 0
L107: =IF(L102>0,$R$1,IF(L105>0,$R$1,0)) -> 0 | N107: =IF(N102+N105<1,"",SUM(N102:N105)) ->  | O107: =SUM(O105:O106) -> 0 | P107: =SUM(P105:P106) -> 0 | Q107: =IF(L107>0,Q105,SUM(Q105:Q106)) -> 0 | R107: =IF(Q106<1,0,P107/Q107) -> 0 | S107: =MAX(S105:S106) -> 0 | T107: =IF($Q51<1,0,IF($K50=1,T52,T55)) -> 0
B109: 1/4 finale 4 | D109: DISTANCE | E109: MP | F109: Score | G109: Indg | H109: Snit | I109: Serie | J109: Shoot-out | K109: Plac. | L109: Syg / afbud | O109: kampe | P109: point | Q109: indg. | R109: snit | S109: serie
B111: =IF(Q60<1,"",IF(K59=1,B59,B62)) ->  | C111: =IF(B111="","",VLOOKUP(B111,licens,2,FALSE)) ->  | D111: =$J$2 -> 40 | E111: =IF(G111<1,"",IF(F111>F114,2,IF(F111=F114,1,0))) ->  | H111: =IF(G111<1," ",ROUNDDOWN(F111/G111,3)) ->  | K111: =IF(L114>0,1,IF(L111>0,2,IF(G111<1,"",IF(J111>J114,1,IF(J114>J111,2,IF(N111>0,Q$1,IF(F111>F114,1,2))))))) ->  | N111: =IF(G111<1,0,IF(F111=F114,1,0)) -> 0 | O111: =IF($Q60<1,0,IF($K59=1,O61,O64)) -> 0 | P111: =IF($Q60<1,0,IF($K59=1,P61,P64)) -> 0 | Q111: =IF($Q60<1,0,IF($K59=1,Q61,Q64)) -> 0 | R111: =IF($Q60<1,0,IF($K59=1,R61,R64)) -> 0 | S111: =IF($Q60<1,0,IF($K59=1,S61,S64)) -> 0
B112: =IF(B111="","",VLOOKUP(B111,licens,3,FALSE)) ->  | C112: =IF(B111="","",VLOOKUP(B111,licens,4,FALSE)) ->  | O112: =IF(G111>0,1,0) -> 0 | P112: =F111 -> 0 | Q112: =IF(L116>0,$R$1,G111) -> 0 | S112: =I111 -> 0
K113: 36 | O113: =SUM(O111:O112) -> 0 | P113: =SUM(P111:P112) -> 0 | Q113: =IF(L116>0,Q111,SUM(Q111:Q112)) -> 0 | R113: =IF(Q112<1,0,P113/Q113) -> 0 | S113: =MAX(S111:S112) -> 0 | T113: =IF($Q60<1,0,IF($K59=1,T61,T64)) -> 0
B114: =IF(Q69<1,"",IF(K68=1,B68,B71)) ->  | C114: =IF(B114="","",VLOOKUP(B114,licens,2,FALSE)) ->  | D114: =$J$2 -> 40 | E114: =IF(G111<1,"",IF(F114>F111,2,IF(F114=F111,1,0))) ->  | G114: =IF(G111<1,"",G111) ->  | H114: =IF(G111<1," ",ROUNDDOWN(F114/G114,3)) ->  | K114: =IF(L111>0,1,IF(L114>0,2,IF(G111<1,"",IF(J114>J111,1,IF(J111>J114,2,IF(N114>0,Q$1,IF(F114>F111,1,2))))))) ->  | N114: =IF(G111<1,0,IF(F114=F111,1,0)) -> 0 | O114: =IF($Q69<1,0,IF($K68=1,O70,O73)) -> 0 | P114: =IF($Q69<1,0,IF($K68=1,P70,P73)) -> 0 | Q114: =IF($Q69<1,0,IF($K68=1,Q70,Q73)) -> 0 | R114: =IF($Q69<1,0,IF($K68=1,R70,R73)) -> 0 | S114: =IF($Q69<1,0,IF($K68=1,S70,S73)) -> 0
B115: =IF(B114="","",VLOOKUP(B114,licens,3,FALSE)) ->  | C115: =IF(B114="","",VLOOKUP(B114,licens,4,FALSE)) ->  | O115: =IF(G111>0,1,0) -> 0 | P115: =F114 -> 0 | Q115: =IF(L116>0,$R$1,G111) -> 0 | S115: =I114 -> 0
L116: =IF(L111>0,$R$1,IF(L114>0,$R$1,0)) -> 0 | N116: =IF(N111+N114<1,"",SUM(N111:N114)) ->  | O116: =SUM(O114:O115) -> 0 | P116: =SUM(P114:P115) -> 0 | Q116: =IF(L116>0,Q114,SUM(Q114:Q115)) -> 0 | R116: =IF(Q115<1,0,P116/Q116) -> 0 | S116: =MAX(S114:S115) -> 0 | T116: =IF($Q69<1,0,IF($K68=1,T70,T73)) -> 0
B122: SEMIFINALE 1 | D122: DISTANCE | E122: MP | F122: Score | G122: Indg | H122: Snit | I122: Serie | J122: Shoot-out | K122: Plac. | L122: Syg / afbud | O122: kampe | P122: point | Q122: indg. | R122: snit | S122: serie
B124: =IF(Q85<1,"",IF(K84=1,B84,B87)) ->  | C124: =IF(B124="","",VLOOKUP(B124,licens,2,FALSE)) ->  | D124: =$J$2 -> 40 | E124: =IF(G124<1,"",IF(F124>F127,2,IF(F124=F127,1,0))) ->  | H124: =IF(G124<1," ",ROUNDDOWN(F124/G124,3)) ->  | K124: =IF(L127>0,1,IF(L124>0,2,IF(G124<1,"",IF(J124>J127,1,IF(J127>J124,2,IF(N124>0,Q$1,IF(F124>F127,1,2))))))) ->  | N124: =IF(G124<1,0,IF(F124=F127,1,0)) -> 0 | O124: =IF($Q85<1,0,IF($K84=1,O86,O89)) -> 0 | P124: =IF($Q85<1,0,IF($K84=1,P86,P89)) -> 0 | Q124: =IF($Q85<1,0,IF($K84=1,Q86,Q89)) -> 0 | R124: =IF($Q85<1,0,IF($K84=1,R86,R89)) -> 0 | S124: =IF($Q85<1,0,IF($K84=1,S86,S89)) -> 0
B125: =IF(B124="","",VLOOKUP(B124,licens,3,FALSE)) ->  | C125: =IF(B124="","",VLOOKUP(B124,licens,4,FALSE)) ->  | O125: =IF(G124>0,1,0) -> 0 | P125: =F124 -> 0 | Q125: =IF(L129>0,$R$1,G124) -> 0 | S125: =I124 -> 0
K126: 37 | O126: =SUM(O124:O125) -> 0 | P126: =SUM(P124:P125) -> 0 | Q126: =IF(L129>0,Q124,SUM(Q124:Q125)) -> 0 | R126: =IF(Q125<1,0,P126/Q126) -> 0 | S126: =MAX(S124:S125) -> 0 | T126: =IF($Q85<1,0,IF($K84=1,T86,T89)) -> 0
B127: =IF(Q94<1,"",IF(K93=1,B93,B96)) ->  | C127: =IF(B127="","",VLOOKUP(B127,licens,2,FALSE)) ->  | D127: =$J$2 -> 40 | E127: =IF(G124<1,"",IF(F127>F124,2,IF(F127=F124,1,0))) ->  | G127: =IF(G124<1,"",G124) ->  | H127: =IF(G124<1," ",ROUNDDOWN(F127/G127,3)) ->  | K127: =IF(L124>0,1,IF(L127>0,2,IF(G124<1,"",IF(J127>J124,1,IF(J124>J127,2,IF(N127>0,Q$1,IF(F127>F124,1,2))))))) ->  | N127: =IF(G124<1,0,IF(F127=F124,1,0)) -> 0 | O127: =IF($Q94<1,0,IF($K93=1,O95,O98)) -> 0 | P127: =IF($Q94<1,0,IF($K93=1,P95,P98)) -> 0 | Q127: =IF($Q94<1,0,IF($K93=1,Q95,Q98)) -> 0 | R127: =IF($Q94<1,0,IF($K93=1,R95,R98)) -> 0 | S127: =IF($Q94<1,0,IF($K93=1,S95,S98)) -> 0
B128: =IF(B127="","",VLOOKUP(B127,licens,3,FALSE)) ->  | C128: =IF(B127="","",VLOOKUP(B127,licens,4,FALSE)) ->  | O128: =IF(G124>0,1,0) -> 0 | P128: =F127 -> 0 | Q128: =IF(L129>0,$R$1,G124) -> 0 | S128: =I127 -> 0
L129: =IF(L124>0,$R$1,IF(L127>0,$R$1,0)) -> 0 | O129: =SUM(O127:O128) -> 0 | P129: =SUM(P127:P128) -> 0 | Q129: =IF(L129>0,Q127,SUM(Q127:Q128)) -> 0 | R129: =IF(Q128<1,0,P129/Q129) -> 0 | S129: =MAX(S127:S128) -> 0 | T129: =IF($Q94<1,0,IF($K93=1,T95,T98)) -> 0
B131: SEMIFINALE 2 | D131: DISTANCE | E131: MP | F131: Score | G131: Indg | H131: Snit | I131: Serie | J131: Shoot-out | K131: Plac. | L131: Syg / afbud
B133: =IF(Q103<1,"",IF(K102=1,B102,B105)) ->  | C133: =IF(B133="","",VLOOKUP(B133,licens,2,FALSE)) ->  | D133: =$J$2 -> 40 | E133: =IF(G133<1,"",IF(F133>F136,2,IF(F133=F136,1,0))) ->  | H133: =IF(G133<1," ",ROUNDDOWN(F133/G133,3)) ->  | K133: =IF(L136>0,1,IF(L133>0,2,IF(G133<1,"",IF(J133>J136,1,IF(J136>J133,2,IF(N133>0,Q$1,IF(F133>F136,1,2))))))) ->  | N133: =IF(G133<1,0,IF(F133=F136,1,0)) -> 0 | O133: =IF($Q103<1,0,IF($K102=1,O104,O107)) -> 0 | P133: =IF($Q103<1,0,IF($K102=1,P104,P107)) -> 0 | Q133: =IF($Q103<1,0,IF($K102=1,Q104,Q107)) -> 0 | R133: =IF($Q103<1,0,IF($K102=1,R104,R107)) -> 0 | S133: =IF($Q103<1,0,IF($K102=1,S104,S107)) -> 0
B134: =IF(B133="","",VLOOKUP(B133,licens,3,FALSE)) ->  | C134: =IF(B133="","",VLOOKUP(B133,licens,4,FALSE)) ->  | O134: =IF(G133>0,1,0) -> 0 | P134: =F133 -> 0 | Q134: =IF(L138>0,$R$1,G133) -> 0 | S134: =I133 -> 0
K135: 38 | O135: =SUM(O133:O134) -> 0 | P135: =SUM(P133:P134) -> 0 | Q135: =IF(L138>0,Q133,SUM(Q133:Q134)) -> 0 | R135: =IF(Q134<1,0,P135/Q135) -> 0 | S135: =MAX(S133:S134) -> 0 | T135: =IF($Q103<1,0,IF($K102=1,T104,T107)) -> 0
B136: =IF(Q112<1,"",IF(K111=1,B111,B114)) ->  | C136: =IF(B136="","",VLOOKUP(B136,licens,2,FALSE)) ->  | D136: =$J$2 -> 40 | E136: =IF(G133<1,"",IF(F136>F133,2,IF(F136=F133,1,0))) ->  | G136: =IF(G133<1,"",G133) ->  | H136: =IF(G133<1," ",ROUNDDOWN(F136/G136,3)) ->  | K136: =IF(L133>0,1,IF(L136>0,2,IF(G133<1,"",IF(J136>J133,1,IF(J133>J136,2,IF(N136>0,Q$1,IF(F136>F133,1,2))))))) ->  | N136: =IF(G133<1,0,IF(F136=F133,1,0)) -> 0 | O136: =IF($Q112<1,0,IF($K111=1,O113,O116)) -> 0 | P136: =IF($Q112<1,0,IF($K111=1,P113,P116)) -> 0 | Q136: =IF($Q112<1,0,IF($K111=1,Q113,Q116)) -> 0 | R136: =IF($Q112<1,0,IF($K111=1,R113,R116)) -> 0 | S136: =IF($Q112<1,0,IF($K111=1,S113,S116)) -> 0
B137: =IF(B136="","",VLOOKUP(B136,licens,3,FALSE)) ->  | C137: =IF(B136="","",VLOOKUP(B136,licens,4,FALSE)) ->  | O137: =IF(G133>0,1,0) -> 0 | P137: =F136 -> 0 | Q137: =IF(L138>0,$R$1,G133) -> 0 | S137: =I136 -> 0
L138: =IF(L133>0,$R$1,IF(L136>0,$R$1,0)) -> 0 | O138: =SUM(O136:O137) -> 0 | P138: =SUM(P136:P137) -> 0 | Q138: =IF(L138>0,Q136,SUM(Q136:Q137)) -> 0 | R138: =IF(Q137<1,0,P138/Q138) -> 0 | S138: =MAX(S136:S137) -> 0 | T138: =IF($Q112<1,0,IF($K111=1,T113,T116)) -> 0
B140: FINALE | D140: DISTANCE | E140: MP | F140: Score | G140: Indg | H140: Snit | I140: Serie | J140: Shoot-out | K140: Plac. | L140: Syg / afbud
B142: =IF(Q125<1,"",IF(K124=1,B124,B127)) ->  | C142: =IF(B142="","",VLOOKUP(B142,licens,2,FALSE)) ->  | D142: =$J$2 -> 40 | E142: =IF(G142<1,"",IF(F142>F145,2,IF(F142=F145,1,0))) ->  | H142: =IF(G142<1," ",ROUNDDOWN(F142/G142,3)) ->  | K142: =IF(L145>0,1,IF(L142>0,2,IF(G142<1,"",IF(J142>J145,1,IF(J145>J142,2,IF(N142>0,Q$1,IF(F142>F145,1,2))))))) ->  | N142: =IF(G142<1,0,IF(F142=F145,1,0)) -> 0 | O142: =IF($Q125<1,0,IF($K124=1,O126,O129)) -> 0 | P142: =IF($Q125<1,0,IF($K124=1,P126,P129)) -> 0 | Q142: =IF($Q125<1,0,IF($K124=1,Q126,Q129)) -> 0 | R142: =IF($Q125<1,0,IF($K124=1,R126,R129)) -> 0 | S142: =IF($Q125<1,0,IF($K124=1,S126,S129)) -> 0
B143: =IF(B142="","",VLOOKUP(B142,licens,3,FALSE)) ->  | C143: =IF(B142="","",VLOOKUP(B142,licens,4,FALSE)) ->  | O143: =IF(G142>0,1,0) -> 0 | P143: =F142 -> 0 | Q143: =IF(L147>0,$R$1,G142) -> 0 | S143: =I142 -> 0
K144: 39 | O144: =SUM(O142:O143) -> 0 | P144: =SUM(P142:P143) -> 0 | Q144: =IF(L147>0,Q142,SUM(Q142:Q143)) -> 0 | R144: =IF(Q143<1,0,P144/Q144) -> 0 | S144: =MAX(S142:S143) -> 0
B145: =IF(Q134<1,"",IF(K133=1,B133,B136)) ->  | C145: =IF(B145="","",VLOOKUP(B145,licens,2,FALSE)) ->  | D145: =$J$2 -> 40 | E145: =IF(G142<1,"",IF(F145>F142,2,IF(F145=F142,1,0))) ->  | G145: =IF(G142<1,"",G142) ->  | H145: =IF(G142<1," ",ROUNDDOWN(F145/G145,3)) ->  | K145: =IF(L142>0,1,IF(L145>0,2,IF(G142<1,"",IF(J145>J142,1,IF(J142>J145,2,IF(N145>0,Q$1,IF(F145>F142,1,2))))))) ->  | N145: =IF(G142<1,0,IF(F145=F142,1,0)) -> 0 | O145: =IF($Q134<1,0,IF($K133=1,O135,O138)) -> 0 | P145: =IF($Q134<1,0,IF($K133=1,P135,P138)) -> 0 | Q145: =IF($Q134<1,0,IF($K133=1,Q135,Q138)) -> 0 | R145: =IF($Q134<1,0,IF($K133=1,R135,R138)) -> 0 | S145: =IF($Q134<1,0,IF($K133=1,S135,S138)) -> 0
B146: =IF(B145="","",VLOOKUP(B145,licens,3,FALSE)) ->  | C146: =IF(B145="","",VLOOKUP(B145,licens,4,FALSE)) ->  | O146: =IF(G142>0,1,0) -> 0 | P146: =F145 -> 0 | Q146: =IF(L147>0,$R$1,G142) -> 0 | S146: =I145 -> 0
L147: =IF(L142>0,$R$1,IF(L145>0,$R$1,0)) -> 0 | O147: =SUM(O145:O146) -> 0 | P147: =SUM(P145:P146) -> 0 | Q147: =IF(L147>0,Q145,SUM(Q145:Q146)) -> 0 | R147: =IF(Q146<1,0,P147/Q147) -> 0 | S147: =MAX(S145:S146) -> 0

Sheet Slutstilling
A1: =Puljer!$A$4 -> 3 Bande Tour | K1: Skjul konto nr: | M1: nulstil | Q1: Slutstilling | S1: x
K2: Præmier
A3: SLUTSTILLING | K3: 0 | M3: Udskriv | Q3: 1 til 24 | R3: 1 til 17
K4: 4 | R4: =IF(Q4>0,"",S1) -> x
K5: 6
A6: Nr: | B6: Licens nr. | C6: Navn | D6: Kampe: | E6: Score: | F6: Indg: | G6: Snit: | H6: Serie: | I6: Præmier | K6: 8 | L6: x
B7: Klub nr. | C7: Klub | I7: 14400 | K7: Konto nr:
A8: 1 | B8: =IF(O8<1," ",VLOOKUP(M8,plads,2,FALSE)) ->  | C8: =IF(O8<1,"",VLOOKUP(B8,licens,2,FALSE)) ->  | D8: =IF(O8<1," ",VLOOKUP(M8,plads,7,FALSE)) ->  | E8: =IF(O8<1," ",VLOOKUP(M8,plads,8,FALSE)) ->  | F8: =IF(O8<1," ",VLOOKUP(M8,plads,9,FALSE)) ->  | G8: =IF(O8<1," ",ROUNDDOWN(E8/F8,3)) ->  | H8: =IF(O8<1," ",VLOOKUP(M8,plads,11,FALSE)) ->  | I8: 0.3 | J8: =$I$7/100*I8*100 -> 4320 | M8: 101 | O8: =VLOOKUP(M8,plads,9,FALSE) -> 0
B9: =IF(O8<1,"",VLOOKUP(B8,licens,3,FALSE)) ->  | C9: =IF(O8<1,"",VLOOKUP(B8,licens,4,FALSE)) -> 
A10: 2 | B10: =IF(O10<1," ",VLOOKUP(M10,plads,2,FALSE)) ->  | C10: =IF(O10<1,"",VLOOKUP(B10,licens,2,FALSE)) ->  | D10: =IF(O10<1," ",VLOOKUP(M10,plads,7,FALSE)) ->  | E10: =IF(O10<1," ",VLOOKUP(M10,plads,8,FALSE)) ->  | F10: =IF(O10<1," ",VLOOKUP(M10,plads,9,FALSE)) ->  | G10: =IF(O10<1," ",ROUNDDOWN(E10/F10,3)) ->  | H10: =IF(O10<1," ",VLOOKUP(M10,plads,11,FALSE)) ->  | I10: 0.2 | J10: =$I$7/100*I10*100 -> 2880 | M10: 102 | O10: =VLOOKUP(M10,plads,9,FALSE) -> 0
B11: =IF(O10<1,"",VLOOKUP(B10,licens,3,FALSE)) ->  | C11: =IF(O10<1,"",VLOOKUP(B10,licens,4,FALSE)) -> 
A12: 3 | B12: =IF(O12<1," ",VLOOKUP(M12,plads,2,FALSE)) ->  | C12: =IF(O12<1,"",VLOOKUP(B12,licens,2,FALSE)) ->  | D12: =IF(O12<1," ",VLOOKUP(M12,plads,7,FALSE)) ->  | E12: =IF(O12<1," ",VLOOKUP(M12,plads,8,FALSE)) ->  | F12: =IF(O12<1," ",VLOOKUP(M12,plads,9,FALSE)) ->  | G12: =IF(O12<1," ",ROUNDDOWN(E12/F12,3)) ->  | H12: =IF(O12<1," ",VLOOKUP(M12,plads,11,FALSE)) ->  | I12: 0.1 | J12: =$I$7/100*I12*100 -> 1440 | M12: 103 | O12: =VLOOKUP(M12,plads,9,FALSE) -> 0
B13: =IF(O12<1,"",VLOOKUP(B12,licens,3,FALSE)) ->  | C13: =IF(O12<1,"",VLOOKUP(B12,licens,4,FALSE)) -> 
A14: 3 | B14: =IF(O14<1," ",VLOOKUP(M14,plads,2,FALSE)) ->  | C14: =IF(O14<1,"",VLOOKUP(B14,licens,2,FALSE)) ->  | D14: =IF(O14<1," ",VLOOKUP(M14,plads,7,FALSE)) ->  | E14: =IF(O14<1," ",VLOOKUP(M14,plads,8,FALSE)) ->  | F14: =IF(O14<1," ",VLOOKUP(M14,plads,9,FALSE)) ->  | G14: =IF(O14<1," ",ROUNDDOWN(E14/F14,3)) ->  | H14: =IF(O14<1," ",VLOOKUP(M14,plads,11,FALSE)) ->  | I14: 0.1 | J14: =$I$7/100*I14*100 -> 1440 | M14: 104 | O14: =VLOOKUP(M14,plads,9,FALSE) -> 0
B15: =IF(O14<1,"",VLOOKUP(B14,licens,3,FALSE)) ->  | C15: =IF(O14<1,"",VLOOKUP(B14,licens,4,FALSE)) -> 
A16: 5 | B16: =IF(O16<1," ",VLOOKUP(M16,plads,2,FALSE)) ->  | C16: =IF(O16<1,"",VLOOKUP(B16,licens,2,FALSE)) ->  | D16: =IF(O16<1," ",VLOOKUP(M16,plads,7,FALSE)) ->  | E16: =IF(O16<1," ",VLOOKUP(M16,plads,8,FALSE)) ->  | F16: =IF(O16<1," ",VLOOKUP(M16,plads,9,FALSE)) ->  | G16: =IF(O16<1," ",ROUNDDOWN(E16/F16,3)) ->  | H16: =IF(O16<1," ",VLOOKUP(M16,plads,11,FALSE)) ->  | I16: 0.075 | J16: =$I$7/100*I16*100 -> 1080 | M16: 105 | O16: =VLOOKUP(M16,plads,9,FALSE) -> 0
B17: =IF(O16<1,"",VLOOKUP(B16,licens,3,FALSE)) ->  | C17: =IF(O16<1,"",VLOOKUP(B16,licens,4,FALSE)) -> 
A18: =IF(Q$4<1,5,6) -> 5 | B18: =IF(O18<1," ",VLOOKUP(M18,plads,2,FALSE)) ->  | C18: =IF(O18<1,"",VLOOKUP(B18,licens,2,FALSE)) ->  | D18: =IF(O18<1," ",VLOOKUP(M18,plads,7,FALSE)) ->  | E18: =IF(O18<1," ",VLOOKUP(M18,plads,8,FALSE)) ->  | F18: =IF(O18<1," ",VLOOKUP(M18,plads,9,FALSE)) ->  | G18: =IF(O18<1," ",ROUNDDOWN(E18/F18,3)) ->  | H18: =IF(O18<1," ",VLOOKUP(M18,plads,11,FALSE)) ->  | I18: 0.075 | J18: =$I$7/100*I18*100 -> 1080 | M18: 106 | O18: =VLOOKUP(M18,plads,9,FALSE) -> 0
B19: =IF(O18<1,"",VLOOKUP(B18,licens,3,FALSE)) ->  | C19: =IF(O18<1,"",VLOOKUP(B18,licens,4,FALSE)) -> 
A20: =IF(Q$4<1,5,7) -> 5 | B20: =IF(O20<1," ",VLOOKUP(M20,plads,2,FALSE)) ->  | C20: =IF(O20<1,"",VLOOKUP(B20,licens,2,FALSE)) ->  | D20: =IF(O20<1," ",VLOOKUP(M20,plads,7,FALSE)) ->  | E20: =IF(O20<1," ",VLOOKUP(M20,plads,8,FALSE)) ->  | F20: =IF(O20<1," ",VLOOKUP(M20,plads,9,FALSE)) ->  | G20: =IF(O20<1," ",ROUNDDOWN(E20/F20,3)) ->  | H20: =IF(O20<1," ",VLOOKUP(M20,plads,11,FALSE)) ->  | I20: 0.075 | J20: =$I$7/100*I20*100 -> 1080 | M20: 107 | O20: =VLOOKUP(M20,plads,9,FALSE) -> 0
B21: =IF(O20<1,"",VLOOKUP(B20,licens,3,FALSE)) ->  | C21: =IF(O20<1,"",VLOOKUP(B20,licens,4,FALSE)) -> 
A22: =IF(Q$4<1,5,8) -> 5 | B22: =IF(O22<1," ",VLOOKUP(M22,plads,2,FALSE)) ->  | C22: =IF(O22<1,"",VLOOKUP(B22,licens,2,FALSE)) ->  | D22: =IF(O22<1," ",VLOOKUP(M22,plads,7,FALSE)) ->  | E22: =IF(O22<1," ",VLOOKUP(M22,plads,8,FALSE)) ->  | F22: =IF(O22<1," ",VLOOKUP(M22,plads,9,FALSE)) ->  | G22: =IF(O22<1," ",ROUNDDOWN(E22/F22,3)) ->  | H22: =IF(O22<1," ",VLOOKUP(M22,plads,11,FALSE)) ->  | I22: 0.075 | J22: =$I$7/100*I22*100 -> 1080 | M22: 108 | O22: =VLOOKUP(M22,plads,9,FALSE) -> 0
B23: =IF(O22<1,"",VLOOKUP(B22,licens,3,FALSE)) ->  | C23: =IF(O22<1,"",VLOOKUP(B22,licens,4,FALSE)) -> 
A24: =IF(Q$4<1,9,9) -> 9 | B24: =IF(O24<1," ",VLOOKUP(M24,plads,2,FALSE)) ->  | C24: =IF(O24<1,"",VLOOKUP(B24,licens,2,FALSE)) ->  | D24: =IF(O24<1," ",VLOOKUP(M24,plads,7,FALSE)) ->  | E24: =IF(O24<1," ",VLOOKUP(M24,plads,8,FALSE)) ->  | F24: =IF(O24<1," ",VLOOKUP(M24,plads,9,FALSE)) ->  | G24: =IF(O24<1," ",ROUNDDOWN(E24/F24,3)) ->  | H24: =IF(O24<1," ",VLOOKUP(M24,plads,11,FALSE)) ->  | I24: =IF(L3>0,"",IF(L4>0,SUM(I8:I15),IF(L5>0,SUM(I8:I19),IF(L6>0,SUM(I8:I23))))) -> 1 | M24: 109 | O24: =VLOOKUP(M24,plads,9,FALSE) -> 0
B25: =IF(O24<1,"",VLOOKUP(B24,licens,3,FALSE)) ->  | C25: =IF(O24<1,"",VLOOKUP(B24,licens,4,FALSE)) -> 
A26: =IF(Q$4<1,9,10) -> 9 | B26: =IF(O26<1," ",VLOOKUP(M26,plads,2,FALSE)) ->  | C26: =IF(O26<1,"",VLOOKUP(B26,licens,2,FALSE)) ->  | D26: =IF(O26<1," ",VLOOKUP(M26,plads,7,FALSE)) ->  | E26: =IF(O26<1," ",VLOOKUP(M26,plads,8,FALSE)) ->  | F26: =IF(O26<1," ",VLOOKUP(M26,plads,9,FALSE)) ->  | G26: =IF(O26<1," ",ROUNDDOWN(E26/F26,3)) ->  | H26: =IF(O26<1," ",VLOOKUP(M26,plads,11,FALSE)) ->  | M26: 110 | O26: =VLOOKUP(M26,plads,9,FALSE) -> 0
B27: =IF(O26<1,"",VLOOKUP(B26,licens,3,FALSE)) ->  | C27: =IF(O26<1,"",VLOOKUP(B26,licens,4,FALSE)) -> 
A28: =IF(Q$4<1,9,11) -> 9 | B28: =IF(O28<1," ",VLOOKUP(M28,plads,2,FALSE)) ->  | C28: =IF(O28<1,"",VLOOKUP(B28,licens,2,FALSE)) ->  | D28: =IF(O28<1," ",VLOOKUP(M28,plads,7,FALSE)) ->  | E28: =IF(O28<1," ",VLOOKUP(M28,plads,8,FALSE)) ->  | F28: =IF(O28<1," ",VLOOKUP(M28,plads,9,FALSE)) ->  | G28: =IF(O28<1," ",ROUNDDOWN(E28/F28,3)) ->  | H28: =IF(O28<1," ",VLOOKUP(M28,plads,11,FALSE)) ->  | M28: 111 | O28: =VLOOKUP(M28,plads,9,FALSE) -> 0
B29: =IF(O28<1,"",VLOOKUP(B28,licens,3,FALSE)) ->  | C29: =IF(O28<1,"",VLOOKUP(B28,licens,4,FALSE)) -> 
A30: =IF(Q$4<1,9,12) -> 9 | B30: =IF(O30<1," ",VLOOKUP(M30,plads,2,FALSE)) ->  | C30: =IF(O30<1,"",VLOOKUP(B30,licens,2,FALSE)) ->  | D30: =IF(O30<1," ",VLOOKUP(M30,plads,7,FALSE)) ->  | E30: =IF(O30<1," ",VLOOKUP(M30,plads,8,FALSE)) ->  | F30: =IF(O30<1," ",VLOOKUP(M30,plads,9,FALSE)) ->  | G30: =IF(O30<1," ",ROUNDDOWN(E30/F30,3)) ->  | H30: =IF(O30<1," ",VLOOKUP(M30,plads,11,FALSE)) ->  | M30: 112 | O30: =VLOOKUP(M30,plads,9,FALSE) -> 0
B31: =IF(O30<1,"",VLOOKUP(B30,licens,3,FALSE)) ->  | C31: =IF(O30<1,"",VLOOKUP(B30,licens,4,FALSE)) -> 
A32: =IF(Q$4<1,9,13) -> 9 | B32: =IF(O32<1," ",VLOOKUP(M32,plads,2,FALSE)) ->  | C32: =IF(O32<1,"",VLOOKUP(B32,licens,2,FALSE)) ->  | D32: =IF(O32<1," ",VLOOKUP(M32,plads,7,FALSE)) ->  | E32: =IF(O32<1," ",VLOOKUP(M32,plads,8,FALSE)) ->  | F32: =IF(O32<1," ",VLOOKUP(M32,plads,9,FALSE)) ->  | G32: =IF(O32<1," ",ROUNDDOWN(E32/F32,3)) ->  | H32: =IF(O32<1," ",VLOOKUP(M32,plads,11,FALSE)) ->  | M32: 113 | O32: =VLOOKUP(M32,plads,9,FALSE) -> 0
B33: =IF(O32<1,"",VLOOKUP(B32,licens,3,FALSE)) ->  | C33: =IF(O32<1,"",VLOOKUP(B32,licens,4,FALSE)) -> 
A34: =IF(Q$4<1,9,14) -> 9 | B34: =IF(O34<1," ",VLOOKUP(M34,plads,2,FALSE)) ->  | C34: =IF(O34<1,"",VLOOKUP(B34,licens,2,FALSE)) ->  | D34: =IF(O34<1," ",VLOOKUP(M34,plads,7,FALSE)) ->  | E34: =IF(O34<1," ",VLOOKUP(M34,plads,8,FALSE)) ->  | F34: =IF(O34<1," ",VLOOKUP(M34,plads,9,FALSE)) ->  | G34: =IF(O34<1," ",ROUNDDOWN(E34/F34,3)) ->  | H34: =IF(O34<1," ",VLOOKUP(M34,plads,11,FALSE)) ->  | M34: 114 | O34: =VLOOKUP(M34,plads,9,FALSE) -> 0
B35: =IF(O34<1,"",VLOOKUP(B34,licens,3,FALSE)) ->  | C35: =IF(O34<1,"",VLOOKUP(B34,licens,4,FALSE)) -> 
A36: =IF(Q$4<1,9,15) -> 9 | B36: =IF(O36<1," ",VLOOKUP(M36,plads,2,FALSE)) ->  | C36: =IF(O36<1,"",VLOOKUP(B36,licens,2,FALSE)) ->  | D36: =IF(O36<1," ",VLOOKUP(M36,plads,7,FALSE)) ->  | E36: =IF(O36<1," ",VLOOKUP(M36,plads,8,FALSE)) ->  | F36: =IF(O36<1," ",VLOOKUP(M36,plads,9,FALSE)) ->  | G36: =IF(O36<1," ",ROUNDDOWN(E36/F36,3)) ->  | H36: =IF(O36<1," ",VLOOKUP(M36,plads,11,FALSE)) ->  | M36: 115 | O36: =VLOOKUP(M36,plads,9,FALSE) -> 0
B37: =IF(O36<1,"",VLOOKUP(B36,licens,3,FALSE)) ->  | C37: =IF(O36<1,"",VLOOKUP(B36,licens,4,FALSE)) -> 
A38: =IF(Q$4<1,9,16) -> 9 | B38: =IF(O38<1," ",VLOOKUP(M38,plads,2,FALSE)) ->  | C38: =IF(O38<1,"",VLOOKUP(B38,licens,2,FALSE)) ->  | D38: =IF(O38<1," ",VLOOKUP(M38,plads,7,FALSE)) ->  | E38: =IF(O38<1," ",VLOOKUP(M38,plads,8,FALSE)) ->  | F38: =IF(O38<1," ",VLOOKUP(M38,plads,9,FALSE)) ->  | G38: =IF(O38<1," ",ROUNDDOWN(E38/F38,3)) ->  | H38: =IF(O38<1," ",VLOOKUP(M38,plads,11,FALSE)) ->  | M38: 116 | O38: =VLOOKUP(M38,plads,9,FALSE) -> 0
B39: =IF(O38<1,"",VLOOKUP(B38,licens,3,FALSE)) ->  | C39: =IF(O38<1,"",VLOOKUP(B38,licens,4,FALSE)) -> 
A40: =IF(Q$4<1,17,17) -> 17 | B40: =IF(O40<1," ",VLOOKUP(M40,plads,2,FALSE)) ->  | C40: =IF(O40<1,"",VLOOKUP(B40,licens,2,FALSE)) ->  | D40: =IF(O40<1," ",VLOOKUP(M40,plads,7,FALSE)) ->  | E40: =IF(O40<1," ",VLOOKUP(M40,plads,8,FALSE)) ->  | F40: =IF(O40<1," ",VLOOKUP(M40,plads,9,FALSE)) ->  | G40: =IF(O40<1," ",ROUNDDOWN(E40/F40,3)) ->  | H40: =IF(O40<1," ",VLOOKUP(M40,plads,11,FALSE)) ->  | M40: 17 | O40: =VLOOKUP(M40,plads,9,FALSE) -> 0
B41: =IF(O40<1,"",VLOOKUP(B40,licens,3,FALSE)) ->  | C41: =IF(O40<1,"",VLOOKUP(B40,licens,4,FALSE)) -> 
A42: =IF(Q$4<1,17,18) -> 17 | B42: =IF(O42<1," ",VLOOKUP(M42,plads,2,FALSE)) ->  | C42: =IF(O42<1,"",VLOOKUP(B42,licens,2,FALSE)) ->  | D42: =IF(O42<1," ",VLOOKUP(M42,plads,7,FALSE)) ->  | E42: =IF(O42<1," ",VLOOKUP(M42,plads,8,FALSE)) ->  | F42: =IF(O42<1," ",VLOOKUP(M42,plads,9,FALSE)) ->  | G42: =IF(O42<1," ",ROUNDDOWN(E42/F42,3)) ->  | H42: =IF(O42<1," ",VLOOKUP(M42,plads,11,FALSE)) ->  | M42: 18 | O42: =VLOOKUP(M42,plads,9,FALSE) -> 0
B43: =IF(O42<1,"",VLOOKUP(B42,licens,3,FALSE)) ->  | C43: =IF(O42<1,"",VLOOKUP(B42,licens,4,FALSE)) -> 
A44: =IF(Q$4<1,17,19) -> 17 | B44: =IF(O44<1," ",VLOOKUP(M44,plads,2,FALSE)) ->  | C44: =IF(O44<1,"",VLOOKUP(B44,licens,2,FALSE)) ->  | D44: =IF(O44<1," ",VLOOKUP(M44,plads,7,FALSE)) ->  | E44: =IF(O44<1," ",VLOOKUP(M44,plads,8,FALSE)) ->  | F44: =IF(O44<1," ",VLOOKUP(M44,plads,9,FALSE)) ->  | G44: =IF(O44<1," ",ROUNDDOWN(E44/F44,3)) ->  | H44: =IF(O44<1," ",VLOOKUP(M44,plads,11,FALSE)) ->  | M44: 19 | O44: =VLOOKUP(M44,plads,9,FALSE) -> 0
B45: =IF(O44<1,"",VLOOKUP(B44,licens,3,FALSE)) ->  | C45: =IF(O44<1,"",VLOOKUP(B44,licens,4,FALSE)) -> 
A46: =IF(Q$4<1,17,20) -> 17 | B46: =IF(O46<1," ",VLOOKUP(M46,plads,2,FALSE)) ->  | C46: =IF(O46<1,"",VLOOKUP(B46,licens,2,FALSE)) ->  | D46: =IF(O46<1," ",VLOOKUP(M46,plads,7,FALSE)) ->  | E46: =IF(O46<1," ",VLOOKUP(M46,plads,8,FALSE)) ->  | F46: =IF(O46<1," ",VLOOKUP(M46,plads,9,FALSE)) ->  | G46: =IF(O46<1," ",ROUNDDOWN(E46/F46,3)) ->  | H46: =IF(O46<1," ",VLOOKUP(M46,plads,11,FALSE)) ->  | M46: 20 | O46: =VLOOKUP(M46,plads,9,FALSE) -> 0
B47: =IF(O46<1,"",VLOOKUP(B46,licens,3,FALSE)) ->  | C47: =IF(O46<1,"",VLOOKUP(B46,licens,4,FALSE)) -> 
A48: =IF(Q$4<1,17,21) -> 17 | B48: =IF(O48<1," ",VLOOKUP(M48,plads,2,FALSE)) ->  | C48: =IF(O48<1,"",VLOOKUP(B48,licens,2,FALSE)) ->  | D48: =IF(O48<1," ",VLOOKUP(M48,plads,7,FALSE)) ->  | E48: =IF(O48<1," ",VLOOKUP(M48,plads,8,FALSE)) ->  | F48: =IF(O48<1," ",VLOOKUP(M48,plads,9,FALSE)) ->  | G48: =IF(O48<1," ",ROUNDDOWN(E48/F48,3)) ->  | H48: =IF(O48<1," ",VLOOKUP(M48,plads,11,FALSE)) ->  | M48: 21 | O48: =VLOOKUP(M48,plads,9,FALSE) -> 0
B49: =IF(O48<1,"",VLOOKUP(B48,licens,3,FALSE)) ->  | C49: =IF(O48<1,"",VLOOKUP(B48,licens,4,FALSE)) -> 
A50: =IF(Q$4<1,17,22) -> 17 | B50: =IF(O50<1," ",VLOOKUP(M50,plads,2,FALSE)) ->  | C50: =IF(O50<1,"",VLOOKUP(B50,licens,2,FALSE)) ->  | D50: =IF(O50<1," ",VLOOKUP(M50,plads,7,FALSE)) ->  | E50: =IF(O50<1," ",VLOOKUP(M50,plads,8,FALSE)) ->  | F50: =IF(O50<1," ",VLOOKUP(M50,plads,9,FALSE)) ->  | G50: =IF(O50<1," ",ROUNDDOWN(E50/F50,3)) ->  | H50: =IF(O50<1," ",VLOOKUP(M50,plads,11,FALSE)) ->  | M50: 22 | O50: =VLOOKUP(M50,plads,9,FALSE) -> 0
B51: =IF(O50<1,"",VLOOKUP(B50,licens,3,FALSE)) ->  | C51: =IF(O50<1,"",VLOOKUP(B50,licens,4,FALSE)) -> 
A52: =IF(Q$4<1,17,23) -> 17 | B52: =IF(O52<1," ",VLOOKUP(M52,plads,2,FALSE)) ->  | C52: =IF(O52<1,"",VLOOKUP(B52,licens,2,FALSE)) ->  | D52: =IF(O52<1," ",VLOOKUP(M52,plads,7,FALSE)) ->  | E52: =IF(O52<1," ",VLOOKUP(M52,plads,8,FALSE)) ->  | F52: =IF(O52<1," ",VLOOKUP(M52,plads,9,FALSE)) ->  | G52: =IF(O52<1," ",ROUNDDOWN(E52/F52,3)) ->  | H52: =IF(O52<1," ",VLOOKUP(M52,plads,11,FALSE)) ->  | M52: 23 | O52: =VLOOKUP(M52,plads,9,FALSE) -> 0
B53: =IF(O52<1,"",VLOOKUP(B52,licens,3,FALSE)) ->  | C53: =IF(O52<1,"",VLOOKUP(B52,licens,4,FALSE)) -> 
A54: =IF(Q$4<1,17,24) -> 17 | B54: =IF(O54<1," ",VLOOKUP(M54,plads,2,FALSE)) ->  | C54: =IF(O54<1,"",VLOOKUP(B54,licens,2,FALSE)) ->  | D54: =IF(O54<1," ",VLOOKUP(M54,plads,7,FALSE)) ->  | E54: =IF(O54<1," ",VLOOKUP(M54,plads,8,FALSE)) ->  | F54: =IF(O54<1," ",VLOOKUP(M54,plads,9,FALSE)) ->  | G54: =IF(O54<1," ",ROUNDDOWN(E54/F54,3)) ->  | H54: =IF(O54<1," ",VLOOKUP(M54,plads,11,FALSE)) ->  | M54: 24 | O54: =VLOOKUP(M54,plads,9,FALSE) -> 0
B55: =IF(O54<1,"",VLOOKUP(B54,licens,3,FALSE)) ->  | C55: =IF(O54<1,"",VLOOKUP(B54,licens,4,FALSE)) -> 
A56: Stævne totalgennemsnit : | E56: =IF($O56<1,"",SUM(E8:E55)) ->  | F56: =IF($O56<1,"",SUM(F8:F55)) ->  | G56: =IF(O56<1," ",ROUNDDOWN(E56/F56,3)) ->  | H56: =IF($O56<1,"",MAX(H8:H55)) ->  | O56: =SUM(O8:O55) -> 0

Sheet plads (hidden)
G1: kampe | H1: score | I1: ing. | J1: snit | K1: serie | L1: mp | O1: MP | P1: snit | Q1: snit | R1: Score | S1: Serie | T1: I alt
A2: =Puljer!AL120 ->  | B2: =Puljer!B120 -> 0 | C2: =VLOOKUP(B2,licens,2,FALSE) ->  | D2: =VLOOKUP(B2,licens,3,FALSE) ->  | E2: =VLOOKUP(B2,licens,4,FALSE) ->  | G2: =Puljer!D120 -> 0 | H2: =Puljer!F120 -> 0 | I2: =Puljer!H120 -> 0 | J2: =Puljer!J120 -> 0 | K2: =Puljer!L120 -> 0 | L2: =Puljer!T120 -> 0 | M2: =Puljer!V120 -> 0 | N2: =Puljer!X120 -> 0 | O2: =Puljer!Y120 -> 100000000000 | P2: =Puljer!Z120 ->  | Q2: =Puljer!AA120 -> 1000000000 | R2: =Puljer!AB120 ->  | S2: =Puljer!AC120 -> 10000000 | T2: =Puljer!AK120 ->  | U2: =Puljer!AL120 -> 
A3: =Puljer!AL122 ->  | B3: =Puljer!B122 -> 0 | G3: =Puljer!D122 -> 0 | H3: =Puljer!F122 -> 0 | I3: =Puljer!H122 -> 0 | J3: =Puljer!J122 -> 0 | K3: =Puljer!L122 -> 0 | L3: =Puljer!T122 -> 0 | M3: =Puljer!V122 -> 0 | N3: =Puljer!X122 -> 0 | O3: =Puljer!Y122 -> 100000000000 | P3: =Puljer!Z122 ->  | Q3: =Puljer!AA122 -> 1000000000 | R3: =Puljer!AB122 ->  | S3: =Puljer!AC122 -> 10000000 | T3: =Puljer!AK122 ->  | U3: =Puljer!AL122 -> 
A4: =Puljer!AL124 ->  | B4: =Puljer!B124 -> 0 | G4: =Puljer!D124 -> 0 | H4: =Puljer!F124 -> 0 | I4: =Puljer!H124 -> 0 | J4: =Puljer!J124 -> 0 | K4: =Puljer!L124 -> 0 | L4: =Puljer!T124 -> 0 | M4: =Puljer!V124 -> 0 | N4: =Puljer!X124 -> 0 | O4: =Puljer!Y124 -> 100000000000 | P4: =Puljer!Z124 ->  | Q4: =Puljer!AA124 -> 1000000000 | R4: =Puljer!AB124 ->  | S4: =Puljer!AC124 -> 10000000 | T4: =Puljer!AK124 ->  | U4: =Puljer!AL124 -> 
A5: =Puljer!AL126 ->  | B5: =Puljer!B126 -> 0 | G5: =Puljer!D126 -> 0 | H5: =Puljer!F126 -> 0 | I5: =Puljer!H126 -> 0 | J5: =Puljer!J126 -> 0 | K5: =Puljer!L126 -> 0 | L5: =Puljer!T126 -> 0 | M5: =Puljer!V126 -> 0 | N5: =Puljer!X126 -> 0 | O5: =Puljer!Y126 -> 100000000000 | P5: =Puljer!Z126 ->  | Q5: =Puljer!AA126 -> 1000000000 | R5: =Puljer!AB126 ->  | S5: =Puljer!AC126 -> 10000000 | T5: =Puljer!AK126 ->  | U5: =Puljer!AL126 -> 
A6: =Puljer!AL128 ->  | B6: =Puljer!B128 -> 0 | G6: =Puljer!D128 -> 0 | H6: =Puljer!F128 -> 0 | I6: =Puljer!H128 -> 0 | J6: =Puljer!J128 -> 0 | K6: =Puljer!L128 -> 0 | L6: =Puljer!T128 -> 0 | M6: =Puljer!V128 -> 0 | N6: =Puljer!X128 -> 0 | O6: =Puljer!Y128 -> 100000000000 | P6: =Puljer!Z128 ->  | Q6: =Puljer!AA128 -> 1000000000 | R6: =Puljer!AB128 ->  | S6: =Puljer!AC128 -> 10000000 | T6: =Puljer!AK128 ->  | U6: =Puljer!AL128 -> 
A7: =Puljer!AL130 ->  | B7: =Puljer!B130 -> 0 | G7: =Puljer!D130 -> 0 | H7: =Puljer!F130 -> 0 | I7: =Puljer!H130 -> 0 | J7: =Puljer!J130 -> 0 | K7: =Puljer!L130 -> 0 | L7: =Puljer!T130 -> 0 | M7: =Puljer!V130 -> 0 | N7: =Puljer!X130 -> 0 | O7: =Puljer!Y130 -> 100000000000 | P7: =Puljer!Z130 ->  | Q7: =Puljer!AA130 -> 1000000000 | R7: =Puljer!AB130 ->  | S7: =Puljer!AC130 -> 10000000 | T7: =Puljer!AK130 ->  | U7: =Puljer!AL130 -> 
A8: =Puljer!AL132 ->  | B8: =Puljer!B132 -> 0 | G8: =Puljer!D132 -> 0 | H8: =Puljer!F132 -> 0 | I8: =Puljer!H132 -> 0 | J8: =Puljer!J132 -> 0 | K8: =Puljer!L132 -> 0 | L8: =Puljer!T132 -> 0 | M8: =Puljer!V132 -> 0 | N8: =Puljer!X132 -> 0 | O8: =Puljer!Y132 -> 100000000000 | P8: =Puljer!Z132 ->  | Q8: =Puljer!AA132 -> 1000000000 | R8: =Puljer!AB132 ->  | S8: =Puljer!AC132 -> 10000000 | T8: =Puljer!AK132 ->  | U8: =Puljer!AL132 -> 
A9: =Puljer!AL134 ->  | B9: =Puljer!B134 -> 0 | G9: =Puljer!D134 -> 0 | H9: =Puljer!F134 -> 0 | I9: =Puljer!H134 -> 0 | J9: =Puljer!J134 -> 0 | K9: =Puljer!L134 -> 0 | L9: =Puljer!T134 -> 0 | M9: =Puljer!V134 -> 0 | N9: =Puljer!X134 -> 0 | O9: =Puljer!Y134 -> 100000000000 | P9: =Puljer!Z134 ->  | Q9: =Puljer!AA134 -> 1000000000 | R9: =Puljer!AB134 ->  | S9: =Puljer!AC134 -> 10000000 | T9: =Puljer!AK134 ->  | U9: =Puljer!AL134 -> 
A10: =Puljer!AL136 ->  | B10: =Puljer!B136 -> 0 | G10: =Puljer!D136 -> 0 | H10: =Puljer!F136 -> 0 | I10: =Puljer!H136 -> 0 | J10: =Puljer!J136 -> 0 | K10: =Puljer!L136 -> 0 | L10: =Puljer!T136 -> 0 | M10: =Puljer!V136 -> 0 | N10: =Puljer!X136 -> 0 | O10: =Puljer!Y136 -> 1000000000000 | P10: =Puljer!Z136 ->  | Q10: =Puljer!AA136 -> 1000000000 | R10: =Puljer!AB136 ->  | S10: =Puljer!AC136 -> 10000000 | T10: =Puljer!AK136 ->  | U10: =Puljer!AL136 -> 
A11: =Puljer!AL138 ->  | B11: =Puljer!B138 -> 0 | G11: =Puljer!D138 -> 0 | H11: =Puljer!F138 -> 0 | I11: =Puljer!H138 -> 0 | J11: =Puljer!J138 -> 0 | K11: =Puljer!L138 -> 0 | L11: =Puljer!T138 -> 0 | M11: =Puljer!V138 -> 0 | N11: =Puljer!X138 -> 0 | O11: =Puljer!Y138 -> 1000000000000 | P11: =Puljer!Z138 ->  | Q11: =Puljer!AA138 -> 1000000000 | R11: =Puljer!AB138 ->  | S11: =Puljer!AC138 -> 10000000 | T11: =Puljer!AK138 ->  | U11: =Puljer!AL138 -> 
A12: =Puljer!AL140 ->  | B12: =Puljer!B140 -> 0 | G12: =Puljer!D140 -> 0 | H12: =Puljer!F140 -> 0 | I12: =Puljer!H140 -> 0 | J12: =Puljer!J140 -> 0 | K12: =Puljer!L140 -> 0 | L12: =Puljer!T140 -> 0 | M12: =Puljer!V140 -> 0 | N12: =Puljer!X140 -> 0 | O12: =Puljer!Y140 -> 1000000000000 | P12: =Puljer!Z140 ->  | Q12: =Puljer!AA140 -> 1000000000 | R12: =Puljer!AB140 ->  | S12: =Puljer!AC140 -> 10000000 | T12: =Puljer!AK140 ->  | U12: =Puljer!AL140 -> 
A13: =Puljer!AL142 ->  | B13: =Puljer!B142 -> 0 | G13: =Puljer!D142 -> 0 | H13: =Puljer!F142 -> 0 | I13: =Puljer!H142 -> 0 | J13: =Puljer!J142 -> 0 | K13: =Puljer!L142 -> 0 | L13: =Puljer!T142 -> 0 | M13: =Puljer!V142 -> 0 | N13: =Puljer!X142 -> 0 | O13: =Puljer!Y142 -> 1000000000000 | P13: =Puljer!Z142 ->  | Q13: =Puljer!AA142 -> 1000000000 | R13: =Puljer!AB142 ->  | S13: =Puljer!AC142 -> 10000000 | T13: =Puljer!AK142 ->  | U13: =Puljer!AL142 -> 
A14: =Puljer!AL144 ->  | B14: =Puljer!B144 -> 0 | G14: =Puljer!D144 -> 0 | H14: =Puljer!F144 -> 0 | I14: =Puljer!H144 -> 0 | J14: =Puljer!J144 -> 0 | K14: =Puljer!L144 -> 0 | L14: =Puljer!T144 -> 0 | M14: =Puljer!V144 -> 0 | N14: =Puljer!X144 -> 0 | O14: =Puljer!Y144 -> 1000000000000 | P14: =Puljer!Z144 ->  | Q14: =Puljer!AA144 -> 1000000000 | R14: =Puljer!AB144 ->  | S14: =Puljer!AC144 -> 10000000 | T14: =Puljer!AK144 ->  | U14: =Puljer!AL144 -> 
A15: =Puljer!AL146 ->  | B15: =Puljer!B146 -> 0 | G15: =Puljer!D146 -> 0 | H15: =Puljer!F146 -> 0 | I15: =Puljer!H146 -> 0 | J15: =Puljer!J146 -> 0 | K15: =Puljer!L146 -> 0 | L15: =Puljer!T146 -> 0 | M15: =Puljer!V146 -> 0 | N15: =Puljer!X146 -> 0 | O15: =Puljer!Y146 -> 1000000000000 | P15: =Puljer!Z146 ->  | Q15: =Puljer!AA146 -> 1000000000 | R15: =Puljer!AB146 ->  | S15: =Puljer!AC146 -> 10000000 | T15: =Puljer!AK146 ->  | U15: =Puljer!AL146 -> 
A16: =Puljer!AL148 ->  | B16: =Puljer!B148 -> 0 | G16: =Puljer!D148 -> 0 | H16: =Puljer!F148 -> 0 | I16: =Puljer!H148 -> 0 | J16: =Puljer!J148 -> 0 | K16: =Puljer!L148 -> 0 | L16: =Puljer!T148 -> 0 | M16: =Puljer!V148 -> 0 | N16: =Puljer!X148 -> 0 | O16: =Puljer!Y148 -> 1000000000000 | P16: =Puljer!Z148 ->  | Q16: =Puljer!AA148 -> 1000000000 | R16: =Puljer!AB148 ->  | S16: =Puljer!AC148 -> 10000000 | T16: =Puljer!AK148 ->  | U16: =Puljer!AL148 -> 
A17: =Puljer!AL150 ->  | B17: =Puljer!B150 -> 0 | G17: =Puljer!D150 -> 0 | H17: =Puljer!F150 -> 0 | I17: =Puljer!H150 -> 0 | J17: =Puljer!J150 -> 0 | K17: =Puljer!L150 -> 0 | L17: =Puljer!T150 -> 0 | M17: =Puljer!V150 -> 0 | N17: =Puljer!X150 -> 0 | O17: =Puljer!Y150 -> 1000000000000 | P17: =Puljer!Z150 ->  | Q17: =Puljer!AA150 -> 1000000000 | R17: =Puljer!AB150 ->  | S17: =Puljer!AC150 -> 10000000 | T17: =Puljer!AK150 ->  | U17: =Puljer!AL150 -> 
A18: =Puljer!AL152 ->  | B18: =Puljer!B152 -> 0 | G18: =Puljer!D152 -> 0 | H18: =Puljer!F152 -> 0 | I18: =Puljer!H152 -> 0 | J18: =Puljer!J152 -> 0 | K18: =Puljer!L152 -> 0 | L18: =Puljer!T152 -> 0 | M18: =Puljer!V152 -> 0 | N18: =Puljer!X152 -> 0 | O18: =Puljer!Y152 -> 10000000000000 | P18: =Puljer!Z152 ->  | Q18: =Puljer!AA152 -> 1000000000 | R18: =Puljer!AB152 ->  | S18: =Puljer!AC152 -> 10000000 | T18: =Puljer!AK152 ->  | U18: =Puljer!AL152 -> 
A19: =Puljer!AL154 ->  | B19: =Puljer!B154 -> 0 | G19: =Puljer!D154 -> 0 | H19: =Puljer!F154 -> 0 | I19: =Puljer!H154 -> 0 | J19: =Puljer!J154 -> 0 | K19: =Puljer!L154 -> 0 | L19: =Puljer!T154 -> 0 | M19: =Puljer!V154 -> 0 | N19: =Puljer!X154 -> 0 | O19: =Puljer!Y154 -> 10000000000000 | P19: =Puljer!Z154 ->  | Q19: =Puljer!AA154 -> 1000000000 | R19: =Puljer!AB154 ->  | S19: =Puljer!AC154 -> 10000000 | T19: =Puljer!AK154 ->  | U19: =Puljer!AL154 -> 
A20: =Puljer!AL156 ->  | B20: =Puljer!B156 -> 0 | G20: =Puljer!D156 -> 0 | H20: =Puljer!F156 -> 0 | I20: =Puljer!H156 -> 0 | J20: =Puljer!J156 -> 0 | K20: =Puljer!L156 -> 0 | L20: =Puljer!T156 -> 0 | M20: =Puljer!V156 -> 0 | N20: =Puljer!X156 -> 0 | O20: =Puljer!Y156 -> 10000000000000 | P20: =Puljer!Z156 ->  | Q20: =Puljer!AA156 -> 1000000000 | R20: =Puljer!AB156 ->  | S20: =Puljer!AC156 -> 10000000 | T20: =Puljer!AK156 ->  | U20: =Puljer!AL156 -> 
A21: =Puljer!AL158 ->  | B21: =Puljer!B158 -> 0 | G21: =Puljer!D158 -> 0 | H21: =Puljer!F158 -> 0 | I21: =Puljer!H158 -> 0 | J21: =Puljer!J158 -> 0 | K21: =Puljer!L158 -> 0 | L21: =Puljer!T158 -> 0 | M21: =Puljer!V158 -> 0 | N21: =Puljer!X158 -> 0 | O21: =Puljer!Y158 -> 10000000000000 | P21: =Puljer!Z158 ->  | Q21: =Puljer!AA158 -> 1000000000 | R21: =Puljer!AB158 ->  | S21: =Puljer!AC158 -> 10000000 | T21: =Puljer!AK158 ->  | U21: =Puljer!AL158 -> 
A22: =Puljer!AL160 ->  | B22: =Puljer!B160 -> 0 | G22: =Puljer!D160 -> 0 | H22: =Puljer!F160 -> 0 | I22: =Puljer!H160 -> 0 | J22: =Puljer!J160 -> 0 | K22: =Puljer!L160 -> 0 | L22: =Puljer!T160 -> 0 | M22: =Puljer!V160 -> 0 | N22: =Puljer!X160 -> 0 | O22: =Puljer!Y160 -> 10000000000000 | P22: =Puljer!Z160 ->  | Q22: =Puljer!AA160 -> 1000000000 | R22: =Puljer!AB160 ->  | S22: =Puljer!AC160 -> 10000000 | T22: =Puljer!AK160 ->  | U22: =Puljer!AL160 -> 
A23: =Puljer!AL162 ->  | B23: =Puljer!B162 -> 0 | G23: =Puljer!D162 -> 0 | H23: =Puljer!F162 -> 0 | I23: =Puljer!H162 -> 0 | J23: =Puljer!J162 -> 0 | K23: =Puljer!L162 -> 0 | L23: =Puljer!T162 -> 0 | M23: =Puljer!V162 -> 0 | N23: =Puljer!X162 -> 0 | O23: =Puljer!Y162 -> 10000000000000 | P23: =Puljer!Z162 ->  | Q23: =Puljer!AA162 -> 1000000000 | R23: =Puljer!AB162 ->  | S23: =Puljer!AC162 -> 10000000 | T23: =Puljer!AK162 ->  | U23: =Puljer!AL162 -> 
A24: =Puljer!AL164 ->  | B24: =Puljer!B164 -> 0 | G24: =Puljer!D164 -> 0 | H24: =Puljer!F164 -> 0 | I24: =Puljer!H164 -> 0 | J24: =Puljer!J164 -> 0 | K24: =Puljer!L164 -> 0 | L24: =Puljer!T164 -> 0 | M24: =Puljer!V164 -> 0 | N24: =Puljer!X164 -> 0 | O24: =Puljer!Y164 -> 10000000000000 | P24: =Puljer!Z164 ->  | Q24: =Puljer!AA164 -> 1000000000 | R24: =Puljer!AB164 ->  | S24: =Puljer!AC164 -> 10000000 | T24: =Puljer!AK164 ->  | U24: =Puljer!AL164 -> 
A25: =Puljer!AL166 ->  | B25: =Puljer!B166 -> 0 | G25: =Puljer!D166 -> 0 | H25: =Puljer!F166 -> 0 | I25: =Puljer!H166 -> 0 | J25: =Puljer!J166 -> 0 | K25: =Puljer!L166 -> 0 | L25: =Puljer!T166 -> 0 | M25: =Puljer!V166 -> 0 | N25: =Puljer!X166 -> 0 | O25: =Puljer!Y166 -> 10000000000000 | P25: =Puljer!Z166 ->  | Q25: =Puljer!AA166 -> 1000000000 | R25: =Puljer!AB166 ->  | S25: =Puljer!AC166 -> 10000000 | T25: =Puljer!AK166 ->  | U25: =Puljer!AL166 -> 
A26: 1
A27: 2
A28: 3
A29: 4
A30: 5
A31: 6
A32: 7
A33: 8
A34: 9
A35: 10
A36: 11
A37: 12
A38: 13
A39: 14
A40: 15
A41: 16
A42: 17
A43: 18
A44: 19
A45: 20
A46: 21
A47: 22
A48: 23
A49: 24
G50: kampe | H50: point | I50: indg. | J50: snit | K50: serie
A52: =IF(I52<1,"",X52) ->  | B52: =IF('Knock Out'!K142=1,'Knock Out'!B142,'Knock Out'!B145) ->  | C52: =VLOOKUP(B52,licens,2,FALSE) ->  | D52: =VLOOKUP(B52,licens,3,FALSE) ->  | E52: =VLOOKUP(B52,licens,4,FALSE) ->  | G52: =IF('Knock Out'!$Q$143<1,0,IF('Knock Out'!$K142=1,'Knock Out'!O144,'Knock Out'!O147)) -> 0 | H52: =IF('Knock Out'!$Q$143<1,0,IF('Knock Out'!$K142=1,'Knock Out'!P144,'Knock Out'!P147)) -> 0 | I52: =IF('Knock Out'!$Q$143<1,0,IF('Knock Out'!$K142=1,'Knock Out'!Q144,'Knock Out'!Q147)) -> 0 | J52: =IF('Knock Out'!$Q$143<1,0,IF('Knock Out'!$K142=1,'Knock Out'!R144,'Knock Out'!R147)) -> 0 | K52: =IF('Knock Out'!$Q$143<1,0,IF('Knock Out'!$K142=1,'Knock Out'!S144,'Knock Out'!S147)) -> 0 | V52: 10 | X52: 101
A53: =IF(I53<1,"",X53) ->  | B53: =IF('Knock Out'!K142=2,'Knock Out'!B142,'Knock Out'!B145) ->  | C53: =VLOOKUP(B53,licens,2,FALSE) ->  | D53: =VLOOKUP(B53,licens,3,FALSE) ->  | E53: =VLOOKUP(B53,licens,4,FALSE) ->  | G53: =IF('Knock Out'!$Q$143<1,0,IF('Knock Out'!$K142=2,'Knock Out'!O144,'Knock Out'!O147)) -> 0 | H53: =IF('Knock Out'!$Q$143<1,0,IF('Knock Out'!$K142=2,'Knock Out'!P144,'Knock Out'!P147)) -> 0 | I53: =IF('Knock Out'!$Q$143<1,0,IF('Knock Out'!$K142=2,'Knock Out'!Q144,'Knock Out'!Q147)) -> 0 | J53: =IF('Knock Out'!$Q$143<1,0,IF('Knock Out'!$K142=2,'Knock Out'!R144,'Knock Out'!R147)) -> 0 | K53: =IF('Knock Out'!$Q$143<1,0,IF('Knock Out'!$K142=2,'Knock Out'!S144,'Knock Out'!S147)) -> 0 | V53: 10 | X53: 102
A56: =IF(I56<1,"",X56) ->  | B56: =IF('Knock Out'!$K124=2,'Knock Out'!B124,'Knock Out'!B127) ->  | C56: =VLOOKUP(B56,licens,2,FALSE) ->  | D56: =VLOOKUP(B56,licens,3,FALSE) ->  | E56: =VLOOKUP(B56,licens,4,FALSE) ->  | G56: =IF('Knock Out'!$Q$125<1,0,IF('Knock Out'!$K124=2,'Knock Out'!O126,'Knock Out'!O129)) -> 0 | H56: =IF('Knock Out'!$Q$125<1,0,IF('Knock Out'!$K124=2,'Knock Out'!P126,'Knock Out'!P129)) -> 0 | I56: =IF('Knock Out'!$Q$125<1,0,IF('Knock Out'!$K124=2,'Knock Out'!Q126,'Knock Out'!Q129)) -> 0 | J56: =IF('Knock Out'!$Q$125<1,0,IF('Knock Out'!$K124=2,'Knock Out'!R126,'Knock Out'!R129)) -> 0 | K56: =IF('Knock Out'!$Q$125<1,0,IF('Knock Out'!$K124=2,'Knock Out'!S126,'Knock Out'!S129)) -> 0 | L56: =IF('Knock Out'!$Q$125<1,0,IF('Knock Out'!$K124=2,'Knock Out'!T126,'Knock Out'!T129)) -> 0 | R56: =RANK(J56,J$56:J$57)*1000 -> 1000 | S56: =RANK(H56,H$56:H$57)*100 -> 100 | T56: =RANK(K56,K$56:K$57)*10 -> 10 | U56: =L56 -> 0 | V56: =IF(I56<1,2000,SUM(R56:U56)) -> 2000 | X56: =RANK(V56,V$52:V$73,1)+100 -> 103
A57: =IF(I57<1,"",X57) ->  | B57: =IF('Knock Out'!$K133=2,'Knock Out'!B133,'Knock Out'!B136) ->  | C57: =VLOOKUP(B57,licens,2,FALSE) ->  | D57: =VLOOKUP(B57,licens,3,FALSE) ->  | E57: =VLOOKUP(B57,licens,4,FALSE) ->  | G57: =IF('Knock Out'!$Q$134<1,0,IF('Knock Out'!$K133=2,'Knock Out'!O135,'Knock Out'!O138)) -> 0 | H57: =IF('Knock Out'!$Q$134<1,0,IF('Knock Out'!$K133=2,'Knock Out'!P135,'Knock Out'!P138)) -> 0 | I57: =IF('Knock Out'!$Q$134<1,0,IF('Knock Out'!$K133=2,'Knock Out'!Q135,'Knock Out'!Q138)) -> 0 | J57: =IF('Knock Out'!$Q$134<1,0,IF('Knock Out'!$K133=2,'Knock Out'!R135,'Knock Out'!R138)) -> 0 | K57: =IF('Knock Out'!$Q$134<1,0,IF('Knock Out'!$K133=2,'Knock Out'!S135,'Knock Out'!S138)) -> 0 | L57: =IF('Knock Out'!$Q$134<1,0,IF('Knock Out'!$K133=2,'Knock Out'!T135,'Knock Out'!T138)) -> 0 | R57: =RANK(J57,J$56:J$57)*1000 -> 1000 | S57: =RANK(H57,H$56:H$57)*100 -> 100 | T57: =RANK(K57,K$56:K$57)*10 -> 10 | U57: 0 | V57: =IF(I57<1,2000,SUM(R57:U57)) -> 2000 | X57: =RANK(V57,V$52:V$73,1)+100 -> 103
A60: =IF(I60<1,"",X60) ->  | B60: =IF('Knock Out'!K84=2,'Knock Out'!B84,'Knock Out'!B87) ->  | C60: =VLOOKUP(B60,licens,2,FALSE) ->  | D60: =VLOOKUP(B60,licens,3,FALSE) ->  | E60: =VLOOKUP(B60,licens,4,FALSE) ->  | G60: =IF('Knock Out'!$Q$85<1,0,IF('Knock Out'!K84=2,'Knock Out'!O86,'Knock Out'!O89)) -> 0 | H60: =IF('Knock Out'!$Q$85<1,0,IF('Knock Out'!K84=2,'Knock Out'!P86,'Knock Out'!P89)) -> 0 | I60: =IF('Knock Out'!$Q$85<1,0,IF('Knock Out'!K84=2,'Knock Out'!Q86,'Knock Out'!Q89)) -> 0 | J60: =IF('Knock Out'!$Q$85<1,0,IF('Knock Out'!K84=2,'Knock Out'!R86,'Knock Out'!R89)) -> 0 | K60: =IF('Knock Out'!$Q$85<1,0,IF('Knock Out'!K84=2,'Knock Out'!S86,'Knock Out'!S89)) -> 0 | L60: =IF('Knock Out'!$Q$85<1,0,IF('Knock Out'!L84=2,'Knock Out'!T86,'Knock Out'!T89)) -> 0 | R60: =RANK(J60,J$60:J$63)*100000 -> 100000 | S60: =RANK(H60,H$60:H$63)*1000 -> 1000 | T60: =RANK(K60,K$60:K$63)*100 -> 100 | U60: 0 | V60: =IF(I60<1,100000,SUM(R60:U60)) -> 100000 | X60: 105
A61: =IF(I61<1,"",X61) ->  | B61: =IF('Knock Out'!$K93=2,'Knock Out'!B93,'Knock Out'!B96) ->  | C61: =VLOOKUP(B61,licens,2,FALSE) ->  | D61: =VLOOKUP(B61,licens,3,FALSE) ->  | E61: =VLOOKUP(B61,licens,4,FALSE) ->  | G61: =IF('Knock Out'!$Q$94<1,0,IF('Knock Out'!$K93=2,'Knock Out'!O95,'Knock Out'!O98)) -> 0 | H61: =IF('Knock Out'!$Q$94<1,0,IF('Knock Out'!$K93=2,'Knock Out'!P95,'Knock Out'!P98)) -> 0 | I61: =IF('Knock Out'!$Q$94<1,0,IF('Knock Out'!$K93=2,'Knock Out'!Q95,'Knock Out'!Q98)) -> 0 | J61: =IF('Knock Out'!$Q$94<1,0,IF('Knock Out'!$K93=2,'Knock Out'!R95,'Knock Out'!R98)) -> 0 | K61: =IF('Knock Out'!$Q$94<1,0,IF('Knock Out'!$K93=2,'Knock Out'!S95,'Knock Out'!S98)) -> 0 | L61: =IF('Knock Out'!$Q$94<1,0,IF('Knock Out'!$K93=2,'Knock Out'!T95,'Knock Out'!T98)) -> 0 | R61: =RANK(J61,J$60:J$63)*100000 -> 100000 | S61: =RANK(H61,H$60:H$63)*1000 -> 1000 | T61: =RANK(K61,K$60:K$63)*100 -> 100 | U61: 0 | V61: =IF(I61<1,100000,SUM(R61:U61)) -> 100000 | X61: 105
A62: =IF(I62<1,"",X62) ->  | B62: =IF('Knock Out'!$K102=2,'Knock Out'!B102,'Knock Out'!B105) ->  | C62: =VLOOKUP(B62,licens,2,FALSE) ->  | D62: =VLOOKUP(B62,licens,3,FALSE) ->  | E62: =VLOOKUP(B62,licens,4,FALSE) ->  | G62: =IF('Knock Out'!$Q$103<1,0,IF('Knock Out'!$K102=2,'Knock Out'!O104,'Knock Out'!O107)) -> 0 | H62: =IF('Knock Out'!$Q$103<1,0,IF('Knock Out'!$K102=2,'Knock Out'!P104,'Knock Out'!P107)) -> 0 | I62: =IF('Knock Out'!$Q$103<1,0,IF('Knock Out'!$K102=2,'Knock Out'!Q104,'Knock Out'!Q107)) -> 0 | J62: =IF('Knock Out'!$Q$103<1,0,IF('Knock Out'!$K102=2,'Knock Out'!R104,'Knock Out'!R107)) -> 0 | K62: =IF('Knock Out'!$Q$103<1,0,IF('Knock Out'!$K102=2,'Knock Out'!S104,'Knock Out'!S107)) -> 0 | L62: =IF('Knock Out'!$Q$103<1,0,IF('Knock Out'!$K102=2,'Knock Out'!T104,'Knock Out'!T107)) -> 0 | R62: 100000 | S62: 1000 | T62: 100 | U62: 0 | V62: =IF(I62<1,100000,SUM(R62:U62)) -> 100000 | X62: 105
A63: =IF(I63<1,"",X63) ->  | B63: =IF('Knock Out'!$K111=2,'Knock Out'!B111,'Knock Out'!B114) ->  | C63: =VLOOKUP(B63,licens,2,FALSE) ->  | D63: =VLOOKUP(B63,licens,3,FALSE) ->  | E63: =VLOOKUP(B63,licens,4,FALSE) ->  | G63: =IF('Knock Out'!$Q$112<1,0,IF('Knock Out'!$K111=2,'Knock Out'!O113,'Knock Out'!O116)) -> 0 | H63: =IF('Knock Out'!$Q$112<1,0,IF('Knock Out'!$K111=2,'Knock Out'!P113,'Knock Out'!P116)) -> 0 | I63: =IF('Knock Out'!$Q$112<1,0,IF('Knock Out'!$K111=2,'Knock Out'!Q113,'Knock Out'!Q116)) -> 0 | J63: =IF('Knock Out'!$Q$112<1,0,IF('Knock Out'!$K111=2,'Knock Out'!R113,'Knock Out'!R116)) -> 0 | K63: =IF('Knock Out'!$Q$112<1,0,IF('Knock Out'!$K111=2,'Knock Out'!S113,'Knock Out'!S116)) -> 0 | L63: =IF('Knock Out'!$Q$112<1,0,IF('Knock Out'!$K111=2,'Knock Out'!T113,'Knock Out'!T116)) -> 0 | R63: 100000 | S63: 1000 | T63: 100 | U63: 0 | V63: =IF(I63<1,100000,SUM(R63:U63)) -> 100000 | X63: 105
A66: =IF(I66<1,"",X66) ->  | B66: =IF('Knock Out'!$K5=2,'Knock Out'!B5,'Knock Out'!B8) ->  | C66: =VLOOKUP(B66,licens,2,FALSE) ->  | D66: =VLOOKUP(B66,licens,3,FALSE) ->  | E66: =VLOOKUP(B66,licens,4,FALSE) ->  | G66: =IF('Knock Out'!$Q$6<1,0,IF('Knock Out'!$K5=2,'Knock Out'!O7,'Knock Out'!O10)) -> 0 | H66: =IF('Knock Out'!$Q$6<1,0,IF('Knock Out'!$K5=2,'Knock Out'!P7,'Knock Out'!P10)) -> 0 | I66: =IF('Knock Out'!$Q$6<1,0,IF('Knock Out'!$K5=2,'Knock Out'!Q7,'Knock Out'!Q10)) -> 0 | J66: =IF('Knock Out'!$Q$6<1,0,IF('Knock Out'!$K5=2,'Knock Out'!R7,'Knock Out'!R10)) -> 0 | K66: =IF('Knock Out'!$Q$6<1,0,IF('Knock Out'!$K5=2,'Knock Out'!S7,'Knock Out'!S10)) -> 0 | L66: =IF('Knock Out'!$Q$6<1,0,IF('Knock Out'!$K5=2,'Knock Out'!T7,'Knock Out'!T10)) -> 0 | R66: =RANK(J66,J$66:J$73)*1000000 -> 1000000 | S66: =RANK(H66,H$66:H$73)*1000 -> 1000 | T66: =RANK(K66,K$66:K$73)*100 -> 100 | U66: =L66 -> 0 | V66: =IF(I66<1,1000000,SUM(R66:U66)) -> 1000000 | X66: 109
B67: =IF('Knock Out'!$K14=2,'Knock Out'!B14,'Knock Out'!B17) ->  | G67: =IF('Knock Out'!$Q$15<1,0,IF('Knock Out'!$K14=2,'Knock Out'!O16,'Knock Out'!O19)) -> 0 | H67: =IF('Knock Out'!$Q$15<1,0,IF('Knock Out'!$K14=2,'Knock Out'!P16,'Knock Out'!P19)) -> 0 | I67: =IF('Knock Out'!$Q$15<1,0,IF('Knock Out'!$K14=2,'Knock Out'!Q16,'Knock Out'!Q19)) -> 0 | J67: =IF('Knock Out'!$Q$15<1,0,IF('Knock Out'!$K14=2,'Knock Out'!R16,'Knock Out'!R19)) -> 0 | K67: =IF('Knock Out'!$Q$15<1,0,IF('Knock Out'!$K14=2,'Knock Out'!S16,'Knock Out'!S19)) -> 0 | L67: =IF('Knock Out'!$Q$15<1,0,IF('Knock Out'!$K14=2,'Knock Out'!T16,'Knock Out'!T19)) -> 0 | R67: =RANK(J67,J$66:J$73)*1000000 -> 1000000 | S67: =RANK(H67,H$66:H$73)*1000 -> 1000 | T67: =RANK(K67,K$66:K$73)*100 -> 100 | U67: =L67 -> 0 | V67: 1000000 | X67: 109
B68: =IF('Knock Out'!$K23=2,'Knock Out'!B23,'Knock Out'!B26) ->  | G68: =IF('Knock Out'!$Q$24<1,0,IF('Knock Out'!$K23=2,'Knock Out'!O25,'Knock Out'!O28)) -> 0 | H68: =IF('Knock Out'!$Q$24<1,0,IF('Knock Out'!$K23=2,'Knock Out'!P25,'Knock Out'!P28)) -> 0 | I68: =IF('Knock Out'!$Q$24<1,0,IF('Knock Out'!$K23=2,'Knock Out'!Q25,'Knock Out'!Q28)) -> 0 | J68: =IF('Knock Out'!$Q$24<1,0,IF('Knock Out'!$K23=2,'Knock Out'!R25,'Knock Out'!R28)) -> 0 | K68: =IF('Knock Out'!$Q$24<1,0,IF('Knock Out'!$K23=2,'Knock Out'!S25,'Knock Out'!S28)) -> 0 | L68: =IF('Knock Out'!$Q$24<1,0,IF('Knock Out'!$K23=2,'Knock Out'!T25,'Knock Out'!T28)) -> 0 | R68: 1000000 | S68: 1000 | T68: 100 | U68: 0 | V68: 1000000 | X68: 109
B69: =IF('Knock Out'!$K32=2,'Knock Out'!B32,'Knock Out'!B35) ->  | G69: =IF('Knock Out'!$Q$33<1,0,IF('Knock Out'!$K32=2,'Knock Out'!O34,'Knock Out'!O37)) -> 0 | H69: =IF('Knock Out'!$Q$33<1,0,IF('Knock Out'!$K32=2,'Knock Out'!P34,'Knock Out'!P37)) -> 0 | I69: =IF('Knock Out'!$Q$33<1,0,IF('Knock Out'!$K32=2,'Knock Out'!Q34,'Knock Out'!Q37)) -> 0 | J69: =IF('Knock Out'!$Q$33<1,0,IF('Knock Out'!$K32=2,'Knock Out'!R34,'Knock Out'!R37)) -> 0 | K69: =IF('Knock Out'!$Q$33<1,0,IF('Knock Out'!$K32=2,'Knock Out'!S34,'Knock Out'!S37)) -> 0 | L69: =IF('Knock Out'!$Q$33<1,0,IF('Knock Out'!$K32=2,'Knock Out'!T34,'Knock Out'!T37)) -> 0 | R69: 1000000 | S69: 1000 | T69: 100 | U69: 0 | V69: 1000000 | X69: 109
B70: =IF('Knock Out'!$K41=2,'Knock Out'!B41,'Knock Out'!B44) ->  | G70: =IF('Knock Out'!$Q$42<1,0,IF('Knock Out'!$K41=2,'Knock Out'!O43,'Knock Out'!O46)) -> 0 | H70: =IF('Knock Out'!$Q$42<1,0,IF('Knock Out'!$K41=2,'Knock Out'!P43,'Knock Out'!P46)) -> 0 | I70: =IF('Knock Out'!$Q$42<1,0,IF('Knock Out'!$K41=2,'Knock Out'!Q43,'Knock Out'!Q46)) -> 0 | J70: =IF('Knock Out'!$Q$42<1,0,IF('Knock Out'!$K41=2,'Knock Out'!R43,'Knock Out'!R46)) -> 0 | K70: =IF('Knock Out'!$Q$42<1,0,IF('Knock Out'!$K41=2,'Knock Out'!S43,'Knock Out'!S46)) -> 0 | L70: =IF('Knock Out'!$Q$42<1,0,IF('Knock Out'!$K41=2,'Knock Out'!T43,'Knock Out'!T46)) -> 0 | R70: 1000000 | S70: 1000 | T70: 100 | U70: 0 | V70: 1000000 | X70: 109
B71: =IF('Knock Out'!$K50=2,'Knock Out'!B50,'Knock Out'!B53) ->  | G71: =IF('Knock Out'!$Q$51<1,0,IF('Knock Out'!$K50=2,'Knock Out'!O52,'Knock Out'!O55)) -> 0 | H71: =IF('Knock Out'!$Q$51<1,0,IF('Knock Out'!$K50=2,'Knock Out'!P52,'Knock Out'!P55)) -> 0 | I71: =IF('Knock Out'!$Q$51<1,0,IF('Knock Out'!$K50=2,'Knock Out'!Q52,'Knock Out'!Q55)) -> 0 | J71: =IF('Knock Out'!$Q$51<1,0,IF('Knock Out'!$K50=2,'Knock Out'!R52,'Knock Out'!R55)) -> 0 | K71: =IF('Knock Out'!$Q$51<1,0,IF('Knock Out'!$K50=2,'Knock Out'!S52,'Knock Out'!S55)) -> 0 | L71: =IF('Knock Out'!$Q$51<1,0,IF('Knock Out'!$K50=2,'Knock Out'!T52,'Knock Out'!T55)) -> 0 | R71: 1000000 | S71: 1000 | T71: 100 | U71: 0 | V71: 1000000 | X71: 109
B72: =IF('Knock Out'!$K59=2,'Knock Out'!B59,'Knock Out'!B62) ->  | G72: =IF('Knock Out'!$Q$60<1,0,IF('Knock Out'!$K59=2,'Knock Out'!O61,'Knock Out'!O64)) -> 0 | H72: =IF('Knock Out'!$Q$60<1,0,IF('Knock Out'!$K59=2,'Knock Out'!P61,'Knock Out'!P64)) -> 0 | I72: =IF('Knock Out'!$Q$60<1,0,IF('Knock Out'!$K59=2,'Knock Out'!Q61,'Knock Out'!Q64)) -> 0 | J72: =IF('Knock Out'!$Q$60<1,0,IF('Knock Out'!$K59=2,'Knock Out'!R61,'Knock Out'!R64)) -> 0 | K72: =IF('Knock Out'!$Q$60<1,0,IF('Knock Out'!$K59=2,'Knock Out'!S61,'Knock Out'!S64)) -> 0 | L72: =IF('Knock Out'!$Q$60<1,0,IF('Knock Out'!$K59=2,'Knock Out'!T61,'Knock Out'!T64)) -> 0 | R72: 1000000 | S72: 1000 | T72: 100 | U72: 0 | V72: 1000000 | X72: 109
B73: =IF('Knock Out'!$K68=2,'Knock Out'!B68,'Knock Out'!B71) ->  | G73: =IF('Knock Out'!$Q$69<1,0,IF('Knock Out'!$K68=2,'Knock Out'!O70,'Knock Out'!O73)) -> 0 | H73: =IF('Knock Out'!$Q$69<1,0,IF('Knock Out'!$K68=2,'Knock Out'!P70,'Knock Out'!P73)) -> 0 | I73: =IF('Knock Out'!$Q$69<1,0,IF('Knock Out'!$K68=2,'Knock Out'!Q70,'Knock Out'!Q73)) -> 0 | J73: =IF('Knock Out'!$Q$69<1,0,IF('Knock Out'!$K68=2,'Knock Out'!R70,'Knock Out'!R73)) -> 0 | K73: =IF('Knock Out'!$Q$69<1,0,IF('Knock Out'!$K68=2,'Knock Out'!S70,'Knock Out'!S73)) -> 0 | L73: =IF('Knock Out'!$Q$69<1,0,IF('Knock Out'!$K68=2,'Knock Out'!T70,'Knock Out'!T73)) -> 0 | R73: 1000000 | S73: 1000 | T73: 100 | U73: 0 | V73: 1000000 | X73: 109
A76: 101
A77: 102
A78: 103
A79: 104
A80: 105
A81: 106
A82: 107
A83: 108
A84: 109
A85: 110
A86: 111
A87: 112
A88: 113
A89: 114
A90: 115
A91: 116

Sheet spiller (hidden)
A1: =IF(lodtrækning!M$3>0,lodtrækning!H42,lodtrækning!P42) -> 2 | B1: =IF(A1<1,"",lodtrækning!I42) -> 116295 | C1: =IF(A1<1,"",lodtrækning!J42) -> 603 | D1: =IF(A1<1,"",lodtrækning!K42) -> Claus Petersen | E1: =IF(A1<1,"",lodtrækning!L42) -> ABK 31 | F1: =IF(A1<1,"",lodtrækning!Q42) -> 0.912
A2: =IF(lodtrækning!M$3>0,lodtrækning!H43,lodtrækning!P43) -> 3 | B2: =IF(A2<1,"",lodtrækning!I43) -> 114962 | C2: =IF(A2<1,"",lodtrækning!J43) -> 603 | D2: =IF(A2<1,"",lodtrækning!K43) -> Poul Bjerring | E2: =IF(A2<1,"",lodtrækning!L43) -> ABK 31 | F2: =IF(A2<1,"",lodtrækning!Q43) -> 1.013
A3: =IF(lodtrækning!M$3>0,lodtrækning!H44,lodtrækning!P44) -> 5 | B3: =IF(A3<1,"",lodtrækning!I44) -> 120054 | C3: =IF(A3<1,"",lodtrækning!J44) -> 923 | D3: =IF(A3<1,"",lodtrækning!K44) -> Thomas Wollerup | E3: =IF(A3<1,"",lodtrækning!L44) -> Varde BK | F3: =IF(A3<1,"",lodtrækning!Q44) -> 0.744
A4: =IF(lodtrækning!M$3>0,lodtrækning!H45,lodtrækning!P45) -> 8 | B4: =IF(A4<1,"",lodtrækning!I45) -> 115312 | C4: =IF(A4<1,"",lodtrækning!J45) -> 503 | D4: =IF(A4<1,"",lodtrækning!K45) -> Tommy Magnussen | E4: =IF(A4<1,"",lodtrækning!L45) -> Bristol | F4: =IF(A4<1,"",lodtrækning!Q45) -> 0.944
A5: =IF(lodtrækning!M$3>0,lodtrækning!H46,lodtrækning!P46) -> 13 | B5: =IF(A5<1,"",lodtrækning!I46) -> 110623 | C5: =IF(A5<1,"",lodtrækning!J46) -> 672 | D5: =IF(A5<1,"",lodtrækning!K46) -> Kim Mortensen | E5: =IF(A5<1,"",lodtrækning!L46) -> Randers BK | F5: =IF(A5<1,"",lodtrækning!Q46) -> 0.947
A6: =IF(lodtrækning!M$3>0,lodtrækning!H47,lodtrækning!P47) -> 9 | B6: =IF(A6<1,"",lodtrækning!I47) -> 116405 | C6: =IF(A6<1,"",lodtrækning!J47) -> 672 | D6: =IF(A6<1,"",lodtrækning!K47) -> Tonny Carlsen | E6: =IF(A6<1,"",lodtrækning!L47) -> Randers BK | F6: =IF(A6<1,"",lodtrækning!Q47) -> 1.322
A7: =IF(lodtrækning!M$3>0,lodtrækning!H48,lodtrækning!P48) -> 17 | B7: =IF(A7<1,"",lodtrækning!I48) -> 111940 | C7: =IF(A7<1,"",lodtrækning!J48) -> 672 | D7: =IF(A7<1,"",lodtrækning!K48) -> Johnny Søgaard | E7: =IF(A7<1,"",lodtrækning!L48) -> Randers BK | F7: =IF(A7<1,"",lodtrækning!Q48) -> 0.711
A8: =IF(lodtrækning!M$3>0,lodtrækning!H49,lodtrækning!P49) -> 14 | B8: =IF(A8<1,"",lodtrækning!I49) -> 115742 | C8: =IF(A8<1,"",lodtrækning!J49) -> 631 | D8: =IF(A8<1,"",lodtrækning!K49) -> Kim Nielsen | E8: =IF(A8<1,"",lodtrækning!L49) -> Fredericia BK | F8: =IF(A8<1,"",lodtrækning!Q49) -> 0.828
A9: =IF(lodtrækning!M$3>0,lodtrækning!H50,lodtrækning!P50) -> 10 | B9: =IF(A9<1,"",lodtrækning!I50) -> 111715 | C9: =IF(A9<1,"",lodtrækning!J50) -> 603 | D9: =IF(A9<1,"",lodtrækning!K50) -> Søren Andersson | E9: =IF(A9<1,"",lodtrækning!L50) -> ABK 31 | F9: =IF(A9<1,"",lodtrækning!Q50) -> 1.054
A10: =IF(lodtrækning!M$3>0,lodtrækning!H51,lodtrækning!P51) -> 16 | B10: =IF(A10<1,"",lodtrækning!I51) -> 115918 | C10: =IF(A10<1,"",lodtrækning!J51) -> 631 | D10: =IF(A10<1,"",lodtrækning!K51) -> Dan Jensen | E10: =IF(A10<1,"",lodtrækning!L51) -> Fredericia BK | F10: =IF(A10<1,"",lodtrækning!Q51) -> 0.712
A11: =IF(lodtrækning!M$3>0,lodtrækning!H52,lodtrækning!P52) -> 4 | B11: =IF(A11<1,"",lodtrækning!I52) -> 114711 | C11: =IF(A11<1,"",lodtrækning!J52) -> 503 | D11: =IF(A11<1,"",lodtrækning!K52) -> Thomas Knudsen | E11: =IF(A11<1,"",lodtrækning!L52) -> Bristol | F11: =IF(A11<1,"",lodtrækning!Q52) -> 0.975
A12: =IF(lodtrækning!M$3>0,lodtrækning!H53,lodtrækning!P53) -> 12 | B12: =IF(A12<1,"",lodtrækning!I53) -> 119489 | C12: =IF(A12<1,"",lodtrækning!J53) -> 239 | D12: =IF(A12<1,"",lodtrækning!K53) -> Bjørn M Jensen | E12: =IF(A12<1,"",lodtrækning!L53) -> Ringsted BC | F12: =IF(A12<1,"",lodtrækning!Q53) -> 0.968
A13: =IF(lodtrækning!M$3>0,lodtrækning!H54,lodtrækning!P54) -> 7 | B13: =IF(A13<1,"",lodtrækning!I54) -> 122231 | C13: =IF(A13<1,"",lodtrækning!J54) -> 648 | D13: =IF(A13<1,"",lodtrækning!K54) -> Kim Keith | E13: =IF(A13<1,"",lodtrækning!L54) -> Horsens BK | F13: =IF(A13<1,"",lodtrækning!Q54) -> 0.931
A14: =IF(lodtrækning!M$3>0,lodtrækning!H55,lodtrækning!P55) -> 11 | B14: =IF(A14<1,"",lodtrækning!I55) -> 113686 | C14: =IF(A14<1,"",lodtrækning!J55) -> 239 | D14: =IF(A14<1,"",lodtrækning!K55) -> Thomas Andersen | E14: =IF(A14<1,"",lodtrækning!L55) -> Ringsted BC | F14: =IF(A14<1,"",lodtrækning!Q55) -> 0.977
A15: =IF(lodtrækning!M$3>0,lodtrækning!H56,lodtrækning!P56) -> 15 | B15: =IF(A15<1,"",lodtrækning!I56) -> 119231 | C15: =IF(A15<1,"",lodtrækning!J56) -> 631 | D15: =IF(A15<1,"",lodtrækning!K56) -> Claus Mosskov | E15: =IF(A15<1,"",lodtrækning!L56) -> Fredericia BK | F15: =IF(A15<1,"",lodtrækning!Q56) -> 0.826
A16: =IF(lodtrækning!M$3>0,lodtrækning!H57,lodtrækning!P57) -> 6 | B16: =IF(A16<1,"",lodtrækning!I57) -> 120905 | C16: =IF(A16<1,"",lodtrækning!J57) -> 923 | D16: =IF(A16<1,"",lodtrækning!K57) -> Daniel Kristiansen | E16: =IF(A16<1,"",lodtrækning!L57) -> Varde BK | F16: =IF(A16<1,"",lodtrækning!Q57) -> 0.891
A17: =IF(lodtrækning!M$3>0,lodtrækning!H58,lodtrækning!P58) -> 1 | B17: =IF(A17<1,"",lodtrækning!I58) -> 116686 | C17: =IF(A17<1,"",lodtrækning!J58) -> 923 | D17: =IF(A17<1,"",lodtrækning!K58) -> Allan Schrøder | E17: =IF(A17<1,"",lodtrækning!L58) -> Varde BK | F17: =IF(A17<1,"",lodtrækning!Q58) -> 1.193
A18: =IF(lodtrækning!M$3>0,lodtrækning!H59,lodtrækning!P59) -> 0 | B18: =IF(A18<1,"",lodtrækning!I59) ->  | C18: =IF(A18<1,"",lodtrækning!J59) ->  | D18: =IF(A18<1,"",lodtrækning!K59) ->  | E18: =IF(A18<1,"",lodtrækning!L59) ->  | F18: =IF(A18<1,"",lodtrækning!Q59) -> 
A19: =IF(lodtrækning!M$3>0,lodtrækning!H60,lodtrækning!P60) -> 0 | B19: =IF(A19<1,"",lodtrækning!I60) ->  | C19: =IF(A19<1,"",lodtrækning!J60) ->  | D19: =IF(A19<1,"",lodtrækning!K60) ->  | E19: =IF(A19<1,"",lodtrækning!L60) ->  | F19: =IF(A19<1,"",lodtrækning!Q60) -> 
A20: =IF(lodtrækning!M$3>0,lodtrækning!H61,lodtrækning!P61) -> 0 | B20: =IF(A20<1,"",lodtrækning!I61) ->  | C20: =IF(A20<1,"",lodtrækning!J61) ->  | D20: =IF(A20<1,"",lodtrækning!K61) ->  | E20: =IF(A20<1,"",lodtrækning!L61) ->  | F20: =IF(A20<1,"",lodtrækning!Q61) -> 
A21: =IF(lodtrækning!M$3>0,lodtrækning!H62,lodtrækning!P62) -> 0 | B21: =IF(A21<1,"",lodtrækning!I62) ->  | C21: =IF(A21<1,"",lodtrækning!J62) ->  | D21: =IF(A21<1,"",lodtrækning!K62) ->  | E21: =IF(A21<1,"",lodtrækning!L62) ->  | F21: =IF(A21<1,"",lodtrækning!Q62) -> 
A22: =IF(lodtrækning!M$3>0,lodtrækning!H63,lodtrækning!P63) -> 0 | B22: =IF(A22<1,"",lodtrækning!I63) ->  | C22: =IF(A22<1,"",lodtrækning!J63) ->  | D22: =IF(A22<1,"",lodtrækning!K63) ->  | E22: =IF(A22<1,"",lodtrækning!L63) ->  | F22: =IF(A22<1,"",lodtrækning!Q63) -> 
A23: =IF(lodtrækning!M$3>0,lodtrækning!H64,lodtrækning!P64) -> 0 | B23: =IF(A23<1,"",lodtrækning!I64) ->  | C23: =IF(A23<1,"",lodtrækning!J64) ->  | D23: =IF(A23<1,"",lodtrækning!K64) ->  | E23: =IF(A23<1,"",lodtrækning!L64) ->  | F23: =IF(A23<1,"",lodtrækning!Q64) -> 
A24: =IF(lodtrækning!M$3>0,lodtrækning!H65,lodtrækning!P65) -> 0 | B24: =IF(A24<1,"",lodtrækning!I65) ->  | C24: =IF(A24<1,"",lodtrækning!J65) ->  | D24: =IF(A24<1,"",lodtrækning!K65) ->  | E24: =IF(A24<1,"",lodtrækning!L65) ->  | F24: =IF(A24<1,"",lodtrækning!Q65) -> 
A25: =IF(lodtrækning!M$3>0,lodtrækning!H66,lodtrækning!P66) -> 0 | B25: =IF(A25<1,"",lodtrækning!I66) ->  | C25: =IF(A25<1,"",lodtrækning!J66) ->  | D25: =IF(A25<1,"",lodtrækning!K66) ->  | E25: =IF(A25<1,"",lodtrækning!L66) ->  | F25: =IF(A25<1,"",lodtrækning!Q66) -> 
A26: =IF(lodtrækning!M$3>0,lodtrækning!H67,lodtrækning!P67) -> 0 | B26: =IF(A26<1,"",lodtrækning!I67) ->  | C26: =IF(A26<1,"",lodtrækning!J67) ->  | D26: =IF(A26<1,"",lodtrækning!K67) ->  | E26: =IF(A26<1,"",lodtrækning!L67) ->  | F26: =IF(A26<1,"",lodtrækning!Q67) -> 
A27: =IF(lodtrækning!M$3>0,lodtrækning!H68,lodtrækning!P68) -> 0 | B27: =IF(A27<1,"",lodtrækning!I68) ->  | C27: =IF(A27<1,"",lodtrækning!J68) ->  | D27: =IF(A27<1,"",lodtrækning!K68) ->  | E27: =IF(A27<1,"",lodtrækning!L68) ->  | F27: =IF(A27<1,"",lodtrækning!Q68) -> 
A28: =IF(lodtrækning!M$3>0,lodtrækning!H69,lodtrækning!P69) -> 0 | B28: =IF(A28<1,"",lodtrækning!I69) ->  | C28: =IF(A28<1,"",lodtrækning!J69) ->  | D28: =IF(A28<1,"",lodtrækning!K69) ->  | E28: =IF(A28<1,"",lodtrækning!L69) ->  | F28: =IF(A28<1,"",lodtrækning!Q69) -> 
A29: =IF(lodtrækning!M$3>0,lodtrækning!H70,lodtrækning!P70) -> 0 | B29: =IF(A29<1,"",lodtrækning!I70) ->  | C29: =IF(A29<1,"",lodtrækning!J70) ->  | D29: =IF(A29<1,"",lodtrækning!K70) ->  | E29: =IF(A29<1,"",lodtrækning!L70) ->  | F29: =IF(A29<1,"",lodtrækning!Q70) -> 
A30: =IF(lodtrækning!M$3>0,lodtrækning!H71,lodtrækning!P71) -> 0 | B30: =IF(A30<1,"",lodtrækning!I71) ->  | C30: =IF(A30<1,"",lodtrækning!J71) ->  | D30: =IF(A30<1,"",lodtrækning!K71) ->  | E30: =IF(A30<1,"",lodtrækning!L71) ->  | F30: =IF(A30<1,"",lodtrækning!Q71) -> 
A31: =IF(lodtrækning!M$3>0,lodtrækning!H72,lodtrækning!P72) -> 0 | B31: =IF(A31<1,"",lodtrækning!I72) ->  | C31: =IF(A31<1,"",lodtrækning!J72) ->  | D31: =IF(A31<1,"",lodtrækning!K72) ->  | E31: =IF(A31<1,"",lodtrækning!L72) ->  | F31: =IF(A31<1,"",lodtrækning!Q72) -> 
A32: =IF(lodtrækning!M$3>0,lodtrækning!H73,lodtrækning!P73) -> 0 | B32: =IF(A32<1,"",lodtrækning!I73) ->  | C32: =IF(A32<1,"",lodtrækning!J73) ->  | D32: =IF(A32<1,"",lodtrækning!K73) ->  | E32: =IF(A32<1,"",lodtrækning!L73) ->  | F32: =IF(A32<1,"",lodtrækning!Q73) -> 
A41: =lodtrækning!P14 -> 101 | B41: =IF(lodtrækning!S14<1,"",lodtrækning!S14) -> 116686 | C41: =IF($G41<1,"",VLOOKUP($G41,licens,3,FALSE)) -> 923 | D41: =IF($G41<1,"",VLOOKUP($G41,licens,2,FALSE)) -> Allan Schrøder | E41: =IF($G41<1,"",VLOOKUP($G41,licens,4,FALSE)) -> Varde BK | F41: =IF($G41<1,"",VLOOKUP($G41,licens,6,FALSE)) -> 1.193 | G41: =IF(lodtrækning!S14<1,0,lodtrækning!S14) -> 116686
A42: =lodtrækning!P15 -> 102 | B42: =IF(lodtrækning!S15<1,"",lodtrækning!S15) -> 116295 | C42: 603 | D42: Claus Petersen | E42: ABK 31 | F42: 0.912 | G42: =IF(lodtrækning!S15<1,0,lodtrækning!S15) -> 116295
A43: =lodtrækning!P16 -> 103 | B43: =IF(lodtrækning!S16<1,"",lodtrækning!S16) -> 114962 | C43: 603 | D43: Poul Bjerring | E43: ABK 31 | F43: 1.013 | G43: =IF(lodtrækning!S16<1,0,lodtrækning!S16) -> 114962
A44: =lodtrækning!P17 -> 104 | B44: =IF(lodtrækning!S17<1,"",lodtrækning!S17) -> 114711 | C44: 503 | D44: Thomas Knudsen | E44: Bristol | F44: 0.975 | G44: =IF(lodtrækning!S17<1,0,lodtrækning!S17) -> 114711
A45: =lodtrækning!P18 -> 105 | B45: =IF(lodtrækning!S18<1,"",lodtrækning!S18) -> 120054 | C45: 923 | D45: Thomas Wollerup | E45: Varde BK | F45: 0.744 | G45: =IF(lodtrækning!S18<1,0,lodtrækning!S18) -> 120054
A46: =lodtrækning!P19 -> 106 | B46: =IF(lodtrækning!S19<1,"",lodtrækning!S19) -> 120905 | C46: 923 | D46: Daniel Kristiansen | E46: Varde BK | F46: 0.891 | G46: =IF(lodtrækning!S19<1,0,lodtrækning!S19) -> 120905
A47: =lodtrækning!P20 -> 107 | B47: =IF(lodtrækning!S20<1,"",lodtrækning!S20) -> 122231 | C47: 648 | D47: Kim Keith | E47: Horsens BK | F47: 0.931 | G47: =IF(lodtrækning!S20<1,0,lodtrækning!S20) -> 122231
A48: =lodtrækning!P21 -> 108 | B48: =IF(lodtrækning!S21<1,"",lodtrækning!S21) -> 115312 | C48: 503 | D48: Tommy Magnussen | E48: Bristol | F48: 0.944 | G48: =IF(lodtrækning!S21<1,0,lodtrækning!S21) -> 115312
A49: =lodtrækning!P22 -> 116 | B49: =IF(lodtrækning!S22<1,"",lodtrækning!S22) -> 115918 | C49: 631 | D49: Dan Jensen | E49: Fredericia BK | F49: 0.712 | G49: =IF(lodtrækning!S22<1,0,lodtrækning!S22) -> 115918
A50: =lodtrækning!P23 -> 115 | B50: =IF(lodtrækning!S23<1,"",lodtrækning!S23) -> 119231 | C50: 631 | D50: Claus Mosskov | E50: Fredericia BK | F50: 0.826 | G50: =IF(lodtrækning!S23<1,0,lodtrækning!S23) -> 119231
A51: =lodtrækning!P24 -> 121 | B51: =IF(lodtrækning!S24<1,"",lodtrækning!S24) ->  | G51: =IF(lodtrækning!S24<1,0,lodtrækning!S24) -> 0
A52: =lodtrækning!P25 -> 118 | B52: =IF(lodtrækning!S25<1,"",lodtrækning!S25) ->  | G52: =IF(lodtrækning!S25<1,0,lodtrækning!S25) -> 0
A53: =lodtrækning!P26 -> 114 | B53: =IF(lodtrækning!S26<1,"",lodtrækning!S26) -> 115742 | C53: 631 | D53: Kim Nielsen | E53: Fredericia BK | F53: 0.828 | G53: =IF(lodtrækning!S26<1,0,lodtrækning!S26) -> 115742
A54: =lodtrækning!P27 -> 119 | B54: =IF(lodtrækning!S27<1,"",lodtrækning!S27) ->  | G54: =IF(lodtrækning!S27<1,0,lodtrækning!S27) -> 0
A55: =lodtrækning!P28 -> 112 | B55: =IF(lodtrækning!S28<1,"",lodtrækning!S28) -> 119489 | C55: 239 | D55: Bjørn M Jensen | E55: Ringsted BC | F55: 0.968 | G55: =IF(lodtrækning!S28<1,0,lodtrækning!S28) -> 119489
A56: =lodtrækning!P29 -> 111 | B56: =IF(lodtrækning!S29<1,"",lodtrækning!S29) -> 113686 | C56: 239 | D56: Thomas Andersen | E56: Ringsted BC | F56: 0.977 | G56: =IF(lodtrækning!S29<1,0,lodtrækning!S29) -> 113686
A57: =lodtrækning!P30 -> 123 | B57: =IF(lodtrækning!S30<1,"",lodtrækning!S30) ->  | G57: =IF(lodtrækning!S30<1,0,lodtrækning!S30) -> 0
A58: =lodtrækning!P31 -> 122 | B58: =IF(lodtrækning!S31<1,"",lodtrækning!S31) ->  | G58: =IF(lodtrækning!S31<1,0,lodtrækning!S31) -> 0
A59: =lodtrækning!P32 -> 117 | B59: =IF(lodtrækning!S32<1,"",lodtrækning!S32) -> 111940 | C59: 672 | D59: Johnny Søgaard | E59: Randers BK | F59: 0.711 | G59: =IF(lodtrækning!S32<1,0,lodtrækning!S32) -> 111940
A60: =lodtrækning!P33 -> 109 | B60: =IF(lodtrækning!S33<1,"",lodtrækning!S33) -> 116405 | C60: 672 | D60: Tonny Carlsen | E60: Randers BK | F60: 1.322 | G60: =IF(lodtrækning!S33<1,0,lodtrækning!S33) -> 116405
A61: =lodtrækning!P34 -> 124 | B61: =IF(lodtrækning!S34<1,"",lodtrækning!S34) ->  | G61: =IF(lodtrækning!S34<1,0,lodtrækning!S34) -> 0
A62: =lodtrækning!P35 -> 110 | B62: =IF(lodtrækning!S35<1,"",lodtrækning!S35) -> 111715 | C62: 603 | D62: Søren Andersson | E62: ABK 31 | F62: 1.054 | G62: =IF(lodtrækning!S35<1,0,lodtrækning!S35) -> 111715
A63: =lodtrækning!P36 -> 113 | B63: =IF(lodtrækning!S36<1,"",lodtrækning!S36) -> 110623 | C63: 672 | D63: Kim Mortensen | E63: Randers BK | F63: 0.947 | G63: =IF(lodtrækning!S36<1,0,lodtrækning!S36) -> 110623
A64: =lodtrækning!P37 -> 120 | B64: =IF(lodtrækning!S37<1,"",lodtrækning!S37) ->  | G64: =IF(lodtrækning!S37<1,0,lodtrækning!S37) -> 0

Sheet Licens
A1: Klubnr+Lic. | B1: Licens | C1: Spiller navn | D1: Klubnr | E1: Klub (auto.) | F1: Kegle | G1: 3-b | H1: 1-b | I1: Fri | J1: Aktiv-Lic. | K1: Oldboys / Hcp. | M1: Kv div. | N1: 3-b | P1: Stafet | Q1: Par | R1: Kgl. | T1: Spiller navn, der indsættes | U1: Fri | W1: Max hcp: | X1: 800 | Y1: =(X1-30)/30 -> 25.66666667 | AD1: Par
A2: =IF(D2&B2="","*",D2&B2) -> 1122839 | B2: 122839 | C2: Anders Boye Rasmussen | D2: 1 | E2: Nexø BK | F2: 6.16 | J2: 1-2 | K2: =IF(L2="","",IF(L2>$X$1,"max",CEILING(L2,2))) -> 216 | L2: =IF(F2="","",F2*30+30) -> 214.8 | M2: =IF(R2="","",IF(R2<3,150,IF(R2<5,200,IF(R2<7.5,250,IF(R2<10,350,IF(R2>9.99,450,)))))) -> 250 | N2: =IF(O2="","",CEILING(O2,1)) ->  | O2: =IF(G2="","",G2*50+5) ->  | P2: =IF(R2="","",IF(R2<5,200,IF(R2<7,250,IF(R2<9,300,IF(R2<11.5,350,IF(R2<14,400,IF(R2<17.5,450,IF(R2<30,500,)))))))) -> 250 | Q2: =IF(R2="","",IF(R2>$AD$8,IF(R2>$AD$9,IF(R2>$AD$10,IF(R2>$AD$11,IF(R2>$AD$12,$AE$13,$AE$12),$AE$11),$AE$10),$AE$9),IF(R2>$AD$3,IF(R2>$AD$4,IF(R2>$AD$5,IF(R2>$AD$6,IF(R2>$AD$7,IF(R2>$AD$8,,$AE$8),$AE$7),$AE$6),$AE$5),$AE$4),$AE$3))) -> 80 | R2: =IF(F2="","",F2*1) -> 6.16 | T2: =IF(C2="","?",C2) -> Anders Boye Rasmussen | U2: =IF(V2="","",CEILING(V2,1)) ->  | V2: =IF(I2="","",I2*30+5) ->  | AC2: Snit grænse | AE2: distance | AF2: distance
A3: 1123365 | B3: 123365 | C3: Aron Olsen | D3: 1 | E3: Nexø BK | F3: 6.31 | I3: 0.62 | J3: 1-2 | K3: 220 | L3: =IF(F3="","",F3*30+30) -> 219.3 | M3: =IF(R3="","",IF(R3<3,150,IF(R3<5,200,IF(R3<7.5,250,IF(R3<10,350,IF(R3>9.99,450,)))))) -> 250 | O3: =IF(G3="","",G3*50+5) ->  | P3: =IF(R3="","",IF(R3<5,200,IF(R3<7,250,IF(R3<9,300,IF(R3<11.5,350,IF(R3<14,400,IF(R3<17.5,450,IF(R3<30,500,)))))))) -> 250 | Q3: 80 | R3: =IF(F3="","",F3*1) -> 6.31 | T3: =IF(C3="","?",C3) -> Aron Olsen | U3: 24 | V3: =IF(I3="","",I3*30+5) -> 23.6 | AC3: 0 | AD3: 2.99 | AE3: 60 | AF3: 60
A4: 1114564 | B4: 114564 | C4: Bent Holm | D4: 1 | E4: Nexø BK | F4: 10.42 | I4: 0.88 | J4: 1-2 | K4: 344 | L4: =IF(F4="","",F4*30+30) -> 342.6 | M4: =IF(R4="","",IF(R4<3,150,IF(R4<5,200,IF(R4<7.5,250,IF(R4<10,350,IF(R4>9.99,450,)))))) -> 450 | O4: =IF(G4="","",G4*50+5) ->  | P4: =IF(R4="","",IF(R4<5,200,IF(R4<7,250,IF(R4<9,300,IF(R4<11.5,350,IF(R4<14,400,IF(R4<17.5,450,IF(R4<30,500,)))))))) -> 350 | Q4: 110 | R4: =IF(F4="","",F4*1) -> 10.42 | T4: Bent Holm | U4: 32 | V4: =IF(I4="","",I4*30+5) -> 31.4 | AC4: 3 | AD4: 4.99 | AE4: 70 | AF4: 70
A5: 1118786 | B5: 118786 | C5: Bernt Andersen | D5: 1 | E5: Nexø BK | F5: 6.24 | J5: 1-2 | K5: 218 | L5: 217.2 | M5: =IF(R5="","",IF(R5<3,150,IF(R5<5,200,IF(R5<7.5,250,IF(R5<10,350,IF(R5>9.99,450,)))))) -> 250 | O5: =IF(G5="","",G5*50+5) ->  | P5: 250 | Q5: 80 | R5: 6.24 | T5: Bernt Andersen | V5: =IF(I5="","",I5*30+5) ->  | AC5: 5 | AD5: 6.99 | AE5: 80 | AF5: 80
A6: 1111531 | B6: 111531 | C6: Birgith Håkansson | D6: 1 | E6: Nexø BK | F6: 3.23 | J6: 1-2 | K6: 128 | L6: 126.9 | M6: 200 | P6: 200 | Q6: 70 | R6: 3.23 | T6: Birgith Håkansson | AC6: 7 | AD6: 8.99 | AE6: 90 | AF6: 90
A7: 1115447 | B7: 115447 | C7: Carsten Håkansson | D7: 1 | E7: Nexø BK | F7: 13.42 | I7: 0.96 | J7: 1-2 | K7: 434 | L7: 432.6 | M7: 450 | P7: 400 | Q7: 140 | R7: 13.42 | T7: Carsten Håkansson | U7: 34 | V7: 33.8 | AC7: 9 | AD7: 10.99 | AE7: 110 | AF7: 110
A8: 1121372 | B8: 121372 | C8: Erik Eriksen | D8: 1 | E8: Nexø BK | F8: 9.91 | I8: 1.03 | J8: 1-2 | K8: 328 | L8: 327.3 | M8: 350 | P8: 350 | Q8: 110 | R8: 9.91 | T8: Erik Eriksen | U8: 36 | V8: 35.9 | AC8: 11 | AD8: 13.99 | AE8: 140 | AF8: 140
A9: 1115171 | B9: 115171 | C9: Flemming Kofoed Hansen | D9: 1 | E9: Nexø BK | F9: 6.21 | I9: 0.54 | J9: 1-2 | K9: 218 | L9: 216.3 | M9: 250 | P9: 250 | Q9: 80 | R9: 6.21 | T9: Flemming Kofoed Hansen | U9: 22 | V9: 21.2 | AC9: 14 | AD9: 16.99 | AE9: 170 | AF9: 170
A10: 1118412 | B10: 118412 | C10: Freddy Edwards | D10: 1 | E10: Nexø BK | F10: 38.66 | G10: 0.405 | H10: 1.45 | I10: 1.94 | J10: 1-2 | K10: max | L10: 1189.8 | M10: 450 | N10: 26 | O10: 25.25 | P10: 0 | Q10: 300 | R10: 38.66 | T10: Freddy Edwards | U10: 64 | V10: 63.2 | AC10: 17 | AD10: 19.99 | AE10: 200 | AF10: 200
A11: 1120710 | B11: 120710 | C11: Jesper Larsen | D11: 1 | E11: Nexø BK | F11: 6.29 | J11: 1-2 | K11: 220 | L11: 218.7 | M11: 250 | P11: 250 | Q11: 80 | R11: 6.29 | T11: Jesper Larsen | AC11: 20 | AD11: 24.99 | AE11: 230 | AF11: 230
A12: 1123138 | B12: 123138 | C12: Jim Hee | D12: 1 | E12: Nexø BK | F12: 2.78 | J12: 1-2 | K12: 114 | L12: 113.4 | M12: 150 | P12: 200 | Q12: 60 | R12: 2.78 | T12: Jim Hee | AC12: 25 | AD12: 29.99 | AE12: 260 | AF12: 260
A13: 1120761 | B13: 120761 | C13: Kai Lund-Hansen | D13: 1 | E13: Nexø BK | F13: 3.52 | J13: 1-2 | K13: 136 | L13: 135.6 | M13: 200 | P13: 200 | Q13: 70 | R13: 3.52 | T13: Kai Lund-Hansen | AC13: 30 | AD13: 34.99 | AE13: 300 | AF13: 300
A14: 1113015 | B14: 113015 | C14: Keld Nielsen | D14: 1 | E14: Nexø BK | F14: 4.63 | J14: 1-2 | K14: 170 | L14: 168.9 | M14: 200 | P14: 200 | Q14: 70 | R14: 4.63 | T14: Keld Nielsen
A15: 1122920 | B15: 122920 | C15: Kim Egmose Hansen | D15: 1 | E15: Nexø BK | F15: 4.4 | J15: 1-2 | K15: 162 | L15: 162 | M15: 200 | P15: 200 | Q15: 70 | R15: 4.4 | T15: Kim Egmose Hansen
A16: 1122694 | B16: 122694 | C16: Knud Hall | D16: 1 | E16: Nexø BK | F16: 4.25 | J16: 1-2 | K16: 158 | L16: 157.5 | M16: 200 | P16: 200 | Q16: 70 | R16: 4.25 | T16: Knud Hall
A17: 1111307 | B17: 111307 | C17: Kurt Horsner | D17: 1 | E17: Nexø BK | F17: 3.3 | J17: 1-2 | K17: 130 | L17: 129 | M17: 200 | P17: 200 | Q17: 70 | R17: 3.3 | T17: Kurt Horsner
A18: 1121830 | B18: 121830 | C18: Martin Reckendorff | D18: 1 | E18: Nexø BK | F18: 10.75 | G18: 0.249 | J18: 1-2 | K18: 354 | L18: 352.5 | M18: 450 | N18: 18 | O18: 17.45 | P18: 350 | Q18: 110 | R18: 10.75 | T18: Martin Reckendorff
A19: 1123238 | B19: 123238 | C19: Morten Ibsen | D19: 1 | E19: Nexø BK | F19: 7.66 | J19: 1-2 | K19: 260 | L19: 259.8 | M19: 350 | P19: 300 | Q19: 90 | R19: 7.66 | T19: Morten Ibsen
A20: 1110997 | B20: 110997 | C20: Niels Finne | D20: 1 | E20: Nexø BK | F20: 7.02 | I20: 0.54 | J20: 1-2 | K20: 242 | L20: 240.6 | M20: 250 | P20: 300 | Q20: 90 | R20: 7.02 | T20: Niels Finne | U20: 22 | V20: 21.2
A21: 1122059 | B21: 122059 | C21: Ole Dalgaard Nielsen | D21: 1 | E21: Nexø BK | F21: 3.55 | J21: 1-2 | K21: 138 | L21: 136.5 | M21: 200 | P21: 200 | Q21: 70 | R21: 3.55 | T21: Ole Dalgaard Nielsen
A22: 1119165 | B22: 119165 | C22: Peter Høst | D22: 1 | E22: Nexø BK | F22: 8.52 | G22: 0.213 | I22: 0.5 | J22: 1-2 | K22: 286 | L22: 285.6 | M22: 350 | N22: 16 | O22: 15.65 | P22: 300 | Q22: 90 | R22: 8.52 | T22: Peter Høst | U22: 20 | V22: 20
A23: 1115060 | B23: 115060 | C23: Rene Pedersen | D23: 1 | E23: Nexø BK | F23: 5.72 | J23: 1-2 | K23: 202 | L23: 201.6 | M23: 250 | P23: 250 | Q23: 80 | R23: 5.72 | T23: Rene Pedersen
A24: 1118841 | B24: 118841 | C24: Steen Grønnegaard | D24: 1 | E24: Nexø BK | F24: 3.6 | J24: 1-2 | K24: 138 | L24: 138 | M24: 200 | P24: 200 | Q24: 70 | R24: 3.6 | T24: Steen Grønnegaard
A25: 1122840 | B25: 122840 | C25: Verner Jensen | D25: 1 | E25: Nexø BK | F25: 4.52 | J25: 1-2 | K25: 166 | L25: 165.6 | M25: 200 | P25: 200 | Q25: 70 | R25: 4.52 | T25: Verner Jensen
A26: 1112605 | B26: 112605 | C26: Aage Pedersen | D26: 1 | E26: Nexø BK | F26: 10.28 | G26: 0.134 | I26: 0.83 | J26: 1-2 | K26: 340 | L26: 338.4 | M26: 450 | N26: 12 | O26: 11.7 | P26: 350 | Q26: 110 | R26: 10.28 | T26: Aage Pedersen | U26: 30 | V26: 29.9
A27: 2120019 | B27: 120019 | C27: Bent Hansen | D27: 2 | E27: Nordbornh. BK | F27: 2.84 | J27: 1-2 | K27: 116 | L27: 115.2 | M27: 150 | P27: 200 | Q27: 60 | R27: 2.84 | T27: Bent Hansen
A28: 2110795 | B28: 110795 | C28: Bent Pedersen | D28: 2 | E28: Nordbornh. BK | F28: 6.8 | I28: 0.74 | J28: 1-2 | K28: 234 | L28: 234 | M28: 250 | P28: 250 | Q28: 80 | R28: 6.8 | T28: Bent Pedersen | U28: 28 | V28: 27.2
A29: 2117783 | B29: 117783 | C29: Birthe Ipsen | D29: 2 | E29: Nordbornh. BK | F29: 3.82 | J29: 1-2 | K29: 146 | L29: 144.6 | M29: 200 | P29: 200 | Q29: 70 | R29: 3.82 | T29: Birthe Ipsen
A30: 2121630 | B30: 121630 | C30: Brian Jensen | D30: 2 | E30: Nordbornh. BK | F30: 13.82 | G30: 0.19 | I30: 1.07 | J30: 1-2 | K30: 446 | L30: 444.6 | M30: 450 | N30: 15 | O30: 14.5 | P30: 400 | Q30: 140 | R30: 13.82 | T30: Brian Jensen | U30: 38 | V30: 37.1
A31: 2122648 | B31: 122648 | C31: Carsten Reker Hansen | D31: 2 | E31: Nordbornh. BK | F31: 3.43 | J31: 1-2 | K31: 134 | L31: 132.9 | M31: 200 | P31: 200 | Q31: 70 | R31: 3.43 | T31: Carsten Reker Hansen
A32: 2110287 | B32: 110287 | C32: Elof Sellberg | D32: 2 | E32: Nordbornh. BK | F32: 4.67 | I32: 0.43 | J32: 1-2 | K32: 172 | L32: 170.1 | M32: 200 | P32: 200 | Q32: 70 | R32: 4.67 | T32: Elof Sellberg | U32: 18 | V32: 17.9
A33: 2113759 | B33: 113759 | C33: Emma Munch-Petersen | D33: 2 | E33: Nordbornh. BK | F33: 2.9 | J33: 1-2 | K33: 118 | L33: 117 | M33: 150 | P33: 200 | Q33: 60 | R33: 2.9 | T33: Emma Munch-Petersen
A34: 2116870 | B34: 116870 | C34: Erik Høst | D34: 2 | E34: Nordbornh. BK | F34: 10.86 | G34: 0.214 | H34: 0.54 | I34: 1.02 | J34: 1-2 | K34: 356 | L34: 355.8 | M34: 450 | N34: 16 | O34: 15.7 | P34: 350 | Q34: 110 | R34: 10.86 | T34: Erik Høst | U34: 36 | V34: 35.6
A35: 2118859 | B35: 118859 | C35: Henning Dahl Olsen | D35: 2 | E35: Nordbornh. BK | F35: 2.79 | I35: 0.29 | J35: 1-2 | K35: 114 | L35: 113.7 | M35: 150 | P35: 200 | Q35: 60 | R35: 2.79 | T35: Henning Dahl Olsen | U35: 14 | V35: 13.7
A36: 2120048 | B36: 120048 | C36: Jacob Jørgensen | D36: 2 | E36: Nordbornh. BK | F36: 4.27 | J36: 1-2 | K36: 160 | L36: 158.1 | M36: 200 | P36: 200 | Q36: 70 | R36: 4.27 | T36: Jacob Jørgensen
A37: 2110650 | B37: 110650 | C37: Johan Lind | D37: 2 | E37: Nordbornh. BK | F37: 8.48 | J37: 1-2 | K37: 286 | L37: 284.4 | M37: 350 | P37: 300 | Q37: 90 | R37: 8.48 | T37: Johan Lind
A38: 2110217 | B38: 110217 | C38: Kim Westh | D38: 2 | E38: Nordbornh. BK | F38: 18.79 | G38: 0.303 | I38: 1.27 | J38: 1-2 | K38: 594 | L38: 593.7 | M38: 450 | N38: 21 | O38: 20.15 | P38: 500 | Q38: 200 | R38: 18.79 | T38: Kim Westh | U38: 44 | V38: 43.1
A39: 2117445 | B39: 117445 | C39: Kurt Ipsen | D39: 2 | E39: Nordbornh. BK | F39: 6.18 | I39: 0.51 | J39: 1-2 | K39: 216 | L39: 215.4 | M39: 250 | P39: 250 | Q39: 80 | R39: 6.18 | T39: Kurt Ipsen | U39: 21 | V39: 20.3
A40: 2113532 | B40: 113532 | C40: Martin Ransted | D40: 2 | E40: Nordbornh. BK | F40: 11.08 | J40: 1-2 | K40: 364 | L40: 362.4 | M40: 450 | P40: 350 | Q40: 140 | R40: 11.08 | T40: Martin Ransted
A41: 2121751 | B41: 121751 | C41: Michael Andersen | D41: 2 | E41: Nordbornh. BK | F41: 4.69 | I41: 0.62 | J41: 1-2 | K41: 172 | L41: 170.7 | M41: 200 | P41: 200 | Q41: 70 | R41: 4.69 | T41: Michael Andersen | U41: 24 | V41: 23.6
A42: 2111383 | B42: 111383 | C42: Michael Wolfsberg | D42: 2 | E42: Nordbornh. BK | F42: 7.24 | I42: 0.58 | J42: 1-2 | K42: 248 | L42: 247.2 | M42: 250 | P42: 300 | Q42: 90 | R42: 7.24 | T42: Michael Wolfsberg | U42: 23 | V42: 22.4
A43: 2122114 | B43: 122114 | C43: Ole Bjørn Gjøg | D43: 2 | E43: Nordbornh. BK | F43: 3.58 | J43: 1-2 | K43: 138 | L43: 137.4 | M43: 200 | P43: 200 | Q43: 70 | R43: 3.58 | T43: Ole Bjørn Gjøg
A44: 2110125 | B44: 110125 | C44: Ole Hansen | D44: 2 | E44: Nordbornh. BK | F44: 5.28 | J44: 1-2 | K44: 190 | L44: 188.4 | M44: 250 | P44: 250 | Q44: 80 | R44: 5.28 | T44: Ole Hansen
A45: 2113581 | B45: 113581 | C45: Palle Skærbæk Jensen | D45: 2 | E45: Nordbornh. BK | F45: 5.91 | I45: 0.44 | J45: 1-2 | K45: 208 | L45: 207.3 | M45: 250 | P45: 250 | Q45: 80 | R45: 5.91 | T45: Palle Skærbæk Jensen | U45: 19 | V45: 18.2
A46: 2123278 | B46: 123278 | C46: Peter Haag | D46: 2 | E46: Nordbornh. BK | F46: 5 | G46: 0.206 | I46: 0.8 | J46: 1-2 | K46: 180 | L46: 180 | M46: 250 | N46: 16 | O46: 15.3 | P46: 250 | Q46: 80 | R46: 5 | T46: Peter Haag | U46: 29 | V46: 29
A47: 2120891 | B47: 120891 | C47: Preben Myhre | D47: 2 | E47: Nordbornh. BK | F47: 6 | J47: 1-2 | K47: 210 | L47: 210 | M47: 250 | P47: 250 | Q47: 80 | R47: 6 | T47: Preben Myhre
A48: 2117767 | B48: 117767 | C48: Trygve Høst | D48: 2 | E48: Nordbornh. BK | F48: 9.86 | G48: 0.161 | H48: 0.43 | I48: 0.85 | J48: 1-2 | K48: 326 | L48: 325.8 | M48: 350 | N48: 14 | O48: 13.05 | P48: 350 | Q48: 110 | R48: 9.86 | T48: Trygve Høst | U48: 31 | V48: 30.5
A49: 3123420 | B49: 123420 | C49: Arne Pedersen | D49: 3 | E49: Rønne BK | F49: 2.6 | J49: 1-2 | K49: 108 | L49: 108 | M49: 150 | P49: 200 | Q49: 60 | R49: 2.6 | T49: Arne Pedersen
A50: 3119152 | B50: 119152 | C50: Bengt Pedersen | D50: 3 | E50: Rønne BK | F50: 7.12 | I50: 0.62 | J50: 1-2 | K50: 244 | L50: 243.6 | M50: 250 | P50: 300 | Q50: 90 | R50: 7.12 | T50: Bengt Pedersen | U50: 24 | V50: 23.6
A51: 3123419 | B51: 123419 | C51: Bent Hansen | D51: 3 | E51: Rønne BK | F51: 1.74 | J51: 1-2 | K51: 84 | L51: 82.2 | M51: 150 | P51: 200 | Q51: 60 | R51: 1.74 | T51: Bent Hansen
A52: 3119282 | B52: 119282 | C52: Birgith Kleist | D52: 3 | E52: Rønne BK | F52: 2.61 | J52: 1-2 | K52: 110 | L52: 108.3 | M52: 150 | P52: 200 | Q52: 60 | R52: 2.61 | T52: Birgith Kleist
A53: 3120521 | B53: 120521 | C53: Bjarne Koefoed | D53: 3 | E53: Rønne BK | F53: 4.89 | J53: 1-2 | K53: 178 | L53: 176.7 | M53: 200 | P53: 200 | Q53: 70 | R53: 4.89 | T53: Bjarne Koefoed
A54: 3119066 | B54: 119066 | C54: Børge Leth | D54: 3 | E54: Rønne BK | F54: 3.82 | J54: 1-2 | K54: 146 | L54: 144.6 | M54: 200 | P54: 200 | Q54: 70 | R54: 3.82 | T54: Børge Leth
A55: 3123219 | B55: 123219 | C55: Dan Olsen | D55: 3 | E55: Rønne BK | F55: 10.17 | G55: 0.195 | J55: 1-2 | K55: 336 | L55: 335.1 | M55: 450 | N55: 15 | O55: 14.75 | P55: 350 | Q55: 110 | R55: 10.17 | T55: Dan Olsen
A56: 3112386 | B56: 112386 | C56: Elmer Vang | D56: 3 | E56: Rønne BK | F56: 4.19 | J56: 1-2 | K56: 156 | L56: 155.7 | M56: 200 | P56: 200 | Q56: 70 | R56: 4.19 | T56: Elmer Vang
A57: 3118346 | B57: 118346 | C57: Erik Sørensen | D57: 3 | E57: Rønne BK | F57: 4.34 | J57: 1-2 | K57: 162 | L57: 160.2 | M57: 200 | P57: 200 | Q57: 70 | R57: 4.34 | T57: Erik Sørensen
A58: 3119809 | B58: 119809 | C58: Flemming Larsen | D58: 3 | E58: Rønne BK | F58: 3.74 | J58: 1-2 | K58: 144 | L58: 142.2 | M58: 200 | P58: 200 | Q58: 70 | R58: 3.74 | T58: Flemming Larsen
A59: 3119073 | B59: 119073 | C59: Harley Jensen | D59: 3 | E59: Rønne BK | F59: 6.06 | J59: 1-2 | K59: 212 | L59: 211.8 | M59: 250 | P59: 250 | Q59: 80 | R59: 6.06 | T59: Harley Jensen
A60: 3123223 | B60: 123223 | C60: Henrik Cordau | D60: 3 | E60: Rønne BK | F60: 2.1 | J60: 1-2 | K60: 94 | L60: 93 | M60: 150 | P60: 200 | Q60: 60 | R60: 2.1 | T60: Henrik Cordau
A61: 3112174 | B61: 112174 | C61: Henrik O. L. Jørgensen | D61: 3 | E61: Rønne BK | F61: 12.89 | I61: 0.86 | J61: 1-2 | K61: 418 | L61: 416.7 | M61: 450 | P61: 400 | Q61: 140 | R61: 12.89 | T61: Henrik O. L. Jørgensen | U61: 31 | V61: 30.8
A62: 3123604 | B62: 123604 | C62: Jan Gildam | D62: 3 | E62: Rønne BK | F62: 1.72 | J62: 1-2 | K62: 82 | L62: 81.6 | M62: 150 | P62: 200 | Q62: 60 | R62: 1.72 | T62: Jan Gildam
A63: 3119067 | B63: 119067 | C63: Jørgen Petersen | D63: 3 | E63: Rønne BK | F63: 10.95 | J63: 1-2 | K63: 360 | L63: 358.5 | M63: 450 | P63: 350 | Q63: 110 | R63: 10.95 | T63: Jørgen Petersen
A64: 3121179 | B64: 121179 | C64: Jørn Møller Rasmussen | D64: 3 | E64: Rønne BK | F64: 12.01 | G64: 0.234 | I64: 0.91 | J64: 1-2 | K64: 392 | L64: 390.3 | M64: 450 | N64: 17 | O64: 16.7 | P64: 400 | Q64: 140 | R64: 12.01 | T64: Jørn Møller Rasmussen | U64: 33 | V64: 32.3
A65: 3123220 | B65: 123220 | C65: Kaj Jensen | D65: 3 | E65: Rønne BK | F65: 3.34 | J65: 1-2 | K65: 132 | L65: 130.2 | M65: 200 | P65: 200 | Q65: 70 | R65: 3.34 | T65: Kaj Jensen
A66: =IF(D66&B66="","*",D66&B66) -> 3115962 | B66: 115962 | C66: Karsten Haagensen | D66: 3 | E66: Rønne BK | F66: 27.77 | H66: 0.86 | I66: 1.73 | J66: 1-2 | K66: =IF(L66="","",IF(L66>$X$1,"max",CEILING(L66,2))) -> max | L66: 863.1 | M66: 450 | N66: =IF(O66="","",CEILING(O66,1)) ->  | P66: 500 | Q66: =IF(R66="","",IF(R66>$AD$8,IF(R66>$AD$9,IF(R66>$AD$10,IF(R66>$AD$11,IF(R66>$AD$12,$AE$13,$AE$12),$AE$11),$AE$10),$AE$9),IF(R66>$AD$3,IF(R66>$AD$4,IF(R66>$AD$5,IF(R66>$AD$6,IF(R66>$AD$7,IF(R66>$AD$8,,$AE$8),$AE$7),$AE$6),$AE$5),$AE$4),$AE$3))) -> 260 | R66: 27.77 | T66: Karsten Haagensen | U66: =IF(V66="","",CEILING(V66,1)) -> 57 | V66: 56.9
A67: 3123221 | B67: 123221 | C67: Karsten Møller | D67: 3 | E67: Rønne BK | F67: 2.46 | J67: 1-2 | K67: 104 | L67: 103.8 | M67: 150 | P67: 200 | Q67: 60 | R67: 2.46 | T67: =IF(C67="","?",C67) -> Karsten Møller
A68: 3123222 | B68: 123222 | C68: Kasper Gangelhoff | D68: 3 | E68: Rønne BK | F68: 4.61 | J68: 1-2 | K68: 170 | L68: =IF(F68="","",F68*30+30) -> 168.3 | M68: 200 | P68: =IF(R68="","",IF(R68<5,200,IF(R68<7,250,IF(R68<9,300,IF(R68<11.5,350,IF(R68<14,400,IF(R68<17.5,450,IF(R68<30,500,)))))))) -> 200 | Q68: 70 | R68: =IF(F68="","",F68*1) -> 4.61 | T68: Kasper Gangelhoff
A69: 3110890 | B69: 110890 | C69: Kim Dalsgaard Jørgensen | D69: 3 | E69: Rønne BK | F69: 39.93 | G69: 0.455 | H69: 1.81 | I69: 2.43 | J69: 1-2 | K69: max | L69: 1227.9 | M69: =IF(R69="","",IF(R69<3,150,IF(R69<5,200,IF(R69<7.5,250,IF(R69<10,350,IF(R69>9.99,450,)))))) -> 450 | N69: 28 | O69: =IF(G69="","",G69*50+5) -> 27.75 | P69: 0 | Q69: 300 | R69: 39.93 | T69: Kim Dalsgaard Jørgensen | U69: 78 | V69: =IF(I69="","",I69*30+5) -> 77.9
A70: 3112582 | B70: 112582 | C70: Konrad Pedersen | D70: 3 | E70: Rønne BK | F70: 6.02 | J70: 1-2 | K70: 212 | L70: 210.6 | M70: 250 | P70: 250 | Q70: 80 | R70: 6.02 | T70: Konrad Pedersen
A71: 3119283 | B71: 119283 | C71: Lars Andersen | D71: 3 | E71: Rønne BK | F71: 6.68 | J71: 1-2 | K71: 232 | L71: 230.4 | M71: 250 | P71: 250 | Q71: 80 | R71: 6.68 | T71: Lars Andersen
A72: 3111442 | B72: 111442 | C72: Michael Rasmussen | D72: 3 | E72: Rønne BK | F72: 8.5 | H72: 0.48 | I72: 0.94 | J72: 1-2 | K72: 286 | L72: 285 | M72: 350 | P72: 300 | Q72: 90 | R72: 8.5 | T72: Michael Rasmussen | U72: 34 | V72: 33.2
A73: 3123418 | B73: 123418 | C73: Peter Gregersen | D73: 3 | E73: Rønne BK | F73: 3.95 | J73: 1-2 | K73: 150 | L73: 148.5 | M73: 200 | P73: 200 | Q73: 70 | R73: 3.95 | T73: Peter Gregersen
A74: 3120925 | B74: 120925 | C74: Poul Tolstrup | D74: 3 | E74: Rønne BK | F74: 3.99 | J74: 1-2 | K74: 150 | L74: 149.7 | M74: 200 | P74: 200 | Q74: 70 | R74: 3.99 | T74: Poul Tolstrup
A75: 3123320 | B75: 123320 | C75: Rasmus Pedersen | D75: 3 | E75: Rønne BK | F75: 11.85 | I75: 1.08 | J75: 1-2 | K75: 386 | L75: 385.5 | M75: 450 | P75: 400 | Q75: 140 | R75: 11.85 | T75: Rasmus Pedersen | U75: 38 | V75: 37.4
A76: 3120926 | B76: 120926 | C76: René Jeppson | D76: 3 | E76: Rønne BK | F76: 8.97 | I76: 0.73 | J76: 1-2 | K76: 300 | L76: 299.1 | M76: 350 | P76: 300 | Q76: 90 | R76: 8.97 | T76: René Jeppson | U76: 27 | V76: 26.9
A77: 3121748 | B77: 121748 | C77: Torben Jørgensen | D77: 3 | E77: Rønne BK | F77: 11.45 | J77: 1-2 | K77: 374 | L77: 373.5 | M77: 450 | P77: 350 | Q77: 140 | R77: 11.45 | T77: Torben Jørgensen
A78: 3123417 | B78: 123417 | C78: Wisti Thomasen | D78: 3 | E78: Rønne BK | F78: 4.91 | J78: 1-2 | K78: 178 | L78: 177.3 | M78: 200 | P78: 200 | Q78: 70 | R78: 4.91 | T78: Wisti Thomasen
A79: 4120479 | B79: 120479 | C79: Bent Christensen | D79: 4 | E79: Østermarie BK | F79: 7.51 | I79: 0.64 | J79: 1-2 | K79: 256 | L79: 255.3 | M79: 350 | P79: 300 | Q79: 90 | R79: 7.51 | T79: Bent Christensen | U79: 25 | V79: 24.2
A80: 4110012 | B80: 110012 | C80: Dorte Henriksen | D80: 4 | E80: Østermarie BK | F80: 2.65 | J80: 1-2 | K80: 110 | L80: 109.5 | M80: 150 | P80: 200 | Q80: 60 | R80: 2.65 | T80: Dorte Henriksen
A81: 4117624 | B81: 117624 | C81: Erik Burrack | D81: 4 | E81: Østermarie BK | F81: 16.75 | G81: 0.292 | H81: 1.25 | I81: 1.35 | J81: 1-2 | K81: 534 | L81: 532.5 | M81: 450 | N81: 20 | O81: 19.6 | P81: 450 | Q81: 170 | R81: 16.75 | T81: Erik Burrack | U81: 46 | V81: 45.5
A82: 4116759 | B82: 116759 | C82: Flemming Jensen | D82: 4 | E82: Østermarie BK | F82: 6.53 | I82: 0.63 | J82: 1-2 | K82: 226 | L82: 225.9 | M82: 250 | P82: 250 | Q82: 80 | R82: 6.53 | T82: Flemming Jensen | U82: 24 | V82: 23.9
A83: 4120949 | B83: 120949 | C83: Jacob Augustesen | D83: 4 | E83: Østermarie BK | F83: 7.51 | I83: 0.67 | J83: 1-2 | K83: 256 | L83: 255.3 | M83: 350 | P83: 300 | Q83: 90 | R83: 7.51 | T83: Jacob Augustesen | U83: 26 | V83: 25.1
A84: 4119148 | B84: 119148 | C84: Jens Høstner | D84: 4 | E84: Østermarie BK | F84: 7.17 | I84: 0.42 | J84: 1-2 | K84: 246 | L84: 245.1 | M84: 250 | P84: 300 | Q84: 90 | R84: 7.17 | T84: Jens Høstner | U84: 18 | V84: 17.6
A85: 4123687 | B85: 123687 | C85: Keld Madsen | D85: 4 | E85: Østermarie BK | F85: 6.94 | I85: 0.67 | J85: 1-2 | K85: 240 | L85: 238.2 | M85: 250 | P85: 250 | Q85: 80 | R85: 6.94 | T85: Keld Madsen | U85: 26 | V85: 25.1
A86: 4116191 | B86: 116191 | C86: Lise Nielsen | D86: 4 | E86: Østermarie BK | F86: 3.39 | I86: 0.24 | J86: 1-2 | K86: 132 | L86: 131.7 | M86: 200 | P86: 200 | Q86: 70 | R86: 3.39 | T86: Lise Nielsen | U86: 13 | V86: 12.2
A87: 4120302 | B87: 120302 | C87: Palle Knudsen | D87: 4 | E87: Østermarie BK | F87: 2.55 | I87: 0.42 | J87: 1-2 | K87: 108 | L87: 106.5 | M87: 150 | P87: 200 | Q87: 60 | R87: 2.55 | T87: Palle Knudsen | U87: 18 | V87: 17.6
A88: 4113266 | B88: 113266 | C88: Stie von Elling | D88: 4 | E88: Østermarie BK | F88: 5.97 | I88: 0.49 | J88: 1-2 | K88: 210 | L88: 209.1 | M88: 250 | P88: 250 | Q88: 80 | R88: 5.97 | T88: Stie von Elling | U88: 20 | V88: 19.7
A89: 4121854 | B89: 121854 | C89: Thomas Espersen | D89: 4 | E89: Østermarie BK | F89: 6.82 | G89: 0.192 | I89: 0.78 | J89: 1-2 | K89: 236 | L89: 234.6 | M89: 250 | N89: 15 | O89: 14.6 | P89: 250 | Q89: 80 | R89: 6.82 | T89: Thomas Espersen | U89: 29 | V89: 28.4
A90: 4116704 | B90: 116704 | C90: Tina Kjeldsen | D90: 4 | E90: Østermarie BK | F90: 4.05 | J90: 1-2 | K90: 152 | L90: 151.5 | M90: 200 | P90: 200 | Q90: 70 | R90: 4.05 | T90: Tina Kjeldsen
A91: 5113748 | B91: 113748 | C91: Bent Mattsson | D91: 5 | E91: Åkirkeby BK | F91: 4.27 | J91: 1-2 | K91: 160 | L91: 158.1 | M91: 200 | P91: 200 | Q91: 70 | R91: 4.27 | T91: Bent Mattsson
A92: 5117627 | B92: 117627 | C92: Hans Henning Pedersen | D92: 5 | E92: Åkirkeby BK | F92: 6.16 | J92: 1-2 | K92: 216 | L92: 214.8 | M92: 250 | P92: 250 | Q92: 80 | R92: 6.16 | T92: Hans Henning Pedersen
A93: 5113650 | B93: 113650 | C93: Miki Sonne | D93: 5 | E93: Åkirkeby BK | F93: 4.74 | J93: 1-2 | K93: 174 | L93: 172.2 | M93: 200 | P93: 200 | Q93: 70 | R93: 4.74 | T93: Miki Sonne
A94: 5111835 | B94: 111835 | C94: Peter Folkmann | D94: 5 | E94: Åkirkeby BK | F94: 6.27 | J94: 1-2 | K94: 220 | L94: 218.1 | M94: 250 | P94: 250 | Q94: 80 | R94: 6.27 | T94: Peter Folkmann
A95: 5119667 | B95: 119667 | C95: Steffen Kofoed | D95: 5 | E95: Åkirkeby BK | J95: 1-2 | T95: Steffen Kofoed
A96: 5114625 | B96: 114625 | C96: Tim Mortensen | D96: 5 | E96: Åkirkeby BK | F96: 3.03 | J96: 1-2 | K96: 122 | L96: 120.9 | M96: 200 | P96: 200 | Q96: 70 | R96: 3.03 | T96: Tim Mortensen
A97: 5110533 | B97: 110533 | C97: Viggo Hansen | D97: 5 | E97: Åkirkeby BK | F97: 2.89 | J97: 1-2 | K97: 118 | L97: 116.7 | M97: 150 | P97: 200 | Q97: 60 | R97: 2.89 | T97: Viggo Hansen
A98: 100123666 | B98: 123666 | C98: Helle Kjær Rasmussen | D98: 100 | E98: Skomar Klub Danmark | J98: 1-2 | T98: Helle Kjær Rasmussen
A99: 100123648 | B99: 123648 | C99: Michaelle Nielsen | D99: 100 | E99: Skomar Klub Danmark | J99: 1-2 | T99: Michaelle Nielsen
A100: 100121745 | B100: 121745 | C100: Susan Jensen | D100: 100 | E100: Skomar Klub Danmark | F100: 4.48 | J100: 1-2 | K100: 166 | L100: 164.4 | M100: 200 | P100: 200 | Q100: 70 | R100: 4.48 | T100: Susan Jensen
A101: 102120260 | B101: 120260 | C101: Casper Emeke Michael | D101: 102 | E101: Amager | G101: 0.242 | J101: 1-2 | N101: 18 | O101: 17.1 | T101: Casper Emeke Michael
A102: 102119240 | B102: 119240 | C102: Ole Nørskov | D102: 102 | E102: Amager | J102: 1-2 | T102: Ole Nørskov
A103: 102123390 | B103: 123390 | C103: Søren Feldbæk Winther | D103: 102 | E103: Amager | J103: 1-2 | T103: Søren Feldbæk Winther
A104: 107120121 | B104: 120121 | C104: Alex Tanev Persson | D104: 107 | E104: C.P.S.C. | J104: 1-2 | T104: Alex Tanev Persson
A105: 107122170 | B105: 122170 | C105: Alfred Melbye | D105: 107 | E105: C.P.S.C. | J105: 1-2 | T105: Alfred Melbye
A106: 107110778 | B106: 110778 | C106: Allan Norvark | D106: 107 | E106: C.P.S.C. | J106: 1-2 | T106: Allan Norvark
A107: 107122116 | B107: 122116 | C107: Brian Monty Olofsson | D107: 107 | E107: C.P.S.C. | J107: 1-2 | T107: Brian Monty Olofsson
A108: 107120847 | B108: 120847 | C108: Casper Petersen | D108: 107 | E108: C.P.S.C. | J108: 1-2 | T108: Casper Petersen
A109: 107119264 | B109: 119264 | C109: Chi Voong | D109: 107 | E109: C.P.S.C. | J109: 1-2 | T109: Chi Voong
A110: 107120591 | B110: 120591 | C110: Christian Austin | D110: 107 | E110: C.P.S.C. | J110: 1-2 | T110: Christian Austin
A111: 107121722 | B111: 121722 | C111: Daniel Broed | D111: 107 | E111: C.P.S.C. | J111: 1-2 | T111: Daniel Broed
A112: 107122844 | B112: 122844 | C112: Daniel Nedergaard | D112: 107 | E112: C.P.S.C. | J112: 1-2 | T112: Daniel Nedergaard
A113: 107122223 | B113: 122223 | C113: Dimitar Dimitrov | D113: 107 | E113: C.P.S.C. | J113: 1-2 | T113: Dimitar Dimitrov
A114: 107112466 | B114: 112466 | C114: Gert Laursen | D114: 107 | E114: C.P.S.C. | J114: 1-2 | T114: Gert Laursen
A115: 107121689 | B115: 121689 | C115: Henrik Andersen | D115: 107 | E115: C.P.S.C. | J115: 1-2 | T115: Henrik Andersen
A116: 107120134 | B116: 120134 | C116: Johannes Mann | D116: 107 | E116: C.P.S.C. | J116: 1-2 | T116: Johannes Mann
A117: 107122155 | B117: 122155 | C117: Kitti Olsen | D117: 107 | E117: C.P.S.C. | J117: 1-2 | T117: Kitti Olsen
A118: 107120972 | B118: 120972 | C118: Lasse Buhl | D118: 107 | E118: C.P.S.C. | J118: 1-2 | T118: Lasse Buhl
A119: 107120078 | B119: 120078 | C119: Mads Brundbjerg | D119: 107 | E119: C.P.S.C. | J119: 1-2 | T119: Mads Brundbjerg
A120: 107123200 | B120: 123200 | C120: Martin Sonne | D120: 107 | E120: C.P.S.C. | J120: 1-2 | T120: Martin Sonne
A121: 107120132 | B121: 120132 | C121: Michelle Hein | D121: 107 | E121: C.P.S.C. | J121: 1-2 | T121: Michelle Hein
A122: 107122517 | B122: 122517 | C122: Monty Melbye | D122: 107 | E122: C.P.S.C. | J122: 1-2 | T122: Monty Melbye
A123: 107119748 | B123: 119748 | C123: Nicklas Olsen | D123: 107 | E123: C.P.S.C. | J123: 1-2 | T123: Nicklas Olsen
A124: 107119172 | B124: 119172 | C124: Per Micki Christensen | D124: 107 | E124: C.P.S.C. | J124: 1-2 | T124: Per Micki Christensen
A125: 107123410 | B125: 123410 | C125: Ramin Waisi | D125: 107 | E125: C.P.S.C. | J125: 1-2 | T125: Ramin Waisi
A126: 107119662 | B126: 119662 | C126: Robin Tønnesen | D126: 107 | E126: C.P.S.C. | J126: 1-2 | T126: Robin Tønnesen
A127: 107116026 | B127: 116026 | C127: Rune Kampe | D127: 107 | E127: C.P.S.C. | F127: 99.17 | G127: 0.62 | J127: 1-2 | K127: max | L127: 3005.1 | M127: 450 | N127: 36 | O127: 36 | P127: 0 | Q127: 300 | R127: 99.17 | T127: Rune Kampe
A128: 107119976 | B128: 119976 | C128: Thomas Bøgeskov | D128: 107 | E128: C.P.S.C. | J128: 1-2 | T128: Thomas Bøgeskov
A129: 107118930 | B129: 118930 | C129: William Bjerregaard Jakobsen | D129: 107 | E129: C.P.S.C. | F129: 11.65 | J129: 1-2 | K129: 380 | L129: 379.5 | M129: 450 | P129: 400 | Q129: 140 | R129: 11.65 | T129: William Bjerregaard Jakobsen
A130: =IF(D130&B130="","*",D130&B130) -> 108123150 | B130: 123150 | C130: Arne Christoffersen | D130: 108 | E130: Frihedens BK | F130: 4.25 | J130: 1-2 | K130: =IF(L130="","",IF(L130>$X$1,"max",CEILING(L130,2))) -> 158 | L130: 157.5 | M130: 200 | N130: =IF(O130="","",CEILING(O130,1)) ->  | P130: 200 | Q130: =IF(R130="","",IF(R130>$AD$8,IF(R130>$AD$9,IF(R130>$AD$10,IF(R130>$AD$11,IF(R130>$AD$12,$AE$13,$AE$12),$AE$11),$AE$10),$AE$9),IF(R130>$AD$3,IF(R130>$AD$4,IF(R130>$AD$5,IF(R130>$AD$6,IF(R130>$AD$7,IF(R130>$AD$8,,$AE$8),$AE$7),$AE$6),$AE$5),$AE$4),$AE$3))) -> 70 | R130: 4.25 | T130: Arne Christoffersen | U130: =IF(V130="","",CEILING(V130,1)) -> 
A131: 108122042 | B131: 122042 | C131: Arne Walther Larsen | D131: 108 | E131: Frihedens BK | F131: 6.04 | J131: 1-2 | K131: 212 | L131: 211.2 | M131: 250 | P131: 250 | Q131: 80 | R131: 6.04 | T131: =IF(C131="","?",C131) -> Arne Walther Larsen
A132: 108111492 | B132: 111492 | C132: Bent Knudsen | D132: 108 | E132: Frihedens BK | F132: 4.23 | J132: 1-2 | K132: 158 | L132: =IF(F132="","",F132*30+30) -> 156.9 | M132: 200 | P132: =IF(R132="","",IF(R132<5,200,IF(R132<7,250,IF(R132<9,300,IF(R132<11.5,350,IF(R132<14,400,IF(R132<17.5,450,IF(R132<30,500,)))))))) -> 200 | Q132: 70 | R132: =IF(F132="","",F132*1) -> 4.23 | T132: Bent Knudsen
A133: 108122040 | B133: 122040 | C133: Bent Lundsgaard Møller | D133: 108 | E133: Frihedens BK | F133: 4.33 | J133: 1-2 | K133: 160 | L133: 159.9 | M133: =IF(R133="","",IF(R133<3,150,IF(R133<5,200,IF(R133<7.5,250,IF(R133<10,350,IF(R133>9.99,450,)))))) -> 200 | O133: =IF(G133="","",G133*50+5) ->  | P133: 200 | Q133: 70 | R133: 4.33 | T133: Bent Lundsgaard Møller | V133: =IF(I133="","",I133*30+5) -> 
